Workbook

Sheet Sample Report (hidden)
A2: Date
A3: Hen
A4: Program
A5: Start at 999999
A6: Sequence component 1 | B6: Time 1 | C6: Seqeunce Component 2 | D6: Time 2 | E6: Seqeunce Component 3 | F6: Time 3 | G6: Correct 0 = No 1=Yes | J6: Seqeunce | K6: Time
A7: 12 | B7: 7 | C7: 12 | D7: 42 | E7: 13 | F7: 18 | G7: if 77 new line, if 31 or 41 = yes new line on 77, | J7: =string of Seqeunce compponent 1, 2 & 3 | K7: =time 3
A8: This continues until ther is a 1 on its own to indicate start of summary data
J9: 10-19 =1
A10: Summary Data | J10: 20-29 =2
A11: Correct | B11: Incorrect | C11: Rft | D11: total | E11: Av Correct | F11: Av Incorrect | G11: Percent correct | H11: Time | J11: in this example the seqeunce would be 111
A12: 40 | B12: 33 | C12: 40 | D12: 73 | E12: 23.95 | F12: 15 | G12: 54 | H12: 806

Sheet Summary
A2: Day | B2: Date | C2: Average Response Rate | D2: Target % | E2: RF for non correct sequence | F2: U Value | K2: Block 1 | L2: Block 2 | M2: Block 3 | N2: Block 4 | O2: Block 5 | P2: Block 6
A3: 1 | B3: ='!M923A0D.ust'!B2:C2 -> <date> | C3: =('!M923A0D.ust'!F198/60)/'!M923A0D.ust'!Q3 -> 2.082899306 | D3: ='!M923A0D.ust'!N20/'!M923A0D.ust'!Q3 -> 0 | E3: =SUM('!M923A0D.ust'!L20:Q20)/'!M923A0D.ust'!Q3 -> 0.9166666667 | F3: ='!M923A0D.ust'!Q16 -> 0.2303819803 | J3: Average Response Rate | K3: =AVERAGE(C3:C7) -> 2.261772591 | L3: =AVERAGE(C8:C12) -> 2.59854552 | M3: =AVERAGE(C13:C17) -> 2.637596174 | N3: =AVERAGE(C18:C22) -> 5.343618892 | O3: =AVERAGE(C23:C27) -> 2.530355382 | P3: =AVERAGE(C28:C32) -> 2.71024618
A4: 2 | B4: ='!M924B0D.ust'!B2:C2 -> <date> | C4: =('!M924B0D.ust'!F198/60)/'!M924B0D.ust'!Q3 -> 2.075086806 | D4: ='!M924B0D.ust'!N20/'!M924B0D.ust'!Q3 -> 0.02083333333 | E4: =SUM('!M924B0D.ust'!L20:Q20)/'!M924B0D.ust'!Q3 -> 0.9375 | F4: ='!M924B0D.ust'!Q16 -> 0.2694809064 | J4: Target % | K4: =AVERAGE(D3:D7) -> 0.2100622384 | L4: =AVERAGE(D8:D12) -> 0.608635267 | M4: =AVERAGE(D13:D17) -> 0.7188028896 | N4: =AVERAGE(D18:D22) -> 0.4908870215 | O4: =AVERAGE(D23:D27) -> 0.6895206885 | P4: =AVERAGE(D28:D32) -> 0.7158173439
A5: 3 | B5: ='!M92592D.ust'!B2:C2 -> <date> | C5: =('!M92592D.ust'!F184/60)/'!M92592D.ust'!Q3 -> 2.239700375 | D5: ='!M92592D.ust'!N20/'!M92592D.ust'!Q3 -> 0.1235955056 | E5: =SUM('!M92592D.ust'!L20:Q20)/'!M92592D.ust'!Q3 -> 1.084269663 | F5: ='!M92592D.ust'!Q16 -> 0.3266552995 | J5: CCRF | K5: =AVERAGE(E3:E7) -> 1.919451972 | L5: =AVERAGE(E8:E12) -> 4.234788382 | M5: =AVERAGE(E13:E17) -> 4.568821942 | N5: =AVERAGE(E18:E22) -> 4.820532213 | O5: =AVERAGE(E23:E27) -> 4.075401726 | P5: =AVERAGE(E28:E32) -> 4.267085648
A6: 4 | B6: ='!M92693D.ust'!B2:C2 -> <date> | C6: =('!M92693D.ust'!F91/60)/'!M92693D.ust'!Q3 -> 2.54627451 | D6: ='!M92693D.ust'!N20/'!M92693D.ust'!Q3 -> 0.4470588235 | E6: =SUM('!M92693D.ust'!L20:Q20)/'!M92693D.ust'!Q3 -> 3.388235294 | F6: ='!M92693D.ust'!Q16 -> 0.2491746515 | J6: U Value | K6: =AVERAGE(F3:F7) -> 0.2660248545 | L6: =AVERAGE(F8:F12) -> 0.2243244368 | M6: =AVERAGE(F13:F17) -> 0.2080614713 | N6: =AVERAGE(F18:F22) -> 0.2729122008 | O6: =AVERAGE(F23:F27) -> 0.2277464506 | P6: =AVERAGE(F28:F32) -> 0.2122614052
A7: 5 | B7: ='!M927A2D.ust'!B2:C2 -> <date> | C7: =('!M927A2D.ust'!F91/60)/'!M927A2D.ust'!Q3 -> 2.364901961 | D7: ='!M927A2D.ust'!N20/'!M927A2D.ust'!Q3 -> 0.4588235294 | E7: =SUM('!M927A2D.ust'!L20:Q20)/'!M927A2D.ust'!Q3 -> 3.270588235 | F7: ='!M927A2D.ust'!Q16 -> 0.2544314348
A8: 6 | B8: ='!M92891D.ust'!B2:C2 -> <date> | C8: =('!M92891D.ust'!F80/60)/'!M92891D.ust'!Q3 -> 2.659459459 | D8: ='!M92891D.ust'!N20/'!M92891D.ust'!Q3 -> 0.527027027 | E8: =SUM('!M92891D.ust'!L20:Q20)/'!M92891D.ust'!Q3 -> 3.716216216 | F8: ='!M92891D.ust'!Q16 -> 0.2331956243
A9: 7 | B9: ='!M930B0D.ust'!B2:C2 -> <date> | C9: =('!M930B0D.ust'!F73/60)/'!M930B0D.ust'!Q3 -> 2.381094527 | D9: ='!M930B0D.ust'!N20/'!M930B0D.ust'!Q3 -> 0.5820895522 | E9: =SUM('!M930B0D.ust'!L20:Q20)/'!M930B0D.ust'!Q3 -> 4.059701493 | F9: ='!M930B0D.ust'!Q16 -> 0.220212392 | G9: =K3 -> 2.261772591 | H9: =L3 -> 2.59854552 | I9: 2.637596174 | J9: 5.343618892 | K9: 2.530355382 | L9: 2.71024618 | M9: =K4 -> 0.2100622384 | N9: =L4 -> 0.608635267 | O9: 0.7188028896 | P9: 0.4908870215 | Q9: 0.6895206885 | R9: 0.7158173439 | S9: =K6 -> 0.2660248545 | T9: =L6 -> 0.2243244368 | U9: 0.2080614713 | V9: 0.2729122008 | W9: 0.2277464506 | X9: 0.2122614052
A10: 8 | B10: ='!MA01A5D.ust'!B2:C2 -> <date> | C10: =('!MA01A5D.ust'!F75/60)/'!MA01A5D.ust'!Q3 -> 2.271980676 | D10: ='!MA01A5D.ust'!N20/'!MA01A5D.ust'!Q3 -> 0.5652173913 | E10: =SUM('!MA01A5D.ust'!L20:Q20)/'!MA01A5D.ust'!Q3 -> 3.956521739 | F10: ='!MA01A5D.ust'!Q16 -> 0.2174772491
A11: 9 | B11: ='!MA0294D.ust'!B2:C2 -> <date> | C11: =('!MA0294D.ust'!F62/60)/'!MA0294D.ust'!Q3 -> 2.908928571 | D11: ='!MA0294D.ust'!N20/'!MA0294D.ust'!Q3 -> 0.6964285714 | E11: =SUM('!MA0294D.ust'!L20:Q20)/'!MA0294D.ust'!Q3 -> 4.803571429 | F11: ='!MA0294D.ust'!Q16 -> 0.2215836643
A12: 10 | B12: ='!MA0394D.ust'!B2:C2 -> <date> | C12: =('!MA0394D.ust'!F64/60)/'!MA0394D.ust'!Q3 -> 2.771264368 | D12: ='!MA0394D.ust'!N20/'!MA0394D.ust'!Q3 -> 0.6724137931 | E12: =SUM('!MA0394D.ust'!L20:Q20)/'!MA0394D.ust'!Q3 -> 4.637931034 | F12: ='!MA0394D.ust'!Q16 -> 0.2291532542
A13: 11 | B13: ='!MA04A5D.ust'!B2:C2 -> <date> | C13: =('!MA04A5D.ust'!F66/60)/'!MA04A5D.ust'!Q3 -> 3.005833333 | D13: ='!MA04A5D.ust'!N20/'!MA04A5D.ust'!Q3 -> 0.65 | E13: =SUM('!MA04A5D.ust'!L20:Q20)/'!MA04A5D.ust'!Q3 -> 4.5 | F13: ='!MA04A5D.ust'!Q16 -> 0.2305208216
A14: 12 | B14: ='!MA05A0D.ust'!B2:C2 -> <date> | C14: =('!MA05A0D.ust'!F57/60)/'!MA05A0D.ust'!Q3 -> 2.627777778 | D14: ='!MA05A0D.ust'!N20/'!MA05A0D.ust'!Q3 -> 0.7450980392 | E14: =SUM('!MA05A0D.ust'!L20:Q20)/'!MA05A0D.ust'!Q3 -> 3.254901961 | F14: ='!MA05A0D.ust'!Q16 -> 0.1889193142
A15: 13 | B15: ='!MA0685D.ust'!B2:C2 -> <date> | C15: =('!MA0685D.ust'!F63/60)/'!MA0685D.ust'!Q3 -> 2.570175439 | D15: ='!MA0685D.ust'!N20/'!MA0685D.ust'!Q3 -> 0.6842105263 | E15: =SUM('!MA0685D.ust'!L20:Q20)/'!MA0685D.ust'!Q3 -> 4.719298246 | F15: ='!MA0685D.ust'!Q16 -> 0.2319718047
A16: 14 | B16: ='!MA0791D.ust'!B2:C2 -> <date> | C16: =('!MA0791D.ust'!F58/60)/'!MA0791D.ust'!Q3 -> 2.37275641 | D16: ='!MA0791D.ust'!N20/'!MA0791D.ust'!Q3 -> 0.75 | E16: =SUM('!MA0791D.ust'!L20:Q20)/'!MA0791D.ust'!Q3 -> 5.134615385 | F16: ='!MA0791D.ust'!Q16 -> 0.1857916655
A17: 15 | B17: ='!MA08A5D.ust'!B2:C2 -> <date> | C17: =('!MA08A5D.ust'!F57/60)/'!MA08A5D.ust'!Q3 -> 2.611437908 | D17: ='!MA08A5D.ust'!N20/'!MA08A5D.ust'!Q3 -> 0.7647058824 | E17: =SUM('!MA08A5D.ust'!L20:Q20)/'!MA08A5D.ust'!Q3 -> 5.235294118 | F17: ='!MA08A5D.ust'!Q16 -> 0.2031037506
A18: 16 | B18: ='!MA0992D.ust'!B2:C2 -> <date> | C18: =('!MA0992D.ust'!F57/60)/'!MA0992D.ust'!Q3 -> 2.647385621 | D18: ='!MA0992D.ust'!N20/'!MA0992D.ust'!Q3 -> 0.7647058824 | E18: =SUM('!MA0992D.ust'!L20:Q20)/'!MA0992D.ust'!Q3 -> 5.235294118 | F18: ='!MA0992D.ust'!Q16 -> 0.1724157653
A19: 17 | B19: ='!MA10A3D.ust'!B2:C2 -> <date> | C19: =('!MA10A3D.ust'!F42/60)/'!MA10A3D.ust'!Q3 -> 3.966203704 | D19: ='!MA10A3D.ust'!N20/'!MA10A3D.ust'!Q3 -> 0.6388888889 | E19: =SUM('!MA10A3D.ust'!L20:Q20)/'!MA10A3D.ust'!Q3 -> 6.833333333 | F19: ='!MA10A3D.ust'!Q16 -> 0.2098452161
A20: 18 | B20: ='!MA13A3D.ust'!B2:C2 -> <date> | C20: =('!MA13A3D.ust'!F34/60)/'!MA13A3D.ust'!Q3 -> 12.99404762 | D20: ='!MA13A3D.ust'!N20/'!MA13A3D.ust'!Q3 -> 0.07142857143 | E20: =SUM('!MA13A3D.ust'!L20:Q20)/'!MA13A3D.ust'!Q3 -> 4.392857143 | F20: ='!MA13A3D.ust'!Q16 -> 0.3962151294
A21: 19 | B21: ='!MA14A0D.ust'!B2:C2 -> <date> | C21: =('!MA14A0D.ust'!F91/60)/'!MA14A0D.ust'!Q3 -> 4.614901961 | D21: ='!MA14A0D.ust'!N20/'!MA14A0D.ust'!Q3 -> 0.3294117647 | E21: =SUM('!MA14A0D.ust'!L20:Q20)/'!MA14A0D.ust'!Q3 -> 3.141176471 | F21: ='!MA14A0D.ust'!Q16 -> 0.341829502
A22: 20 | B22: ='!MA15A4D.ust'!B2:C2 -> <date> | C22: =('!MA15A4D.ust'!F66/60)/'!MA15A4D.ust'!Q3 -> 2.495555556 | D22: ='!MA15A4D.ust'!N20/'!MA15A4D.ust'!Q3 -> 0.65 | E22: =SUM('!MA15A4D.ust'!L20:Q20)/'!MA15A4D.ust'!Q3 -> 4.5 | F22: ='!MA15A4D.ust'!Q16 -> 0.2442553912
A23: 21 | B23: ='!MA1692D.ust'!B2:C2 -> <date> | C23: =('!MA1692D.ust'!F56/60)/'!MA1692D.ust'!Q3 -> 2.394333333 | D23: ='!MA1692D.ust'!N20/'!MA1692D.ust'!Q3 -> 0.76 | E23: =SUM('!MA1692D.ust'!L20:Q20)/'!MA1692D.ust'!Q3 -> 5.32 | F23: ='!MA1692D.ust'!Q16 -> 0.1940926988
A24: 22 | B24: ='!MA17B1D.ust'!B2:C2 -> <date> | C24: =('!MA17B1D.ust'!F63/60)/'!MA17B1D.ust'!Q3 -> 2.712280702 | D24: ='!MA17B1D.ust'!N20/'!MA17B1D.ust'!Q3 -> 0.701754386 | E24: =SUM('!MA17B1D.ust'!L20:Q20)/'!MA17B1D.ust'!Q3 -> 2.98245614 | F24: ='!MA17B1D.ust'!Q16 -> 0.1986138437
A25: 23 | B25: ='!MA18A3D.ust'!B2:C2 -> <date> | C25: =('!MA18A3D.ust'!F71/60)/'!MA18A3D.ust'!Q3 -> 2.546410256 | D25: ='!MA18A3D.ust'!N20/'!MA18A3D.ust'!Q3 -> 0.6 | E25: =SUM('!MA18A3D.ust'!L20:Q20)/'!MA18A3D.ust'!Q3 -> 4.184615385 | F25: ='!MA18A3D.ust'!Q16 -> 0.2750150714
A26: 24 | B26: ='!MA1994D.ust'!B2:C2 -> <date> | C26: =('!MA1994D.ust'!F66/60)/'!MA1994D.ust'!Q3 -> 2.409444444 | D26: ='!MA1994D.ust'!N20/'!MA1994D.ust'!Q3 -> 0.65 | E26: =SUM('!MA1994D.ust'!L20:Q20)/'!MA1994D.ust'!Q3 -> 2.833333333 | F26: ='!MA1994D.ust'!Q16 -> 0.256758146
A27: 25 | B27: ='!MA2092D.ust'!B2:C2 -> <date> | C27: =('!MA2092D.ust'!F59/60)/'!MA2092D.ust'!Q3 -> 2.589308176 | D27: ='!MA2092D.ust'!N20/'!MA2092D.ust'!Q3 -> 0.7358490566 | E27: =SUM('!MA2092D.ust'!L20:Q20)/'!MA2092D.ust'!Q3 -> 5.056603774 | F27: ='!MA2092D.ust'!Q16 -> 0.2142524931
A28: 26 | B28: ='!MA2194D.ust'!B2:C2 -> <date> | C28: =('!MA2194D.ust'!F65/60)/'!MA2194D.ust'!Q3 -> 2.758757062 | D28: ='!MA2194D.ust'!N20/'!MA2194D.ust'!Q3 -> 0.6610169492 | E28: =SUM('!MA2194D.ust'!L20:Q20)/'!MA2194D.ust'!Q3 -> 4.576271186 | F28: ='!MA2194D.ust'!Q16 -> 0.2307410003
A29: 27 | B29: ='!MA22B0D.ust'!B2:C2 -> <date> | C29: =('!MA22B0D.ust'!F65/60)/'!MA22B0D.ust'!Q3 -> 2.51440678 | D29: ='!MA22B0D.ust'!N20/'!MA22B0D.ust'!Q3 -> 0.6610169492 | E29: =SUM('!MA22B0D.ust'!L20:Q20)/'!MA22B0D.ust'!Q3 -> 2.881355932 | F29: ='!MA22B0D.ust'!Q16 -> 0.245757493
A30: 28 | B30: ='!MA23B1D.ust'!B2:C2 -> <date> | C30: =('!MA23B1D.ust'!F62/60)/'!MA23B1D.ust'!Q3 -> 2.716369048 | D30: ='!MA23B1D.ust'!N20/'!MA23B1D.ust'!Q3 -> 0.6964285714 | E30: =SUM('!MA23B1D.ust'!L20:Q20)/'!MA23B1D.ust'!Q3 -> 3.017857143 | F30: ='!MA23B1D.ust'!Q16 -> 0.2134540772
A31: 29 | B31: ='!MA24A4D.ust'!B2:C2 -> <date> | C31: =('!MA24A4D.ust'!F55/60)/'!MA24A4D.ust'!Q3 -> 2.914965986 | D31: ='!MA24A4D.ust'!N20/'!MA24A4D.ust'!Q3 -> 0.7959183673 | E31: =SUM('!MA24A4D.ust'!L20:Q20)/'!MA24A4D.ust'!Q3 -> 5.428571429 | F31: ='!MA24A4D.ust'!Q16 -> 0.1720648326
A32: 30 | B32: ='!MA25A3D.ust'!B2:C2 -> <date> | C32: =('!MA25A3D.ust'!F57/60)/'!MA25A3D.ust'!Q3 -> 2.646732026 | D32: ='!MA25A3D.ust'!N20/'!MA25A3D.ust'!Q3 -> 0.7647058824 | E32: =SUM('!MA25A3D.ust'!L20:Q20)/'!MA25A3D.ust'!Q3 -> 5.431372549 | F32: ='!MA25A3D.ust'!Q16 -> 0.199289623

Sheet Start
F1: Use Folder 51 | H1: Auto Clean Up | J1: Correct sequence
F2: FALSE | H2: TRUE | J2: 211
A4: Working with Folder | G4: Process All/Or Pick A number: ALL or an integer
A5: F:\Possum Chapter\Raw Data\Dusti\Phase 1 repeat\ | G5: ALL
A6: Filenames:
A7: !MA18A3D.ust | G7: Paint Cells
A8: !MA1994D.ust | G8: FALSE
A9: !MA2092D.ust
A10: !MA2194D.ust
A11: !MA22B0D.ust
A12: !MA23B1D.ust
A13: !MA24A4D.ust
A14: !MA25A3D.ust
A15: !M923A0D.ust
A16: !M924B0D.ust
A17: !M92592D.ust
A18: !M92693D.ust
A19: !M927A2D.ust
A20: !M92891D.ust
A21: !M930B0D.ust
A22: !MA01A5D.ust
A23: !MA0294D.ust
A24: !MA0394D.ust
A25: !MA04A5D.ust
A26: !MA05A0D.ust
A27: !MA0685D.ust
A28: !MA0791D.ust
A29: !MA08A5D.ust
A30: !MA0992D.ust
A31: !MA10A3D.ust
A32: !MA13A3D.ust
A33: !MA14A0D.ust
A34: !MA15A4D.ust
A35: !MA1692D.ust
A36: !MA17B1D.ust

Sheet !M923A0D.ust
A1: Report for:!M923A0D.ust
A2: Date: | B2: <date>
A3: Hen: | B3: <hen> | F3: Correct Sequence | G3: =Start!J2 -> 211 | P3: Total Sequences in Data | Q3: =4994-COUNTBLANK(L7:L5000) -> 192 | V3: Total Sequences in Block Data | W3: =COUNTA(L7:L38) -> 32 | AA3: Total Sequences in Block Data | AB3: =COUNTA(L39:L70) -> 32 | AF3: Total Sequences in Block Data | AG3: =COUNTA(L71:L102) -> 32 | AK3: Total Sequences in Block Data | AL3: =COUNTA(L103:L134) -> 32 | AP3: Total Sequences in Block Data | AQ3: =COUNTA(L135:L166) -> 32 | AU3: Total Sequences in Block Data | AV3: =COUNTA(L167:L198) -> 32
P4: Total Sequences in Summary | Q4: =SUM(O7:O14) -> 192 | V4: Total Sequences in Block Summary | W4: =SUM(U7:U14) -> 32 | AA4: Total Sequences in Block Summary | AB4: =SUM(Z7:Z14) -> 32 | AF4: Total Sequences in Block Summary | AG4: =SUM(AE7:AE14) -> 32 | AK4: Total Sequences in Block Summary | AL4: =SUM(AJ7:AJ14) -> 32 | AP4: Total Sequences in Block Summary | AQ4: =SUM(AO7:AO14) -> 32 | AU4: Total Sequences in Block Summary | AV4: =SUM(AT7:AT14) -> 32
T5: Block 1 | Y5: Block 2 | AD5: Block 3 | AI5: Block 4 | AN5: Block 5 | AS5: Block 6
A6: Sequence Component 1 | B6: Time 1 | C6: Sequence Component 2 | D6: Time 2 | E6: Sequence Component 3 | F6: Time 3 | G6: Sequence Component 4 | H6: Time 4 | I6: Sequence Component 5 | J6: Time 5 | K6: Correct? 0=No 1=Yes | L6: Sequence | N6: Frequency | P6: Relative Frequency | Q6: Variability | T6: Frequency | V6: Relative Frequency | W6: Variability | Y6: Frequency | AA6: Relative Frequency | AB6: Variability | AD6: Frequency | AF6: Relative Frequency | AG6: Variability | AI6: Frequency | AK6: Relative Frequency | AL6: Variability | AN6: Frequency | AP6: Relative Frequency | AQ6: Variability | AS6: Frequency | AU6: Relative Frequency | AV6: Variability
A7: 12 | B7: 9 | C7: 13 | D7: 16 | E7: 24 | F7: 28 | K7: 0 | L7: 112 | N7: 111 | O7: =COUNTIF($L$7:$L$500,N7) -> 64 | P7: =O7/$Q$4 -> 0.3333333333 | Q7: =IF(P7=0,0,(P7*((LOG(P7))/LOG(2)))) -> -0.5283208336 | T7: =N7 -> 111 | U7: =COUNTIF(L7:L38,T7) -> 3 | V7: =U7/(W4-U11) -> 0.09375 | W7: =IF(V7=0,0,(V7*((LOG(V7))/LOG(2)))) -> -0.3201597656 | Y7: =N7 -> 111 | Z7: =COUNTIF(L39:L70,Y7) -> 5 | AA7: =Z7/(AB4-Z11) -> 0.15625 | AB7: =IF(AA7=0,0,(AA7*((LOG(AA7))/LOG(2)))) -> -0.4184487352 | AD7: =N7 -> 111 | AE7: =COUNTIF(L71:L102,AD7) -> 8 | AF7: =AE7/(AG4-AE11) -> 0.25 | AG7: =IF(AF7=0,0,(AF7*((LOG(AF7))/LOG(2)))) -> -0.5 | AI7: =N7 -> 111 | AJ7: =COUNTIF(L103:L134,AI7) -> 25 | AK7: =AJ7/(AL4-AJ11) -> 0.78125 | AL7: =IF(AK7=0,0,(AK7*((LOG(AK7))/LOG(2)))) -> -0.2782373517 | AN7: =N7 -> 111 | AO7: =COUNTIF(L135:L166,AN7) -> 12 | AP7: =AO7/(AQ4-AO11) -> 0.375 | AQ7: =IF(AP7=0,0,(AP7*((LOG(AP7))/LOG(2)))) -> -0.5306390622 | AS7: =N7 -> 111 | AT7: =COUNTIF(L167:L198,AS7) -> 11 | AU7: =AT7/(AV4-AT11) -> 0.34375 | AV7: =IF(AU7=0,0,(AU7*((LOG(AU7))/LOG(2)))) -> -0.5295703811
A8: 12 | B8: 125 | C8: 13 | D8: 130 | E8: 24 | F8: 137 | K8: 0 | L8: 112 | N8: 112 | O8: =COUNTIF($L$7:$L$500,N8) -> 95 | P8: =O8/$Q$4 -> 0.4947916667 | Q8: =IF(P8=0,0,(P8*((LOG(P8))/LOG(2)))) -> -0.5022664311 | T8: =N8 -> 112 | U8: =COUNTIF(L7:L38,T8) -> 22 | V8: =U8/(W4-U11) -> 0.6875 | W8: =IF(V8=0,0,(V8*((LOG(V8))/LOG(2)))) -> -0.3716407622 | Y8: =N8 -> 112 | Z8: =COUNTIF(L39:L70,Y8) -> 20 | AA8: =Z8/(AB4-Z11) -> 0.625 | AB8: =IF(AA8=0,0,(AA8*((LOG(AA8))/LOG(2)))) -> -0.4237949407 | AD8: =N8 -> 112 | AE8: =COUNTIF(L71:L102,AD8) -> 20 | AF8: =AE8/(AG4-AE11) -> 0.625 | AG8: =IF(AF8=0,0,(AF8*((LOG(AF8))/LOG(2)))) -> -0.4237949407 | AI8: =N8 -> 112 | AJ8: =COUNTIF(L103:L134,AI8) -> 6 | AK8: =AJ8/(AL4-AJ11) -> 0.1875 | AL8: =IF(AK8=0,0,(AK8*((LOG(AK8))/LOG(2)))) -> -0.4528195311 | AN8: =N8 -> 112 | AO8: =COUNTIF(L135:L166,AN8) -> 15 | AP8: =AO8/(AQ4-AO11) -> 0.46875 | AQ8: =IF(AP8=0,0,(AP8*((LOG(AP8))/LOG(2)))) -> -0.5123950333 | AS8: =N8 -> 112 | AT8: =COUNTIF(L167:L198,AS8) -> 12 | AU8: =AT8/(AV4-AT11) -> 0.375 | AV8: =IF(AU8=0,0,(AU8*((LOG(AU8))/LOG(2)))) -> -0.5306390622
A9: 12 | B9: 236 | C9: 13 | D9: 251 | E9: 24 | F9: 263 | K9: 0 | L9: 112 | N9: 121 | O9: =COUNTIF($L$7:$L$500,N9) -> 5 | P9: =O9/$Q$4 -> 0.02604166667 | Q9: =IF(P9=0,0,(P9*((LOG(P9))/LOG(2)))) -> -0.1370581877 | T9: =N9 -> 121 | U9: =COUNTIF(L7:L38,T9) -> 3 | V9: =U9/(W4-U11) -> 0.09375 | W9: =IF(V9=0,0,(V9*((LOG(V9))/LOG(2)))) -> -0.3201597656 | Y9: =N9 -> 121 | Z9: =COUNTIF(L39:L70,Y9) -> 1 | AA9: =Z9/(AB4-Z11) -> 0.03125 | AB9: =IF(AA9=0,0,(AA9*((LOG(AA9))/LOG(2)))) -> -0.15625 | AD9: =N9 -> 121 | AE9: =COUNTIF(L71:L102,AD9) -> 0 | AF9: =AE9/(AG4-AE11) -> 0 | AG9: =IF(AF9=0,0,(AF9*((LOG(AF9))/LOG(2)))) -> 0 | AI9: =N9 -> 121 | AJ9: =COUNTIF(L103:L134,AI9) -> 0 | AK9: =AJ9/(AL4-AJ11) -> 0 | AL9: =IF(AK9=0,0,(AK9*((LOG(AK9))/LOG(2)))) -> 0 | AN9: =N9 -> 121 | AO9: =COUNTIF(L135:L166,AN9) -> 0 | AP9: =AO9/(AQ4-AO11) -> 0 | AQ9: =IF(AP9=0,0,(AP9*((LOG(AP9))/LOG(2)))) -> 0 | AS9: =N9 -> 121 | AT9: =COUNTIF(L167:L198,AS9) -> 1 | AU9: =AT9/(AV4-AT11) -> 0.03125 | AV9: =IF(AU9=0,0,(AU9*((LOG(AU9))/LOG(2)))) -> -0.15625
A10: 12 | B10: 362 | C10: 13 | D10: 367 | E10: 24 | F10: 380 | K10: 0 | L10: 112 | N10: 122 | O10: =COUNTIF($L$7:$L$500,N10) -> 18 | P10: =O10/$Q$4 -> 0.09375 | Q10: =IF(P10=0,0,(P10*((LOG(P10))/LOG(2)))) -> -0.3201597656 | T10: =N10 -> 122 | U10: =COUNTIF(L7:L38,T10) -> 4 | V10: =U10/(W4-U11) -> 0.125 | W10: =IF(V10=0,0,(V10*((LOG(V10))/LOG(2)))) -> -0.375 | Y10: =N10 -> 122 | Z10: =COUNTIF(L39:L70,Y10) -> 5 | AA10: =Z10/(AB4-Z11) -> 0.15625 | AB10: =IF(AA10=0,0,(AA10*((LOG(AA10))/LOG(2)))) -> -0.4184487352 | AD10: =N10 -> 122 | AE10: =COUNTIF(L71:L102,AD10) -> 3 | AF10: =AE10/(AG4-AE11) -> 0.09375 | AG10: =IF(AF10=0,0,(AF10*((LOG(AF10))/LOG(2)))) -> -0.3201597656 | AI10: =N10 -> 122 | AJ10: =COUNTIF(L103:L134,AI10) -> 0 | AK10: =AJ10/(AL4-AJ11) -> 0 | AL10: =IF(AK10=0,0,(AK10*((LOG(AK10))/LOG(2)))) -> 0 | AN10: =N10 -> 122 | AO10: =COUNTIF(L135:L166,AN10) -> 2 | AP10: =AO10/(AQ4-AO11) -> 0.0625 | AQ10: =IF(AP10=0,0,(AP10*((LOG(AP10))/LOG(2)))) -> -0.25 | AS10: =N10 -> 122 | AT10: =COUNTIF(L167:L198,AS10) -> 4 | AU10: =AT10/(AV4-AT11) -> 0.125 | AV10: =IF(AU10=0,0,(AU10*((LOG(AU10))/LOG(2)))) -> -0.375
A11: 12 | B11: 480 | C11: 13 | D11: 486 | E11: 24 | F11: 495 | K11: 0 | L11: 112 | N11: 211 | O11: =COUNTIF($L$7:$L$500,N11) -> 0 | P11: =O11/$Q$4 -> 0 | Q11: =IF(P11=0,0,(P11*((LOG(P11))/LOG(2)))) -> 0 | T11: =N11 -> 211 | U11: =COUNTIF(L7:L38,T11) -> 0 | Y11: =N11 -> 211 | Z11: =COUNTIF(L39:L70,Y11) -> 0 | AD11: =N11 -> 211 | AE11: =COUNTIF(L71:L102,AD11) -> 0 | AI11: =N11 -> 211 | AJ11: =COUNTIF(L103:L134,AI11) -> 0 | AN11: =N11 -> 211 | AO11: =COUNTIF(L135:L166,AN11) -> 0 | AS11: =N11 -> 211 | AT11: =COUNTIF(L167:L198,AS11) -> 0
A12: 12 | B12: 595 | C12: 13 | D12: 600 | E12: 24 | F12: 609 | K12: 0 | L12: 112 | N12: 212 | O12: =COUNTIF($L$7:$L$500,N12) -> 0 | P12: =O12/$Q$4 -> 0 | Q12: =IF(P12=0,0,(P12*((LOG(P12))/LOG(2)))) -> 0 | T12: =N12 -> 212 | U12: =COUNTIF(L7:L38,T12) -> 0 | V12: =U12/(W4-U11) -> 0 | W12: =IF(V12=0,0,(V12*((LOG(V12))/LOG(2)))) -> 0 | Y12: =N12 -> 212 | Z12: =COUNTIF(L39:L70,Y12) -> 0 | AA12: =Z12/(AB4-Z11) -> 0 | AB12: =IF(AA12=0,0,(AA12*((LOG(AA12))/LOG(2)))) -> 0 | AD12: =N12 -> 212 | AE12: =COUNTIF(L71:L102,AD12) -> 0 | AF12: =AE12/(AG4-AE11) -> 0 | AG12: =IF(AF12=0,0,(AF12*((LOG(AF12))/LOG(2)))) -> 0 | AI12: =N12 -> 212 | AJ12: =COUNTIF(L103:L134,AI12) -> 0 | AK12: =AJ12/(AL4-AJ11) -> 0 | AL12: =IF(AK12=0,0,(AK12*((LOG(AK12))/LOG(2)))) -> 0 | AN12: =N12 -> 212 | AO12: =COUNTIF(L135:L166,AN12) -> 0 | AP12: =AO12/(AQ4-AO11) -> 0 | AQ12: =IF(AP12=0,0,(AP12*((LOG(AP12))/LOG(2)))) -> 0 | AS12: =N12 -> 212 | AT12: =COUNTIF(L167:L198,AS12) -> 0 | AU12: =AT12/(AV4-AT11) -> 0 | AV12: =IF(AU12=0,0,(AU12*((LOG(AU12))/LOG(2)))) -> 0
A13: 12 | B13: 706 | C13: 13 | D13: 712 | E13: 24 | F13: 720 | K13: 0 | L13: 112 | N13: 221 | O13: =COUNTIF($L$7:$L$500,N13) -> 2 | P13: =O13/$Q$4 -> 0.01041666667 | Q13: =IF(P13=0,0,(P13*((LOG(P13))/LOG(2)))) -> -0.06859335938 | T13: =N13 -> 221 | U13: =COUNTIF(L7:L38,T13) -> 0 | V13: =U13/(W4-U11) -> 0 | W13: =IF(V13=0,0,(V13*((LOG(V13))/LOG(2)))) -> 0 | Y13: =N13 -> 221 | Z13: =COUNTIF(L39:L70,Y13) -> 1 | AA13: =Z13/(AB4-Z11) -> 0.03125 | AB13: =IF(AA13=0,0,(AA13*((LOG(AA13))/LOG(2)))) -> -0.15625 | AD13: =N13 -> 221 | AE13: =COUNTIF(L71:L102,AD13) -> 1 | AF13: =AE13/(AG4-AE11) -> 0.03125 | AG13: =IF(AF13=0,0,(AF13*((LOG(AF13))/LOG(2)))) -> -0.15625 | AI13: =N13 -> 221 | AJ13: =COUNTIF(L103:L134,AI13) -> 0 | AK13: =AJ13/(AL4-AJ11) -> 0 | AL13: =IF(AK13=0,0,(AK13*((LOG(AK13))/LOG(2)))) -> 0 | AN13: =N13 -> 221 | AO13: =COUNTIF(L135:L166,AN13) -> 0 | AP13: =AO13/(AQ4-AO11) -> 0 | AQ13: =IF(AP13=0,0,(AP13*((LOG(AP13))/LOG(2)))) -> 0 | AS13: =N13 -> 221 | AT13: =COUNTIF(L167:L198,AS13) -> 0 | AU13: =AT13/(AV4-AT11) -> 0 | AV13: =IF(AU13=0,0,(AU13*((LOG(AU13))/LOG(2)))) -> 0
A14: 12 | B14: 817 | C14: 13 | D14: 823 | E14: 24 | F14: 833 | K14: 0 | L14: 112 | N14: 222 | O14: =COUNTIF($L$7:$L$500,N14) -> 8 | P14: =O14/$Q$4 -> 0.04166666667 | Q14: =IF(P14=0,0,(P14*((LOG(P14))/LOG(2)))) -> -0.1910401042 | T14: =N14 -> 222 | U14: =COUNTIF(L7:L38,T14) -> 0 | V14: =U14/(W4-U11) -> 0 | W14: =IF(V14=0,0,(V14*((LOG(V14))/LOG(2)))) -> 0 | Y14: =N14 -> 222 | Z14: =COUNTIF(L39:L70,Y14) -> 0 | AA14: =Z14/(AB4-Z11) -> 0 | AB14: =IF(AA14=0,0,(AA14*((LOG(AA14))/LOG(2)))) -> 0 | AD14: =N14 -> 222 | AE14: =COUNTIF(L71:L102,AD14) -> 0 | AF14: =AE14/(AG4-AE11) -> 0 | AG14: =IF(AF14=0,0,(AF14*((LOG(AF14))/LOG(2)))) -> 0 | AI14: =N14 -> 222 | AJ14: =COUNTIF(L103:L134,AI14) -> 1 | AK14: =AJ14/(AL4-AJ11) -> 0.03125 | AL14: =IF(AK14=0,0,(AK14*((LOG(AK14))/LOG(2)))) -> -0.15625 | AN14: =N14 -> 222 | AO14: =COUNTIF(L135:L166,AN14) -> 3 | AP14: =AO14/(AQ4-AO11) -> 0.09375 | AQ14: =IF(AP14=0,0,(AP14*((LOG(AP14))/LOG(2)))) -> -0.3201597656 | AS14: =N14 -> 222 | AT14: =COUNTIF(L167:L198,AS14) -> 4 | AU14: =AT14/(AV4-AT11) -> 0.125 | AV14: =IF(AU14=0,0,(AU14*((LOG(AU14))/LOG(2)))) -> -0.375
A15: 12 | B15: 932 | C15: 13 | D15: 938 | E15: 24 | F15: 946 | K15: 0 | L15: 112 | P15: =SUM(P7:P14) -> 1 | Q15: =-SUM(Q7:Q14) -> 1.747438681 | V15: =SUM(V7:V14) -> 1 | W15: =-SUM(W7:W14) -> 1.386960293 | AA15: =SUM(AA7:AA14) -> 1 | AB15: =-SUM(AB7:AB14) -> 1.573192411 | AF15: =SUM(AF7:AF14) -> 1 | AG15: =-SUM(AG7:AG14) -> 1.400204706 | AK15: =SUM(AK7:AK14) -> 1 | AL15: =-SUM(AL7:AL14) -> 0.8873068829 | AP15: =SUM(AP7:AP14) -> 1 | AQ15: =-SUM(AQ7:AQ14) -> 1.613193861 | AU15: =SUM(AU7:AU14) -> 1 | AV15: =-SUM(AV7:AV14) -> 1.966459443
A16: 12 | B16: 1050 | C16: 24 | D16: 1060 | E16: 13 | F16: 1100 | K16: 0 | L16: 121 | P16: U= | Q16: =Q15/(LOG(Q4)/LOG(2)) -> 0.2303819803 | V16: U1= | W16: =W15/(LOG(W4)/LOG(2)) -> 0.2773920587 | AA16: U2= | AB16: =AB15/(LOG(AB4)/LOG(2)) -> 0.3146384822 | AF16: U3= | AG16: =AG15/(LOG(AG4)/LOG(2)) -> 0.2800409413 | AK16: U4= | AL16: =AL15/(LOG(AL4)/LOG(2)) -> 0.1774613766 | AP16: U5= | AQ16: =AQ15/(LOG(AQ4)/LOG(2)) -> 0.3226387722 | AU16: U6= | AV16: =AV15/(LOG(AV4)/LOG(2)) -> 0.3932918887
A17: 12 | B17: 1198 | C17: 13 | D17: 1203 | E17: 24 | F17: 1212 | K17: 0 | L17: 112
A18: 12 | B18: 1312 | C18: 13 | D18: 1318 | E18: 24 | F18: 1328 | K18: 0 | L18: 112
A19: 12 | B19: 1427 | C19: 13 | D19: 1433 | E19: 24 | F19: 1439 | K19: 0 | L19: 112 | N19: Total Target Seq
A20: 12 | B20: 1538 | C20: 13 | D20: 1543 | E20: 24 | F20: 1551 | K20: 0 | L20: 112 | N20: =COUNTIF(L7:L198,G3) -> 0 | P20: 32 | Q20: 32 | R20: 32 | S20: 32 | T20: 32 | U20: 32
A21: 12 | B21: 1654 | C21: 13 | D21: 1660 | E21: 24 | F21: 1669 | K21: 0 | L21: 112 | P21: % of reinforcement given in 6 equal intervals based on number of trials
A22: 12 | B22: 1762 | C22: 13 | D22: 1768 | E22: 24 | F22: 1778 | K22: 0 | L22: 112 | P22: %_1 | Q22: %_2 | R22: %_3 | S22: %_4 | T22: %_5 | U22: %_6
A23: 12 | B23: 1886 | C23: 24 | D23: 1895 | E23: 24 | F23: 1905 | K23: 0 | L23: 122 | O23: target sequence | P23: =$G$3 -> 211 | Q23: =$G$3 -> 211 | R23: =$G$3 -> 211 | S23: =$G$3 -> 211 | T23: =$G$3 -> 211 | U23: =$G$3 -> 211
A24: 12 | B24: 2000 | C24: 13 | D24: 2006 | E24: 13 | F24: 2015 | K24: 0 | L24: 111 | O24: total reinforcement | P24: =U11 -> 0 | Q24: =Z11 -> 0 | R24: =AE11 -> 0 | S24: =AJ11 -> 0 | T24: =AO11 -> 0 | U24: =AT11 -> 0
A25: 12 | B25: 2322 | C25: 13 | D25: 2335 | E25: 24 | F25: 2344 | K25: 0 | L25: 112 | O25: % target
A26: 12 | B26: 2440 | C26: 13 | D26: 2447 | E26: 24 | F26: 2458 | K26: 0 | L26: 112 | O26: CCRF
A27: 12 | B27: 2559 | C27: 13 | D27: 2564 | E27: 24 | F27: 2574 | K27: 0 | L27: 112 | O27: % CCRf
A28: 12 | B28: 2670 | C28: 13 | D28: 2676 | E28: 24 | F28: 2685 | K28: 0 | L28: 112 | O28: average response rate | P28: =F38/P20 -> 123.78125 | Q28: =(F70-F38)/Q20 -> 126.65625 | R28: =(F102-F70)/R20 -> 121.40625 | S28: =(F134-F102)/S20 -> 124.09375 | T28: =(F166-F134)/T20 -> 125.0625 | U28: =(F198-F166)/U20 -> 128.84375
A29: 12 | B29: 2782 | C29: 13 | D29: 2792 | E29: 24 | F29: 2800 | K29: 0 | L29: 112
A30: 12 | B30: 2900 | C30: 24 | D30: 2916 | E30: 13 | F30: 2999 | K30: 0 | L30: 121
A31: 12 | B31: 3096 | C31: 13 | D31: 3104 | E31: 24 | F31: 3112 | K31: 0 | L31: 112
A32: 12 | B32: 3208 | C32: 13 | D32: 3210 | E32: 13 | F32: 3216 | K32: 0 | L32: 111
A33: 12 | B33: 3326 | C33: 24 | D33: 3352 | E33: 24 | F33: 3360 | K33: 0 | L33: 122
A34: 12 | B34: 3452 | C34: 13 | D34: 3459 | E34: 13 | F34: 3466 | K34: 0 | L34: 111
A35: 12 | B35: 3562 | C35: 24 | D35: 3577 | E35: 24 | F35: 3585 | K35: 0 | L35: 122
A36: 12 | B36: 3682 | C36: 13 | D36: 3691 | E36: 24 | F36: 3699 | K36: 0 | L36: 112
A37: 12 | B37: 3796 | C37: 24 | D37: 3815 | E37: 13 | F37: 3833 | K37: 0 | L37: 121
A38: 12 | B38: 3936 | C38: 24 | D38: 3950 | E38: 24 | F38: 3961 | K38: 0 | L38: 122
A39: 12 | B39: 4061 | C39: 13 | D39: 4079 | E39: 24 | F39: 4090 | K39: 0 | L39: 112
A40: 21 | B40: 4194 | C40: 22 | D40: 4200 | E40: 13 | F40: 4223 | K40: 0 | L40: 221
A41: 12 | B41: 4357 | C41: 13 | D41: 4362 | E41: 24 | F41: 4371 | K41: 0 | L41: 112
A42: 12 | B42: 4469 | C42: 13 | D42: 4481 | E42: 24 | F42: 4489 | K42: 0 | L42: 112
A43: 12 | B43: 4596 | C43: 24 | D43: 4606 | E43: 24 | F43: 4615 | K43: 0 | L43: 122
A44: 12 | B44: 4714 | C44: 13 | D44: 4721 | E44: 24 | F44: 4729 | K44: 0 | L44: 112
A45: 12 | B45: 4838 | C45: 24 | D45: 4846 | E45: 24 | F45: 4854 | K45: 0 | L45: 122
A46: 12 | B46: 4951 | C46: 13 | D46: 4957 | E46: 13 | F46: 4964 | K46: 0 | L46: 111
A47: 12 | B47: 5061 | C47: 13 | D47: 5066 | E47: 13 | F47: 5072 | K47: 0 | L47: 111
A48: 12 | B48: 5172 | C48: 13 | D48: 5177 | E48: 24 | F48: 5186 | K48: 0 | L48: 112
A49: 12 | B49: 5285 | C49: 13 | D49: 5291 | E49: 24 | F49: 5303 | K49: 0 | L49: 112
A50: 12 | B50: 5424 | C50: 13 | D50: 5429 | E50: 13 | F50: 5438 | K50: 0 | L50: 111
A51: 12 | B51: 5542 | C51: 13 | D51: 5546 | E51: 24 | F51: 5555 | K51: 0 | L51: 112
A52: 12 | B52: 5650 | C52: 13 | D52: 5661 | E52: 24 | F52: 5669 | K52: 0 | L52: 112
A53: 12 | B53: 5770 | C53: 13 | D53: 5780 | E53: 24 | F53: 5794 | K53: 0 | L53: 112
A54: 12 | B54: 5893 | C54: 13 | D54: 5903 | E54: 24 | F54: 5912 | K54: 0 | L54: 112
A55: 12 | B55: 6011 | C55: 13 | D55: 6016 | E55: 13 | F55: 6023 | K55: 0 | L55: 111
A56: 12 | B56: 6122 | C56: 13 | D56: 6129 | E56: 24 | F56: 6141 | K56: 0 | L56: 112
A57: 12 | B57: 6239 | C57: 13 | D57: 6250 | E57: 24 | F57: 6259 | K57: 0 | L57: 112
A58: 12 | B58: 6360 | C58: 13 | D58: 6366 | E58: 24 | F58: 6379 | K58: 0 | L58: 112
A59: 12 | B59: 6484 | C59: 13 | D59: 6489 | E59: 24 | F59: 6502 | K59: 0 | L59: 112
A60: 12 | B60: 6602 | C60: 13 | D60: 6607 | E60: 24 | F60: 6621 | K60: 0 | L60: 112
A61: 12 | B61: 6728 | C61: 24 | D61: 6737 | E61: 24 | F61: 6741 | K61: 0 | L61: 122
A62: 12 | B62: 6848 | C62: 13 | D62: 6856 | E62: 13 | F62: 6860 | K62: 0 | L62: 111
A63: 12 | B63: 6975 | C63: 24 | D63: 6984 | E63: 24 | F63: 6997 | K63: 0 | L63: 122
A64: 12 | B64: 7096 | C64: 13 | D64: 7105 | E64: 24 | F64: 7116 | K64: 0 | L64: 112
A65: 12 | B65: 7217 | C65: 13 | D65: 7227 | E65: 24 | F65: 7238 | K65: 0 | L65: 112
A66: 12 | B66: 7340 | C66: 13 | D66: 7346 | E66: 24 | F66: 7356 | K66: 0 | L66: 112
A67: 12 | B67: 7456 | C67: 13 | D67: 7464 | E67: 24 | F67: 7473 | K67: 0 | L67: 112
A68: 12 | B68: 7572 | C68: 24 | D68: 7591 | E68: 24 | F68: 7607 | K68: 0 | L68: 122
A69: 12 | B69: 7711 | C69: 24 | D69: 7729 | E69: 13 | F69: 7749 | K69: 0 | L69: 121
A70: 12 | B70: 7986 | C70: 13 | D70: 8000 | E70: 24 | F70: 8014 | K70: 0 | L70: 112
A71: 12 | B71: 8116 | C71: 13 | D71: 8126 | E71: 24 | F71: 8134 | K71: 0 | L71: 112
A72: 12 | B72: 8232 | C72: 13 | D72: 8239 | E72: 24 | F72: 8249 | K72: 0 | L72: 112
A73: 12 | B73: 8350 | C73: 13 | D73: 8362 | E73: 24 | F73: 8370 | K73: 0 | L73: 112
A74: 12 | B74: 8473 | C74: 13 | D74: 8479 | E74: 24 | F74: 8488 | K74: 0 | L74: 112
A75: 12 | B75: 8587 | C75: 13 | D75: 8596 | E75: 24 | F75: 8606 | K75: 0 | L75: 112
A76: 12 | B76: 8699 | C76: 13 | D76: 8701 | E76: 13 | F76: 8712 | K76: 0 | L76: 111
A77: 12 | B77: 8821 | C77: 13 | D77: 8835 | E77: 24 | F77: 8850 | K77: 0 | L77: 112
A78: 12 | B78: 8950 | C78: 13 | D78: 8955 | E78: 24 | F78: 8968 | K78: 0 | L78: 112
A79: 12 | B79: 9080 | C79: 13 | D79: 9094 | E79: 24 | F79: 9104 | K79: 0 | L79: 112
A80: 12 | B80: 9205 | C80: 13 | D80: 9228 | E80: 24 | F80: 9239 | K80: 0 | L80: 112
A81: 12 | B81: 9338 | C81: 13 | D81: 9344 | E81: 24 | F81: 9353 | K81: 0 | L81: 112
A82: 12 | B82: 9471 | C82: 13 | D82: 9481 | E82: 24 | F82: 9491 | K82: 0 | L82: 112
A83: 12 | B83: 9589 | C83: 13 | D83: 9596 | E83: 24 | F83: 9609 | K83: 0 | L83: 112
A84: 12 | B84: 9706 | C84: 13 | D84: 9719 | E84: 24 | F84: 9729 | K84: 0 | L84: 112
A85: 12 | B85: 9828 | C85: 13 | D85: 9834 | E85: 13 | F85: 9841 | K85: 0 | L85: 111
A86: 12 | B86: 9943 | C86: 13 | D86: 9951 | E86: 24 | F86: 9961 | K86: 0 | L86: 112
A87: 12 | B87: 10063 | C87: 24 | D87: 10080 | E87: 24 | F87: 10090 | K87: 0 | L87: 122
A88: 12 | B88: 10193 | C88: 24 | D88: 10203 | E88: 24 | F88: 10208 | K88: 0 | L88: 122
A89: 12 | B89: 10305 | C89: 13 | D89: 10312 | E89: 24 | F89: 10322 | K89: 0 | L89: 112
A90: 12 | B90: 10421 | C90: 13 | D90: 10426 | E90: 13 | F90: 10430 | K90: 0 | L90: 111
A91: 12 | B91: 10535 | C91: 13 | D91: 10547 | E91: 24 | F91: 10556 | K91: 0 | L91: 112
A92: 12 | B92: 10653 | C92: 13 | D92: 10662 | E92: 13 | F92: 10669 | K92: 0 | L92: 111
A93: 12 | B93: 10779 | C93: 13 | D93: 10784 | E93: 13 | F93: 10797 | K93: 0 | L93: 111
A94: 12 | B94: 10898 | C94: 13 | D94: 10903 | E94: 13 | F94: 10910 | K94: 0 | L94: 111
A95: 12 | B95: 11015 | C95: 13 | D95: 11022 | E95: 24 | F95: 11032 | K95: 0 | L95: 112
A96: 12 | B96: 11140 | C96: 24 | D96: 11151 | E96: 24 | F96: 11160 | K96: 0 | L96: 122
A97: 12 | B97: 11258 | C97: 13 | D97: 11264 | E97: 13 | F97: 11269 | K97: 0 | L97: 111
A98: 21 | B98: 11371 | C98: 22 | D98: 11373 | E98: 13 | F98: 11406 | K98: 0 | L98: 221
A99: 12 | B99: 11509 | C99: 13 | D99: 11515 | E99: 13 | F99: 11524 | K99: 0 | L99: 111
A100: 12 | B100: 11629 | C100: 13 | D100: 11635 | E100: 24 | F100: 11645 | K100: 0 | L100: 112
A101: 12 | B101: 11738 | C101: 13 | D101: 11751 | E101: 24 | F101: 11761 | K101: 0 | L101: 112
A102: 12 | B102: 11866 | C102: 13 | D102: 11877 | E102: 24 | F102: 11899 | K102: 0 | L102: 112
A103: 12 | B103: 11998 | C103: 13 | D103: 12004 | E103: 13 | F103: 12008 | K103: 0 | L103: 111
A104: 12 | B104: 12107 | C104: 13 | D104: 12112 | E104: 13 | F104: 12120 | K104: 0 | L104: 111
A105: 12 | B105: 12217 | C105: 13 | D105: 12223 | E105: 13 | F105: 12230 | K105: 0 | L105: 111
A106: 12 | B106: 12331 | C106: 13 | D106: 12343 | E106: 24 | F106: 12354 | K106: 0 | L106: 112
A107: 12 | B107: 12458 | C107: 13 | D107: 12465 | E107: 24 | F107: 12476 | K107: 0 | L107: 112
A108: 12 | B108: 12574 | C108: 13 | D108: 12580 | E108: 13 | F108: 12589 | K108: 0 | L108: 111
A109: 12 | B109: 12687 | C109: 13 | D109: 12696 | E109: 24 | F109: 12709 | K109: 0 | L109: 112
A110: 12 | B110: 12807 | C110: 13 | D110: 12814 | E110: 13 | F110: 12824 | K110: 0 | L110: 111
A111: 12 | B111: 12920 | C111: 13 | D111: 12926 | E111: 13 | F111: 12938 | K111: 0 | L111: 111
A112: 12 | B112: 13046 | C112: 13 | D112: 13050 | E112: 13 | F112: 13065 | K112: 0 | L112: 111
A113: 12 | B113: 13170 | C113: 13 | D113: 13176 | E113: 13 | F113: 13188 | K113: 0 | L113: 111
A114: 12 | B114: 13289 | C114: 13 | D114: 13297 | E114: 13 | F114: 13304 | K114: 0 | L114: 111
A115: 12 | B115: 13411 | C115: 13 | D115: 13418 | E115: 13 | F115: 13433 | K115: 0 | L115: 111
A116: 12 | B116: 13533 | C116: 13 | D116: 13539 | E116: 13 | F116: 13547 | K116: 0 | L116: 111
A117: 12 | B117: 13648 | C117: 13 | D117: 13655 | E117: 13 | F117: 13661 | K117: 0 | L117: 111
A118: 12 | B118: 13764 | C118: 13 | D118: 13769 | E118: 13 | F118: 13777 | K118: 0 | L118: 111
A119: 12 | B119: 13877 | C119: 13 | D119: 13883 | E119: 24 | F119: 13908 | K119: 0 | L119: 112
A120: 12 | B120: 14010 | C120: 13 | D120: 14017 | E120: 13 | F120: 14026 | K120: 0 | L120: 111
A121: 21 | B121: 14124 | C121: 22 | D121: 14129 | E121: 24 | F121: 14135 | K121: 0 | L121: 222
A122: 12 | B122: 14352 | C122: 13 | D122: 14357 | E122: 13 | F122: 14363 | K122: 0 | L122: 111
A123: 12 | B123: 14463 | C123: 13 | D123: 14469 | E123: 13 | F123: 14475 | K123: 0 | L123: 111
A124: 12 | B124: 14575 | C124: 13 | D124: 14583 | E124: 13 | F124: 14592 | K124: 0 | L124: 111
A125: 12 | B125: 14695 | C125: 13 | D125: 14701 | E125: 13 | F125: 14714 | K125: 0 | L125: 111
A126: 12 | B126: 14812 | C126: 13 | D126: 14819 | E126: 13 | F126: 14832 | K126: 0 | L126: 111
A127: 12 | B127: 14933 | C127: 13 | D127: 14937 | E127: 13 | F127: 14944 | K127: 0 | L127: 111
A128: 12 | B128: 15042 | C128: 13 | D128: 15048 | E128: 24 | F128: 15062 | K128: 0 | L128: 112
A129: 12 | B129: 15289 | C129: 13 | D129: 15295 | E129: 24 | F129: 15306 | K129: 0 | L129: 112
A130: 12 | B130: 15400 | C130: 13 | D130: 15407 | E130: 13 | F130: 15413 | K130: 0 | L130: 111
A131: 12 | B131: 15512 | C131: 13 | D131: 15517 | E131: 13 | F131: 15523 | K131: 0 | L131: 111
A132: 12 | B132: 15626 | C132: 13 | D132: 15632 | E132: 13 | F132: 15639 | K132: 0 | L132: 111
A133: 12 | B133: 15741 | C133: 13 | D133: 15747 | E133: 13 | F133: 15753 | K133: 0 | L133: 111
A134: 12 | B134: 15853 | C134: 13 | D134: 15860 | E134: 13 | F134: 15870 | K134: 0 | L134: 111
A135: 12 | B135: 15982 | C135: 13 | D135: 15988 | E135: 24 | F135: 15997 | K135: 0 | L135: 112
A136: 12 | B136: 16100 | C136: 13 | D136: 16105 | E136: 24 | F136: 16122 | K136: 0 | L136: 112
A137: 12 | B137: 16235 | C137: 13 | D137: 16242 | E137: 24 | F137: 16253 | K137: 0 | L137: 112
A138: 12 | B138: 16356 | C138: 13 | D138: 16361 | E138: 13 | F138: 16367 | K138: 0 | L138: 111
A139: 12 | B139: 16469 | C139: 13 | D139: 16480 | E139: 24 | F139: 16497 | K139: 0 | L139: 112
A140: 12 | B140: 16593 | C140: 13 | D140: 16603 | E140: 24 | F140: 16622 | K140: 0 | L140: 112
A141: 12 | B141: 16724 | C141: 13 | D141: 16731 | E141: 13 | F141: 16737 | K141: 0 | L141: 111
A142: 21 | B142: 16844 | C142: 22 | D142: 16849 | E142: 24 | F142: 16857 | K142: 0 | L142: 222
A143: 12 | B143: 17135 | C143: 13 | D143: 17140 | E143: 24 | F143: 17149 | K143: 0 | L143: 112
A144: 12 | B144: 17242 | C144: 13 | D144: 17257 | E144: 24 | F144: 17268 | K144: 0 | L144: 112
A145: 12 | B145: 17365 | C145: 13 | D145: 17373 | E145: 24 | F145: 17383 | K145: 0 | L145: 112
A146: 12 | B146: 17480 | C146: 13 | D146: 17489 | E146: 24 | F146: 17504 | K146: 0 | L146: 112
A147: 12 | B147: 17617 | C147: 13 | D147: 17624 | E147: 24 | F147: 17634 | K147: 0 | L147: 112
A148: 12 | B148: 17735 | C148: 13 | D148: 17742 | E148: 13 | F148: 17756 | K148: 0 | L148: 111
A149: 12 | B149: 17860 | C149: 13 | D149: 17865 | E149: 24 | F149: 17882 | K149: 0 | L149: 112
A150: 12 | B150: 17992 | C150: 24 | D150: 18003 | E150: 24 | F150: 18015 | K150: 0 | L150: 122
A151: 12 | B151: 18113 | C151: 13 | D151: 18118 | E151: 13 | F151: 18125 | K151: 0 | L151: 111
A152: 21 | B152: 18227 | C152: 22 | D152: 18243 | E152: 24 | F152: 18251 | K152: 0 | L152: 222
A153: 12 | B153: 18352 | C153: 13 | D153: 18357 | E153: 24 | F153: 18368 | K153: 0 | L153: 112
A154: 12 | B154: 18465 | C154: 13 | D154: 18471 | E154: 13 | F154: 18478 | K154: 0 | L154: 111
A155: 12 | B155: 18572 | C155: 13 | D155: 18577 | E155: 13 | F155: 18595 | K155: 0 | L155: 111
A156: 12 | B156: 18696 | C156: 24 | D156: 18711 | E156: 24 | F156: 18722 | K156: 0 | L156: 122
A157: 12 | B157: 18819 | C157: 13 | D157: 18830 | E157: 24 | F157: 18843 | K157: 0 | L157: 112
A158: 12 | B158: 18938 | C158: 13 | D158: 18940 | E158: 13 | F158: 18947 | K158: 0 | L158: 111
A159: 21 | B159: 19044 | C159: 22 | D159: 19059 | E159: 24 | F159: 19065 | K159: 0 | L159: 222
A160: 12 | B160: 19158 | C160: 13 | D160: 19169 | E160: 24 | F160: 19178 | K160: 0 | L160: 112
A161: 12 | B161: 19273 | C161: 13 | D161: 19279 | E161: 13 | F161: 19292 | K161: 0 | L161: 111
A162: 12 | B162: 19392 | C162: 13 | D162: 19397 | E162: 13 | F162: 19402 | K162: 0 | L162: 111
A163: 12 | B163: 19498 | C163: 13 | D163: 19505 | E163: 13 | F163: 19511 | K163: 0 | L163: 111
A164: 12 | B164: 19620 | C164: 13 | D164: 19627 | E164: 24 | F164: 19637 | K164: 0 | L164: 112
A165: 12 | B165: 19734 | C165: 13 | D165: 19740 | E165: 13 | F165: 19748 | K165: 0 | L165: 111
A166: 12 | B166: 19852 | C166: 13 | D166: 19860 | E166: 13 | F166: 19872 | K166: 0 | L166: 111
A167: 12 | B167: 19971 | C167: 13 | D167: 19977 | E167: 13 | F167: 19986 | K167: 0 | L167: 111
A168: 12 | B168: 20085 | C168: 13 | D168: 20090 | E168: 24 | F168: 20109 | K168: 0 | L168: 112
A169: 12 | B169: 20210 | C169: 13 | D169: 20221 | E169: 13 | F169: 20228 | K169: 0 | L169: 111
A170: 21 | B170: 20338 | C170: 22 | D170: 20341 | E170: 24 | F170: 20354 | K170: 0 | L170: 222
A171: 12 | B171: 20455 | C171: 13 | D171: 20466 | E171: 24 | F171: 20480 | K171: 0 | L171: 112
A172: 12 | B172: 20584 | C172: 13 | D172: 20591 | E172: 24 | F172: 20603 | K172: 0 | L172: 112
A173: 21 | B173: 20695 | C173: 22 | D173: 20710 | E173: 24 | F173: 20721 | K173: 0 | L173: 222
A174: 12 | B174: 20822 | C174: 13 | D174: 20828 | E174: 13 | F174: 20839 | K174: 0 | L174: 111
A175: 12 | B175: 20947 | C175: 24 | D175: 20959 | E175: 24 | F175: 20990 | K175: 0 | L175: 122
A176: 12 | B176: 21090 | C176: 13 | D176: 21096 | E176: 13 | F176: 21108 | K176: 0 | L176: 111
A177: 12 | B177: 21223 | C177: 13 | D177: 21230 | E177: 24 | F177: 21244 | K177: 0 | L177: 112
A178: 12 | B178: 21341 | C178: 13 | D178: 21347 | E178: 24 | F178: 21362 | K178: 0 | L178: 112
A179: 12 | B179: 21509 | C179: 13 | D179: 21515 | E179: 13 | F179: 21527 | K179: 0 | L179: 111
A180: 12 | B180: 21625 | C180: 13 | D180: 21631 | E180: 24 | F180: 21642 | K180: 0 | L180: 112
A181: 12 | B181: 21754 | C181: 13 | D181: 21767 | E181: 24 | F181: 21777 | K181: 0 | L181: 112
A182: 12 | B182: 21872 | C182: 24 | D182: 21893 | E182: 13 | F182: 21910 | K182: 0 | L182: 121
A183: 12 | B183: 22152 | C183: 13 | D183: 22162 | E183: 24 | F183: 22174 | K183: 0 | L183: 112
A184: 12 | B184: 22274 | C184: 13 | D184: 22281 | E184: 13 | F184: 22287 | K184: 0 | L184: 111
A185: 12 | B185: 22387 | C185: 13 | D185: 22394 | E185: 24 | F185: 22408 | K185: 0 | L185: 112
A186: 12 | B186: 22521 | C186: 13 | D186: 22529 | E186: 13 | F186: 22536 | K186: 0 | L186: 111
A187: 12 | B187: 22637 | C187: 24 | D187: 22655 | E187: 24 | F187: 22664 | K187: 0 | L187: 122
A188: 12 | B188: 22767 | C188: 24 | D188: 22778 | E188: 24 | F188: 22786 | K188: 0 | L188: 122
A189: 21 | B189: 22880 | C189: 22 | D189: 22889 | E189: 24 | F189: 22895 | K189: 0 | L189: 222
A190: 12 | B190: 23007 | C190: 13 | D190: 23017 | E190: 24 | F190: 23028 | K190: 0 | L190: 112
A191: 12 | B191: 23137 | C191: 24 | D191: 23151 | E191: 24 | F191: 23162 | K191: 0 | L191: 122
A192: 12 | B192: 23261 | C192: 13 | D192: 23268 | E192: 24 | F192: 23285 | K192: 0 | L192: 112
A193: 12 | B193: 23385 | C193: 13 | D193: 23390 | E193: 13 | F193: 23399 | K193: 0 | L193: 111
A194: 12 | B194: 23497 | C194: 13 | D194: 23505 | E194: 13 | F194: 23517 | K194: 0 | L194: 111
A195: 12 | B195: 23610 | C195: 13 | D195: 23623 | E195: 24 | F195: 23640 | K195: 0 | L195: 112
A196: 21 | B196: 23737 | C196: 22 | D196: 23753 | E196: 24 | F196: 23759 | K196: 0 | L196: 222
A197: 12 | B197: 23869 | C197: 13 | D197: 23875 | E197: 13 | F197: 23882 | K197: 0 | L197: 111
A198: 12 | B198: 23985 | C198: 13 | D198: 23989 | E198: 13 | F198: 23995 | L198: 111

Sheet !M924B0D.ust
A1: Report for:!M924B0D.ust
A2: Date: | B2: <date>
A3: Hen: | B3: <hen> | F3: Correct Sequence | G3: =Start!J2 -> 211 | P3: Total Sequences in Data | Q3: =4994-COUNTBLANK(L7:L5000) -> 192 | V3: Total Sequences in Block Data | W3: =COUNTA(L7:L38) -> 32 | AA3: Total Sequences in Block Data | AB3: =COUNTA(L39:L70) -> 32 | AF3: Total Sequences in Block Data | AG3: =COUNTA(L71:L102) -> 32 | AK3: Total Sequences in Block Data | AL3: =COUNTA(L103:L134) -> 32 | AP3: Total Sequences in Block Data | AQ3: =COUNTA(L135:L166) -> 32 | AU3: Total Sequences in Block Data | AV3: =COUNTA(L167:L198) -> 32
P4: Total Sequences in Summary | Q4: =SUM(O7:O14) -> 192 | V4: Total Sequences in Block Summary | W4: =SUM(U7:U14) -> 32 | AA4: Total Sequences in Block Summary | AB4: =SUM(Z7:Z14) -> 32 | AF4: Total Sequences in Block Summary | AG4: =SUM(AE7:AE14) -> 32 | AK4: Total Sequences in Block Summary | AL4: =SUM(AJ7:AJ14) -> 32 | AP4: Total Sequences in Block Summary | AQ4: =SUM(AO7:AO14) -> 32 | AU4: Total Sequences in Block Summary | AV4: =SUM(AT7:AT14) -> 32
T5: Block 1 | Y5: Block 2 | AD5: Block 3 | AI5: Block 4 | AN5: Block 5 | AS5: Block 6
A6: Sequence Component 1 | B6: Time 1 | C6: Sequence Component 2 | D6: Time 2 | E6: Sequence Component 3 | F6: Time 3 | G6: Sequence Component 4 | H6: Time 4 | I6: Sequence Component 5 | J6: Time 5 | K6: Correct? 0=No 1=Yes | L6: Sequence | N6: Frequency | P6: Relative Frequency | Q6: Variability | T6: Frequency | V6: Relative Frequency | W6: Variability | Y6: Frequency | AA6: Relative Frequency | AB6: Variability | AD6: Frequency | AF6: Relative Frequency | AG6: Variability | AI6: Frequency | AK6: Relative Frequency | AL6: Variability | AN6: Frequency | AP6: Relative Frequency | AQ6: Variability | AS6: Frequency | AU6: Relative Frequency | AV6: Variability
A7: 12 | B7: 18 | C7: 13 | D7: 23 | E7: 24 | F7: 30 | K7: 0 | L7: 112 | N7: 111 | O7: =COUNTIF($L$7:$L$500,N7) -> 90 | P7: =O7/$Q$4 -> 0.46875 | Q7: =IF(P7=0,0,(P7*((LOG(P7))/LOG(2)))) -> -0.5123950333 | T7: =N7 -> 111 | U7: =COUNTIF(L7:L38,T7) -> 4 | V7: =U7/(W4-U11) -> 0.125 | W7: =IF(V7=0,0,(V7*((LOG(V7))/LOG(2)))) -> -0.375 | Y7: =N7 -> 111 | Z7: =COUNTIF(L39:L70,Y7) -> 15 | AA7: =Z7/(AB4-Z11) -> 0.4838709677 | AB7: =IF(AA7=0,0,(AA7*((LOG(AA7))/LOG(2)))) -> -0.5067608297 | AD7: =N7 -> 111 | AE7: =COUNTIF(L71:L102,AD7) -> 16 | AF7: =AE7/(AG4-AE11) -> 0.5 | AG7: =IF(AF7=0,0,(AF7*((LOG(AF7))/LOG(2)))) -> -0.5 | AI7: =N7 -> 111 | AJ7: =COUNTIF(L103:L134,AI7) -> 20 | AK7: =AJ7/(AL4-AJ11) -> 0.6451612903 | AL7: =IF(AK7=0,0,(AK7*((LOG(AK7))/LOG(2)))) -> -0.4079149777 | AN7: =N7 -> 111 | AO7: =COUNTIF(L135:L166,AN7) -> 16 | AP7: =AO7/(AQ4-AO11) -> 0.5 | AQ7: =IF(AP7=0,0,(AP7*((LOG(AP7))/LOG(2)))) -> -0.5 | AS7: =N7 -> 111 | AT7: =COUNTIF(L167:L198,AS7) -> 19 | AU7: =AT7/(AV4-AT11) -> 0.6333333333 | AV7: =IF(AU7=0,0,(AU7*((LOG(AU7))/LOG(2)))) -> -0.4173432854
A8: 12 | B8: 128 | C8: 13 | D8: 133 | E8: 24 | F8: 142 | K8: 0 | L8: 112 | N8: 112 | O8: =COUNTIF($L$7:$L$500,N8) -> 55 | P8: =O8/$Q$4 -> 0.2864583333 | Q8: =IF(P8=0,0,(P8*((LOG(P8))/LOG(2)))) -> -0.5166570484 | T8: =N8 -> 112 | U8: =COUNTIF(L7:L38,T8) -> 24 | V8: =U8/(W4-U11) -> 0.75 | W8: =IF(V8=0,0,(V8*((LOG(V8))/LOG(2)))) -> -0.3112781245 | Y8: =N8 -> 112 | Z8: =COUNTIF(L39:L70,Y8) -> 11 | AA8: =Z8/(AB4-Z11) -> 0.3548387097 | AB8: =IF(AA8=0,0,(AA8*((LOG(AA8))/LOG(2)))) -> -0.5304003745 | AD8: =N8 -> 112 | AE8: =COUNTIF(L71:L102,AD8) -> 11 | AF8: =AE8/(AG4-AE11) -> 0.34375 | AG8: =IF(AF8=0,0,(AF8*((LOG(AF8))/LOG(2)))) -> -0.5295703811 | AI8: =N8 -> 112 | AJ8: =COUNTIF(L103:L134,AI8) -> 4 | AK8: =AJ8/(AL4-AJ11) -> 0.1290322581 | AL8: =IF(AK8=0,0,(AK8*((LOG(AK8))/LOG(2)))) -> -0.3811866207 | AN8: =N8 -> 112 | AO8: =COUNTIF(L135:L166,AN8) -> 4 | AP8: =AO8/(AQ4-AO11) -> 0.125 | AQ8: =IF(AP8=0,0,(AP8*((LOG(AP8))/LOG(2)))) -> -0.375 | AS8: =N8 -> 112 | AT8: =COUNTIF(L167:L198,AS8) -> 1 | AU8: =AT8/(AV4-AT11) -> 0.03333333333 | AV8: =IF(AU8=0,0,(AU8*((LOG(AU8))/LOG(2)))) -> -0.1635630199
A9: 12 | B9: 240 | C9: 13 | D9: 245 | E9: 24 | F9: 253 | K9: 0 | L9: 112 | N9: 121 | O9: =COUNTIF($L$7:$L$500,N9) -> 3 | P9: =O9/$Q$4 -> 0.015625 | Q9: =IF(P9=0,0,(P9*((LOG(P9))/LOG(2)))) -> -0.09375 | T9: =N9 -> 121 | U9: =COUNTIF(L7:L38,T9) -> 1 | V9: =U9/(W4-U11) -> 0.03125 | W9: =IF(V9=0,0,(V9*((LOG(V9))/LOG(2)))) -> -0.15625 | Y9: =N9 -> 121 | Z9: =COUNTIF(L39:L70,Y9) -> 0 | AA9: =Z9/(AB4-Z11) -> 0 | AB9: =IF(AA9=0,0,(AA9*((LOG(AA9))/LOG(2)))) -> 0 | AD9: =N9 -> 121 | AE9: =COUNTIF(L71:L102,AD9) -> 0 | AF9: =AE9/(AG4-AE11) -> 0 | AG9: =IF(AF9=0,0,(AF9*((LOG(AF9))/LOG(2)))) -> 0 | AI9: =N9 -> 121 | AJ9: =COUNTIF(L103:L134,AI9) -> 1 | AK9: =AJ9/(AL4-AJ11) -> 0.03225806452 | AL9: =IF(AK9=0,0,(AK9*((LOG(AK9))/LOG(2)))) -> -0.1598127842 | AN9: =N9 -> 121 | AO9: =COUNTIF(L135:L166,AN9) -> 1 | AP9: =AO9/(AQ4-AO11) -> 0.03125 | AQ9: =IF(AP9=0,0,(AP9*((LOG(AP9))/LOG(2)))) -> -0.15625 | AS9: =N9 -> 121 | AT9: =COUNTIF(L167:L198,AS9) -> 0 | AU9: =AT9/(AV4-AT11) -> 0 | AV9: =IF(AU9=0,0,(AU9*((LOG(AU9))/LOG(2)))) -> 0
A10: 12 | B10: 359 | C10: 13 | D10: 364 | E10: 24 | F10: 376 | K10: 0 | L10: 112 | N10: 122 | O10: =COUNTIF($L$7:$L$500,N10) -> 2 | P10: =O10/$Q$4 -> 0.01041666667 | Q10: =IF(P10=0,0,(P10*((LOG(P10))/LOG(2)))) -> -0.06859335938 | T10: =N10 -> 122 | U10: =COUNTIF(L7:L38,T10) -> 0 | V10: =U10/(W4-U11) -> 0 | W10: =IF(V10=0,0,(V10*((LOG(V10))/LOG(2)))) -> 0 | Y10: =N10 -> 122 | Z10: =COUNTIF(L39:L70,Y10) -> 1 | AA10: =Z10/(AB4-Z11) -> 0.03225806452 | AB10: =IF(AA10=0,0,(AA10*((LOG(AA10))/LOG(2)))) -> -0.1598127842 | AD10: =N10 -> 122 | AE10: =COUNTIF(L71:L102,AD10) -> 1 | AF10: =AE10/(AG4-AE11) -> 0.03125 | AG10: =IF(AF10=0,0,(AF10*((LOG(AF10))/LOG(2)))) -> -0.15625 | AI10: =N10 -> 122 | AJ10: =COUNTIF(L103:L134,AI10) -> 0 | AK10: =AJ10/(AL4-AJ11) -> 0 | AL10: =IF(AK10=0,0,(AK10*((LOG(AK10))/LOG(2)))) -> 0 | AN10: =N10 -> 122 | AO10: =COUNTIF(L135:L166,AN10) -> 0 | AP10: =AO10/(AQ4-AO11) -> 0 | AQ10: =IF(AP10=0,0,(AP10*((LOG(AP10))/LOG(2)))) -> 0 | AS10: =N10 -> 122 | AT10: =COUNTIF(L167:L198,AS10) -> 0 | AU10: =AT10/(AV4-AT11) -> 0 | AV10: =IF(AU10=0,0,(AU10*((LOG(AU10))/LOG(2)))) -> 0
A11: 12 | B11: 471 | C11: 13 | D11: 477 | E11: 13 | F11: 482 | K11: 0 | L11: 111 | N11: 211 | O11: =COUNTIF($L$7:$L$500,N11) -> 4 | P11: =O11/$Q$4 -> 0.02083333333 | Q11: =IF(P11=0,0,(P11*((LOG(P11))/LOG(2)))) -> -0.1163533854 | T11: =N11 -> 211 | U11: =COUNTIF(L7:L38,T11) -> 0 | Y11: =N11 -> 211 | Z11: =COUNTIF(L39:L70,Y11) -> 1 | AD11: =N11 -> 211 | AE11: =COUNTIF(L71:L102,AD11) -> 0 | AI11: =N11 -> 211 | AJ11: =COUNTIF(L103:L134,AI11) -> 1 | AN11: =N11 -> 211 | AO11: =COUNTIF(L135:L166,AN11) -> 0 | AS11: =N11 -> 211 | AT11: =COUNTIF(L167:L198,AS11) -> 2
A12: 12 | B12: 663 | C12: 13 | D12: 667 | E12: 24 | F12: 674 | K12: 0 | L12: 112 | N12: 212 | O12: =COUNTIF($L$7:$L$500,N12) -> 12 | P12: =O12/$Q$4 -> 0.0625 | Q12: =IF(P12=0,0,(P12*((LOG(P12))/LOG(2)))) -> -0.25 | T12: =N12 -> 212 | U12: =COUNTIF(L7:L38,T12) -> 0 | V12: =U12/(W4-U11) -> 0 | W12: =IF(V12=0,0,(V12*((LOG(V12))/LOG(2)))) -> 0 | Y12: =N12 -> 212 | Z12: =COUNTIF(L39:L70,Y12) -> 0 | AA12: =Z12/(AB4-Z11) -> 0 | AB12: =IF(AA12=0,0,(AA12*((LOG(AA12))/LOG(2)))) -> 0 | AD12: =N12 -> 212 | AE12: =COUNTIF(L71:L102,AD12) -> 1 | AF12: =AE12/(AG4-AE11) -> 0.03125 | AG12: =IF(AF12=0,0,(AF12*((LOG(AF12))/LOG(2)))) -> -0.15625 | AI12: =N12 -> 212 | AJ12: =COUNTIF(L103:L134,AI12) -> 2 | AK12: =AJ12/(AL4-AJ11) -> 0.06451612903 | AL12: =IF(AK12=0,0,(AK12*((LOG(AK12))/LOG(2)))) -> -0.2551094394 | AN12: =N12 -> 212 | AO12: =COUNTIF(L135:L166,AN12) -> 3 | AP12: =AO12/(AQ4-AO11) -> 0.09375 | AQ12: =IF(AP12=0,0,(AP12*((LOG(AP12))/LOG(2)))) -> -0.3201597656 | AS12: =N12 -> 212 | AT12: =COUNTIF(L167:L198,AS12) -> 6 | AU12: =AT12/(AV4-AT11) -> 0.2 | AV12: =IF(AU12=0,0,(AU12*((LOG(AU12))/LOG(2)))) -> -0.464385619
A13: 12 | B13: 775 | C13: 13 | D13: 783 | E13: 24 | F13: 791 | K13: 0 | L13: 112 | N13: 221 | O13: =COUNTIF($L$7:$L$500,N13) -> 5 | P13: =O13/$Q$4 -> 0.02604166667 | Q13: =IF(P13=0,0,(P13*((LOG(P13))/LOG(2)))) -> -0.1370581877 | T13: =N13 -> 221 | U13: =COUNTIF(L7:L38,T13) -> 0 | V13: =U13/(W4-U11) -> 0 | W13: =IF(V13=0,0,(V13*((LOG(V13))/LOG(2)))) -> 0 | Y13: =N13 -> 221 | Z13: =COUNTIF(L39:L70,Y13) -> 0 | AA13: =Z13/(AB4-Z11) -> 0 | AB13: =IF(AA13=0,0,(AA13*((LOG(AA13))/LOG(2)))) -> 0 | AD13: =N13 -> 221 | AE13: =COUNTIF(L71:L102,AD13) -> 0 | AF13: =AE13/(AG4-AE11) -> 0 | AG13: =IF(AF13=0,0,(AF13*((LOG(AF13))/LOG(2)))) -> 0 | AI13: =N13 -> 221 | AJ13: =COUNTIF(L103:L134,AI13) -> 1 | AK13: =AJ13/(AL4-AJ11) -> 0.03225806452 | AL13: =IF(AK13=0,0,(AK13*((LOG(AK13))/LOG(2)))) -> -0.1598127842 | AN13: =N13 -> 221 | AO13: =COUNTIF(L135:L166,AN13) -> 1 | AP13: =AO13/(AQ4-AO11) -> 0.03125 | AQ13: =IF(AP13=0,0,(AP13*((LOG(AP13))/LOG(2)))) -> -0.15625 | AS13: =N13 -> 221 | AT13: =COUNTIF(L167:L198,AS13) -> 3 | AU13: =AT13/(AV4-AT11) -> 0.1 | AV13: =IF(AU13=0,0,(AU13*((LOG(AU13))/LOG(2)))) -> -0.3321928095
A14: 12 | B14: 891 | C14: 13 | D14: 897 | E14: 24 | F14: 908 | K14: 0 | L14: 112 | N14: 222 | O14: =COUNTIF($L$7:$L$500,N14) -> 21 | P14: =O14/$Q$4 -> 0.109375 | Q14: =IF(P14=0,0,(P14*((LOG(P14))/LOG(2)))) -> -0.3491955554 | T14: =N14 -> 222 | U14: =COUNTIF(L7:L38,T14) -> 3 | V14: =U14/(W4-U11) -> 0.09375 | W14: =IF(V14=0,0,(V14*((LOG(V14))/LOG(2)))) -> -0.3201597656 | Y14: =N14 -> 222 | Z14: =COUNTIF(L39:L70,Y14) -> 4 | AA14: =Z14/(AB4-Z11) -> 0.1290322581 | AB14: =IF(AA14=0,0,(AA14*((LOG(AA14))/LOG(2)))) -> -0.3811866207 | AD14: =N14 -> 222 | AE14: =COUNTIF(L71:L102,AD14) -> 3 | AF14: =AE14/(AG4-AE11) -> 0.09375 | AG14: =IF(AF14=0,0,(AF14*((LOG(AF14))/LOG(2)))) -> -0.3201597656 | AI14: =N14 -> 222 | AJ14: =COUNTIF(L103:L134,AI14) -> 3 | AK14: =AJ14/(AL4-AJ11) -> 0.09677419355 | AL14: =IF(AK14=0,0,(AK14*((LOG(AK14))/LOG(2)))) -> -0.3260548848 | AN14: =N14 -> 222 | AO14: =COUNTIF(L135:L166,AN14) -> 7 | AP14: =AO14/(AQ4-AO11) -> 0.21875 | AQ14: =IF(AP14=0,0,(AP14*((LOG(AP14))/LOG(2)))) -> -0.4796411108 | AS14: =N14 -> 222 | AT14: =COUNTIF(L167:L198,AS14) -> 1 | AU14: =AT14/(AV4-AT11) -> 0.03333333333 | AV14: =IF(AU14=0,0,(AU14*((LOG(AU14))/LOG(2)))) -> -0.1635630199
A15: 12 | B15: 1005 | C15: 13 | D15: 1014 | E15: 24 | F15: 1023 | K15: 0 | L15: 112 | P15: =SUM(P7:P14) -> 1 | Q15: =-SUM(Q7:Q14) -> 2.04400257 | V15: =SUM(V7:V14) -> 1 | W15: =-SUM(W7:W14) -> 1.16268789 | AA15: =SUM(AA7:AA14) -> 1 | AB15: =-SUM(AB7:AB14) -> 1.578160609 | AF15: =SUM(AF7:AF14) -> 1 | AG15: =-SUM(AG7:AG14) -> 1.662230147 | AK15: =SUM(AK7:AK14) -> 1 | AL15: =-SUM(AL7:AL14) -> 1.689891491 | AP15: =SUM(AP7:AP14) -> 1 | AQ15: =-SUM(AQ7:AQ14) -> 1.987300876 | AU15: =SUM(AU7:AU14) -> 1 | AV15: =-SUM(AV7:AV14) -> 1.541047754
A16: 12 | B16: 1124 | C16: 13 | D16: 1130 | E16: 24 | F16: 1137 | K16: 0 | L16: 112 | P16: U= | Q16: =Q15/(LOG(Q4)/LOG(2)) -> 0.2694809064 | V16: U1= | W16: =W15/(LOG(W4)/LOG(2)) -> 0.232537578 | AA16: U2= | AB16: =AB15/(LOG(AB4)/LOG(2)) -> 0.3156321218 | AF16: U3= | AG16: =AG15/(LOG(AG4)/LOG(2)) -> 0.3324460293 | AK16: U4= | AL16: =AL15/(LOG(AL4)/LOG(2)) -> 0.3379782982 | AP16: U5= | AQ16: =AQ15/(LOG(AQ4)/LOG(2)) -> 0.3974601753 | AU16: U6= | AV16: =AV15/(LOG(AV4)/LOG(2)) -> 0.3082095507
A17: 12 | B17: 1236 | C17: 13 | D17: 1246 | E17: 24 | F17: 1253 | K17: 0 | L17: 112
A18: 12 | B18: 1352 | C18: 13 | D18: 1357 | E18: 24 | F18: 1365 | K18: 0 | L18: 112
A19: 12 | B19: 1462 | C19: 13 | D19: 1467 | E19: 13 | F19: 1472 | K19: 0 | L19: 111 | N19: Total Target Seq
A20: 12 | B20: 1571 | C20: 13 | D20: 1577 | E20: 24 | F20: 1588 | K20: 0 | L20: 112 | N20: =COUNTIF(L7:L198,G3) -> 4 | P20: 32 | Q20: 32 | R20: 32 | S20: 32 | T20: 32 | U20: 32
A21: 12 | B21: 1686 | C21: 13 | D21: 1693 | E21: 24 | F21: 1701 | K21: 0 | L21: 112 | P21: % of reinforcement given in 6 equal intervals based on number of trials
A22: 12 | B22: 1801 | C22: 13 | D22: 1806 | E22: 24 | F22: 1821 | K22: 0 | L22: 112 | P22: %_1 | Q22: %_2 | R22: %_3 | S22: %_4 | T22: %_5 | U22: %_6
A23: 12 | B23: 1917 | C23: 13 | D23: 1923 | E23: 24 | F23: 1933 | K23: 0 | L23: 112 | O23: target sequence | P23: =$G$3 -> 211 | Q23: =$G$3 -> 211 | R23: =$G$3 -> 211 | S23: =$G$3 -> 211 | T23: =$G$3 -> 211 | U23: =$G$3 -> 211
A24: 12 | B24: 2033 | C24: 13 | D24: 2038 | E24: 24 | F24: 2052 | K24: 0 | L24: 112 | O24: total reinforcement | P24: =U11 -> 0 | Q24: =Z11 -> 1 | R24: =AE11 -> 0 | S24: =AJ11 -> 1 | T24: =AO11 -> 0 | U24: =AT11 -> 2
A25: 21 | B25: 2150 | C25: 22 | D25: 2171 | E25: 24 | F25: 2177 | K25: 0 | L25: 222 | O25: % target
A26: 12 | B26: 2335 | C26: 24 | D26: 2343 | E26: 13 | F26: 2359 | K26: 0 | L26: 121 | O26: CCRF
A27: 12 | B27: 2461 | C27: 13 | D27: 2468 | E27: 24 | F27: 2476 | K27: 0 | L27: 112 | O27: % CCRf
A28: 12 | B28: 2577 | C28: 13 | D28: 2582 | E28: 24 | F28: 2590 | K28: 0 | L28: 112 | O28: average response rate | P28: =F38/P20 -> 117.34375 | Q28: =(F70-F38)/Q20 -> 121.65625 | R28: =(F102-F70)/R20 -> 121.375 | S28: =(F134-F102)/S20 -> 124.1875 | T28: =(F166-F134)/T20 -> 129.125 | U28: =(F198-F166)/U20 -> 133.34375
A29: 21 | B29: 2686 | C29: 22 | D29: 2690 | E29: 24 | F29: 2705 | K29: 0 | L29: 222
A30: 12 | B30: 2805 | C30: 13 | D30: 2811 | E30: 24 | F30: 2820 | K30: 0 | L30: 112
A31: 12 | B31: 2918 | C31: 13 | D31: 2924 | E31: 24 | F31: 2935 | K31: 0 | L31: 112
A32: 12 | B32: 3029 | C32: 13 | D32: 3037 | E32: 13 | F32: 3042 | K32: 0 | L32: 111
A33: 12 | B33: 3141 | C33: 13 | D33: 3147 | E33: 24 | F33: 3160 | K33: 0 | L33: 112
A34: 12 | B34: 3263 | C34: 13 | D34: 3274 | E34: 24 | F34: 3282 | K34: 0 | L34: 112
A35: 12 | B35: 3379 | C35: 13 | D35: 3386 | E35: 24 | F35: 3394 | K35: 0 | L35: 112
A36: 12 | B36: 3504 | C36: 13 | D36: 3508 | E36: 24 | F36: 3516 | K36: 0 | L36: 112
A37: 12 | B37: 3624 | C37: 13 | D37: 3632 | E37: 13 | F37: 3641 | K37: 0 | L37: 111
A38: 21 | B38: 3738 | C38: 22 | D38: 3748 | E38: 24 | F38: 3755 | K38: 0 | L38: 222
A39: 12 | B39: 3848 | C39: 13 | D39: 3860 | E39: 24 | F39: 3868 | K39: 0 | L39: 112
A40: 12 | B40: 3969 | C40: 13 | D40: 3974 | E40: 13 | F40: 3992 | K40: 0 | L40: 111
A41: 12 | B41: 4100 | C41: 13 | D41: 4106 | E41: 24 | F41: 4117 | K41: 0 | L41: 112
A42: 12 | B42: 4217 | C42: 13 | D42: 4227 | E42: 24 | F42: 4240 | K42: 0 | L42: 112
A43: 12 | B43: 4338 | C43: 13 | D43: 4343 | E43: 13 | F43: 4351 | K43: 0 | L43: 111
A44: 12 | B44: 4450 | C44: 13 | D44: 4456 | E44: 24 | F44: 4470 | K44: 0 | L44: 112
A45: 12 | B45: 4567 | C45: 13 | D45: 4576 | E45: 24 | F45: 4589 | K45: 0 | L45: 112
A46: 12 | B46: 4686 | C46: 13 | D46: 4692 | E46: 24 | F46: 4707 | K46: 0 | L46: 112
A47: 12 | B47: 4813 | C47: 13 | D47: 4818 | E47: 24 | F47: 4827 | K47: 0 | L47: 112
A48: 12 | B48: 4924 | C48: 13 | D48: 4930 | E48: 13 | F48: 4937 | K48: 0 | L48: 111
A49: 12 | B49: 5036 | C49: 13 | D49: 5049 | E49: 13 | F49: 5064 | K49: 0 | L49: 111
A50: 12 | B50: 5163 | C50: 13 | D50: 5168 | E50: 24 | F50: 5177 | K50: 0 | L50: 112
A51: 21 | B51: 5270 | C51: 22 | D51: 5280 | E51: 24 | F51: 5295 | K51: 0 | L51: 222
A52: 21 | B52: 5391 | C52: 22 | D52: 5401 | E52: 24 | F52: 5407 | K52: 0 | L52: 222
A53: 12 | B53: 5506 | C53: 13 | D53: 5511 | E53: 24 | F53: 5520 | K53: 0 | L53: 112
A54: 12 | B54: 5620 | C54: 13 | D54: 5625 | E54: 13 | F54: 5630 | K54: 0 | L54: 111
A55: 21 | B55: 5723 | C55: 11 | D55: 5732 | E55: 11 | F55: 5738 | K55: 0 | L55: 211
A56: 12 | B56: 5982 | C56: 13 | D56: 5988 | E56: 13 | F56: 5993 | K56: 0 | L56: 111
A57: 12 | B57: 6110 | C57: 24 | D57: 6125 | E57: 24 | F57: 6134 | K57: 0 | L57: 122
A58: 12 | B58: 6234 | C58: 13 | D58: 6239 | E58: 24 | F58: 6252 | K58: 0 | L58: 112
A59: 21 | B59: 6350 | C59: 22 | D59: 6355 | E59: 24 | F59: 6363 | K59: 0 | L59: 222
A60: 12 | B60: 6459 | C60: 13 | D60: 6465 | E60: 13 | F60: 6472 | K60: 0 | L60: 111
A61: 12 | B61: 6578 | C61: 13 | D61: 6583 | E61: 24 | F61: 6591 | K61: 0 | L61: 112
A62: 12 | B62: 6690 | C62: 13 | D62: 6695 | E62: 13 | F62: 6702 | K62: 0 | L62: 111
A63: 12 | B63: 6800 | C63: 13 | D63: 6806 | E63: 13 | F63: 6813 | K63: 0 | L63: 111
A64: 21 | B64: 6914 | C64: 22 | D64: 6927 | E64: 24 | F64: 6933 | K64: 0 | L64: 222
A65: 12 | B65: 7031 | C65: 13 | D65: 7035 | E65: 13 | F65: 7042 | K65: 0 | L65: 111
A66: 12 | B66: 7147 | C66: 13 | D66: 7159 | E66: 13 | F66: 7167 | K66: 0 | L66: 111
A67: 12 | B67: 7268 | C67: 13 | D67: 7274 | E67: 13 | F67: 7287 | K67: 0 | L67: 111
A68: 12 | B68: 7392 | C68: 13 | D68: 7397 | E68: 13 | F68: 7404 | K68: 0 | L68: 111
A69: 12 | B69: 7513 | C69: 13 | D69: 7519 | E69: 13 | F69: 7525 | K69: 0 | L69: 111
A70: 12 | B70: 7630 | C70: 13 | D70: 7635 | E70: 13 | F70: 7648 | K70: 0 | L70: 111
A71: 12 | B71: 7747 | C71: 13 | D71: 7754 | E71: 13 | F71: 7761 | K71: 0 | L71: 111
A72: 12 | B72: 7860 | C72: 13 | D72: 7867 | E72: 24 | F72: 7878 | K72: 0 | L72: 112
A73: 12 | B73: 7980 | C73: 13 | D73: 7987 | E73: 24 | F73: 7996 | K73: 0 | L73: 112
A74: 21 | B74: 8098 | C74: 22 | D74: 8106 | E74: 24 | F74: 8112 | K74: 0 | L74: 222
A75: 21 | B75: 8209 | C75: 22 | D75: 8223 | E75: 24 | F75: 8230 | K75: 0 | L75: 222
A76: 12 | B76: 8339 | C76: 13 | D76: 8352 | E76: 24 | F76: 8368 | K76: 0 | L76: 112
A77: 12 | B77: 8476 | C77: 13 | D77: 8482 | E77: 24 | F77: 8496 | K77: 0 | L77: 112
A78: 12 | B78: 8593 | C78: 13 | D78: 8599 | E78: 13 | F78: 8605 | K78: 0 | L78: 111
A79: 12 | B79: 8706 | C79: 13 | D79: 8716 | E79: 24 | F79: 8726 | K79: 0 | L79: 112
A80: 12 | B80: 8824 | C80: 13 | D80: 8830 | E80: 13 | F80: 8841 | K80: 0 | L80: 111
A81: 12 | B81: 8943 | C81: 13 | D81: 8950 | E81: 13 | F81: 8965 | K81: 0 | L81: 111
A82: 12 | B82: 9075 | C82: 13 | D82: 9081 | E82: 24 | F82: 9091 | K82: 0 | L82: 112
A83: 12 | B83: 9192 | C83: 13 | D83: 9198 | E83: 13 | F83: 9205 | K83: 0 | L83: 111
A84: 12 | B84: 9308 | C84: 13 | D84: 9316 | E84: 13 | F84: 9322 | K84: 0 | L84: 111
A85: 12 | B85: 9426 | C85: 13 | D85: 9432 | E85: 24 | F85: 9443 | K85: 0 | L85: 112
A86: 12 | B86: 9552 | C86: 13 | D86: 9557 | E86: 24 | F86: 9566 | K86: 0 | L86: 112
A87: 12 | B87: 9671 | C87: 13 | D87: 9676 | E87: 13 | F87: 9685 | K87: 0 | L87: 111
A88: 12 | B88: 9817 | C88: 13 | D88: 9823 | E88: 13 | F88: 9836 | K88: 0 | L88: 111
A89: 12 | B89: 9935 | C89: 13 | D89: 9940 | E89: 13 | F89: 9945 | K89: 0 | L89: 111
A90: 12 | B90: 10037 | C90: 13 | D90: 10052 | E90: 24 | F90: 10062 | K90: 0 | L90: 112
A91: 21 | B91: 10166 | C91: 22 | D91: 10176 | E91: 24 | F91: 10183 | K91: 0 | L91: 222
A92: 12 | B92: 10284 | C92: 13 | D92: 10289 | E92: 13 | F92: 10295 | K92: 0 | L92: 111
A93: 21 | B93: 10396 | C93: 11 | D93: 10417 | E93: 22 | F93: 10428 | K93: 0 | L93: 212
A94: 12 | B94: 10544 | C94: 24 | D94: 10553 | E94: 24 | F94: 10561 | K94: 0 | L94: 122
A95: 12 | B95: 10668 | C95: 13 | D95: 10679 | E95: 24 | F95: 10691 | K95: 0 | L95: 112
A96: 12 | B96: 10790 | C96: 13 | D96: 10797 | E96: 13 | F96: 10803 | K96: 0 | L96: 111
A97: 12 | B97: 10909 | C97: 13 | D97: 10915 | E97: 13 | F97: 10922 | K97: 0 | L97: 111
A98: 12 | B98: 11026 | C98: 13 | D98: 11032 | E98: 13 | F98: 11039 | K98: 0 | L98: 111
A99: 12 | B99: 11168 | C99: 13 | D99: 11174 | E99: 13 | F99: 11181 | K99: 0 | L99: 111
A100: 12 | B100: 11284 | C100: 13 | D100: 11291 | E100: 13 | F100: 11298 | K100: 0 | L100: 111
A101: 12 | B101: 11400 | C101: 13 | D101: 11406 | E101: 24 | F101: 11415 | K101: 0 | L101: 112
A102: 12 | B102: 11519 | C102: 13 | D102: 11526 | E102: 13 | F102: 11532 | K102: 0 | L102: 111
A103: 12 | B103: 11635 | C103: 13 | D103: 11640 | E103: 13 | F103: 11649 | K103: 0 | L103: 111
A104: 12 | B104: 11748 | C104: 13 | D104: 11750 | E104: 13 | F104: 11757 | K104: 0 | L104: 111
A105: 12 | B105: 11868 | C105: 13 | D105: 11877 | E105: 13 | F105: 11885 | K105: 0 | L105: 111
A106: 12 | B106: 11985 | C106: 13 | D106: 11990 | E106: 24 | F106: 12013 | K106: 0 | L106: 112
A107: 21 | B107: 12115 | C107: 22 | D107: 12151 | E107: 24 | F107: 12183 | K107: 0 | L107: 222
A108: 12 | B108: 12278 | C108: 13 | D108: 12282 | E108: 13 | F108: 12288 | K108: 0 | L108: 111
A109: 12 | B109: 12385 | C109: 13 | D109: 12391 | E109: 13 | F109: 12397 | K109: 0 | L109: 111
A110: 12 | B110: 12494 | C110: 13 | D110: 12500 | E110: 13 | F110: 12506 | K110: 0 | L110: 111
A111: 12 | B111: 12613 | C111: 13 | D111: 12619 | E111: 13 | F111: 12626 | K111: 0 | L111: 111
A112: 12 | B112: 12726 | C112: 13 | D112: 12734 | E112: 13 | F112: 12740 | K112: 0 | L112: 111
A113: 12 | B113: 12847 | C113: 13 | D113: 12853 | E113: 13 | F113: 12861 | K113: 0 | L113: 111
A114: 12 | B114: 12970 | C114: 13 | D114: 12976 | E114: 13 | F114: 12984 | K114: 0 | L114: 111
A115: 12 | B115: 13099 | C115: 13 | D115: 13107 | E115: 13 | F115: 13116 | K115: 0 | L115: 111
A116: 12 | B116: 13212 | C116: 13 | D116: 13218 | E116: 13 | F116: 13225 | K116: 0 | L116: 111
A117: 21 | B117: 13328 | C117: 11 | D117: 13340 | E117: 11 | F117: 13345 | K117: 0 | L117: 211
A118: 12 | B118: 13554 | C118: 13 | D118: 13561 | E118: 24 | F118: 13570 | K118: 0 | L118: 112
A119: 12 | B119: 13666 | C119: 13 | D119: 13674 | E119: 13 | F119: 13679 | K119: 0 | L119: 111
A120: 21 | B120: 13779 | C120: 22 | D120: 13788 | E120: 24 | F120: 13795 | K120: 0 | L120: 222
A121: 12 | B121: 13893 | C121: 13 | D121: 13898 | E121: 13 | F121: 13904 | K121: 0 | L121: 111
A122: 21 | B122: 14005 | C122: 22 | D122: 14030 | E122: 13 | F122: 14047 | K122: 0 | L122: 221
A123: 21 | B123: 14146 | C123: 11 | D123: 14176 | E123: 22 | F123: 14188 | K123: 0 | L123: 212
A124: 12 | B124: 14287 | C124: 24 | D124: 14299 | E124: 13 | F124: 14319 | K124: 0 | L124: 121
A125: 12 | B125: 14420 | C125: 13 | D125: 14426 | E125: 13 | F125: 14432 | K125: 0 | L125: 111
A126: 12 | B126: 14546 | C126: 13 | D126: 14550 | E126: 24 | F126: 14557 | K126: 0 | L126: 112
A127: 21 | B127: 14654 | C127: 11 | D127: 14680 | E127: 22 | F127: 14690 | K127: 0 | L127: 212
A128: 12 | B128: 14790 | C128: 13 | D128: 14795 | E128: 13 | F128: 14802 | K128: 0 | L128: 111
A129: 12 | B129: 14902 | C129: 13 | D129: 14909 | E129: 13 | F129: 14916 | K129: 0 | L129: 111
A130: 12 | B130: 15019 | C130: 13 | D130: 15024 | E130: 13 | F130: 15031 | K130: 0 | L130: 111
A131: 12 | B131: 15135 | C131: 13 | D131: 15153 | E131: 24 | F131: 15164 | K131: 0 | L131: 112
A132: 12 | B132: 15267 | C132: 13 | D132: 15272 | E132: 13 | F132: 15282 | K132: 0 | L132: 111
A133: 21 | B133: 15382 | C133: 22 | D133: 15388 | E133: 24 | F133: 15399 | K133: 0 | L133: 222
A134: 12 | B134: 15494 | C134: 13 | D134: 15499 | E134: 13 | F134: 15506 | K134: 0 | L134: 111
A135: 21 | B135: 15599 | C135: 22 | D135: 15610 | E135: 13 | F135: 15622 | K135: 0 | L135: 221
A136: 12 | B136: 15863 | C136: 13 | D136: 15867 | E136: 24 | F136: 15879 | K136: 0 | L136: 112
A137: 12 | B137: 15989 | C137: 13 | D137: 15995 | E137: 13 | F137: 16001 | K137: 0 | L137: 111
A138: 12 | B138: 16103 | C138: 13 | D138: 16108 | E138: 13 | F138: 16115 | K138: 0 | L138: 111
A139: 12 | B139: 16227 | C139: 13 | D139: 16232 | E139: 13 | F139: 16239 | K139: 0 | L139: 111
A140: 12 | B140: 16341 | C140: 13 | D140: 16347 | E140: 13 | F140: 16354 | K140: 0 | L140: 111
A141: 12 | B141: 16452 | C141: 13 | D141: 16458 | E141: 24 | F141: 16469 | K141: 0 | L141: 112
A142: 21 | B142: 16567 | C142: 22 | D142: 16574 | E142: 24 | F142: 16588 | K142: 0 | L142: 222
A143: 12 | B143: 16774 | C143: 13 | D143: 16780 | E143: 24 | F143: 16789 | K143: 0 | L143: 112
A144: 12 | B144: 16926 | C144: 13 | D144: 16935 | E144: 13 | F144: 16942 | K144: 0 | L144: 111
A145: 12 | B145: 17043 | C145: 13 | D145: 17049 | E145: 13 | F145: 17057 | K145: 0 | L145: 111
A146: 12 | B146: 17159 | C146: 13 | D146: 17165 | E146: 13 | F146: 17172 | K146: 0 | L146: 111
A147: 12 | B147: 17274 | C147: 24 | D147: 17284 | E147: 13 | F147: 17305 | K147: 0 | L147: 121
A148: 12 | B148: 17410 | C148: 13 | D148: 17414 | E148: 24 | F148: 17427 | K148: 0 | L148: 112
A149: 21 | B149: 17524 | C149: 22 | D149: 17542 | E149: 24 | F149: 17549 | K149: 0 | L149: 222
A150: 21 | B150: 17649 | C150: 22 | D150: 17657 | E150: 24 | F150: 17666 | K150: 0 | L150: 222
A151: 21 | B151: 17759 | C151: 22 | D151: 17771 | E151: 24 | F151: 17779 | K151: 0 | L151: 222
A152: 21 | B152: 17877 | C152: 11 | D152: 17890 | E152: 22 | F152: 17898 | K152: 0 | L152: 212
A153: 21 | B153: 17997 | C153: 11 | D153: 18021 | E153: 22 | F153: 18029 | K153: 0 | L153: 212
A154: 12 | B154: 18127 | C154: 13 | D154: 18133 | E154: 13 | F154: 18139 | K154: 0 | L154: 111
A155: 21 | B155: 18240 | C155: 11 | D155: 18257 | E155: 22 | F155: 18267 | K155: 0 | L155: 212
A156: 21 | B156: 18365 | C156: 22 | D156: 18380 | E156: 24 | F156: 18386 | K156: 0 | L156: 222
A157: 21 | B157: 18484 | C157: 22 | D157: 18491 | E157: 24 | F157: 18498 | K157: 0 | L157: 222
A158: 21 | B158: 18597 | C158: 22 | D158: 18603 | E158: 24 | F158: 18610 | K158: 0 | L158: 222
A159: 12 | B159: 18705 | C159: 13 | D159: 18711 | E159: 13 | F159: 18717 | K159: 0 | L159: 111
A160: 12 | B160: 18824 | C160: 13 | D160: 18830 | E160: 13 | F160: 18837 | K160: 0 | L160: 111
A161: 12 | B161: 18939 | C161: 13 | D161: 18945 | E161: 13 | F161: 18950 | K161: 0 | L161: 111
A162: 12 | B162: 19048 | C162: 13 | D162: 19054 | E162: 13 | F162: 19070 | K162: 0 | L162: 111
A163: 12 | B163: 19172 | C163: 13 | D163: 19180 | E163: 13 | F163: 19187 | K163: 0 | L163: 111
A164: 12 | B164: 19317 | C164: 13 | D164: 19324 | E164: 13 | F164: 19331 | K164: 0 | L164: 111
A165: 12 | B165: 19510 | C165: 13 | D165: 19516 | E165: 13 | F165: 19522 | K165: 0 | L165: 111
A166: 12 | B166: 19627 | C166: 13 | D166: 19633 | E166: 13 | F166: 19638 | K166: 0 | L166: 111
A167: 12 | B167: 19740 | C167: 13 | D167: 19746 | E167: 13 | F167: 19755 | K167: 0 | L167: 111
A168: 12 | B168: 19858 | C168: 13 | D168: 19865 | E168: 13 | F168: 19870 | K168: 0 | L168: 111
A169: 12 | B169: 19976 | C169: 13 | D169: 19983 | E169: 13 | F169: 19989 | K169: 0 | L169: 111
A170: 12 | B170: 20093 | C170: 13 | D170: 20100 | E170: 13 | F170: 20111 | K170: 0 | L170: 111
A171: 21 | B171: 20210 | C171: 11 | D171: 20240 | E171: 22 | F171: 20257 | K171: 0 | L171: 212
A172: 21 | B172: 20363 | C172: 11 | D172: 20379 | E172: 11 | F172: 20386 | K172: 0 | L172: 211
A173: 12 | B173: 20580 | C173: 13 | D173: 20588 | E173: 24 | F173: 20599 | K173: 0 | L173: 112
A174: 12 | B174: 20714 | C174: 13 | D174: 20721 | E174: 13 | F174: 20734 | K174: 0 | L174: 111
A175: 12 | B175: 20860 | C175: 13 | D175: 20870 | E175: 13 | F175: 20877 | K175: 0 | L175: 111
A176: 12 | B176: 20978 | C176: 13 | D176: 20986 | E176: 13 | F176: 20992 | K176: 0 | L176: 111
A177: 12 | B177: 21094 | C177: 13 | D177: 21100 | E177: 13 | F177: 21108 | K177: 0 | L177: 111
A178: 12 | B178: 21225 | C178: 13 | D178: 21232 | E178: 13 | F178: 21239 | K178: 0 | L178: 111
A179: 21 | B179: 21334 | C179: 11 | D179: 21348 | E179: 22 | F179: 21357 | K179: 0 | L179: 212
A180: 21 | B180: 21455 | C180: 11 | D180: 21480 | E180: 22 | F180: 21488 | K180: 0 | L180: 212
A181: 12 | B181: 21604 | C181: 13 | D181: 21610 | E181: 13 | F181: 21622 | K181: 0 | L181: 111
A182: 21 | B182: 21720 | C182: 11 | D182: 21741 | E182: 22 | F182: 21750 | K182: 0 | L182: 212
A183: 21 | B183: 21852 | C183: 22 | D183: 21859 | E183: 13 | F183: 21876 | K183: 0 | L183: 221
A184: 12 | B184: 22130 | C184: 13 | D184: 22137 | E184: 13 | F184: 22144 | K184: 0 | L184: 111
A185: 12 | B185: 22262 | C185: 13 | D185: 22269 | E185: 13 | F185: 22276 | K185: 0 | L185: 111
A186: 21 | B186: 22375 | C186: 11 | D186: 22395 | E186: 22 | F186: 22405 | K186: 0 | L186: 212
A187: 21 | B187: 22502 | C187: 22 | D187: 22511 | E187: 24 | F187: 22520 | K187: 0 | L187: 222
A188: 12 | B188: 22617 | C188: 13 | D188: 22624 | E188: 13 | F188: 22630 | K188: 0 | L188: 111
A189: 12 | B189: 22737 | C189: 13 | D189: 22745 | E189: 13 | F189: 22752 | K189: 0 | L189: 111
A190: 12 | B190: 22851 | C190: 13 | D190: 22861 | E190: 13 | F190: 22869 | K190: 0 | L190: 111
A191: 12 | B191: 22964 | C191: 13 | D191: 22971 | E191: 13 | F191: 22978 | K191: 0 | L191: 111
A192: 21 | B192: 23077 | C192: 11 | D192: 23097 | E192: 11 | F192: 23103 | K192: 0 | L192: 211
A193: 12 | B193: 23276 | C193: 13 | D193: 23282 | E193: 13 | F193: 23296 | K193: 0 | L193: 111
A194: 12 | B194: 23395 | C194: 13 | D194: 23407 | E194: 13 | F194: 23416 | K194: 0 | L194: 111
A195: 21 | B195: 23513 | C195: 22 | D195: 23517 | E195: 13 | F195: 23531 | K195: 0 | L195: 221
A196: 21 | B196: 23629 | C196: 11 | D196: 23652 | E196: 22 | F196: 23663 | K196: 0 | L196: 212
A197: 21 | B197: 23760 | C197: 22 | D197: 23767 | E197: 13 | F197: 23789 | K197: 0 | L197: 221
A198: 12 | B198: 23890 | C198: 13 | D198: 23898 | E198: 13 | F198: 23905 | K198: 0 | L198: 111

Sheet !M92592D.ust
A1: Report for:!M92592D.ust
A2: Date: | B2: <date>
A3: Hen: | B3: <hen> | F3: Correct Sequence | G3: =Start!J2 -> 211 | P3: Total Sequences in Data | Q3: =4994-COUNTBLANK(L7:L5000) -> 178 | V3: Total Sequences in Block Data | W3: =COUNTA(L7:L36) -> 30 | AA3: Total Sequences in Block Data | AB3: =COUNTA(L37:L65) -> 29 | AF3: Total Sequences in Block Data | AG3: =COUNTA(L66:L95) -> 30 | AK3: Total Sequences in Block Data | AL3: =COUNTA(L96:L125) -> 30 | AP3: Total Sequences in Block Data | AQ3: =COUNTA(L126:L154) -> 29 | AU3: Total Sequences in Block Data | AV3: =COUNTA(L155:L184) -> 30
P4: Total Sequences in Summary | Q4: =SUM(O7:O14) -> 178 | V4: Total Sequences in Block Summary | W4: =SUM(U7:U14) -> 30 | AA4: Total Sequences in Block Summary | AB4: =SUM(Z7:Z14) -> 29 | AF4: Total Sequences in Block Summary | AG4: =SUM(AE7:AE14) -> 30 | AK4: Total Sequences in Block Summary | AL4: =SUM(AJ7:AJ14) -> 30 | AP4: Total Sequences in Block Summary | AQ4: =SUM(AO7:AO14) -> 29 | AU4: Total Sequences in Block Summary | AV4: =SUM(AT7:AT14) -> 30
T5: Block 1 | Y5: Block 2 | AD5: Block 3 | AI5: Block 4 | AN5: Block 5 | AS5: Block 6
A6: Sequence Component 1 | B6: Time 1 | C6: Sequence Component 2 | D6: Time 2 | E6: Sequence Component 3 | F6: Time 3 | G6: Sequence Component 4 | H6: Time 4 | I6: Sequence Component 5 | J6: Time 5 | K6: Correct? 0=No 1=Yes | L6: Sequence | N6: Frequency | P6: Relative Frequency | Q6: Variability | T6: Frequency | V6: Relative Frequency | W6: Variability | Y6: Frequency | AA6: Relative Frequency | AB6: Variability | AD6: Frequency | AF6: Relative Frequency | AG6: Variability | AI6: Frequency | AK6: Relative Frequency | AL6: Variability | AN6: Frequency | AP6: Relative Frequency | AQ6: Variability | AS6: Frequency | AU6: Relative Frequency | AV6: Variability
A7: 12 | B7: 13 | C7: 24 | D7: 20 | E7: 24 | F7: 27 | K7: 0 | L7: 122 | N7: 111 | O7: =COUNTIF($L$7:$L$500,N7) -> 64 | P7: =O7/$Q$4 -> 0.3595505618 | Q7: =IF(P7=0,0,(P7*((LOG(P7))/LOG(2)))) -> -0.5306007842 | T7: =N7 -> 111 | U7: =COUNTIF(L7:L36,T7) -> 9 | V7: =U7/(W4-U11) -> 0.3103448276 | W7: =IF(V7=0,0,(V7*((LOG(V7))/LOG(2)))) -> -0.5238794463 | Y7: =N7 -> 111 | Z7: =COUNTIF(L37:L65,Y7) -> 12 | AA7: =Z7/(AB4-Z11) -> 0.4285714286 | AB7: =IF(AA7=0,0,(AA7*((LOG(AA7))/LOG(2)))) -> -0.5238824663 | AD7: =N7 -> 111 | AE7: =COUNTIF(L66:L95,AD7) -> 11 | AF7: =AE7/(AG4-AE11) -> 0.3666666667 | AG7: =IF(AF7=0,0,(AF7*((LOG(AF7))/LOG(2)))) -> -0.5307349582 | AI7: =N7 -> 111 | AJ7: =COUNTIF(L96:L125,AI7) -> 10 | AK7: =AJ7/(AL4-AJ11) -> 0.3846153846 | AL7: =IF(AK7=0,0,(AK7*((LOG(AK7))/LOG(2)))) -> -0.5301967782 | AN7: =N7 -> 111 | AO7: =COUNTIF(L126:L154,AN7) -> 10 | AP7: =AO7/(AQ4-AO11) -> 0.4166666667 | AQ7: =IF(AP7=0,0,(AP7*((LOG(AP7))/LOG(2)))) -> -0.5262643358 | AS7: =N7 -> 111 | AT7: =COUNTIF(L155:L184,AS7) -> 12 | AU7: =AT7/(AV4-AT11) -> 0.6315789474 | AV7: =IF(AU7=0,0,(AU7*((LOG(AU7))/LOG(2)))) -> -0.4187147449
A8: 12 | B8: 127 | C8: 13 | D8: 133 | E8: 24 | F8: 140 | K8: 0 | L8: 112 | N8: 112 | O8: =COUNTIF($L$7:$L$500,N8) -> 30 | P8: =O8/$Q$4 -> 0.1685393258 | Q8: =IF(P8=0,0,(P8*((LOG(P8))/LOG(2)))) -> -0.4329510397 | T8: =N8 -> 112 | U8: =COUNTIF(L7:L36,T8) -> 7 | V8: =U8/(W4-U11) -> 0.2413793103 | W8: =IF(V8=0,0,(V8*((LOG(V8))/LOG(2)))) -> -0.4949787073 | Y8: =N8 -> 112 | Z8: =COUNTIF(L37:L65,Y8) -> 7 | AA8: =Z8/(AB4-Z11) -> 0.25 | AB8: =IF(AA8=0,0,(AA8*((LOG(AA8))/LOG(2)))) -> -0.5 | AD8: =N8 -> 112 | AE8: =COUNTIF(L66:L95,AD8) -> 4 | AF8: =AE8/(AG4-AE11) -> 0.1333333333 | AG8: =IF(AF8=0,0,(AF8*((LOG(AF8))/LOG(2)))) -> -0.3875854127 | AI8: =N8 -> 112 | AJ8: =COUNTIF(L96:L125,AI8) -> 4 | AK8: =AJ8/(AL4-AJ11) -> 0.1538461538 | AL8: =IF(AK8=0,0,(AK8*((LOG(AK8))/LOG(2)))) -> -0.4154522643 | AN8: =N8 -> 112 | AO8: =COUNTIF(L126:L154,AN8) -> 4 | AP8: =AO8/(AQ4-AO11) -> 0.1666666667 | AQ8: =IF(AP8=0,0,(AP8*((LOG(AP8))/LOG(2)))) -> -0.4308270835 | AS8: =N8 -> 112 | AT8: =COUNTIF(L155:L184,AS8) -> 4 | AU8: =AT8/(AV4-AT11) -> 0.2105263158 | AV8: =IF(AU8=0,0,(AU8*((LOG(AU8))/LOG(2)))) -> -0.4732478976
A9: 12 | B9: 247 | C9: 13 | D9: 250 | E9: 13 | F9: 254 | K9: 0 | L9: 111 | N9: 121 | O9: =COUNTIF($L$7:$L$500,N9) -> 1 | P9: =O9/$Q$4 -> 0.005617977528 | Q9: =IF(P9=0,0,(P9*((LOG(P9))/LOG(2)))) -> -0.04199850242 | T9: =N9 -> 121 | U9: =COUNTIF(L7:L36,T9) -> 0 | V9: =U9/(W4-U11) -> 0 | W9: =IF(V9=0,0,(V9*((LOG(V9))/LOG(2)))) -> 0 | Y9: =N9 -> 121 | Z9: =COUNTIF(L37:L65,Y9) -> 1 | AA9: =Z9/(AB4-Z11) -> 0.03571428571 | AB9: =IF(AA9=0,0,(AA9*((LOG(AA9))/LOG(2)))) -> -0.1716912472 | AD9: =N9 -> 121 | AE9: =COUNTIF(L66:L95,AD9) -> 0 | AF9: =AE9/(AG4-AE11) -> 0 | AG9: =IF(AF9=0,0,(AF9*((LOG(AF9))/LOG(2)))) -> 0 | AI9: =N9 -> 121 | AJ9: =COUNTIF(L96:L125,AI9) -> 0 | AK9: =AJ9/(AL4-AJ11) -> 0 | AL9: =IF(AK9=0,0,(AK9*((LOG(AK9))/LOG(2)))) -> 0 | AN9: =N9 -> 121 | AO9: =COUNTIF(L126:L154,AN9) -> 0 | AP9: =AO9/(AQ4-AO11) -> 0 | AQ9: =IF(AP9=0,0,(AP9*((LOG(AP9))/LOG(2)))) -> 0 | AS9: =N9 -> 121 | AT9: =COUNTIF(L155:L184,AS9) -> 0 | AU9: =AT9/(AV4-AT11) -> 0 | AV9: =IF(AU9=0,0,(AU9*((LOG(AU9))/LOG(2)))) -> 0
A10: 12 | B10: 353 | C10: 13 | D10: 358 | E10: 13 | F10: 364 | K10: 0 | L10: 111 | N10: 122 | O10: =COUNTIF($L$7:$L$500,N10) -> 1 | P10: =O10/$Q$4 -> 0.005617977528 | Q10: =IF(P10=0,0,(P10*((LOG(P10))/LOG(2)))) -> -0.04199850242 | T10: =N10 -> 122 | U10: =COUNTIF(L7:L36,T10) -> 1 | V10: =U10/(W4-U11) -> 0.03448275862 | W10: =IF(V10=0,0,(V10*((LOG(V10))/LOG(2)))) -> -0.167516586 | Y10: =N10 -> 122 | Z10: =COUNTIF(L37:L65,Y10) -> 0 | AA10: =Z10/(AB4-Z11) -> 0 | AB10: =IF(AA10=0,0,(AA10*((LOG(AA10))/LOG(2)))) -> 0 | AD10: =N10 -> 122 | AE10: =COUNTIF(L66:L95,AD10) -> 0 | AF10: =AE10/(AG4-AE11) -> 0 | AG10: =IF(AF10=0,0,(AF10*((LOG(AF10))/LOG(2)))) -> 0 | AI10: =N10 -> 122 | AJ10: =COUNTIF(L96:L125,AI10) -> 0 | AK10: =AJ10/(AL4-AJ11) -> 0 | AL10: =IF(AK10=0,0,(AK10*((LOG(AK10))/LOG(2)))) -> 0 | AN10: =N10 -> 122 | AO10: =COUNTIF(L126:L154,AN10) -> 0 | AP10: =AO10/(AQ4-AO11) -> 0 | AQ10: =IF(AP10=0,0,(AP10*((LOG(AP10))/LOG(2)))) -> 0 | AS10: =N10 -> 122 | AT10: =COUNTIF(L155:L184,AS10) -> 0 | AU10: =AT10/(AV4-AT11) -> 0 | AV10: =IF(AU10=0,0,(AU10*((LOG(AU10))/LOG(2)))) -> 0
A11: 21 | B11: 464 | C11: 22 | D11: 473 | E11: 13 | F11: 487 | K11: 0 | L11: 221 | N11: 211 | O11: =COUNTIF($L$7:$L$500,N11) -> 22 | P11: =O11/$Q$4 -> 0.1235955056 | Q11: =IF(P11=0,0,(P11*((LOG(P11))/LOG(2)))) -> -0.3728013476 | T11: =N11 -> 211 | U11: =COUNTIF(L7:L36,T11) -> 1 | Y11: =N11 -> 211 | Z11: =COUNTIF(L37:L65,Y11) -> 1 | AD11: =N11 -> 211 | AE11: =COUNTIF(L66:L95,AD11) -> 0 | AI11: =N11 -> 211 | AJ11: =COUNTIF(L96:L125,AI11) -> 4 | AN11: =N11 -> 211 | AO11: =COUNTIF(L126:L154,AN11) -> 5 | AS11: =N11 -> 211 | AT11: =COUNTIF(L155:L184,AS11) -> 11
A12: 12 | B12: 661 | C12: 13 | D12: 666 | E12: 13 | F12: 675 | K12: 0 | L12: 111 | N12: 212 | O12: =COUNTIF($L$7:$L$500,N12) -> 18 | P12: =O12/$Q$4 -> 0.1011235955 | Q12: =IF(P12=0,0,(P12*((LOG(P12))/LOG(2)))) -> -0.3342952344 | T12: =N12 -> 212 | U12: =COUNTIF(L7:L36,T12) -> 2 | V12: =U12/(W4-U11) -> 0.06896551724 | W12: =IF(V12=0,0,(V12*((LOG(V12))/LOG(2)))) -> -0.2660676548 | Y12: =N12 -> 212 | Z12: =COUNTIF(L37:L65,Y12) -> 4 | AA12: =Z12/(AB4-Z11) -> 0.1428571429 | AB12: =IF(AA12=0,0,(AA12*((LOG(AA12))/LOG(2)))) -> -0.4010507032 | AD12: =N12 -> 212 | AE12: =COUNTIF(L66:L95,AD12) -> 5 | AF12: =AE12/(AG4-AE11) -> 0.1666666667 | AG12: =IF(AF12=0,0,(AF12*((LOG(AF12))/LOG(2)))) -> -0.4308270835 | AI12: =N12 -> 212 | AJ12: =COUNTIF(L96:L125,AI12) -> 5 | AK12: =AJ12/(AL4-AJ11) -> 0.1923076923 | AL12: =IF(AK12=0,0,(AK12*((LOG(AK12))/LOG(2)))) -> -0.4574060814 | AN12: =N12 -> 212 | AO12: =COUNTIF(L126:L154,AN12) -> 1 | AP12: =AO12/(AQ4-AO11) -> 0.04166666667 | AQ12: =IF(AP12=0,0,(AP12*((LOG(AP12))/LOG(2)))) -> -0.1910401042 | AS12: =N12 -> 212 | AT12: =COUNTIF(L155:L184,AS12) -> 1 | AU12: =AT12/(AV4-AT11) -> 0.05263157895 | AV12: =IF(AU12=0,0,(AU12*((LOG(AU12))/LOG(2)))) -> -0.2235751323
A13: 21 | B13: 774 | C13: 22 | D13: 784 | E13: 24 | F13: 790 | K13: 0 | L13: 222 | N13: 221 | O13: =COUNTIF($L$7:$L$500,N13) -> 31 | P13: =O13/$Q$4 -> 0.1741573034 | Q13: =IF(P13=0,0,(P13*((LOG(P13))/LOG(2)))) -> -0.4391441053 | T13: =N13 -> 221 | U13: =COUNTIF(L7:L36,T13) -> 5 | V13: =U13/(W4-U11) -> 0.1724137931 | W13: =IF(V13=0,0,(V13*((LOG(V13))/LOG(2)))) -> -0.4372505 | Y13: =N13 -> 221 | Z13: =COUNTIF(L37:L65,Y13) -> 2 | AA13: =Z13/(AB4-Z11) -> 0.07142857143 | AB13: =IF(AA13=0,0,(AA13*((LOG(AA13))/LOG(2)))) -> -0.271953923 | AD13: =N13 -> 221 | AE13: =COUNTIF(L66:L95,AD13) -> 6 | AF13: =AE13/(AG4-AE11) -> 0.2 | AG13: =IF(AF13=0,0,(AF13*((LOG(AF13))/LOG(2)))) -> -0.464385619 | AI13: =N13 -> 221 | AJ13: =COUNTIF(L96:L125,AI13) -> 7 | AK13: =AJ13/(AL4-AJ11) -> 0.2692307692 | AL13: =IF(AK13=0,0,(AK13*((LOG(AK13))/LOG(2)))) -> -0.5096766759 | AN13: =N13 -> 221 | AO13: =COUNTIF(L126:L154,AN13) -> 9 | AP13: =AO13/(AQ4-AO11) -> 0.375 | AQ13: =IF(AP13=0,0,(AP13*((LOG(AP13))/LOG(2)))) -> -0.5306390622 | AS13: =N13 -> 221 | AT13: =COUNTIF(L155:L184,AS13) -> 2 | AU13: =AT13/(AV4-AT11) -> 0.1052631579 | AV13: =IF(AU13=0,0,(AU13*((LOG(AU13))/LOG(2)))) -> -0.3418871067
A14: 12 | B14: 925 | C14: 13 | D14: 932 | E14: 13 | F14: 936 | K14: 0 | L14: 111 | N14: 222 | O14: =COUNTIF($L$7:$L$500,N14) -> 11 | P14: =O14/$Q$4 -> 0.06179775281 | Q14: =IF(P14=0,0,(P14*((LOG(P14))/LOG(2)))) -> -0.2481984266 | T14: =N14 -> 222 | U14: =COUNTIF(L7:L36,T14) -> 5 | V14: =U14/(W4-U11) -> 0.1724137931 | W14: =IF(V14=0,0,(V14*((LOG(V14))/LOG(2)))) -> -0.4372505 | Y14: =N14 -> 222 | Z14: =COUNTIF(L37:L65,Y14) -> 2 | AA14: =Z14/(AB4-Z11) -> 0.07142857143 | AB14: =IF(AA14=0,0,(AA14*((LOG(AA14))/LOG(2)))) -> -0.271953923 | AD14: =N14 -> 222 | AE14: =COUNTIF(L66:L95,AD14) -> 4 | AF14: =AE14/(AG4-AE11) -> 0.1333333333 | AG14: =IF(AF14=0,0,(AF14*((LOG(AF14))/LOG(2)))) -> -0.3875854127 | AI14: =N14 -> 222 | AJ14: =COUNTIF(L96:L125,AI14) -> 0 | AK14: =AJ14/(AL4-AJ11) -> 0 | AL14: =IF(AK14=0,0,(AK14*((LOG(AK14))/LOG(2)))) -> 0 | AN14: =N14 -> 222 | AO14: =COUNTIF(L126:L154,AN14) -> 0 | AP14: =AO14/(AQ4-AO11) -> 0 | AQ14: =IF(AP14=0,0,(AP14*((LOG(AP14))/LOG(2)))) -> 0 | AS14: =N14 -> 222 | AT14: =COUNTIF(L155:L184,AS14) -> 0 | AU14: =AT14/(AV4-AT11) -> 0 | AV14: =IF(AU14=0,0,(AU14*((LOG(AU14))/LOG(2)))) -> 0
A15: 21 | B15: 1036 | C15: 11 | D15: 1068 | E15: 11 | F15: 1081 | K15: 0 | L15: 211 | P15: =SUM(P7:P14) -> 1 | Q15: =-SUM(Q7:Q14) -> 2.441987943 | V15: =SUM(V7:V14) -> 1 | W15: =-SUM(W7:W14) -> 2.326943395 | AA15: =SUM(AA7:AA14) -> 1 | AB15: =-SUM(AB7:AB14) -> 2.140532263 | AF15: =SUM(AF7:AF14) -> 1 | AG15: =-SUM(AG7:AG14) -> 2.201118486 | AK15: =SUM(AK7:AK14) -> 1 | AL15: =-SUM(AL7:AL14) -> 1.9127318 | AP15: =SUM(AP7:AP14) -> 1 | AQ15: =-SUM(AQ7:AQ14) -> 1.678770586 | AU15: =SUM(AU7:AU14) -> 1 | AV15: =-SUM(AV7:AV14) -> 1.457424881
A16: 12 | B16: 1199 | C16: 13 | D16: 1203 | E16: 24 | F16: 1217 | K16: 0 | L16: 112 | P16: U= | Q16: =Q15/(LOG(Q4)/LOG(2)) -> 0.3266552995 | V16: U1= | W16: =W15/(LOG(W4)/LOG(2)) -> 0.4742195387 | AA16: U2= | AB16: =AB15/(LOG(AB4)/LOG(2)) -> 0.440621786 | AF16: U3= | AG16: =AG15/(LOG(AG4)/LOG(2)) -> 0.4485770455 | AK16: U4= | AL16: =AL15/(LOG(AL4)/LOG(2)) -> 0.3898052672 | AP16: U5= | AQ16: =AQ15/(LOG(AQ4)/LOG(2)) -> 0.3455696075 | AU16: U6= | AV16: =AV15/(LOG(AV4)/LOG(2)) -> 0.2970159723
A17: 21 | B17: 1332 | C17: 11 | D17: 1344 | E17: 22 | F17: 1353 | K17: 0 | L17: 212
A18: 12 | B18: 1450 | C18: 13 | D18: 1457 | E18: 24 | F18: 1465 | K18: 0 | L18: 112
A19: 21 | B19: 1560 | C19: 22 | D19: 1573 | E19: 24 | F19: 1579 | K19: 0 | L19: 222 | N19: Total Target Seq
A20: 12 | B20: 1677 | C20: 13 | D20: 1684 | E20: 24 | F20: 1691 | K20: 0 | L20: 112 | N20: =COUNTIF(L7:L184,G3) -> 22 | P20: 30 | Q20: 29 | R20: 30 | S20: 30 | T20: 29 | U20: 30
A21: 21 | B21: 1788 | C21: 22 | D21: 1790 | E21: 13 | F21: 1801 | K21: 0 | L21: 221 | P21: % of reinforcement given in 6 equal intervals based on number of trials
A22: 21 | B22: 1896 | C22: 22 | D22: 1904 | E22: 13 | F22: 1930 | K22: 0 | L22: 221 | P22: %_1 | Q22: %_2 | R22: %_3 | S22: %_4 | T22: %_5 | U22: %_6
A23: 21 | B23: 2028 | C23: 22 | D23: 2032 | E23: 13 | F23: 2052 | K23: 0 | L23: 221 | O23: target sequence | P23: =$G$3 -> 211 | Q23: =$G$3 -> 211 | R23: =$G$3 -> 211 | S23: =$G$3 -> 211 | T23: =$G$3 -> 211 | U23: =$G$3 -> 211
A24: 21 | B24: 2150 | C24: 22 | D24: 2160 | E24: 13 | F24: 2176 | K24: 0 | L24: 221 | O24: total reinforcement | P24: =U11 -> 1 | Q24: =Z11 -> 1 | R24: =AE11 -> 0 | S24: =AJ11 -> 4 | T24: =AO11 -> 5 | U24: =AT11 -> 11
A25: 21 | B25: 2278 | C25: 22 | D25: 2286 | E25: 24 | F25: 2292 | K25: 0 | L25: 222 | O25: % target
A26: 21 | B26: 2394 | C26: 11 | D26: 2408 | E26: 22 | F26: 2417 | K26: 0 | L26: 212 | O26: CCRF
A27: 12 | B27: 2516 | C27: 13 | D27: 2522 | E27: 24 | F27: 2536 | K27: 0 | L27: 112 | O27: % CCRf
A28: 12 | B28: 2631 | C28: 13 | D28: 2637 | E28: 24 | F28: 2644 | K28: 0 | L28: 112 | O28: average response rate | P28: =F36/P20 -> 118.0666667 | Q28: =(F65-F36)/Q20 -> 132.8965517 | R28: =(F95-F65)/R20 -> 119.7666667 | S28: =(F125-F95)/S20 -> 137.6333333 | T28: =(F154-F125)/T20 -> 139.2413793 | U28: =(F184-F154)/U20 -> 158.8
A29: 12 | B29: 2744 | C29: 13 | D29: 2751 | E29: 13 | F29: 2758 | K29: 0 | L29: 111
A30: 12 | B30: 2853 | C30: 13 | D30: 2859 | E30: 13 | F30: 2874 | K30: 0 | L30: 111
A31: 21 | B31: 2972 | C31: 22 | D31: 2981 | E31: 24 | F31: 2989 | K31: 0 | L31: 222
A32: 12 | B32: 3087 | C32: 13 | D32: 3092 | E32: 13 | F32: 3098 | K32: 0 | L32: 111
A33: 12 | B33: 3197 | C33: 13 | D33: 3204 | E33: 13 | F33: 3211 | K33: 0 | L33: 111
A34: 12 | B34: 3310 | C34: 13 | D34: 3315 | E34: 24 | F34: 3326 | K34: 0 | L34: 112
A35: 12 | B35: 3423 | C35: 13 | D35: 3428 | E35: 13 | F35: 3435 | K35: 0 | L35: 111
A36: 21 | B36: 3531 | C36: 22 | D36: 3536 | E36: 24 | F36: 3542 | K36: 0 | L36: 222
A37: 12 | B37: 3643 | C37: 13 | D37: 3650 | E37: 24 | F37: 3663 | K37: 0 | L37: 112
A38: 12 | B38: 3764 | C38: 13 | D38: 3769 | E38: 13 | F38: 3776 | K38: 0 | L38: 111
A39: 21 | B39: 3874 | C39: 11 | D39: 3895 | E39: 22 | F39: 3911 | K39: 0 | L39: 212
A40: 21 | B40: 4009 | C40: 11 | D40: 4035 | E40: 22 | F40: 4044 | K40: 0 | L40: 212
A41: 12 | B41: 4142 | C41: 13 | D41: 4148 | E41: 24 | F41: 4161 | K41: 0 | L41: 112
A42: 12 | B42: 4255 | C42: 13 | D42: 4262 | E42: 13 | F42: 4268 | K42: 0 | L42: 111
A43: 12 | B43: 4368 | C43: 13 | D43: 4376 | E43: 13 | F43: 4382 | K43: 0 | L43: 111
A44: 12 | B44: 4484 | C44: 13 | D44: 4495 | E44: 13 | F44: 4503 | K44: 0 | L44: 111
A45: 12 | B45: 4603 | C45: 13 | D45: 4613 | E45: 13 | F45: 4619 | K45: 0 | L45: 111
A46: 12 | B46: 4723 | C46: 13 | D46: 4730 | E46: 13 | F46: 4737 | K46: 0 | L46: 111
A47: 21 | B47: 4842 | C47: 22 | D47: 4852 | E47: 13 | F47: 4882 | K47: 0 | L47: 221
A48: 12 | B48: 4990 | C48: 13 | D48: 4996 | E48: 24 | F48: 5008 | K48: 0 | L48: 112
A49: 21 | B49: 5108 | C49: 22 | D49: 5123 | E49: 24 | F49: 5129 | K49: 0 | L49: 222
A50: 12 | B50: 5259 | C50: 13 | D50: 5264 | E50: 13 | F50: 5271 | K50: 0 | L50: 111
A51: 12 | B51: 5387 | C51: 13 | D51: 5400 | E51: 13 | F51: 5409 | K51: 0 | L51: 111
A52: 12 | B52: 5507 | C52: 13 | D52: 5513 | E52: 13 | F52: 5519 | K52: 0 | L52: 111
A53: 21 | B53: 5622 | C53: 11 | D53: 5639 | E53: 22 | F53: 5652 | K53: 0 | L53: 212
A54: 12 | B54: 5754 | C54: 13 | D54: 5761 | E54: 13 | F54: 5769 | K54: 0 | L54: 111
A55: 12 | B55: 5874 | C55: 13 | D55: 5880 | E55: 13 | F55: 5892 | K55: 0 | L55: 111
A56: 12 | B56: 5992 | C56: 13 | D56: 5999 | E56: 24 | F56: 6016 | K56: 0 | L56: 112
A57: 12 | B57: 6124 | C57: 13 | D57: 6131 | E57: 13 | F57: 6138 | K57: 0 | L57: 111
A58: 21 | B58: 6236 | C58: 22 | D58: 6243 | E58: 13 | F58: 6261 | K58: 0 | L58: 221
A59: 21 | B59: 6362 | C59: 11 | D59: 6379 | E59: 11 | F59: 6385 | K59: 0 | L59: 211
A60: 12 | B60: 6612 | C60: 13 | D60: 6618 | E60: 24 | F60: 6629 | K60: 0 | L60: 112
A61: 12 | B61: 6761 | C61: 13 | D61: 6767 | E61: 24 | F61: 6776 | K61: 0 | L61: 112
A62: 21 | B62: 6874 | C62: 22 | D62: 6877 | E62: 24 | F62: 6886 | K62: 0 | L62: 222
A63: 21 | B63: 6985 | C63: 11 | D63: 7001 | E63: 22 | F63: 7011 | K63: 0 | L63: 212
A64: 12 | B64: 7124 | C64: 24 | D64: 7134 | E64: 13 | F64: 7152 | K64: 0 | L64: 121
A65: 12 | B65: 7362 | C65: 13 | D65: 7378 | E65: 24 | F65: 7396 | K65: 0 | L65: 112
A66: 12 | B66: 7513 | C66: 13 | D66: 7525 | E66: 24 | F66: 7535 | K66: 0 | L66: 112
A67: 12 | B67: 7631 | C67: 13 | D67: 7636 | E67: 13 | F67: 7644 | K67: 0 | L67: 111
A68: 21 | B68: 7740 | C68: 11 | D68: 7753 | E68: 22 | F68: 7768 | K68: 0 | L68: 212
A69: 21 | B69: 7867 | C69: 11 | D69: 7884 | E69: 22 | F69: 7893 | K69: 0 | L69: 212
A70: 12 | B70: 7991 | C70: 13 | D70: 7997 | E70: 13 | F70: 8004 | K70: 0 | L70: 111
A71: 21 | B71: 8100 | C71: 22 | D71: 8107 | E71: 13 | F71: 8118 | K71: 0 | L71: 221
A72: 21 | B72: 8221 | C72: 22 | D72: 8227 | E72: 24 | F72: 8236 | K72: 0 | L72: 222
A73: 12 | B73: 8346 | C73: 13 | D73: 8352 | E73: 13 | F73: 8358 | K73: 0 | L73: 111
A74: 12 | B74: 8462 | C74: 13 | D74: 8469 | E74: 13 | F74: 8476 | K74: 0 | L74: 111
A75: 12 | B75: 8577 | C75: 13 | D75: 8583 | E75: 13 | F75: 8590 | K75: 0 | L75: 111
A76: 21 | B76: 8687 | C76: 22 | D76: 8692 | E76: 24 | F76: 8699 | K76: 0 | L76: 222
A77: 21 | B77: 8797 | C77: 22 | D77: 8805 | E77: 13 | F77: 8836 | K77: 0 | L77: 221
A78: 21 | B78: 8938 | C78: 22 | D78: 8942 | E78: 24 | F78: 8953 | K78: 0 | L78: 222
A79: 12 | B79: 9056 | C79: 13 | D79: 9063 | E79: 24 | F79: 9073 | K79: 0 | L79: 112
A80: 21 | B80: 9169 | C80: 22 | D80: 9172 | E80: 24 | F80: 9181 | K80: 0 | L80: 222
A81: 21 | B81: 9287 | C81: 11 | D81: 9304 | E81: 22 | F81: 9316 | K81: 0 | L81: 212
A82: 12 | B82: 9419 | C82: 13 | D82: 9426 | E82: 24 | F82: 9438 | K82: 0 | L82: 112
A83: 12 | B83: 9545 | C83: 13 | D83: 9551 | E83: 13 | F83: 9557 | K83: 0 | L83: 111
A84: 12 | B84: 9663 | C84: 13 | D84: 9669 | E84: 24 | F84: 9679 | K84: 0 | L84: 112
A85: 12 | B85: 9780 | C85: 13 | D85: 9788 | E85: 13 | F85: 9800 | K85: 0 | L85: 111
A86: 12 | B86: 9900 | C86: 13 | D86: 9907 | E86: 13 | F86: 9919 | K86: 0 | L86: 111
A87: 21 | B87: 10012 | C87: 22 | D87: 10015 | E87: 13 | F87: 10032 | K87: 0 | L87: 221
A88: 21 | B88: 10125 | C88: 11 | D88: 10143 | E88: 22 | F88: 10153 | K88: 0 | L88: 212
A89: 12 | B89: 10254 | C89: 13 | D89: 10263 | E89: 13 | F89: 10269 | K89: 0 | L89: 111
A90: 21 | B90: 10364 | C90: 11 | D90: 10384 | E90: 22 | F90: 10397 | K90: 0 | L90: 212
A91: 21 | B91: 10498 | C91: 22 | D91: 10504 | E91: 13 | F91: 10519 | K91: 0 | L91: 221
A92: 12 | B92: 10617 | C92: 13 | D92: 10624 | E92: 13 | F92: 10631 | K92: 0 | L92: 111
A93: 12 | B93: 10732 | C93: 13 | D93: 10737 | E93: 13 | F93: 10745 | K93: 0 | L93: 111
A94: 21 | B94: 10842 | C94: 22 | D94: 10850 | E94: 13 | F94: 10867 | K94: 0 | L94: 221
A95: 21 | B95: 10965 | C95: 22 | D95: 10972 | E95: 13 | F95: 10989 | K95: 0 | L95: 221
A96: 12 | B96: 11084 | C96: 13 | D96: 11091 | E96: 24 | F96: 11108 | K96: 0 | L96: 112
A97: 12 | B97: 11212 | C97: 13 | D97: 11218 | E97: 13 | F97: 11223 | K97: 0 | L97: 111
A98: 12 | B98: 11326 | C98: 13 | D98: 11332 | E98: 13 | F98: 11338 | K98: 0 | L98: 111
A99: 21 | B99: 11447 | C99: 11 | D99: 11464 | E99: 22 | F99: 11476 | K99: 0 | L99: 212
A100: 21 | B100: 11581 | C100: 11 | D100: 11596 | E100: 11 | F100: 11601 | K100: 0 | L100: 211
A101: 12 | B101: 11849 | C101: 13 | D101: 11858 | E101: 13 | F101: 11865 | K101: 0 | L101: 111
A102: 12 | B102: 11997 | C102: 13 | D102: 12004 | E102: 24 | F102: 12014 | K102: 0 | L102: 112
A103: 21 | B103: 12111 | C103: 22 | D103: 12136 | E103: 13 | F103: 12160 | K103: 0 | L103: 221
A104: 21 | B104: 12254 | C104: 22 | D104: 12261 | E104: 13 | F104: 12280 | K104: 0 | L104: 221
A105: 21 | B105: 12376 | C105: 22 | D105: 12385 | E105: 13 | F105: 12397 | K105: 0 | L105: 221
A106: 21 | B106: 12497 | C106: 11 | D106: 12514 | E106: 22 | F106: 12524 | K106: 0 | L106: 212
A107: 12 | B107: 12621 | C107: 13 | D107: 12629 | E107: 13 | F107: 12635 | K107: 0 | L107: 111
A108: 21 | B108: 12732 | C108: 22 | D108: 12739 | E108: 13 | F108: 12759 | K108: 0 | L108: 221
A109: 12 | B109: 12864 | C109: 13 | D109: 12871 | E109: 13 | F109: 12877 | K109: 0 | L109: 111
A110: 12 | B110: 12985 | C110: 13 | D110: 12991 | E110: 13 | F110: 12998 | K110: 0 | L110: 111
A111: 21 | B111: 13106 | C111: 11 | D111: 13117 | E111: 11 | F111: 13129 | K111: 0 | L111: 211
A112: 12 | B112: 13362 | C112: 13 | D112: 13369 | E112: 24 | F112: 13384 | K112: 0 | L112: 112
A113: 21 | B113: 13491 | C113: 22 | D113: 13501 | E113: 13 | F113: 13512 | K113: 0 | L113: 221
A114: 12 | B114: 13610 | C114: 13 | D114: 13617 | E114: 13 | F114: 13629 | K114: 0 | L114: 111
A115: 21 | B115: 13728 | C115: 11 | D115: 13744 | E115: 22 | F115: 13761 | K115: 0 | L115: 212
A116: 21 | B116: 13859 | C116: 11 | D116: 13882 | E116: 11 | F116: 13890 | K116: 0 | L116: 211
A117: 12 | B117: 14086 | C117: 13 | D117: 14091 | E117: 13 | F117: 14099 | K117: 0 | L117: 111
A118: 21 | B118: 14199 | C118: 11 | D118: 14214 | E118: 22 | F118: 14223 | K118: 0 | L118: 212
A119: 12 | B119: 14321 | C119: 13 | D119: 14326 | E119: 24 | F119: 14336 | K119: 0 | L119: 112
A120: 21 | B120: 14438 | C120: 11 | D120: 14453 | E120: 11 | F120: 14460 | K120: 0 | L120: 211
A121: 12 | B121: 14628 | C121: 13 | D121: 14633 | E121: 13 | F121: 14639 | K121: 0 | L121: 111
A122: 21 | B122: 14733 | C122: 22 | D122: 14737 | E122: 13 | F122: 14751 | K122: 0 | L122: 221
A123: 21 | B123: 14852 | C123: 22 | D123: 14859 | E123: 13 | F123: 14874 | K123: 0 | L123: 221
A124: 21 | B124: 14974 | C124: 11 | D124: 14992 | E124: 22 | F124: 15008 | K124: 0 | L124: 212
A125: 12 | B125: 15107 | C125: 13 | D125: 15112 | E125: 13 | F125: 15118 | K125: 0 | L125: 111
A126: 12 | B126: 15221 | C126: 13 | D126: 15228 | E126: 24 | F126: 15238 | K126: 0 | L126: 112
A127: 12 | B127: 15360 | C127: 13 | D127: 15367 | E127: 13 | F127: 15373 | K127: 0 | L127: 111
A128: 21 | B128: 15476 | C128: 11 | D128: 15489 | E128: 11 | F128: 15500 | K128: 0 | L128: 211
A129: 12 | B129: 15691 | C129: 13 | D129: 15696 | E129: 13 | F129: 15708 | K129: 0 | L129: 111
A130: 12 | B130: 15809 | C130: 13 | D130: 15814 | E130: 24 | F130: 15828 | K130: 0 | L130: 112
A131: 21 | B131: 15924 | C131: 11 | D131: 15938 | E131: 22 | F131: 15947 | K131: 0 | L131: 212
A132: 12 | B132: 16051 | C132: 13 | D132: 16059 | E132: 13 | F132: 16065 | K132: 0 | L132: 111
A133: 21 | B133: 16164 | C133: 11 | D133: 16179 | E133: 11 | F133: 16187 | K133: 0 | L133: 211
A134: 12 | B134: 16400 | C134: 13 | D134: 16405 | E134: 13 | F134: 16412 | K134: 0 | L134: 111
A135: 12 | B135: 16514 | C135: 13 | D135: 16518 | E135: 13 | F135: 16522 | K135: 0 | L135: 111
A136: 21 | B136: 16621 | C136: 11 | D136: 16634 | E136: 11 | F136: 16642 | K136: 0 | L136: 211
A137: 12 | B137: 16852 | C137: 13 | D137: 16861 | E137: 13 | F137: 16868 | K137: 0 | L137: 111
A138: 12 | B138: 17024 | C138: 13 | D138: 17031 | E138: 24 | F138: 17040 | K138: 0 | L138: 112
A139: 21 | B139: 17131 | C139: 22 | D139: 17135 | E139: 13 | F139: 17153 | K139: 0 | L139: 221
A140: 12 | B140: 17252 | C140: 13 | D140: 17257 | E140: 13 | F140: 17264 | K140: 0 | L140: 111
A141: 21 | B141: 17361 | C141: 22 | D141: 17370 | E141: 13 | F141: 17381 | K141: 0 | L141: 221
A142: 21 | B142: 17481 | C142: 22 | D142: 17486 | E142: 13 | F142: 17505 | K142: 0 | L142: 221
A143: 21 | B143: 17606 | C143: 11 | D143: 17624 | E143: 11 | F143: 17640 | K143: 0 | L143: 211
A144: 12 | B144: 17843 | C144: 13 | D144: 17847 | E144: 13 | F144: 17860 | K144: 0 | L144: 111
A145: 12 | B145: 17958 | C145: 13 | D145: 17965 | E145: 13 | F145: 17971 | K145: 0 | L145: 111
A146: 21 | B146: 18069 | C146: 22 | D146: 18077 | E146: 13 | F146: 18089 | K146: 0 | L146: 221
A147: 21 | B147: 18181 | C147: 22 | D147: 18192 | E147: 13 | F147: 18211 | K147: 0 | L147: 221
A148: 21 | B148: 18310 | C148: 22 | D148: 18317 | E148: 13 | F148: 18331 | K148: 0 | L148: 221
A149: 21 | B149: 18429 | C149: 22 | D149: 18441 | E149: 13 | F149: 18462 | K149: 0 | L149: 221
A150: 12 | B150: 18574 | C150: 13 | D150: 18580 | E150: 13 | F150: 18586 | K150: 0 | L150: 111
A151: 21 | B151: 18683 | C151: 11 | D151: 18695 | E151: 11 | F151: 18714 | K151: 0 | L151: 211
A152: 12 | B152: 18897 | C152: 13 | D152: 18904 | E152: 24 | F152: 18917 | K152: 0 | L152: 112
A153: 21 | B153: 19017 | C153: 22 | D153: 19022 | E153: 13 | F153: 19042 | K153: 0 | L153: 221
A154: 21 | B154: 19138 | C154: 22 | D154: 19146 | E154: 13 | F154: 19156 | K154: 0 | L154: 221
A155: 21 | B155: 19249 | C155: 22 | D155: 19255 | E155: 13 | F155: 19279 | K155: 0 | L155: 221
A156: 12 | B156: 19375 | C156: 13 | D156: 19380 | E156: 13 | F156: 19388 | K156: 0 | L156: 111
A157: 12 | B157: 19488 | C157: 13 | D157: 19494 | E157: 13 | F157: 19500 | K157: 0 | L157: 111
A158: 21 | B158: 19596 | C158: 11 | D158: 19618 | E158: 11 | F158: 19624 | K158: 0 | L158: 211
A159: 12 | B159: 19786 | C159: 13 | D159: 19791 | E159: 24 | F159: 19804 | K159: 0 | L159: 112
A160: 21 | B160: 19907 | C160: 11 | D160: 19922 | E160: 11 | F160: 19930 | K160: 0 | L160: 211
A161: 12 | B161: 20107 | C161: 13 | D161: 20119 | E161: 24 | F161: 20129 | K161: 0 | L161: 112
A162: 21 | B162: 20231 | C162: 11 | D162: 20243 | E162: 11 | F162: 20255 | K162: 0 | L162: 211
A163: 12 | B163: 20474 | C163: 13 | D163: 20478 | E163: 13 | F163: 20496 | K163: 0 | L163: 111
A164: 21 | B164: 20593 | C164: 11 | D164: 20607 | E164: 11 | F164: 20622 | K164: 0 | L164: 211
A165: 12 | B165: 20848 | C165: 13 | D165: 20853 | E165: 13 | F165: 20865 | K165: 0 | L165: 111
A166: 21 | B166: 20964 | C166: 11 | D166: 20980 | E166: 22 | F166: 20989 | K166: 0 | L166: 212
A167: 21 | B167: 21089 | C167: 11 | D167: 21109 | E167: 11 | F167: 21126 | K167: 0 | L167: 211
A168: 12 | B168: 21360 | C168: 13 | D168: 21369 | E168: 13 | F168: 21381 | K168: 0 | L168: 111
A169: 21 | B169: 21475 | C169: 22 | D169: 21482 | E169: 13 | F169: 21493 | K169: 0 | L169: 221
A170: 21 | B170: 21592 | C170: 11 | D170: 21612 | E170: 11 | F170: 21625 | K170: 0 | L170: 211
A171: 12 | B171: 21873 | C171: 13 | D171: 21881 | E171: 13 | F171: 21887 | K171: 0 | L171: 111
A172: 21 | B172: 21981 | C172: 11 | D172: 21998 | E172: 11 | F172: 22003 | K172: 0 | L172: 211
A173: 12 | B173: 22247 | C173: 13 | D173: 22253 | E173: 24 | F173: 22262 | K173: 0 | L173: 112
A174: 12 | B174: 22368 | C174: 13 | D174: 22373 | E174: 13 | F174: 22383 | K174: 0 | L174: 111
A175: 21 | B175: 22484 | C175: 11 | D175: 22504 | E175: 11 | F175: 22516 | K175: 0 | L175: 211
A176: 12 | B176: 22676 | C176: 13 | D176: 22679 | E176: 13 | F176: 22683 | K176: 0 | L176: 111
A177: 21 | B177: 22784 | C177: 11 | D177: 22796 | E177: 11 | F177: 22806 | K177: 0 | L177: 211
A178: 12 | B178: 22997 | C178: 13 | D178: 23003 | E178: 24 | F178: 23015 | K178: 0 | L178: 112
A179: 21 | B179: 23107 | C179: 11 | D179: 23126 | E179: 11 | F179: 23134 | K179: 0 | L179: 211
A180: 12 | B180: 23331 | C180: 13 | D180: 23335 | E180: 13 | F180: 23344 | K180: 0 | L180: 111
A181: 12 | B181: 23459 | C181: 13 | D181: 23465 | E181: 13 | F181: 23471 | K181: 0 | L181: 111
A182: 21 | B182: 23569 | C182: 11 | D182: 23579 | E182: 11 | F182: 23591 | K182: 0 | L182: 211
A183: 12 | B183: 23792 | C183: 13 | D183: 23797 | E183: 13 | F183: 23808 | K183: 0 | L183: 111
A184: 12 | B184: 23906 | C184: 13 | D184: 23913 | E184: 13 | F184: 23920 | L184: 111

Sheet !M92693D.ust
A1: Report for:!M92693D.ust
A2: Date: | B2: <date>
A3: Hen: | B3: <hen> | F3: Correct Sequence | G3: =Start!J2 -> 211 | P3: Total Sequences in Data | Q3: =4994-COUNTBLANK(L7:L5000) -> 85 | V3: Total Sequences in Block Data | W3: =COUNTA(L7:L20) -> 14 | AA3: Total Sequences in Block Data | AB3: =COUNTA(L21:L34) -> 14 | AF3: Total Sequences in Block Data | AG3: =COUNTA(L35:L49) -> 15 | AK3: Total Sequences in Block Data | AL3: =COUNTA(L50:L63) -> 14 | AP3: Total Sequences in Block Data | AQ3: =COUNTA(L64:L77) -> 14 | AU3: Total Sequences in Block Data | AV3: =COUNTA(L78:L91) -> 14
P4: Total Sequences in Summary | Q4: =SUM(O7:O14) -> 85 | V4: Total Sequences in Block Summary | W4: =SUM(U7:U14) -> 14 | AA4: Total Sequences in Block Summary | AB4: =SUM(Z7:Z14) -> 14 | AF4: Total Sequences in Block Summary | AG4: =SUM(AE7:AE14) -> 15 | AK4: Total Sequences in Block Summary | AL4: =SUM(AJ7:AJ14) -> 14 | AP4: Total Sequences in Block Summary | AQ4: =SUM(AO7:AO14) -> 14 | AU4: Total Sequences in Block Summary | AV4: =SUM(AT7:AT14) -> 14
T5: Block 1 | Y5: Block 2 | AD5: Block 3 | AI5: Block 4 | AN5: Block 5 | AS5: Block 6
A6: Sequence Component 1 | B6: Time 1 | C6: Sequence Component 2 | D6: Time 2 | E6: Sequence Component 3 | F6: Time 3 | G6: Sequence Component 4 | H6: Time 4 | I6: Sequence Component 5 | J6: Time 5 | K6: Correct? 0=No 1=Yes | L6: Sequence | N6: Frequency | P6: Relative Frequency | Q6: Variability | T6: Frequency | V6: Relative Frequency | W6: Variability | Y6: Frequency | AA6: Relative Frequency | AB6: Variability | AD6: Frequency | AF6: Relative Frequency | AG6: Variability | AI6: Frequency | AK6: Relative Frequency | AL6: Variability | AN6: Frequency | AP6: Relative Frequency | AQ6: Variability | AS6: Frequency | AU6: Relative Frequency | AV6: Variability
A7: 12 | B7: 10 | C7: 13 | D7: 15 | E7: 24 | F7: 23 | K7: 0 | L7: 112 | N7: 111 | O7: =COUNTIF($L$7:$L$500,N7) -> 36 | P7: =O7/$Q$4 -> 0.4235294118 | Q7: =IF(P7=0,0,(P7*((LOG(P7))/LOG(2)))) -> -0.5249502782 | T7: =N7 -> 111 | U7: =COUNTIF(L7:L20,T7) -> 6 | V7: =U7/(W4-U11) -> 0.6666666667 | W7: =IF(V7=0,0,(V7*((LOG(V7))/LOG(2)))) -> -0.3899750005 | Y7: =N7 -> 111 | Z7: =COUNTIF(L21:L34,Y7) -> 5 | AA7: =Z7/(AB4-Z11) -> 0.7142857143 | AB7: =IF(AA7=0,0,(AA7*((LOG(AA7))/LOG(2)))) -> -0.346733448 | AD7: =N7 -> 111 | AE7: =COUNTIF(L35:L49,AD7) -> 5 | AF7: =AE7/(AG4-AE11) -> 0.7142857143 | AG7: =IF(AF7=0,0,(AF7*((LOG(AF7))/LOG(2)))) -> -0.346733448 | AI7: =N7 -> 111 | AJ7: =COUNTIF(L50:L63,AI7) -> 8 | AK7: =AJ7/(AL4-AJ11) -> 1 | AL7: =IF(AK7=0,0,(AK7*((LOG(AK7))/LOG(2)))) -> 0 | AN7: =N7 -> 111 | AO7: =COUNTIF(L64:L77,AN7) -> 7 | AP7: =AO7/(AQ4-AO11) -> 0.7777777778 | AQ7: =IF(AP7=0,0,(AP7*((LOG(AP7))/LOG(2)))) -> -0.2819989506 | AS7: =N7 -> 111 | AT7: =COUNTIF(L78:L91,AS7) -> 5 | AU7: =AT7/(AV4-AT11) -> 0.7142857143 | AV7: =IF(AU7=0,0,(AU7*((LOG(AU7))/LOG(2)))) -> -0.346733448
A8: 21 | B8: 122 | C8: 11 | D8: 135 | E8: 11 | F8: 145 | K8: 0 | L8: 211 | N8: 112 | O8: =COUNTIF($L$7:$L$500,N8) -> 6 | P8: =O8/$Q$4 -> 0.07058823529 | Q8: =IF(P8=0,0,(P8*((LOG(P8))/LOG(2)))) -> -0.2699596543 | T8: =N8 -> 112 | U8: =COUNTIF(L7:L20,T8) -> 1 | V8: =U8/(W4-U11) -> 0.1111111111 | W8: =IF(V8=0,0,(V8*((LOG(V8))/LOG(2)))) -> -0.352213889 | Y8: =N8 -> 112 | Z8: =COUNTIF(L21:L34,Y8) -> 2 | AA8: =Z8/(AB4-Z11) -> 0.2857142857 | AB8: =IF(AA8=0,0,(AA8*((LOG(AA8))/LOG(2)))) -> -0.5163871206 | AD8: =N8 -> 112 | AE8: =COUNTIF(L35:L49,AD8) -> 1 | AF8: =AE8/(AG4-AE11) -> 0.1428571429 | AG8: =IF(AF8=0,0,(AF8*((LOG(AF8))/LOG(2)))) -> -0.4010507032 | AI8: =N8 -> 112 | AJ8: =COUNTIF(L50:L63,AI8) -> 0 | AK8: =AJ8/(AL4-AJ11) -> 0 | AL8: =IF(AK8=0,0,(AK8*((LOG(AK8))/LOG(2)))) -> 0 | AN8: =N8 -> 112 | AO8: =COUNTIF(L64:L77,AN8) -> 1 | AP8: =AO8/(AQ4-AO11) -> 0.1111111111 | AQ8: =IF(AP8=0,0,(AP8*((LOG(AP8))/LOG(2)))) -> -0.352213889 | AS8: =N8 -> 112 | AT8: =COUNTIF(L78:L91,AS8) -> 1 | AU8: =AT8/(AV4-AT11) -> 0.1428571429 | AV8: =IF(AU8=0,0,(AU8*((LOG(AU8))/LOG(2)))) -> -0.4010507032
A9: 12 | B9: 300 | C9: 13 | D9: 304 | E9: 13 | F9: 309 | K9: 0 | L9: 111 | N9: 121 | O9: =COUNTIF($L$7:$L$500,N9) -> 0 | P9: =O9/$Q$4 -> 0 | Q9: =IF(P9=0,0,(P9*((LOG(P9))/LOG(2)))) -> 0 | T9: =N9 -> 121 | U9: =COUNTIF(L7:L20,T9) -> 0 | V9: =U9/(W4-U11) -> 0 | W9: =IF(V9=0,0,(V9*((LOG(V9))/LOG(2)))) -> 0 | Y9: =N9 -> 121 | Z9: =COUNTIF(L21:L34,Y9) -> 0 | AA9: =Z9/(AB4-Z11) -> 0 | AB9: =IF(AA9=0,0,(AA9*((LOG(AA9))/LOG(2)))) -> 0 | AD9: =N9 -> 121 | AE9: =COUNTIF(L35:L49,AD9) -> 0 | AF9: =AE9/(AG4-AE11) -> 0 | AG9: =IF(AF9=0,0,(AF9*((LOG(AF9))/LOG(2)))) -> 0 | AI9: =N9 -> 121 | AJ9: =COUNTIF(L50:L63,AI9) -> 0 | AK9: =AJ9/(AL4-AJ11) -> 0 | AL9: =IF(AK9=0,0,(AK9*((LOG(AK9))/LOG(2)))) -> 0 | AN9: =N9 -> 121 | AO9: =COUNTIF(L64:L77,AN9) -> 0 | AP9: =AO9/(AQ4-AO11) -> 0 | AQ9: =IF(AP9=0,0,(AP9*((LOG(AP9))/LOG(2)))) -> 0 | AS9: =N9 -> 121 | AT9: =COUNTIF(L78:L91,AS9) -> 0 | AU9: =AT9/(AV4-AT11) -> 0 | AV9: =IF(AU9=0,0,(AU9*((LOG(AU9))/LOG(2)))) -> 0
A10: 21 | B10: 406 | C10: 11 | D10: 420 | E10: 11 | F10: 426 | K10: 0 | L10: 211 | N10: 122 | O10: =COUNTIF($L$7:$L$500,N10) -> 0 | P10: =O10/$Q$4 -> 0 | Q10: =IF(P10=0,0,(P10*((LOG(P10))/LOG(2)))) -> 0 | T10: =N10 -> 122 | U10: =COUNTIF(L7:L20,T10) -> 0 | V10: =U10/(W4-U11) -> 0 | W10: =IF(V10=0,0,(V10*((LOG(V10))/LOG(2)))) -> 0 | Y10: =N10 -> 122 | Z10: =COUNTIF(L21:L34,Y10) -> 0 | AA10: =Z10/(AB4-Z11) -> 0 | AB10: =IF(AA10=0,0,(AA10*((LOG(AA10))/LOG(2)))) -> 0 | AD10: =N10 -> 122 | AE10: =COUNTIF(L35:L49,AD10) -> 0 | AF10: =AE10/(AG4-AE11) -> 0 | AG10: =IF(AF10=0,0,(AF10*((LOG(AF10))/LOG(2)))) -> 0 | AI10: =N10 -> 122 | AJ10: =COUNTIF(L50:L63,AI10) -> 0 | AK10: =AJ10/(AL4-AJ11) -> 0 | AL10: =IF(AK10=0,0,(AK10*((LOG(AK10))/LOG(2)))) -> 0 | AN10: =N10 -> 122 | AO10: =COUNTIF(L64:L77,AN10) -> 0 | AP10: =AO10/(AQ4-AO11) -> 0 | AQ10: =IF(AP10=0,0,(AP10*((LOG(AP10))/LOG(2)))) -> 0 | AS10: =N10 -> 122 | AT10: =COUNTIF(L78:L91,AS10) -> 0 | AU10: =AT10/(AV4-AT11) -> 0 | AV10: =IF(AU10=0,0,(AU10*((LOG(AU10))/LOG(2)))) -> 0
A11: 12 | B11: 566 | C11: 13 | D11: 572 | E11: 13 | F11: 585 | K11: 0 | L11: 111 | N11: 211 | O11: =COUNTIF($L$7:$L$500,N11) -> 38 | P11: =O11/$Q$4 -> 0.4470588235 | Q11: =IF(P11=0,0,(P11*((LOG(P11))/LOG(2)))) -> -0.5192424713 | T11: =N11 -> 211 | U11: =COUNTIF(L7:L20,T11) -> 5 | Y11: =N11 -> 211 | Z11: =COUNTIF(L21:L34,Y11) -> 7 | AD11: =N11 -> 211 | AE11: =COUNTIF(L35:L49,AD11) -> 8 | AI11: =N11 -> 211 | AJ11: =COUNTIF(L50:L63,AI11) -> 6 | AN11: =N11 -> 211 | AO11: =COUNTIF(L64:L77,AN11) -> 5 | AS11: =N11 -> 211 | AT11: =COUNTIF(L78:L91,AS11) -> 7
A12: 21 | B12: 688 | C12: 11 | D12: 700 | E12: 11 | F12: 706 | K12: 0 | L12: 211 | N12: 212 | O12: =COUNTIF($L$7:$L$500,N12) -> 0 | P12: =O12/$Q$4 -> 0 | Q12: =IF(P12=0,0,(P12*((LOG(P12))/LOG(2)))) -> 0 | T12: =N12 -> 212 | U12: =COUNTIF(L7:L20,T12) -> 0 | V12: =U12/(W4-U11) -> 0 | W12: =IF(V12=0,0,(V12*((LOG(V12))/LOG(2)))) -> 0 | Y12: =N12 -> 212 | Z12: =COUNTIF(L21:L34,Y12) -> 0 | AA12: =Z12/(AB4-Z11) -> 0 | AB12: =IF(AA12=0,0,(AA12*((LOG(AA12))/LOG(2)))) -> 0 | AD12: =N12 -> 212 | AE12: =COUNTIF(L35:L49,AD12) -> 0 | AF12: =AE12/(AG4-AE11) -> 0 | AG12: =IF(AF12=0,0,(AF12*((LOG(AF12))/LOG(2)))) -> 0 | AI12: =N12 -> 212 | AJ12: =COUNTIF(L50:L63,AI12) -> 0 | AK12: =AJ12/(AL4-AJ11) -> 0 | AL12: =IF(AK12=0,0,(AK12*((LOG(AK12))/LOG(2)))) -> 0 | AN12: =N12 -> 212 | AO12: =COUNTIF(L64:L77,AN12) -> 0 | AP12: =AO12/(AQ4-AO11) -> 0 | AQ12: =IF(AP12=0,0,(AP12*((LOG(AP12))/LOG(2)))) -> 0 | AS12: =N12 -> 212 | AT12: =COUNTIF(L78:L91,AS12) -> 0 | AU12: =AT12/(AV4-AT11) -> 0 | AV12: =IF(AU12=0,0,(AU12*((LOG(AU12))/LOG(2)))) -> 0
A13: 12 | B13: 856 | C13: 13 | D13: 859 | E13: 13 | F13: 863 | K13: 0 | L13: 111 | N13: 221 | O13: =COUNTIF($L$7:$L$500,N13) -> 4 | P13: =O13/$Q$4 -> 0.04705882353 | Q13: =IF(P13=0,0,(P13*((LOG(P13))/LOG(2)))) -> -0.2075007499 | T13: =N13 -> 221 | U13: =COUNTIF(L7:L20,T13) -> 1 | V13: =U13/(W4-U11) -> 0.1111111111 | W13: =IF(V13=0,0,(V13*((LOG(V13))/LOG(2)))) -> -0.352213889 | Y13: =N13 -> 221 | Z13: =COUNTIF(L21:L34,Y13) -> 0 | AA13: =Z13/(AB4-Z11) -> 0 | AB13: =IF(AA13=0,0,(AA13*((LOG(AA13))/LOG(2)))) -> 0 | AD13: =N13 -> 221 | AE13: =COUNTIF(L35:L49,AD13) -> 1 | AF13: =AE13/(AG4-AE11) -> 0.1428571429 | AG13: =IF(AF13=0,0,(AF13*((LOG(AF13))/LOG(2)))) -> -0.4010507032 | AI13: =N13 -> 221 | AJ13: =COUNTIF(L50:L63,AI13) -> 0 | AK13: =AJ13/(AL4-AJ11) -> 0 | AL13: =IF(AK13=0,0,(AK13*((LOG(AK13))/LOG(2)))) -> 0 | AN13: =N13 -> 221 | AO13: =COUNTIF(L64:L77,AN13) -> 1 | AP13: =AO13/(AQ4-AO11) -> 0.1111111111 | AQ13: =IF(AP13=0,0,(AP13*((LOG(AP13))/LOG(2)))) -> -0.352213889 | AS13: =N13 -> 221 | AT13: =COUNTIF(L78:L91,AS13) -> 1 | AU13: =AT13/(AV4-AT11) -> 0.1428571429 | AV13: =IF(AU13=0,0,(AU13*((LOG(AU13))/LOG(2)))) -> -0.4010507032
A14: 21 | B14: 961 | C14: 22 | D14: 967 | E14: 13 | F14: 977 | K14: 0 | L14: 221 | N14: 222 | O14: =COUNTIF($L$7:$L$500,N14) -> 1 | P14: =O14/$Q$4 -> 0.01176470588 | Q14: =IF(P14=0,0,(P14*((LOG(P14))/LOG(2)))) -> -0.07540459925 | T14: =N14 -> 222 | U14: =COUNTIF(L7:L20,T14) -> 1 | V14: =U14/(W4-U11) -> 0.1111111111 | W14: =IF(V14=0,0,(V14*((LOG(V14))/LOG(2)))) -> -0.352213889 | Y14: =N14 -> 222 | Z14: =COUNTIF(L21:L34,Y14) -> 0 | AA14: =Z14/(AB4-Z11) -> 0 | AB14: =IF(AA14=0,0,(AA14*((LOG(AA14))/LOG(2)))) -> 0 | AD14: =N14 -> 222 | AE14: =COUNTIF(L35:L49,AD14) -> 0 | AF14: =AE14/(AG4-AE11) -> 0 | AG14: =IF(AF14=0,0,(AF14*((LOG(AF14))/LOG(2)))) -> 0 | AI14: =N14 -> 222 | AJ14: =COUNTIF(L50:L63,AI14) -> 0 | AK14: =AJ14/(AL4-AJ11) -> 0 | AL14: =IF(AK14=0,0,(AK14*((LOG(AK14))/LOG(2)))) -> 0 | AN14: =N14 -> 222 | AO14: =COUNTIF(L64:L77,AN14) -> 0 | AP14: =AO14/(AQ4-AO11) -> 0 | AQ14: =IF(AP14=0,0,(AP14*((LOG(AP14))/LOG(2)))) -> 0 | AS14: =N14 -> 222 | AT14: =COUNTIF(L78:L91,AS14) -> 0 | AU14: =AT14/(AV4-AT11) -> 0 | AV14: =IF(AU14=0,0,(AU14*((LOG(AU14))/LOG(2)))) -> 0
A15: 12 | B15: 1097 | C15: 13 | D15: 1103 | E15: 13 | F15: 1112 | K15: 0 | L15: 111 | P15: =SUM(P7:P14) -> 1 | Q15: =-SUM(Q7:Q14) -> 1.597057753 | V15: =SUM(V7:V14) -> 1 | W15: =-SUM(W7:W14) -> 1.446616668 | AA15: =SUM(AA7:AA14) -> 1 | AB15: =-SUM(AB7:AB14) -> 0.8631205686 | AF15: =SUM(AF7:AF14) -> 1 | AG15: =-SUM(AG7:AG14) -> 1.148834854 | AK15: =SUM(AK7:AK14) -> 1 | AL15: =-SUM(AL7:AL14) -> 0 | AP15: =SUM(AP7:AP14) -> 1 | AQ15: =-SUM(AQ7:AQ14) -> 0.9864267287 | AU15: =SUM(AU7:AU14) -> 1 | AV15: =-SUM(AV7:AV14) -> 1.148834854
A16: 21 | B16: 1210 | C16: 11 | D16: 1223 | E16: 11 | F16: 1235 | K16: 0 | L16: 211 | P16: U= | Q16: =Q15/(LOG(Q4)/LOG(2)) -> 0.2491746515 | V16: U1= | W16: =W15/(LOG(W4)/LOG(2)) -> 0.3799531951 | AA16: U2= | AB16: =AB15/(LOG(AB4)/LOG(2)) -> 0.226698216 | AF16: U3= | AG16: =AG15/(LOG(AG4)/LOG(2)) -> 0.2940535001 | AK16: U4= | AL16: =AL15/(LOG(AL4)/LOG(2)) -> 0 | AP16: U5= | AQ16: =AQ15/(LOG(AQ4)/LOG(2)) -> 0.2590845216 | AU16: U6= | AV16: =AV15/(LOG(AV4)/LOG(2)) -> 0.3017409403
A17: 12 | B17: 1444 | C17: 13 | D17: 1450 | E17: 13 | F17: 1460 | K17: 0 | L17: 111
A18: 21 | B18: 1555 | C18: 11 | D18: 1566 | E18: 11 | F18: 1573 | K18: 0 | L18: 211
A19: 12 | B19: 1727 | C19: 13 | D19: 1734 | E19: 13 | F19: 1742 | K19: 0 | L19: 111 | N19: Total Target Seq
A20: 21 | B20: 1840 | C20: 22 | D20: 1847 | E20: 24 | F20: 1853 | K20: 0 | L20: 222 | N20: =COUNTIF(L7:L91,G3) -> 38 | P20: 14 | Q20: 14 | R20: 15 | S20: 14 | T20: 14 | U20: 14
A21: 21 | B21: 1951 | C21: 11 | D21: 1963 | E21: 11 | F21: 1971 | K21: 0 | L21: 211 | P21: % of reinforcement given in 6 equal intervals based on number of trials
A22: 12 | B22: 2172 | C22: 13 | D22: 2179 | E22: 24 | F22: 2190 | K22: 0 | L22: 112 | P22: %_1 | Q22: %_2 | R22: %_3 | S22: %_4 | T22: %_5 | U22: %_6
A23: 21 | B23: 2294 | C23: 11 | D23: 2304 | E23: 11 | F23: 2310 | K23: 0 | L23: 211 | O23: target sequence | P23: =$G$3 -> 211 | Q23: =$G$3 -> 211 | R23: =$G$3 -> 211 | S23: =$G$3 -> 211 | T23: =$G$3 -> 211 | U23: =$G$3 -> 211
A24: 12 | B24: 2607 | C24: 13 | D24: 2611 | E24: 13 | F24: 2616 | K24: 0 | L24: 111 | O24: total reinforcement | P24: =U11 -> 5 | Q24: =Z11 -> 7 | R24: =AE11 -> 8 | S24: =AJ11 -> 6 | T24: =AO11 -> 5 | U24: =AT11 -> 7
A25: 21 | B25: 2712 | C25: 11 | D25: 2727 | E25: 11 | F25: 2735 | K25: 0 | L25: 211 | O25: % target
A26: 12 | B26: 2872 | C26: 13 | D26: 2883 | E26: 24 | F26: 2896 | K26: 0 | L26: 112 | O26: CCRF
A27: 21 | B27: 2996 | C27: 11 | D27: 3005 | E27: 11 | F27: 3013 | K27: 0 | L27: 211 | O27: % CCRf
A28: 12 | B28: 3181 | C28: 13 | D28: 3192 | E28: 13 | F28: 3200 | K28: 0 | L28: 111 | O28: average response rate | P28: =F20/P20 -> 132.3571429 | Q28: =(F34-F20)/Q20 -> 170.4285714 | R28: =(F49-F34)/R20 -> 156.2 | S28: =(F63-F49)/S20 -> 153.6428571 | T28: =(F77-F63)/T20 -> 156.2142857 | U28: =(F91-F77)/U20 -> 147.5714286
A29: 21 | B29: 3299 | C29: 11 | D29: 3314 | E29: 11 | F29: 3326 | K29: 0 | L29: 211
A30: 12 | B30: 3504 | C30: 13 | D30: 3510 | E30: 13 | F30: 3521 | K30: 0 | L30: 111
A31: 21 | B31: 3630 | C31: 11 | D31: 3639 | E31: 11 | F31: 3646 | K31: 0 | L31: 211
A32: 12 | B32: 3891 | C32: 13 | D32: 3900 | E32: 13 | F32: 3911 | K32: 0 | L32: 111
A33: 21 | B33: 4011 | C33: 11 | D33: 4022 | E33: 11 | F33: 4027 | K33: 0 | L33: 211
A34: 12 | B34: 4221 | C34: 13 | D34: 4232 | E34: 13 | F34: 4239 | K34: 0 | L34: 111
A35: 21 | B35: 4332 | C35: 11 | D35: 4347 | E35: 11 | F35: 4358 | K35: 0 | L35: 211
A36: 12 | B36: 4628 | C36: 13 | D36: 4632 | E36: 24 | F36: 4642 | K36: 0 | L36: 112
A37: 21 | B37: 4743 | C37: 11 | D37: 4757 | E37: 11 | F37: 4763 | K37: 0 | L37: 211
A38: 21 | B38: 4948 | C38: 11 | D38: 4956 | E38: 11 | F38: 4960 | K38: 0 | L38: 211
A39: 12 | B39: 5165 | C39: 13 | D39: 5170 | E39: 13 | F39: 5180 | K39: 0 | L39: 111
A40: 21 | B40: 5281 | C40: 11 | D40: 5289 | E40: 11 | F40: 5296 | K40: 0 | L40: 211
A41: 12 | B41: 5495 | C41: 13 | D41: 5504 | E41: 13 | F41: 5515 | K41: 0 | L41: 111
A42: 21 | B42: 5609 | C42: 22 | D42: 5616 | E42: 13 | F42: 5625 | K42: 0 | L42: 221
A43: 12 | B43: 5727 | C43: 13 | D43: 5731 | E43: 13 | F43: 5737 | K43: 0 | L43: 111
A44: 21 | B44: 5835 | C44: 11 | D44: 5847 | E44: 11 | F44: 5854 | K44: 0 | L44: 211
A45: 12 | B45: 6002 | C45: 13 | D45: 6005 | E45: 13 | F45: 6011 | K45: 0 | L45: 111
A46: 21 | B46: 6112 | C46: 11 | D46: 6122 | E46: 11 | F46: 6129 | K46: 0 | L46: 211
A47: 21 | B47: 6258 | C47: 11 | D47: 6267 | E47: 11 | F47: 6271 | K47: 0 | L47: 211
A48: 12 | B48: 6457 | C48: 13 | D48: 6462 | E48: 13 | F48: 6468 | K48: 0 | L48: 111
A49: 21 | B49: 6566 | C49: 11 | D49: 6576 | E49: 11 | F49: 6582 | K49: 0 | L49: 211
A50: 12 | B50: 6807 | C50: 13 | D50: 6811 | E50: 13 | F50: 6819 | K50: 0 | L50: 111
A51: 21 | B51: 6918 | C51: 11 | D51: 6927 | E51: 11 | F51: 6932 | K51: 0 | L51: 211
A52: 12 | B52: 7063 | C52: 13 | D52: 7069 | E52: 13 | F52: 7077 | K52: 0 | L52: 111
A53: 12 | B53: 7258 | C53: 13 | D53: 7263 | E53: 13 | F53: 7271 | K53: 0 | L53: 111
A54: 21 | B54: 7368 | C54: 11 | D54: 7379 | E54: 11 | F54: 7386 | K54: 0 | L54: 211
A55: 12 | B55: 7600 | C55: 13 | D55: 7605 | E55: 13 | F55: 7612 | K55: 0 | L55: 111
A56: 21 | B56: 7707 | C56: 11 | D56: 7718 | E56: 11 | F56: 7722 | K56: 0 | L56: 211
A57: 12 | B57: 7867 | C57: 13 | D57: 7869 | E57: 13 | F57: 7877 | K57: 0 | L57: 111
A58: 12 | B58: 7980 | C58: 13 | D58: 7985 | E58: 13 | F58: 7993 | K58: 0 | L58: 111
A59: 21 | B59: 8090 | C59: 11 | D59: 8102 | E59: 11 | F59: 8109 | K59: 0 | L59: 211
A60: 12 | B60: 8278 | C60: 13 | D60: 8282 | E60: 13 | F60: 8294 | K60: 0 | L60: 111
A61: 21 | B61: 8396 | C61: 11 | D61: 8408 | E61: 11 | F61: 8414 | K61: 0 | L61: 211
A62: 12 | B62: 8603 | C62: 13 | D62: 8609 | E62: 13 | F62: 8615 | K62: 0 | L62: 111
A63: 21 | B63: 8710 | C63: 11 | D63: 8726 | E63: 11 | F63: 8733 | K63: 0 | L63: 211
A64: 12 | B64: 8913 | C64: 13 | D64: 8918 | E64: 13 | F64: 8924 | K64: 0 | L64: 111
A65: 21 | B65: 9021 | C65: 22 | D65: 9028 | E65: 13 | F65: 9039 | K65: 0 | L65: 221
A66: 12 | B66: 9147 | C66: 13 | D66: 9160 | E66: 13 | F66: 9168 | K66: 0 | L66: 111
A67: 21 | B67: 9269 | C67: 11 | D67: 9279 | E67: 11 | F67: 9291 | K67: 0 | L67: 211
A68: 12 | B68: 9474 | C68: 13 | D68: 9480 | E68: 24 | F68: 9491 | K68: 0 | L68: 112
A69: 21 | B69: 9589 | C69: 11 | D69: 9600 | E69: 11 | F69: 9619 | K69: 0 | L69: 211
A70: 12 | B70: 9838 | C70: 13 | D70: 9845 | E70: 13 | F70: 9865 | K70: 0 | L70: 111
A71: 21 | B71: 9963 | C71: 11 | D71: 9972 | E71: 11 | F71: 9978 | K71: 0 | L71: 211
A72: 12 | B72: 10156 | C72: 13 | D72: 10161 | E72: 13 | F72: 10175 | K72: 0 | L72: 111
A73: 12 | B73: 10284 | C73: 13 | D73: 10290 | E73: 13 | F73: 10299 | K73: 0 | L73: 111
A74: 21 | B74: 10401 | C74: 11 | D74: 10410 | E74: 11 | F74: 10415 | K74: 0 | L74: 211
A75: 12 | B75: 10582 | C75: 13 | D75: 10587 | E75: 13 | F75: 10595 | K75: 0 | L75: 111
A76: 21 | B76: 10694 | C76: 11 | D76: 10704 | E76: 11 | F76: 10709 | K76: 0 | L76: 211
A77: 12 | B77: 10907 | C77: 13 | D77: 10914 | E77: 13 | F77: 10920 | K77: 0 | L77: 111
A78: 21 | B78: 11017 | C78: 11 | D78: 11027 | E78: 11 | F78: 11032 | K78: 0 | L78: 211
A79: 12 | B79: 11186 | C79: 13 | D79: 11190 | E79: 13 | F79: 11196 | K79: 0 | L79: 111
A80: 21 | B80: 11294 | C80: 11 | D80: 11304 | E80: 11 | F80: 11315 | K80: 0 | L80: 211
A81: 12 | B81: 11485 | C81: 13 | D81: 11491 | E81: 13 | F81: 11520 | K81: 0 | L81: 111
A82: 21 | B82: 11625 | C82: 11 | D82: 11635 | E82: 11 | F82: 11641 | K82: 0 | L82: 211
A83: 12 | B83: 11884 | C83: 13 | D83: 11892 | E83: 24 | F83: 11904 | K83: 0 | L83: 112
A84: 21 | B84: 12001 | C84: 11 | D84: 12012 | E84: 11 | F84: 12019 | K84: 0 | L84: 211
A85: 12 | B85: 12154 | C85: 13 | D85: 12157 | E85: 13 | F85: 12162 | K85: 0 | L85: 111
A86: 21 | B86: 12258 | C86: 11 | D86: 12268 | E86: 11 | F86: 12277 | K86: 0 | L86: 211
A87: 12 | B87: 12446 | C87: 13 | D87: 12450 | E87: 13 | F87: 12458 | K87: 0 | L87: 111
A88: 21 | B88: 12551 | C88: 22 | D88: 12558 | E88: 13 | F88: 12568 | K88: 0 | L88: 221
A89: 21 | B89: 12664 | C89: 11 | D89: 12679 | E89: 11 | F89: 12690 | K89: 0 | L89: 211
A90: 12 | B90: 12844 | C90: 13 | D90: 12855 | E90: 13 | F90: 12862 | K90: 0 | L90: 111
A91: 21 | B91: 12960 | C91: 11 | D91: 12975 | E91: 11 | F91: 12986 | K91: 1 | L91: 211

Sheet !M927A2D.ust
A1: Report for:!M927A2D.ust
A2: Date: | B2: <date>
A3: Hen: | B3: <hen> | F3: Correct Sequence | G3: =Start!J2 -> 211 | P3: Total Sequences in Data | Q3: =4994-COUNTBLANK(L7:L5000) -> 85 | V3: Total Sequences in Block Data | W3: =COUNTA(L7:L20) -> 14 | AA3: Total Sequences in Block Data | AB3: =COUNTA(L21:L34) -> 14 | AF3: Total Sequences in Block Data | AG3: =COUNTA(L35:L49) -> 15 | AK3: Total Sequences in Block Data | AL3: =COUNTA(L50:L63) -> 14 | AP3: Total Sequences in Block Data | AQ3: =COUNTA(L64:L77) -> 14 | AU3: Total Sequences in Block Data | AV3: =COUNTA(L78:L91) -> 14
P4: Total Sequences in Summary | Q4: =SUM(O7:O14) -> 85 | V4: Total Sequences in Block Summary | W4: =SUM(U7:U14) -> 14 | AA4: Total Sequences in Block Summary | AB4: =SUM(Z7:Z14) -> 14 | AF4: Total Sequences in Block Summary | AG4: =SUM(AE7:AE14) -> 15 | AK4: Total Sequences in Block Summary | AL4: =SUM(AJ7:AJ14) -> 14 | AP4: Total Sequences in Block Summary | AQ4: =SUM(AO7:AO14) -> 14 | AU4: Total Sequences in Block Summary | AV4: =SUM(AT7:AT14) -> 14
T5: Block 1 | Y5: Block 2 | AD5: Block 3 | AI5: Block 4 | AN5: Block 5 | AS5: Block 6
A6: Sequence Component 1 | B6: Time 1 | C6: Sequence Component 2 | D6: Time 2 | E6: Sequence Component 3 | F6: Time 3 | G6: Sequence Component 4 | H6: Time 4 | I6: Sequence Component 5 | J6: Time 5 | K6: Correct? 0=No 1=Yes | L6: Sequence | N6: Frequency | P6: Relative Frequency | Q6: Variability | T6: Frequency | V6: Relative Frequency | W6: Variability | Y6: Frequency | AA6: Relative Frequency | AB6: Variability | AD6: Frequency | AF6: Relative Frequency | AG6: Variability | AI6: Frequency | AK6: Relative Frequency | AL6: Variability | AN6: Frequency | AP6: Relative Frequency | AQ6: Variability | AS6: Frequency | AU6: Relative Frequency | AV6: Variability
A7: 12 | B7: 4 | C7: 13 | D7: 8 | E7: 13 | F7: 13 | K7: 0 | L7: 111 | N7: 111 | O7: =COUNTIF($L$7:$L$500,N7) -> 32 | P7: =O7/$Q$4 -> 0.3764705882 | Q7: =IF(P7=0,0,(P7*((LOG(P7))/LOG(2)))) -> -0.5305942348 | T7: =N7 -> 111 | U7: =COUNTIF(L7:L20,T7) -> 8 | V7: =U7/(W4-U11) -> 1 | W7: =IF(V7=0,0,(V7*((LOG(V7))/LOG(2)))) -> 0 | Y7: =N7 -> 111 | Z7: =COUNTIF(L21:L34,Y7) -> 6 | AA7: =Z7/(AB4-Z11) -> 0.8571428571 | AB7: =IF(AA7=0,0,(AA7*((LOG(AA7))/LOG(2)))) -> -0.1906220754 | AD7: =N7 -> 111 | AE7: =COUNTIF(L35:L49,AD7) -> 5 | AF7: =AE7/(AG4-AE11) -> 0.625 | AG7: =IF(AF7=0,0,(AF7*((LOG(AF7))/LOG(2)))) -> -0.4237949407 | AI7: =N7 -> 111 | AJ7: =COUNTIF(L50:L63,AI7) -> 5 | AK7: =AJ7/(AL4-AJ11) -> 0.5 | AL7: =IF(AK7=0,0,(AK7*((LOG(AK7))/LOG(2)))) -> -0.5 | AN7: =N7 -> 111 | AO7: =COUNTIF(L64:L77,AN7) -> 6 | AP7: =AO7/(AQ4-AO11) -> 0.75 | AQ7: =IF(AP7=0,0,(AP7*((LOG(AP7))/LOG(2)))) -> -0.3112781245 | AS7: =N7 -> 111 | AT7: =COUNTIF(L78:L91,AS7) -> 2 | AU7: =AT7/(AV4-AT11) -> 0.4 | AV7: =IF(AU7=0,0,(AU7*((LOG(AU7))/LOG(2)))) -> -0.528771238
A8: 12 | B8: 111 | C8: 13 | D8: 116 | E8: 13 | F8: 123 | K8: 0 | L8: 111 | N8: 112 | O8: =COUNTIF($L$7:$L$500,N8) -> 1 | P8: =O8/$Q$4 -> 0.01176470588 | Q8: =IF(P8=0,0,(P8*((LOG(P8))/LOG(2)))) -> -0.07540459925 | T8: =N8 -> 112 | U8: =COUNTIF(L7:L20,T8) -> 0 | V8: =U8/(W4-U11) -> 0 | W8: =IF(V8=0,0,(V8*((LOG(V8))/LOG(2)))) -> 0 | Y8: =N8 -> 112 | Z8: =COUNTIF(L21:L34,Y8) -> 0 | AA8: =Z8/(AB4-Z11) -> 0 | AB8: =IF(AA8=0,0,(AA8*((LOG(AA8))/LOG(2)))) -> 0 | AD8: =N8 -> 112 | AE8: =COUNTIF(L35:L49,AD8) -> 0 | AF8: =AE8/(AG4-AE11) -> 0 | AG8: =IF(AF8=0,0,(AF8*((LOG(AF8))/LOG(2)))) -> 0 | AI8: =N8 -> 112 | AJ8: =COUNTIF(L50:L63,AI8) -> 0 | AK8: =AJ8/(AL4-AJ11) -> 0 | AL8: =IF(AK8=0,0,(AK8*((LOG(AK8))/LOG(2)))) -> 0 | AN8: =N8 -> 112 | AO8: =COUNTIF(L64:L77,AN8) -> 0 | AP8: =AO8/(AQ4-AO11) -> 0 | AQ8: =IF(AP8=0,0,(AP8*((LOG(AP8))/LOG(2)))) -> 0 | AS8: =N8 -> 112 | AT8: =COUNTIF(L78:L91,AS8) -> 1 | AU8: =AT8/(AV4-AT11) -> 0.2 | AV8: =IF(AU8=0,0,(AU8*((LOG(AU8))/LOG(2)))) -> -0.464385619
A9: 21 | B9: 220 | C9: 11 | D9: 230 | E9: 11 | F9: 236 | K9: 0 | L9: 211 | N9: 121 | O9: =COUNTIF($L$7:$L$500,N9) -> 0 | P9: =O9/$Q$4 -> 0 | Q9: =IF(P9=0,0,(P9*((LOG(P9))/LOG(2)))) -> 0 | T9: =N9 -> 121 | U9: =COUNTIF(L7:L20,T9) -> 0 | V9: =U9/(W4-U11) -> 0 | W9: =IF(V9=0,0,(V9*((LOG(V9))/LOG(2)))) -> 0 | Y9: =N9 -> 121 | Z9: =COUNTIF(L21:L34,Y9) -> 0 | AA9: =Z9/(AB4-Z11) -> 0 | AB9: =IF(AA9=0,0,(AA9*((LOG(AA9))/LOG(2)))) -> 0 | AD9: =N9 -> 121 | AE9: =COUNTIF(L35:L49,AD9) -> 0 | AF9: =AE9/(AG4-AE11) -> 0 | AG9: =IF(AF9=0,0,(AF9*((LOG(AF9))/LOG(2)))) -> 0 | AI9: =N9 -> 121 | AJ9: =COUNTIF(L50:L63,AI9) -> 0 | AK9: =AJ9/(AL4-AJ11) -> 0 | AL9: =IF(AK9=0,0,(AK9*((LOG(AK9))/LOG(2)))) -> 0 | AN9: =N9 -> 121 | AO9: =COUNTIF(L64:L77,AN9) -> 0 | AP9: =AO9/(AQ4-AO11) -> 0 | AQ9: =IF(AP9=0,0,(AP9*((LOG(AP9))/LOG(2)))) -> 0 | AS9: =N9 -> 121 | AT9: =COUNTIF(L78:L91,AS9) -> 0 | AU9: =AT9/(AV4-AT11) -> 0 | AV9: =IF(AU9=0,0,(AU9*((LOG(AU9))/LOG(2)))) -> 0
A10: 12 | B10: 383 | C10: 13 | D10: 388 | E10: 13 | F10: 401 | K10: 0 | L10: 111 | N10: 122 | O10: =COUNTIF($L$7:$L$500,N10) -> 0 | P10: =O10/$Q$4 -> 0 | Q10: =IF(P10=0,0,(P10*((LOG(P10))/LOG(2)))) -> 0 | T10: =N10 -> 122 | U10: =COUNTIF(L7:L20,T10) -> 0 | V10: =U10/(W4-U11) -> 0 | W10: =IF(V10=0,0,(V10*((LOG(V10))/LOG(2)))) -> 0 | Y10: =N10 -> 122 | Z10: =COUNTIF(L21:L34,Y10) -> 0 | AA10: =Z10/(AB4-Z11) -> 0 | AB10: =IF(AA10=0,0,(AA10*((LOG(AA10))/LOG(2)))) -> 0 | AD10: =N10 -> 122 | AE10: =COUNTIF(L35:L49,AD10) -> 0 | AF10: =AE10/(AG4-AE11) -> 0 | AG10: =IF(AF10=0,0,(AF10*((LOG(AF10))/LOG(2)))) -> 0 | AI10: =N10 -> 122 | AJ10: =COUNTIF(L50:L63,AI10) -> 0 | AK10: =AJ10/(AL4-AJ11) -> 0 | AL10: =IF(AK10=0,0,(AK10*((LOG(AK10))/LOG(2)))) -> 0 | AN10: =N10 -> 122 | AO10: =COUNTIF(L64:L77,AN10) -> 0 | AP10: =AO10/(AQ4-AO11) -> 0 | AQ10: =IF(AP10=0,0,(AP10*((LOG(AP10))/LOG(2)))) -> 0 | AS10: =N10 -> 122 | AT10: =COUNTIF(L78:L91,AS10) -> 0 | AU10: =AT10/(AV4-AT11) -> 0 | AV10: =IF(AU10=0,0,(AU10*((LOG(AU10))/LOG(2)))) -> 0
A11: 21 | B11: 501 | C11: 11 | D11: 512 | E11: 11 | F11: 517 | K11: 0 | L11: 211 | N11: 211 | O11: =COUNTIF($L$7:$L$500,N11) -> 39 | P11: =O11/$Q$4 -> 0.4588235294 | Q11: =IF(P11=0,0,(P11*((LOG(P11))/LOG(2)))) -> -0.5157124703 | T11: =N11 -> 211 | U11: =COUNTIF(L7:L20,T11) -> 6 | Y11: =N11 -> 211 | Z11: =COUNTIF(L21:L34,Y11) -> 7 | AD11: =N11 -> 211 | AE11: =COUNTIF(L35:L49,AD11) -> 7 | AI11: =N11 -> 211 | AJ11: =COUNTIF(L50:L63,AI11) -> 4 | AN11: =N11 -> 211 | AO11: =COUNTIF(L64:L77,AN11) -> 6 | AS11: =N11 -> 211 | AT11: =COUNTIF(L78:L91,AS11) -> 9
A12: 12 | B12: 692 | C12: 13 | D12: 696 | E12: 13 | F12: 701 | K12: 0 | L12: 111 | N12: 212 | O12: =COUNTIF($L$7:$L$500,N12) -> 0 | P12: =O12/$Q$4 -> 0 | Q12: =IF(P12=0,0,(P12*((LOG(P12))/LOG(2)))) -> 0 | T12: =N12 -> 212 | U12: =COUNTIF(L7:L20,T12) -> 0 | V12: =U12/(W4-U11) -> 0 | W12: =IF(V12=0,0,(V12*((LOG(V12))/LOG(2)))) -> 0 | Y12: =N12 -> 212 | Z12: =COUNTIF(L21:L34,Y12) -> 0 | AA12: =Z12/(AB4-Z11) -> 0 | AB12: =IF(AA12=0,0,(AA12*((LOG(AA12))/LOG(2)))) -> 0 | AD12: =N12 -> 212 | AE12: =COUNTIF(L35:L49,AD12) -> 0 | AF12: =AE12/(AG4-AE11) -> 0 | AG12: =IF(AF12=0,0,(AF12*((LOG(AF12))/LOG(2)))) -> 0 | AI12: =N12 -> 212 | AJ12: =COUNTIF(L50:L63,AI12) -> 0 | AK12: =AJ12/(AL4-AJ11) -> 0 | AL12: =IF(AK12=0,0,(AK12*((LOG(AK12))/LOG(2)))) -> 0 | AN12: =N12 -> 212 | AO12: =COUNTIF(L64:L77,AN12) -> 0 | AP12: =AO12/(AQ4-AO11) -> 0 | AQ12: =IF(AP12=0,0,(AP12*((LOG(AP12))/LOG(2)))) -> 0 | AS12: =N12 -> 212 | AT12: =COUNTIF(L78:L91,AS12) -> 0 | AU12: =AT12/(AV4-AT11) -> 0 | AV12: =IF(AU12=0,0,(AU12*((LOG(AU12))/LOG(2)))) -> 0
A13: 21 | B13: 808 | C13: 11 | D13: 821 | E13: 11 | F13: 827 | K13: 0 | L13: 211 | N13: 221 | O13: =COUNTIF($L$7:$L$500,N13) -> 11 | P13: =O13/$Q$4 -> 0.1294117647 | Q13: =IF(P13=0,0,(P13*((LOG(P13))/LOG(2)))) -> -0.3817594411 | T13: =N13 -> 221 | U13: =COUNTIF(L7:L20,T13) -> 0 | V13: =U13/(W4-U11) -> 0 | W13: =IF(V13=0,0,(V13*((LOG(V13))/LOG(2)))) -> 0 | Y13: =N13 -> 221 | Z13: =COUNTIF(L21:L34,Y13) -> 1 | AA13: =Z13/(AB4-Z11) -> 0.1428571429 | AB13: =IF(AA13=0,0,(AA13*((LOG(AA13))/LOG(2)))) -> -0.4010507032 | AD13: =N13 -> 221 | AE13: =COUNTIF(L35:L49,AD13) -> 2 | AF13: =AE13/(AG4-AE11) -> 0.25 | AG13: =IF(AF13=0,0,(AF13*((LOG(AF13))/LOG(2)))) -> -0.5 | AI13: =N13 -> 221 | AJ13: =COUNTIF(L50:L63,AI13) -> 5 | AK13: =AJ13/(AL4-AJ11) -> 0.5 | AL13: =IF(AK13=0,0,(AK13*((LOG(AK13))/LOG(2)))) -> -0.5 | AN13: =N13 -> 221 | AO13: =COUNTIF(L64:L77,AN13) -> 2 | AP13: =AO13/(AQ4-AO11) -> 0.25 | AQ13: =IF(AP13=0,0,(AP13*((LOG(AP13))/LOG(2)))) -> -0.5 | AS13: =N13 -> 221 | AT13: =COUNTIF(L78:L91,AS13) -> 1 | AU13: =AT13/(AV4-AT11) -> 0.2 | AV13: =IF(AU13=0,0,(AU13*((LOG(AU13))/LOG(2)))) -> -0.464385619
A14: 12 | B14: 979 | C14: 13 | D14: 982 | E14: 13 | F14: 988 | K14: 0 | L14: 111 | N14: 222 | O14: =COUNTIF($L$7:$L$500,N14) -> 2 | P14: =O14/$Q$4 -> 0.02352941176 | Q14: =IF(P14=0,0,(P14*((LOG(P14))/LOG(2)))) -> -0.1272797867 | T14: =N14 -> 222 | U14: =COUNTIF(L7:L20,T14) -> 0 | V14: =U14/(W4-U11) -> 0 | W14: =IF(V14=0,0,(V14*((LOG(V14))/LOG(2)))) -> 0 | Y14: =N14 -> 222 | Z14: =COUNTIF(L21:L34,Y14) -> 0 | AA14: =Z14/(AB4-Z11) -> 0 | AB14: =IF(AA14=0,0,(AA14*((LOG(AA14))/LOG(2)))) -> 0 | AD14: =N14 -> 222 | AE14: =COUNTIF(L35:L49,AD14) -> 1 | AF14: =AE14/(AG4-AE11) -> 0.125 | AG14: =IF(AF14=0,0,(AF14*((LOG(AF14))/LOG(2)))) -> -0.375 | AI14: =N14 -> 222 | AJ14: =COUNTIF(L50:L63,AI14) -> 0 | AK14: =AJ14/(AL4-AJ11) -> 0 | AL14: =IF(AK14=0,0,(AK14*((LOG(AK14))/LOG(2)))) -> 0 | AN14: =N14 -> 222 | AO14: =COUNTIF(L64:L77,AN14) -> 0 | AP14: =AO14/(AQ4-AO11) -> 0 | AQ14: =IF(AP14=0,0,(AP14*((LOG(AP14))/LOG(2)))) -> 0 | AS14: =N14 -> 222 | AT14: =COUNTIF(L78:L91,AS14) -> 1 | AU14: =AT14/(AV4-AT11) -> 0.2 | AV14: =IF(AU14=0,0,(AU14*((LOG(AU14))/LOG(2)))) -> -0.464385619
A15: 12 | B15: 1098 | C15: 13 | D15: 1103 | E15: 13 | F15: 1108 | K15: 0 | L15: 111 | P15: =SUM(P7:P14) -> 1 | Q15: =-SUM(Q7:Q14) -> 1.630750532 | V15: =SUM(V7:V14) -> 1 | W15: =-SUM(W7:W14) -> 0 | AA15: =SUM(AA7:AA14) -> 1 | AB15: =-SUM(AB7:AB14) -> 0.5916727786 | AF15: =SUM(AF7:AF14) -> 1 | AG15: =-SUM(AG7:AG14) -> 1.298794941 | AK15: =SUM(AK7:AK14) -> 1 | AL15: =-SUM(AL7:AL14) -> 1 | AP15: =SUM(AP7:AP14) -> 1 | AQ15: =-SUM(AQ7:AQ14) -> 0.8112781245 | AU15: =SUM(AU7:AU14) -> 1 | AV15: =-SUM(AV7:AV14) -> 1.921928095
A16: 21 | B16: 1203 | C16: 11 | D16: 1212 | E16: 11 | F16: 1217 | K16: 0 | L16: 211 | P16: U= | Q16: =Q15/(LOG(Q4)/LOG(2)) -> 0.2544314348 | V16: U1= | W16: =W15/(LOG(W4)/LOG(2)) -> 0 | AA16: U2= | AB16: =AB15/(LOG(AB4)/LOG(2)) -> 0.1554025802 | AF16: U3= | AG16: =AG15/(LOG(AG4)/LOG(2)) -> 0.3324369877 | AK16: U4= | AL16: =AL15/(LOG(AL4)/LOG(2)) -> 0.262649535 | AP16: U5= | AQ16: =AQ15/(LOG(AQ4)/LOG(2)) -> 0.2130818222 | AU16: U6= | AV16: =AV15/(LOG(AV4)/LOG(2)) -> 0.5047935205
A17: 12 | B17: 1347 | C17: 13 | D17: 1350 | E17: 13 | F17: 1355 | K17: 0 | L17: 111
A18: 21 | B18: 1456 | C18: 11 | D18: 1464 | E18: 11 | F18: 1470 | K18: 0 | L18: 211
A19: 12 | B19: 1684 | C19: 13 | D19: 1687 | E19: 13 | F19: 1692 | K19: 0 | L19: 111 | N19: Total Target Seq
A20: 21 | B20: 1795 | C20: 11 | D20: 1802 | E20: 11 | F20: 1806 | K20: 0 | L20: 211 | N20: =COUNTIF(L7:L91,G3) -> 39 | P20: 14 | Q20: 14 | R20: 15 | S20: 14 | T20: 14 | U20: 14
A21: 12 | B21: 1981 | C21: 13 | D21: 1983 | E21: 13 | F21: 1987 | K21: 0 | L21: 111 | P21: % of reinforcement given in 6 equal intervals based on number of trials
A22: 21 | B22: 2082 | C22: 11 | D22: 2092 | E22: 11 | F22: 2098 | K22: 0 | L22: 211 | P22: %_1 | Q22: %_2 | R22: %_3 | S22: %_4 | T22: %_5 | U22: %_6
A23: 12 | B23: 2227 | C23: 13 | D23: 2231 | E23: 13 | F23: 2237 | K23: 0 | L23: 111 | O23: target sequence | P23: =$G$3 -> 211 | Q23: =$G$3 -> 211 | R23: =$G$3 -> 211 | S23: =$G$3 -> 211 | T23: =$G$3 -> 211 | U23: =$G$3 -> 211
A24: 21 | B24: 2339 | C24: 11 | D24: 2348 | E24: 11 | F24: 2354 | K24: 0 | L24: 211 | O24: total reinforcement | P24: =U11 -> 6 | Q24: =Z11 -> 7 | R24: =AE11 -> 7 | S24: =AJ11 -> 4 | T24: =AO11 -> 6 | U24: =AT11 -> 9
A25: 12 | B25: 2510 | C25: 13 | D25: 2515 | E25: 13 | F25: 2521 | K25: 0 | L25: 111 | O25: % target
A26: 21 | B26: 2618 | C26: 11 | D26: 2628 | E26: 11 | F26: 2633 | K26: 0 | L26: 211 | O26: CCRF
A27: 12 | B27: 2758 | C27: 13 | D27: 2762 | E27: 13 | F27: 2768 | K27: 0 | L27: 111 | O27: % CCRf
A28: 21 | B28: 2867 | C28: 11 | D28: 2877 | E28: 11 | F28: 2882 | K28: 0 | L28: 211 | O28: average response rate | P28: =F20/P20 -> 129 | Q28: =(F34-F20)/Q20 -> 143.3571429 | R28: =(F49-F34)/R20 -> 154.3333333 | S28: =(F63-F49)/S20 -> 131.5714286 | T28: =(F77-F63)/T20 -> 138.5 | U28: =(F91-F77)/U20 -> 153.7142857
A29: 12 | B29: 2996 | C29: 13 | D29: 3001 | E29: 13 | F29: 3007 | K29: 0 | L29: 111
A30: 21 | B30: 3106 | C30: 11 | D30: 3116 | E30: 11 | F30: 3120 | K30: 0 | L30: 211
A31: 21 | B31: 3329 | C31: 22 | D31: 3330 | E31: 13 | F31: 3340 | K31: 0 | L31: 221
A32: 12 | B32: 3510 | C32: 13 | D32: 3515 | E32: 13 | F32: 3522 | K32: 0 | L32: 111
A33: 21 | B33: 3617 | C33: 11 | D33: 3627 | E33: 11 | F33: 3633 | K33: 0 | L33: 211
A34: 21 | B34: 3801 | C34: 11 | D34: 3809 | E34: 11 | F34: 3813 | K34: 0 | L34: 211
A35: 12 | B35: 3998 | C35: 13 | D35: 4004 | E35: 13 | F35: 4016 | K35: 0 | L35: 111
A36: 21 | B36: 4113 | C36: 11 | D36: 4122 | E36: 11 | F36: 4128 | K36: 0 | L36: 211
A37: 12 | B37: 4329 | C37: 13 | D37: 4340 | E37: 13 | F37: 4351 | K37: 0 | L37: 111
A38: 21 | B38: 4454 | C38: 11 | D38: 4462 | E38: 11 | F38: 4467 | K38: 0 | L38: 211
A39: 12 | B39: 4692 | C39: 13 | D39: 4696 | E39: 13 | F39: 4705 | K39: 0 | L39: 111
A40: 21 | B40: 4805 | C40: 11 | D40: 4814 | E40: 11 | F40: 4821 | K40: 0 | L40: 211
A41: 21 | B41: 4966 | C41: 11 | D41: 4976 | E41: 11 | F41: 4994 | K41: 0 | L41: 211
A42: 12 | B42: 5215 | C42: 13 | D42: 5220 | E42: 13 | F42: 5233 | K42: 0 | L42: 111
A43: 21 | B43: 5326 | C43: 22 | D43: 5329 | E43: 24 | F43: 5338 | K43: 0 | L43: 222
A44: 21 | B44: 5436 | C44: 11 | D44: 5446 | E44: 11 | F44: 5450 | K44: 0 | L44: 211
A45: 21 | B45: 5557 | C45: 11 | D45: 5566 | E45: 11 | F45: 5570 | K45: 0 | L45: 211
A46: 21 | B46: 5716 | C46: 11 | D46: 5724 | E46: 11 | F46: 5728 | K46: 0 | L46: 211
A47: 12 | B47: 5900 | C47: 13 | D47: 5904 | E47: 13 | F47: 5909 | K47: 0 | L47: 111
A48: 21 | B48: 6001 | C48: 22 | D48: 6007 | E48: 13 | F48: 6016 | K48: 0 | L48: 221
A49: 21 | B49: 6113 | C49: 22 | D49: 6120 | E49: 13 | F49: 6128 | K49: 0 | L49: 221
A50: 21 | B50: 6221 | C50: 22 | D50: 6229 | E50: 13 | F50: 6243 | K50: 0 | L50: 221
A51: 21 | B51: 6341 | C51: 22 | D51: 6348 | E51: 13 | F51: 6357 | K51: 0 | L51: 221
A52: 21 | B52: 6449 | C52: 22 | D52: 6455 | E52: 13 | F52: 6466 | K52: 0 | L52: 221
A53: 21 | B53: 6566 | C53: 22 | D53: 6569 | E53: 13 | F53: 6582 | K53: 0 | L53: 221
A54: 21 | B54: 6678 | C54: 22 | D54: 6682 | E54: 13 | F54: 6691 | K54: 0 | L54: 221
A55: 21 | B55: 6788 | C55: 11 | D55: 6803 | E55: 11 | F55: 6809 | K55: 0 | L55: 211
A56: 12 | B56: 6956 | C56: 13 | D56: 6962 | E56: 13 | F56: 6968 | K56: 0 | L56: 111
A57: 21 | B57: 7072 | C57: 11 | D57: 7081 | E57: 11 | F57: 7091 | K57: 0 | L57: 211
A58: 12 | B58: 7246 | C58: 13 | D58: 7252 | E58: 13 | F58: 7266 | K58: 0 | L58: 111
A59: 21 | B59: 7365 | C59: 11 | D59: 7374 | E59: 11 | F59: 7381 | K59: 0 | L59: 211
A60: 12 | B60: 7514 | C60: 13 | D60: 7520 | E60: 13 | F60: 7529 | K60: 0 | L60: 111
A61: 21 | B61: 7633 | C61: 11 | D61: 7649 | E61: 11 | F61: 7653 | K61: 0 | L61: 211
A62: 12 | B62: 7829 | C62: 13 | D62: 7832 | E62: 13 | F62: 7839 | K62: 0 | L62: 111
A63: 12 | B63: 7946 | C63: 13 | D63: 7956 | E63: 13 | F63: 7970 | K63: 0 | L63: 111
A64: 21 | B64: 8067 | C64: 11 | D64: 8077 | E64: 11 | F64: 8082 | K64: 0 | L64: 211
A65: 21 | B65: 8188 | C65: 11 | D65: 8199 | E65: 11 | F65: 8206 | K65: 0 | L65: 211
A66: 12 | B66: 8372 | C66: 13 | D66: 8377 | E66: 13 | F66: 8383 | K66: 0 | L66: 111
A67: 21 | B67: 8478 | C67: 11 | D67: 8489 | E67: 11 | F67: 8494 | K67: 0 | L67: 211
A68: 12 | B68: 8649 | C68: 13 | D68: 8654 | E68: 13 | F68: 8672 | K68: 0 | L68: 111
A69: 21 | B69: 8775 | C69: 11 | D69: 8784 | E69: 11 | F69: 8789 | K69: 0 | L69: 211
A70: 12 | B70: 8946 | C70: 13 | D70: 8950 | E70: 13 | F70: 8958 | K70: 0 | L70: 111
A71: 21 | B71: 9051 | C71: 22 | D71: 9057 | E71: 13 | F71: 9065 | K71: 0 | L71: 221
A72: 21 | B72: 9166 | C72: 11 | D72: 9176 | E72: 11 | F72: 9184 | K72: 0 | L72: 211
A73: 21 | B73: 9324 | C73: 11 | D73: 9333 | E73: 11 | F73: 9337 | K73: 0 | L73: 211
A74: 12 | B74: 9551 | C74: 13 | D74: 9556 | E74: 13 | F74: 9569 | K74: 0 | L74: 111
A75: 12 | B75: 9672 | C75: 13 | D75: 9676 | E75: 13 | F75: 9689 | K75: 0 | L75: 111
A76: 12 | B76: 9794 | C76: 13 | D76: 9798 | E76: 13 | F76: 9804 | K76: 0 | L76: 111
A77: 21 | B77: 9896 | C77: 22 | D77: 9901 | E77: 13 | F77: 9909 | K77: 0 | L77: 221
A78: 21 | B78: 10014 | C78: 11 | D78: 10025 | E78: 11 | F78: 10029 | K78: 0 | L78: 211
A79: 21 | B79: 10150 | C79: 22 | D79: 10152 | E79: 13 | F79: 10160 | K79: 0 | L79: 221
A80: 21 | B80: 10256 | C80: 22 | D80: 10261 | E80: 24 | F80: 10264 | K80: 0 | L80: 222
A81: 12 | B81: 10372 | C81: 13 | D81: 10377 | E81: 24 | F81: 10386 | K81: 0 | L81: 112
A82: 21 | B82: 10485 | C82: 11 | D82: 10499 | E82: 11 | F82: 10507 | K82: 0 | L82: 211
A83: 21 | B83: 10697 | C83: 11 | D83: 10706 | E83: 11 | F83: 10720 | K83: 0 | L83: 211
A84: 12 | B84: 10905 | C84: 13 | D84: 10910 | E84: 13 | F84: 10920 | K84: 0 | L84: 111
A85: 12 | B85: 11028 | C85: 13 | D85: 11032 | E85: 13 | F85: 11038 | K85: 0 | L85: 111
A86: 21 | B86: 11138 | C86: 11 | D86: 11148 | E86: 11 | F86: 11154 | K86: 0 | L86: 211
A87: 21 | B87: 11314 | C87: 11 | D87: 11323 | E87: 11 | F87: 11331 | K87: 0 | L87: 211
A88: 21 | B88: 11530 | C88: 11 | D88: 11542 | E88: 11 | F88: 11550 | K88: 0 | L88: 211
A89: 21 | B89: 11715 | C89: 11 | D89: 11724 | E89: 11 | F89: 11727 | K89: 0 | L89: 211
A90: 21 | B90: 11908 | C90: 11 | D90: 11916 | E90: 11 | F90: 11920 | K90: 0 | L90: 211
A91: 21 | B91: 12049 | C91: 11 | D91: 12057 | E91: 11 | F91: 12061 | K91: 1 | L91: 211

Sheet !M92891D.ust
A1: Report for:!M92891D.ust
A2: Date: | B2: <date>
A3: Hen: | B3: <hen> | F3: Correct Sequence | G3: =Start!J2 -> 211 | P3: Total Sequences in Data | Q3: =4994-COUNTBLANK(L7:L5000) -> 74 | V3: Total Sequences in Block Data | W3: =COUNTA(L7:L18) -> 12 | AA3: Total Sequences in Block Data | AB3: =COUNTA(L19:L31) -> 13 | AF3: Total Sequences in Block Data | AG3: =COUNTA(L32:L43) -> 12 | AK3: Total Sequences in Block Data | AL3: =COUNTA(L44:L55) -> 12 | AP3: Total Sequences in Block Data | AQ3: =COUNTA(L56:L68) -> 13 | AU3: Total Sequences in Block Data | AV3: =COUNTA(L69:L80) -> 12
P4: Total Sequences in Summary | Q4: =SUM(O7:O14) -> 74 | V4: Total Sequences in Block Summary | W4: =SUM(U7:U14) -> 12 | AA4: Total Sequences in Block Summary | AB4: =SUM(Z7:Z14) -> 13 | AF4: Total Sequences in Block Summary | AG4: =SUM(AE7:AE14) -> 12 | AK4: Total Sequences in Block Summary | AL4: =SUM(AJ7:AJ14) -> 12 | AP4: Total Sequences in Block Summary | AQ4: =SUM(AO7:AO14) -> 13 | AU4: Total Sequences in Block Summary | AV4: =SUM(AT7:AT14) -> 12
T5: Block 1 | Y5: Block 2 | AD5: Block 3 | AI5: Block 4 | AN5: Block 5 | AS5: Block 6
A6: Sequence Component 1 | B6: Time 1 | C6: Sequence Component 2 | D6: Time 2 | E6: Sequence Component 3 | F6: Time 3 | G6: Sequence Component 4 | H6: Time 4 | I6: Sequence Component 5 | J6: Time 5 | K6: Correct? 0=No 1=Yes | L6: Sequence | N6: Frequency | P6: Relative Frequency | Q6: Variability | T6: Frequency | V6: Relative Frequency | W6: Variability | Y6: Frequency | AA6: Relative Frequency | AB6: Variability | AD6: Frequency | AF6: Relative Frequency | AG6: Variability | AI6: Frequency | AK6: Relative Frequency | AL6: Variability | AN6: Frequency | AP6: Relative Frequency | AQ6: Variability | AS6: Frequency | AU6: Relative Frequency | AV6: Variability
A7: 12 | B7: 6 | C7: 13 | D7: 11 | E7: 13 | F7: 17 | K7: 0 | L7: 111 | N7: 111 | O7: =COUNTIF($L$7:$L$500,N7) -> 28 | P7: =O7/$Q$4 -> 0.3783783784 | Q7: =IF(P7=0,0,(P7*((LOG(P7))/LOG(2)))) -> -0.5305237354 | T7: =N7 -> 111 | U7: =COUNTIF(L7:L18,T7) -> 5 | V7: =U7/(W4-U11) -> 0.7142857143 | W7: =IF(V7=0,0,(V7*((LOG(V7))/LOG(2)))) -> -0.346733448 | Y7: =N7 -> 111 | Z7: =COUNTIF(L19:L31,Y7) -> 4 | AA7: =Z7/(AB4-Z11) -> 1 | AB7: =IF(AA7=0,0,(AA7*((LOG(AA7))/LOG(2)))) -> 0 | AD7: =N7 -> 111 | AE7: =COUNTIF(L32:L43,AD7) -> 6 | AF7: =AE7/(AG4-AE11) -> 1 | AG7: =IF(AF7=0,0,(AF7*((LOG(AF7))/LOG(2)))) -> 0 | AI7: =N7 -> 111 | AJ7: =COUNTIF(L44:L55,AI7) -> 4 | AK7: =AJ7/(AL4-AJ11) -> 0.8 | AL7: =IF(AK7=0,0,(AK7*((LOG(AK7))/LOG(2)))) -> -0.2575424759 | AN7: =N7 -> 111 | AO7: =COUNTIF(L56:L68,AN7) -> 6 | AP7: =AO7/(AQ4-AO11) -> 1 | AQ7: =IF(AP7=0,0,(AP7*((LOG(AP7))/LOG(2)))) -> 0 | AS7: =N7 -> 111 | AT7: =COUNTIF(L69:L80,AS7) -> 3 | AU7: =AT7/(AV4-AT11) -> 0.4285714286 | AV7: =IF(AU7=0,0,(AU7*((LOG(AU7))/LOG(2)))) -> -0.5238824663
A8: 21 | B8: 113 | C8: 11 | D8: 122 | E8: 11 | F8: 126 | K8: 0 | L8: 211 | N8: 112 | O8: =COUNTIF($L$7:$L$500,N8) -> 1 | P8: =O8/$Q$4 -> 0.01351351351 | Q8: =IF(P8=0,0,(P8*((LOG(P8))/LOG(2)))) -> -0.08391153197 | T8: =N8 -> 112 | U8: =COUNTIF(L7:L18,T8) -> 0 | V8: =U8/(W4-U11) -> 0 | W8: =IF(V8=0,0,(V8*((LOG(V8))/LOG(2)))) -> 0 | Y8: =N8 -> 112 | Z8: =COUNTIF(L19:L31,Y8) -> 0 | AA8: =Z8/(AB4-Z11) -> 0 | AB8: =IF(AA8=0,0,(AA8*((LOG(AA8))/LOG(2)))) -> 0 | AD8: =N8 -> 112 | AE8: =COUNTIF(L32:L43,AD8) -> 0 | AF8: =AE8/(AG4-AE11) -> 0 | AG8: =IF(AF8=0,0,(AF8*((LOG(AF8))/LOG(2)))) -> 0 | AI8: =N8 -> 112 | AJ8: =COUNTIF(L44:L55,AI8) -> 0 | AK8: =AJ8/(AL4-AJ11) -> 0 | AL8: =IF(AK8=0,0,(AK8*((LOG(AK8))/LOG(2)))) -> 0 | AN8: =N8 -> 112 | AO8: =COUNTIF(L56:L68,AN8) -> 0 | AP8: =AO8/(AQ4-AO11) -> 0 | AQ8: =IF(AP8=0,0,(AP8*((LOG(AP8))/LOG(2)))) -> 0 | AS8: =N8 -> 112 | AT8: =COUNTIF(L69:L80,AS8) -> 1 | AU8: =AT8/(AV4-AT11) -> 0.1428571429 | AV8: =IF(AU8=0,0,(AU8*((LOG(AU8))/LOG(2)))) -> -0.4010507032
A9: 12 | B9: 288 | C9: 13 | D9: 292 | E9: 13 | F9: 299 | K9: 0 | L9: 111 | N9: 121 | O9: =COUNTIF($L$7:$L$500,N9) -> 0 | P9: =O9/$Q$4 -> 0 | Q9: =IF(P9=0,0,(P9*((LOG(P9))/LOG(2)))) -> 0 | T9: =N9 -> 121 | U9: =COUNTIF(L7:L18,T9) -> 0 | V9: =U9/(W4-U11) -> 0 | W9: =IF(V9=0,0,(V9*((LOG(V9))/LOG(2)))) -> 0 | Y9: =N9 -> 121 | Z9: =COUNTIF(L19:L31,Y9) -> 0 | AA9: =Z9/(AB4-Z11) -> 0 | AB9: =IF(AA9=0,0,(AA9*((LOG(AA9))/LOG(2)))) -> 0 | AD9: =N9 -> 121 | AE9: =COUNTIF(L32:L43,AD9) -> 0 | AF9: =AE9/(AG4-AE11) -> 0 | AG9: =IF(AF9=0,0,(AF9*((LOG(AF9))/LOG(2)))) -> 0 | AI9: =N9 -> 121 | AJ9: =COUNTIF(L44:L55,AI9) -> 0 | AK9: =AJ9/(AL4-AJ11) -> 0 | AL9: =IF(AK9=0,0,(AK9*((LOG(AK9))/LOG(2)))) -> 0 | AN9: =N9 -> 121 | AO9: =COUNTIF(L56:L68,AN9) -> 0 | AP9: =AO9/(AQ4-AO11) -> 0 | AQ9: =IF(AP9=0,0,(AP9*((LOG(AP9))/LOG(2)))) -> 0 | AS9: =N9 -> 121 | AT9: =COUNTIF(L69:L80,AS9) -> 0 | AU9: =AT9/(AV4-AT11) -> 0 | AV9: =IF(AU9=0,0,(AU9*((LOG(AU9))/LOG(2)))) -> 0
A10: 21 | B10: 399 | C10: 11 | D10: 409 | E10: 11 | F10: 419 | K10: 0 | L10: 211 | N10: 122 | O10: =COUNTIF($L$7:$L$500,N10) -> 0 | P10: =O10/$Q$4 -> 0 | Q10: =IF(P10=0,0,(P10*((LOG(P10))/LOG(2)))) -> 0 | T10: =N10 -> 122 | U10: =COUNTIF(L7:L18,T10) -> 0 | V10: =U10/(W4-U11) -> 0 | W10: =IF(V10=0,0,(V10*((LOG(V10))/LOG(2)))) -> 0 | Y10: =N10 -> 122 | Z10: =COUNTIF(L19:L31,Y10) -> 0 | AA10: =Z10/(AB4-Z11) -> 0 | AB10: =IF(AA10=0,0,(AA10*((LOG(AA10))/LOG(2)))) -> 0 | AD10: =N10 -> 122 | AE10: =COUNTIF(L32:L43,AD10) -> 0 | AF10: =AE10/(AG4-AE11) -> 0 | AG10: =IF(AF10=0,0,(AF10*((LOG(AF10))/LOG(2)))) -> 0 | AI10: =N10 -> 122 | AJ10: =COUNTIF(L44:L55,AI10) -> 0 | AK10: =AJ10/(AL4-AJ11) -> 0 | AL10: =IF(AK10=0,0,(AK10*((LOG(AK10))/LOG(2)))) -> 0 | AN10: =N10 -> 122 | AO10: =COUNTIF(L56:L68,AN10) -> 0 | AP10: =AO10/(AQ4-AO11) -> 0 | AQ10: =IF(AP10=0,0,(AP10*((LOG(AP10))/LOG(2)))) -> 0 | AS10: =N10 -> 122 | AT10: =COUNTIF(L69:L80,AS10) -> 0 | AU10: =AT10/(AV4-AT11) -> 0 | AV10: =IF(AU10=0,0,(AU10*((LOG(AU10))/LOG(2)))) -> 0
A11: 21 | B11: 586 | C11: 11 | D11: 599 | E11: 11 | F11: 604 | K11: 0 | L11: 211 | N11: 211 | O11: =COUNTIF($L$7:$L$500,N11) -> 39 | P11: =O11/$Q$4 -> 0.527027027 | Q11: =IF(P11=0,0,(P11*((LOG(P11))/LOG(2)))) -> -0.4869999287 | T11: =N11 -> 211 | U11: =COUNTIF(L7:L18,T11) -> 5 | Y11: =N11 -> 211 | Z11: =COUNTIF(L19:L31,Y11) -> 9 | AD11: =N11 -> 211 | AE11: =COUNTIF(L32:L43,AD11) -> 6 | AI11: =N11 -> 211 | AJ11: =COUNTIF(L44:L55,AI11) -> 7 | AN11: =N11 -> 211 | AO11: =COUNTIF(L56:L68,AN11) -> 7 | AS11: =N11 -> 211 | AT11: =COUNTIF(L69:L80,AS11) -> 5
A12: 12 | B12: 768 | C12: 13 | D12: 773 | E12: 13 | F12: 779 | K12: 0 | L12: 111 | N12: 212 | O12: =COUNTIF($L$7:$L$500,N12) -> 0 | P12: =O12/$Q$4 -> 0 | Q12: =IF(P12=0,0,(P12*((LOG(P12))/LOG(2)))) -> 0 | T12: =N12 -> 212 | U12: =COUNTIF(L7:L18,T12) -> 0 | V12: =U12/(W4-U11) -> 0 | W12: =IF(V12=0,0,(V12*((LOG(V12))/LOG(2)))) -> 0 | Y12: =N12 -> 212 | Z12: =COUNTIF(L19:L31,Y12) -> 0 | AA12: =Z12/(AB4-Z11) -> 0 | AB12: =IF(AA12=0,0,(AA12*((LOG(AA12))/LOG(2)))) -> 0 | AD12: =N12 -> 212 | AE12: =COUNTIF(L32:L43,AD12) -> 0 | AF12: =AE12/(AG4-AE11) -> 0 | AG12: =IF(AF12=0,0,(AF12*((LOG(AF12))/LOG(2)))) -> 0 | AI12: =N12 -> 212 | AJ12: =COUNTIF(L44:L55,AI12) -> 0 | AK12: =AJ12/(AL4-AJ11) -> 0 | AL12: =IF(AK12=0,0,(AK12*((LOG(AK12))/LOG(2)))) -> 0 | AN12: =N12 -> 212 | AO12: =COUNTIF(L56:L68,AN12) -> 0 | AP12: =AO12/(AQ4-AO11) -> 0 | AQ12: =IF(AP12=0,0,(AP12*((LOG(AP12))/LOG(2)))) -> 0 | AS12: =N12 -> 212 | AT12: =COUNTIF(L69:L80,AS12) -> 0 | AU12: =AT12/(AV4-AT11) -> 0 | AV12: =IF(AU12=0,0,(AU12*((LOG(AU12))/LOG(2)))) -> 0
A13: 21 | B13: 872 | C13: 22 | D13: 877 | E13: 13 | F13: 886 | K13: 0 | L13: 221 | N13: 221 | O13: =COUNTIF($L$7:$L$500,N13) -> 5 | P13: =O13/$Q$4 -> 0.06756756757 | Q13: =IF(P13=0,0,(P13*((LOG(P13))/LOG(2)))) -> -0.2626706264 | T13: =N13 -> 221 | U13: =COUNTIF(L7:L18,T13) -> 2 | V13: =U13/(W4-U11) -> 0.2857142857 | W13: =IF(V13=0,0,(V13*((LOG(V13))/LOG(2)))) -> -0.5163871206 | Y13: =N13 -> 221 | Z13: =COUNTIF(L19:L31,Y13) -> 0 | AA13: =Z13/(AB4-Z11) -> 0 | AB13: =IF(AA13=0,0,(AA13*((LOG(AA13))/LOG(2)))) -> 0 | AD13: =N13 -> 221 | AE13: =COUNTIF(L32:L43,AD13) -> 0 | AF13: =AE13/(AG4-AE11) -> 0 | AG13: =IF(AF13=0,0,(AF13*((LOG(AF13))/LOG(2)))) -> 0 | AI13: =N13 -> 221 | AJ13: =COUNTIF(L44:L55,AI13) -> 1 | AK13: =AJ13/(AL4-AJ11) -> 0.2 | AL13: =IF(AK13=0,0,(AK13*((LOG(AK13))/LOG(2)))) -> -0.464385619 | AN13: =N13 -> 221 | AO13: =COUNTIF(L56:L68,AN13) -> 0 | AP13: =AO13/(AQ4-AO11) -> 0 | AQ13: =IF(AP13=0,0,(AP13*((LOG(AP13))/LOG(2)))) -> 0 | AS13: =N13 -> 221 | AT13: =COUNTIF(L69:L80,AS13) -> 2 | AU13: =AT13/(AV4-AT11) -> 0.2857142857 | AV13: =IF(AU13=0,0,(AU13*((LOG(AU13))/LOG(2)))) -> -0.5163871206
A14: 12 | B14: 1014 | C14: 13 | D14: 1019 | E14: 13 | F14: 1038 | K14: 0 | L14: 111 | N14: 222 | O14: =COUNTIF($L$7:$L$500,N14) -> 1 | P14: =O14/$Q$4 -> 0.01351351351 | Q14: =IF(P14=0,0,(P14*((LOG(P14))/LOG(2)))) -> -0.08391153197 | T14: =N14 -> 222 | U14: =COUNTIF(L7:L18,T14) -> 0 | V14: =U14/(W4-U11) -> 0 | W14: =IF(V14=0,0,(V14*((LOG(V14))/LOG(2)))) -> 0 | Y14: =N14 -> 222 | Z14: =COUNTIF(L19:L31,Y14) -> 0 | AA14: =Z14/(AB4-Z11) -> 0 | AB14: =IF(AA14=0,0,(AA14*((LOG(AA14))/LOG(2)))) -> 0 | AD14: =N14 -> 222 | AE14: =COUNTIF(L32:L43,AD14) -> 0 | AF14: =AE14/(AG4-AE11) -> 0 | AG14: =IF(AF14=0,0,(AF14*((LOG(AF14))/LOG(2)))) -> 0 | AI14: =N14 -> 222 | AJ14: =COUNTIF(L44:L55,AI14) -> 0 | AK14: =AJ14/(AL4-AJ11) -> 0 | AL14: =IF(AK14=0,0,(AK14*((LOG(AK14))/LOG(2)))) -> 0 | AN14: =N14 -> 222 | AO14: =COUNTIF(L56:L68,AN14) -> 0 | AP14: =AO14/(AQ4-AO11) -> 0 | AQ14: =IF(AP14=0,0,(AP14*((LOG(AP14))/LOG(2)))) -> 0 | AS14: =N14 -> 222 | AT14: =COUNTIF(L69:L80,AS14) -> 1 | AU14: =AT14/(AV4-AT11) -> 0.1428571429 | AV14: =IF(AU14=0,0,(AU14*((LOG(AU14))/LOG(2)))) -> -0.4010507032
A15: 21 | B15: 1136 | C15: 22 | D15: 1144 | E15: 13 | F15: 1152 | K15: 0 | L15: 221 | P15: =SUM(P7:P14) -> 1 | Q15: =-SUM(Q7:Q14) -> 1.448017354 | V15: =SUM(V7:V14) -> 1 | W15: =-SUM(W7:W14) -> 0.8631205686 | AA15: =SUM(AA7:AA14) -> 1 | AB15: =-SUM(AB7:AB14) -> 0 | AF15: =SUM(AF7:AF14) -> 1 | AG15: =-SUM(AG7:AG14) -> 0 | AK15: =SUM(AK7:AK14) -> 1 | AL15: =-SUM(AL7:AL14) -> 0.7219280949 | AP15: =SUM(AP7:AP14) -> 1 | AQ15: =-SUM(AQ7:AQ14) -> 0 | AU15: =SUM(AU7:AU14) -> 1 | AV15: =-SUM(AV7:AV14) -> 1.842370993
A16: 21 | B16: 1252 | C16: 11 | D16: 1263 | E16: 11 | F16: 1267 | K16: 0 | L16: 211 | P16: U= | Q16: =Q15/(LOG(Q4)/LOG(2)) -> 0.2331956243 | V16: U1= | W16: =W15/(LOG(W4)/LOG(2)) -> 0.2407613938 | AA16: U2= | AB16: =AB15/(LOG(AB4)/LOG(2)) -> 0 | AF16: U3= | AG16: =AG15/(LOG(AG4)/LOG(2)) -> 0 | AK16: U4= | AL16: =AL15/(LOG(AL4)/LOG(2)) -> 0.2013767493 | AP16: U5= | AQ16: =AQ15/(LOG(AQ4)/LOG(2)) -> 0 | AU16: U6= | AV16: =AV15/(LOG(AV4)/LOG(2)) -> 0.5139163918
A17: 12 | B17: 1426 | C17: 13 | D17: 1430 | E17: 13 | F17: 1438 | K17: 0 | L17: 111
A18: 21 | B18: 1536 | C18: 11 | D18: 1545 | E18: 11 | F18: 1550 | K18: 0 | L18: 211
A19: 21 | B19: 1677 | C19: 11 | D19: 1690 | E19: 11 | F19: 1701 | K19: 0 | L19: 211 | N19: Total Target Seq
A20: 21 | B20: 1860 | C20: 11 | D20: 1867 | E20: 11 | F20: 1872 | K20: 0 | L20: 211 | N20: =COUNTIF(L7:L80,G3) -> 39 | P20: 12 | Q20: 13 | R20: 12 | S20: 12 | T20: 13 | U20: 12
A21: 21 | B21: 2011 | C21: 11 | D21: 2019 | E21: 11 | F21: 2023 | K21: 0 | L21: 211 | P21: % of reinforcement given in 6 equal intervals based on number of trials
A22: 21 | B22: 2228 | C22: 11 | D22: 2236 | E22: 11 | F22: 2241 | K22: 0 | L22: 211 | P22: %_1 | Q22: %_2 | R22: %_3 | S22: %_4 | T22: %_5 | U22: %_6
A23: 12 | B23: 2427 | C23: 13 | D23: 2432 | E23: 13 | F23: 2443 | K23: 0 | L23: 111 | O23: target sequence | P23: =$G$3 -> 211 | Q23: =$G$3 -> 211 | R23: =$G$3 -> 211 | S23: =$G$3 -> 211 | T23: =$G$3 -> 211 | U23: =$G$3 -> 211
A24: 21 | B24: 2539 | C24: 11 | D24: 2550 | E24: 11 | F24: 2555 | K24: 0 | L24: 211 | O24: total reinforcement | P24: =U11 -> 5 | Q24: =Z11 -> 9 | R24: =AE11 -> 6 | S24: =AJ11 -> 7 | T24: =AO11 -> 7 | U24: =AT11 -> 5
A25: 21 | B25: 2685 | C25: 11 | D25: 2692 | E25: 11 | F25: 2697 | K25: 0 | L25: 211 | O25: % target
A26: 12 | B26: 2934 | C26: 13 | D26: 2939 | E26: 13 | F26: 2953 | K26: 0 | L26: 111 | O26: CCRF
A27: 21 | B27: 3052 | C27: 11 | D27: 3060 | E27: 11 | F27: 3065 | K27: 0 | L27: 211 | O27: % CCRf
A28: 12 | B28: 3173 | C28: 13 | D28: 3179 | E28: 13 | F28: 3181 | K28: 0 | L28: 111 | O28: average response rate | P28: =F18/P20 -> 129.1666667 | Q28: =(F31-F18)/Q20 -> 155.6923077 | R28: =(F43-F31)/R20 -> 146.3333333 | S28: =(F55-F43)/S20 -> 139.5833333 | T28: =(F68-F55)/T20 -> 232.6923077 | U28: =(F80-F68)/U20 -> 148.1666667
A29: 21 | B29: 3282 | C29: 11 | D29: 3289 | E29: 11 | F29: 3294 | K29: 0 | L29: 211
A30: 12 | B30: 3449 | C30: 13 | D30: 3454 | E30: 13 | F30: 3460 | K30: 0 | L30: 111
A31: 21 | B31: 3560 | C31: 11 | D31: 3568 | E31: 11 | F31: 3574 | K31: 0 | L31: 211
A32: 21 | B32: 3710 | C32: 11 | D32: 3721 | E32: 11 | F32: 3731 | K32: 0 | L32: 211
A33: 21 | B33: 3916 | C33: 11 | D33: 3925 | E33: 11 | F33: 3936 | K33: 0 | L33: 211
A34: 21 | B34: 4066 | C34: 11 | D34: 4078 | E34: 11 | F34: 4085 | K34: 0 | L34: 211
A35: 12 | B35: 4213 | C35: 13 | D35: 4217 | E35: 13 | F35: 4225 | K35: 0 | L35: 111
A36: 12 | B36: 4364 | C36: 13 | D36: 4370 | E36: 13 | F36: 4383 | K36: 0 | L36: 111
A37: 12 | B37: 4489 | C37: 13 | D37: 4493 | E37: 13 | F37: 4499 | K37: 0 | L37: 111
A38: 21 | B38: 4600 | C38: 11 | D38: 4608 | E38: 11 | F38: 4613 | K38: 0 | L38: 211
A39: 21 | B39: 4742 | C39: 11 | D39: 4749 | E39: 11 | F39: 4754 | K39: 0 | L39: 211
A40: 12 | B40: 4919 | C40: 13 | D40: 4924 | E40: 13 | F40: 4929 | K40: 0 | L40: 111
A41: 12 | B41: 5058 | C41: 13 | D41: 5063 | E41: 13 | F41: 5069 | K41: 0 | L41: 111
A42: 21 | B42: 5167 | C42: 11 | D42: 5175 | E42: 11 | F42: 5179 | K42: 0 | L42: 211
A43: 12 | B43: 5311 | C43: 13 | D43: 5316 | E43: 13 | F43: 5330 | K43: 0 | L43: 111
A44: 21 | B44: 5429 | C44: 11 | D44: 5439 | E44: 11 | F44: 5444 | K44: 0 | L44: 211
A45: 12 | B45: 5595 | C45: 13 | D45: 5600 | E45: 13 | F45: 5607 | K45: 0 | L45: 111
A46: 21 | B46: 5704 | C46: 22 | D46: 5708 | E46: 13 | F46: 5717 | K46: 0 | L46: 221
A47: 21 | B47: 5819 | C47: 11 | D47: 5827 | E47: 11 | F47: 5832 | K47: 0 | L47: 211
A48: 21 | B48: 5991 | C48: 11 | D48: 5999 | E48: 11 | F48: 6004 | K48: 0 | L48: 211
A49: 21 | B49: 6145 | C49: 11 | D49: 6152 | E49: 11 | F49: 6157 | K49: 0 | L49: 211
A50: 12 | B50: 6333 | C50: 13 | D50: 6337 | E50: 13 | F50: 6345 | K50: 0 | L50: 111
A51: 21 | B51: 6444 | C51: 11 | D51: 6453 | E51: 11 | F51: 6457 | K51: 0 | L51: 211
A52: 21 | B52: 6565 | C52: 11 | D52: 6574 | E52: 11 | F52: 6578 | K52: 0 | L52: 211
A53: 12 | B53: 6711 | C53: 13 | D53: 6716 | E53: 13 | F53: 6721 | K53: 0 | L53: 111
A54: 21 | B54: 6819 | C54: 11 | D54: 6828 | E54: 11 | F54: 6839 | K54: 0 | L54: 211
A55: 12 | B55: 6993 | C55: 13 | D55: 6998 | E55: 13 | F55: 7005 | K55: 0 | L55: 111
A56: 12 | B56: 7118 | C56: 13 | D56: 7127 | E56: 13 | F56: 7149 | K56: 0 | L56: 111
A57: 21 | B57: 7249 | C57: 11 | D57: 7264 | E57: 11 | F57: 7268 | K57: 0 | L57: 211
A58: 21 | B58: 7392 | C58: 11 | D58: 7399 | E58: 11 | F58: 7403 | K58: 0 | L58: 211
A59: 12 | B59: 8578 | C59: 13 | D59: 8582 | E59: 13 | F59: 8588 | K59: 0 | L59: 111
A60: 21 | B60: 8747 | C60: 11 | D60: 8763 | E60: 11 | F60: 8769 | K60: 0 | L60: 211
A61: 12 | B61: 8962 | C61: 13 | D61: 8967 | E61: 13 | F61: 8973 | K61: 0 | L61: 111
A62: 12 | B62: 9080 | C62: 13 | D62: 9084 | E62: 13 | F62: 9096 | K62: 0 | L62: 111
A63: 21 | B63: 9205 | C63: 11 | D63: 9214 | E63: 11 | F63: 9219 | K63: 0 | L63: 211
A64: 12 | B64: 9416 | C64: 13 | D64: 9421 | E64: 13 | F64: 9427 | K64: 0 | L64: 111
A65: 21 | B65: 9530 | C65: 11 | D65: 9541 | E65: 11 | F65: 9547 | K65: 0 | L65: 211
A66: 21 | B66: 9720 | C66: 11 | D66: 9728 | E66: 11 | F66: 9733 | K66: 0 | L66: 211
A67: 12 | B67: 9890 | C67: 13 | D67: 9895 | E67: 13 | F67: 9902 | K67: 0 | L67: 111
A68: 21 | B68: 10003 | C68: 11 | D68: 10012 | E68: 11 | F68: 10030 | K68: 0 | L68: 211
A69: 12 | B69: 10198 | C69: 13 | D69: 10202 | E69: 24 | F69: 10215 | K69: 0 | L69: 112
A70: 21 | B70: 10313 | C70: 22 | D70: 10315 | E70: 24 | F70: 10320 | K70: 0 | L70: 222
A71: 21 | B71: 10413 | C71: 22 | D71: 10421 | E71: 13 | F71: 10431 | K71: 0 | L71: 221
A72: 21 | B72: 10529 | C72: 11 | D72: 10540 | E72: 11 | F72: 10552 | K72: 0 | L72: 211
A73: 21 | B73: 10717 | C73: 11 | D73: 10727 | E73: 11 | F73: 10733 | K73: 0 | L73: 211
A74: 12 | B74: 10925 | C74: 13 | D74: 10930 | E74: 13 | F74: 10947 | K74: 0 | L74: 111
A75: 21 | B75: 11048 | C75: 11 | D75: 11055 | E75: 11 | F75: 11060 | K75: 0 | L75: 211
A76: 12 | B76: 11185 | C76: 13 | D76: 11191 | E76: 13 | F76: 11200 | K76: 0 | L76: 111
A77: 21 | B77: 11296 | C77: 22 | D77: 11306 | E77: 13 | F77: 11316 | K77: 0 | L77: 221
A78: 21 | B78: 11435 | C78: 11 | D78: 11447 | E78: 11 | F78: 11453 | K78: 0 | L78: 211
A79: 12 | B79: 11670 | C79: 13 | D79: 11678 | E79: 13 | F79: 11692 | K79: 0 | L79: 111
A80: 21 | B80: 11794 | C80: 11 | D80: 11803 | E80: 11 | F80: 11808 | K80: 1 | L80: 211

Sheet !M930B0D.ust
A1: Report for:!M930B0D.ust
A2: Date: | B2: <date>
A3: Hen: | B3: <hen> | F3: Correct Sequence | G3: =Start!J2 -> 211 | P3: Total Sequences in Data | Q3: =4994-COUNTBLANK(L7:L5000) -> 67 | V3: Total Sequences in Block Data | W3: =COUNTA(L7:L17) -> 11 | AA3: Total Sequences in Block Data | AB3: =COUNTA(L18:L28) -> 11 | AF3: Total Sequences in Block Data | AG3: =COUNTA(L29:L40) -> 12 | AK3: Total Sequences in Block Data | AL3: =COUNTA(L41:L51) -> 11 | AP3: Total Sequences in Block Data | AQ3: =COUNTA(L52:L62) -> 11 | AU3: Total Sequences in Block Data | AV3: =COUNTA(L63:L73) -> 11
P4: Total Sequences in Summary | Q4: =SUM(O7:O14) -> 67 | V4: Total Sequences in Block Summary | W4: =SUM(U7:U14) -> 11 | AA4: Total Sequences in Block Summary | AB4: =SUM(Z7:Z14) -> 11 | AF4: Total Sequences in Block Summary | AG4: =SUM(AE7:AE14) -> 12 | AK4: Total Sequences in Block Summary | AL4: =SUM(AJ7:AJ14) -> 11 | AP4: Total Sequences in Block Summary | AQ4: =SUM(AO7:AO14) -> 11 | AU4: Total Sequences in Block Summary | AV4: =SUM(AT7:AT14) -> 11
T5: Block 1 | Y5: Block 2 | AD5: Block 3 | AI5: Block 4 | AN5: Block 5 | AS5: Block 6
A6: Sequence Component 1 | B6: Time 1 | C6: Sequence Component 2 | D6: Time 2 | E6: Sequence Component 3 | F6: Time 3 | G6: Sequence Component 4 | H6: Time 4 | I6: Sequence Component 5 | J6: Time 5 | K6: Correct? 0=No 1=Yes | L6: Sequence | N6: Frequency | P6: Relative Frequency | Q6: Variability | T6: Frequency | V6: Relative Frequency | W6: Variability | Y6: Frequency | AA6: Relative Frequency | AB6: Variability | AD6: Frequency | AF6: Relative Frequency | AG6: Variability | AI6: Frequency | AK6: Relative Frequency | AL6: Variability | AN6: Frequency | AP6: Relative Frequency | AQ6: Variability | AS6: Frequency | AU6: Relative Frequency | AV6: Variability
A7: 21 | B7: 26 | C7: 11 | D7: 35 | E7: 11 | F7: 41 | K7: 0 | L7: 211 | N7: 111 | O7: =COUNTIF($L$7:$L$500,N7) -> 23 | P7: =O7/$Q$4 -> 0.3432835821 | Q7: =IF(P7=0,0,(P7*((LOG(P7))/LOG(2)))) -> -0.5295242745 | T7: =N7 -> 111 | U7: =COUNTIF(L7:L17,T7) -> 5 | V7: =U7/(W4-U11) -> 1 | W7: =IF(V7=0,0,(V7*((LOG(V7))/LOG(2)))) -> 0 | Y7: =N7 -> 111 | Z7: =COUNTIF(L18:L28,Y7) -> 3 | AA7: =Z7/(AB4-Z11) -> 0.75 | AB7: =IF(AA7=0,0,(AA7*((LOG(AA7))/LOG(2)))) -> -0.3112781245 | AD7: =N7 -> 111 | AE7: =COUNTIF(L29:L40,AD7) -> 5 | AF7: =AE7/(AG4-AE11) -> 1 | AG7: =IF(AF7=0,0,(AF7*((LOG(AF7))/LOG(2)))) -> 0 | AI7: =N7 -> 111 | AJ7: =COUNTIF(L41:L51,AI7) -> 4 | AK7: =AJ7/(AL4-AJ11) -> 0.6666666667 | AL7: =IF(AK7=0,0,(AK7*((LOG(AK7))/LOG(2)))) -> -0.3899750005 | AN7: =N7 -> 111 | AO7: =COUNTIF(L52:L62,AN7) -> 3 | AP7: =AO7/(AQ4-AO11) -> 0.75 | AQ7: =IF(AP7=0,0,(AP7*((LOG(AP7))/LOG(2)))) -> -0.3112781245 | AS7: =N7 -> 111 | AT7: =COUNTIF(L63:L73,AS7) -> 3 | AU7: =AT7/(AV4-AT11) -> 0.75 | AV7: =IF(AU7=0,0,(AU7*((LOG(AU7))/LOG(2)))) -> -0.3112781245
A8: 12 | B8: 144 | C8: 13 | D8: 149 | E8: 13 | F8: 156 | K8: 0 | L8: 111 | N8: 112 | O8: =COUNTIF($L$7:$L$500,N8) -> 3 | P8: =O8/$Q$4 -> 0.0447761194 | Q8: =IF(P8=0,0,(P8*((LOG(P8))/LOG(2)))) -> -0.2006474637 | T8: =N8 -> 112 | U8: =COUNTIF(L7:L17,T8) -> 0 | V8: =U8/(W4-U11) -> 0 | W8: =IF(V8=0,0,(V8*((LOG(V8))/LOG(2)))) -> 0 | Y8: =N8 -> 112 | Z8: =COUNTIF(L18:L28,Y8) -> 1 | AA8: =Z8/(AB4-Z11) -> 0.25 | AB8: =IF(AA8=0,0,(AA8*((LOG(AA8))/LOG(2)))) -> -0.5 | AD8: =N8 -> 112 | AE8: =COUNTIF(L29:L40,AD8) -> 0 | AF8: =AE8/(AG4-AE11) -> 0 | AG8: =IF(AF8=0,0,(AF8*((LOG(AF8))/LOG(2)))) -> 0 | AI8: =N8 -> 112 | AJ8: =COUNTIF(L41:L51,AI8) -> 0 | AK8: =AJ8/(AL4-AJ11) -> 0 | AL8: =IF(AK8=0,0,(AK8*((LOG(AK8))/LOG(2)))) -> 0 | AN8: =N8 -> 112 | AO8: =COUNTIF(L52:L62,AN8) -> 1 | AP8: =AO8/(AQ4-AO11) -> 0.25 | AQ8: =IF(AP8=0,0,(AP8*((LOG(AP8))/LOG(2)))) -> -0.5 | AS8: =N8 -> 112 | AT8: =COUNTIF(L63:L73,AS8) -> 1 | AU8: =AT8/(AV4-AT11) -> 0.25 | AV8: =IF(AU8=0,0,(AU8*((LOG(AU8))/LOG(2)))) -> -0.5
A9: 12 | B9: 258 | C9: 13 | D9: 263 | E9: 13 | F9: 268 | K9: 0 | L9: 111 | N9: 121 | O9: =COUNTIF($L$7:$L$500,N9) -> 0 | P9: =O9/$Q$4 -> 0 | Q9: =IF(P9=0,0,(P9*((LOG(P9))/LOG(2)))) -> 0 | T9: =N9 -> 121 | U9: =COUNTIF(L7:L17,T9) -> 0 | V9: =U9/(W4-U11) -> 0 | W9: =IF(V9=0,0,(V9*((LOG(V9))/LOG(2)))) -> 0 | Y9: =N9 -> 121 | Z9: =COUNTIF(L18:L28,Y9) -> 0 | AA9: =Z9/(AB4-Z11) -> 0 | AB9: =IF(AA9=0,0,(AA9*((LOG(AA9))/LOG(2)))) -> 0 | AD9: =N9 -> 121 | AE9: =COUNTIF(L29:L40,AD9) -> 0 | AF9: =AE9/(AG4-AE11) -> 0 | AG9: =IF(AF9=0,0,(AF9*((LOG(AF9))/LOG(2)))) -> 0 | AI9: =N9 -> 121 | AJ9: =COUNTIF(L41:L51,AI9) -> 0 | AK9: =AJ9/(AL4-AJ11) -> 0 | AL9: =IF(AK9=0,0,(AK9*((LOG(AK9))/LOG(2)))) -> 0 | AN9: =N9 -> 121 | AO9: =COUNTIF(L52:L62,AN9) -> 0 | AP9: =AO9/(AQ4-AO11) -> 0 | AQ9: =IF(AP9=0,0,(AP9*((LOG(AP9))/LOG(2)))) -> 0 | AS9: =N9 -> 121 | AT9: =COUNTIF(L63:L73,AS9) -> 0 | AU9: =AT9/(AV4-AT11) -> 0 | AV9: =IF(AU9=0,0,(AU9*((LOG(AU9))/LOG(2)))) -> 0
A10: 21 | B10: 370 | C10: 11 | D10: 378 | E10: 11 | F10: 384 | K10: 0 | L10: 211 | N10: 122 | O10: =COUNTIF($L$7:$L$500,N10) -> 0 | P10: =O10/$Q$4 -> 0 | Q10: =IF(P10=0,0,(P10*((LOG(P10))/LOG(2)))) -> 0 | T10: =N10 -> 122 | U10: =COUNTIF(L7:L17,T10) -> 0 | V10: =U10/(W4-U11) -> 0 | W10: =IF(V10=0,0,(V10*((LOG(V10))/LOG(2)))) -> 0 | Y10: =N10 -> 122 | Z10: =COUNTIF(L18:L28,Y10) -> 0 | AA10: =Z10/(AB4-Z11) -> 0 | AB10: =IF(AA10=0,0,(AA10*((LOG(AA10))/LOG(2)))) -> 0 | AD10: =N10 -> 122 | AE10: =COUNTIF(L29:L40,AD10) -> 0 | AF10: =AE10/(AG4-AE11) -> 0 | AG10: =IF(AF10=0,0,(AF10*((LOG(AF10))/LOG(2)))) -> 0 | AI10: =N10 -> 122 | AJ10: =COUNTIF(L41:L51,AI10) -> 0 | AK10: =AJ10/(AL4-AJ11) -> 0 | AL10: =IF(AK10=0,0,(AK10*((LOG(AK10))/LOG(2)))) -> 0 | AN10: =N10 -> 122 | AO10: =COUNTIF(L52:L62,AN10) -> 0 | AP10: =AO10/(AQ4-AO11) -> 0 | AQ10: =IF(AP10=0,0,(AP10*((LOG(AP10))/LOG(2)))) -> 0 | AS10: =N10 -> 122 | AT10: =COUNTIF(L63:L73,AS10) -> 0 | AU10: =AT10/(AV4-AT11) -> 0 | AV10: =IF(AU10=0,0,(AU10*((LOG(AU10))/LOG(2)))) -> 0
A11: 21 | B11: 505 | C11: 11 | D11: 514 | E11: 11 | F11: 516 | K11: 0 | L11: 211 | N11: 211 | O11: =COUNTIF($L$7:$L$500,N11) -> 39 | P11: =O11/$Q$4 -> 0.5820895522 | Q11: =IF(P11=0,0,(P11*((LOG(P11))/LOG(2)))) -> -0.4544297297 | T11: =N11 -> 211 | U11: =COUNTIF(L7:L17,T11) -> 6 | Y11: =N11 -> 211 | Z11: =COUNTIF(L18:L28,Y11) -> 7 | AD11: =N11 -> 211 | AE11: =COUNTIF(L29:L40,AD11) -> 7 | AI11: =N11 -> 211 | AJ11: =COUNTIF(L41:L51,AI11) -> 5 | AN11: =N11 -> 211 | AO11: =COUNTIF(L52:L62,AN11) -> 7 | AS11: =N11 -> 211 | AT11: =COUNTIF(L63:L73,AS11) -> 7
A12: 21 | B12: 661 | C12: 11 | D12: 670 | E12: 11 | F12: 675 | K12: 0 | L12: 211 | N12: 212 | O12: =COUNTIF($L$7:$L$500,N12) -> 0 | P12: =O12/$Q$4 -> 0 | Q12: =IF(P12=0,0,(P12*((LOG(P12))/LOG(2)))) -> 0 | T12: =N12 -> 212 | U12: =COUNTIF(L7:L17,T12) -> 0 | V12: =U12/(W4-U11) -> 0 | W12: =IF(V12=0,0,(V12*((LOG(V12))/LOG(2)))) -> 0 | Y12: =N12 -> 212 | Z12: =COUNTIF(L18:L28,Y12) -> 0 | AA12: =Z12/(AB4-Z11) -> 0 | AB12: =IF(AA12=0,0,(AA12*((LOG(AA12))/LOG(2)))) -> 0 | AD12: =N12 -> 212 | AE12: =COUNTIF(L29:L40,AD12) -> 0 | AF12: =AE12/(AG4-AE11) -> 0 | AG12: =IF(AF12=0,0,(AF12*((LOG(AF12))/LOG(2)))) -> 0 | AI12: =N12 -> 212 | AJ12: =COUNTIF(L41:L51,AI12) -> 0 | AK12: =AJ12/(AL4-AJ11) -> 0 | AL12: =IF(AK12=0,0,(AK12*((LOG(AK12))/LOG(2)))) -> 0 | AN12: =N12 -> 212 | AO12: =COUNTIF(L52:L62,AN12) -> 0 | AP12: =AO12/(AQ4-AO11) -> 0 | AQ12: =IF(AP12=0,0,(AP12*((LOG(AP12))/LOG(2)))) -> 0 | AS12: =N12 -> 212 | AT12: =COUNTIF(L63:L73,AS12) -> 0 | AU12: =AT12/(AV4-AT11) -> 0 | AV12: =IF(AU12=0,0,(AU12*((LOG(AU12))/LOG(2)))) -> 0
A13: 12 | B13: 788 | C13: 13 | D13: 793 | E13: 13 | F13: 823 | K13: 0 | L13: 111 | N13: 221 | O13: =COUNTIF($L$7:$L$500,N13) -> 2 | P13: =O13/$Q$4 -> 0.02985074627 | Q13: =IF(P13=0,0,(P13*((LOG(P13))/LOG(2)))) -> -0.151226543 | T13: =N13 -> 221 | U13: =COUNTIF(L7:L17,T13) -> 0 | V13: =U13/(W4-U11) -> 0 | W13: =IF(V13=0,0,(V13*((LOG(V13))/LOG(2)))) -> 0 | Y13: =N13 -> 221 | Z13: =COUNTIF(L18:L28,Y13) -> 0 | AA13: =Z13/(AB4-Z11) -> 0 | AB13: =IF(AA13=0,0,(AA13*((LOG(AA13))/LOG(2)))) -> 0 | AD13: =N13 -> 221 | AE13: =COUNTIF(L29:L40,AD13) -> 0 | AF13: =AE13/(AG4-AE11) -> 0 | AG13: =IF(AF13=0,0,(AF13*((LOG(AF13))/LOG(2)))) -> 0 | AI13: =N13 -> 221 | AJ13: =COUNTIF(L41:L51,AI13) -> 2 | AK13: =AJ13/(AL4-AJ11) -> 0.3333333333 | AL13: =IF(AK13=0,0,(AK13*((LOG(AK13))/LOG(2)))) -> -0.5283208336 | AN13: =N13 -> 221 | AO13: =COUNTIF(L52:L62,AN13) -> 0 | AP13: =AO13/(AQ4-AO11) -> 0 | AQ13: =IF(AP13=0,0,(AP13*((LOG(AP13))/LOG(2)))) -> 0 | AS13: =N13 -> 221 | AT13: =COUNTIF(L63:L73,AS13) -> 0 | AU13: =AT13/(AV4-AT11) -> 0 | AV13: =IF(AU13=0,0,(AU13*((LOG(AU13))/LOG(2)))) -> 0
A14: 21 | B14: 916 | C14: 11 | D14: 928 | E14: 11 | F14: 933 | K14: 0 | L14: 211 | N14: 222 | O14: =COUNTIF($L$7:$L$500,N14) -> 0 | P14: =O14/$Q$4 -> 0 | Q14: =IF(P14=0,0,(P14*((LOG(P14))/LOG(2)))) -> 0 | T14: =N14 -> 222 | U14: =COUNTIF(L7:L17,T14) -> 0 | V14: =U14/(W4-U11) -> 0 | W14: =IF(V14=0,0,(V14*((LOG(V14))/LOG(2)))) -> 0 | Y14: =N14 -> 222 | Z14: =COUNTIF(L18:L28,Y14) -> 0 | AA14: =Z14/(AB4-Z11) -> 0 | AB14: =IF(AA14=0,0,(AA14*((LOG(AA14))/LOG(2)))) -> 0 | AD14: =N14 -> 222 | AE14: =COUNTIF(L29:L40,AD14) -> 0 | AF14: =AE14/(AG4-AE11) -> 0 | AG14: =IF(AF14=0,0,(AF14*((LOG(AF14))/LOG(2)))) -> 0 | AI14: =N14 -> 222 | AJ14: =COUNTIF(L41:L51,AI14) -> 0 | AK14: =AJ14/(AL4-AJ11) -> 0 | AL14: =IF(AK14=0,0,(AK14*((LOG(AK14))/LOG(2)))) -> 0 | AN14: =N14 -> 222 | AO14: =COUNTIF(L52:L62,AN14) -> 0 | AP14: =AO14/(AQ4-AO11) -> 0 | AQ14: =IF(AP14=0,0,(AP14*((LOG(AP14))/LOG(2)))) -> 0 | AS14: =N14 -> 222 | AT14: =COUNTIF(L63:L73,AS14) -> 0 | AU14: =AT14/(AV4-AT11) -> 0 | AV14: =IF(AU14=0,0,(AU14*((LOG(AU14))/LOG(2)))) -> 0
A15: 12 | B15: 1038 | C15: 13 | D15: 1043 | E15: 13 | F15: 1049 | K15: 0 | L15: 111 | P15: =SUM(P7:P14) -> 1 | Q15: =-SUM(Q7:Q14) -> 1.335828011 | V15: =SUM(V7:V14) -> 1 | W15: =-SUM(W7:W14) -> 0 | AA15: =SUM(AA7:AA14) -> 1 | AB15: =-SUM(AB7:AB14) -> 0.8112781245 | AF15: =SUM(AF7:AF14) -> 1 | AG15: =-SUM(AG7:AG14) -> 0 | AK15: =SUM(AK7:AK14) -> 1 | AL15: =-SUM(AL7:AL14) -> 0.9182958341 | AP15: =SUM(AP7:AP14) -> 1 | AQ15: =-SUM(AQ7:AQ14) -> 0.8112781245 | AU15: =SUM(AU7:AU14) -> 1 | AV15: =-SUM(AV7:AV14) -> 0.8112781245
A16: 21 | B16: 1149 | C16: 11 | D16: 1159 | E16: 11 | F16: 1171 | K16: 0 | L16: 211 | P16: U= | Q16: =Q15/(LOG(Q4)/LOG(2)) -> 0.220212392 | V16: U1= | W16: =W15/(LOG(W4)/LOG(2)) -> 0 | AA16: U2= | AB16: =AB15/(LOG(AB4)/LOG(2)) -> 0.2345119701 | AF16: U3= | AG16: =AG15/(LOG(AG4)/LOG(2)) -> 0 | AK16: U4= | AL16: =AL15/(LOG(AL4)/LOG(2)) -> 0.2654470258 | AP16: U5= | AQ16: =AQ15/(LOG(AQ4)/LOG(2)) -> 0.2345119701 | AU16: U6= | AV16: =AV15/(LOG(AV4)/LOG(2)) -> 0.2345119701
A17: 12 | B17: 1291 | C17: 13 | D17: 1297 | E17: 13 | F17: 1304 | K17: 0 | L17: 111
A18: 21 | B18: 1402 | C18: 11 | D18: 1411 | E18: 11 | F18: 1417 | K18: 0 | L18: 211
A19: 12 | B19: 1524 | C19: 13 | D19: 1530 | E19: 13 | F19: 1552 | K19: 0 | L19: 111 | N19: Total Target Seq
A20: 21 | B20: 1656 | C20: 11 | D20: 1665 | E20: 11 | F20: 1670 | K20: 0 | L20: 211 | N20: =COUNTIF(L7:L73,G3) -> 39 | P20: 11 | Q20: 11 | R20: 12 | S20: 11 | T20: 11 | U20: 11
A21: 21 | B21: 1804 | C21: 11 | D21: 1813 | E21: 11 | F21: 1819 | K21: 0 | L21: 211 | P21: % of reinforcement given in 6 equal intervals based on number of trials
A22: 12 | B22: 1973 | C22: 13 | D22: 1981 | E22: 13 | F22: 1994 | K22: 0 | L22: 111 | P22: %_1 | Q22: %_2 | R22: %_3 | S22: %_4 | T22: %_5 | U22: %_6
A23: 21 | B23: 2094 | C23: 11 | D23: 2105 | E23: 11 | F23: 2109 | K23: 0 | L23: 211 | O23: target sequence | P23: =$G$3 -> 211 | Q23: =$G$3 -> 211 | R23: =$G$3 -> 211 | S23: =$G$3 -> 211 | T23: =$G$3 -> 211 | U23: =$G$3 -> 211
A24: 12 | B24: 2258 | C24: 13 | D24: 2266 | E24: 13 | F24: 2271 | K24: 0 | L24: 111 | O24: total reinforcement | P24: =U11 -> 6 | Q24: =Z11 -> 7 | R24: =AE11 -> 7 | S24: =AJ11 -> 5 | T24: =AO11 -> 7 | U24: =AT11 -> 7
A25: 21 | B25: 2369 | C25: 11 | D25: 2377 | E25: 11 | F25: 2382 | K25: 0 | L25: 211 | O25: % target
A26: 21 | B26: 2515 | C26: 11 | D26: 2522 | E26: 11 | F26: 2527 | K26: 0 | L26: 211 | O26: CCRF
A27: 21 | B27: 2653 | C27: 11 | D27: 2662 | E27: 11 | F27: 2668 | K27: 0 | L27: 211 | O27: % CCRf
A28: 12 | B28: 2890 | C28: 13 | D28: 2895 | E28: 24 | F28: 2911 | K28: 0 | L28: 112 | O28: average response rate | P28: =F17/P20 -> 118.5454545 | Q28: =(F28-F17)/Q20 -> 146.0909091 | R28: =(F40-F28)/R20 -> 146.0833333 | S28: =(F51-F40)/S20 -> 145.2727273 | T28: =(F62-F51)/T20 -> 141.1818182 | U28: =(F73-F62)/U20 -> 159.7272727
A29: 21 | B29: 3013 | C29: 11 | D29: 3023 | E29: 11 | F29: 3028 | K29: 0 | L29: 211
A30: 21 | B30: 3145 | C30: 11 | D30: 3159 | E30: 11 | F30: 3164 | K30: 0 | L30: 211
A31: 12 | B31: 3352 | C31: 13 | D31: 3358 | E31: 13 | F31: 3364 | K31: 0 | L31: 111
A32: 12 | B32: 3471 | C32: 13 | D32: 3477 | E32: 13 | F32: 3503 | K32: 0 | L32: 111
A33: 21 | B33: 3602 | C33: 11 | D33: 3610 | E33: 11 | F33: 3616 | K33: 0 | L33: 211
A34: 21 | B34: 3715 | C34: 11 | D34: 3722 | E34: 11 | F34: 3728 | K34: 0 | L34: 211
A35: 12 | B35: 3919 | C35: 13 | D35: 3927 | E35: 13 | F35: 3942 | K35: 0 | L35: 111
A36: 21 | B36: 4042 | C36: 11 | D36: 4050 | E36: 11 | F36: 4055 | K36: 0 | L36: 211
A37: 12 | B37: 4216 | C37: 13 | D37: 4221 | E37: 13 | F37: 4242 | K37: 0 | L37: 111
A38: 21 | B38: 4339 | C38: 11 | D38: 4351 | E38: 11 | F38: 4357 | K38: 0 | L38: 211
A39: 12 | B39: 4531 | C39: 13 | D39: 4536 | E39: 13 | F39: 4541 | K39: 0 | L39: 111
A40: 21 | B40: 4644 | C40: 11 | D40: 4653 | E40: 11 | F40: 4664 | K40: 0 | L40: 211
A41: 21 | B41: 4791 | C41: 11 | D41: 4797 | E41: 11 | F41: 4801 | K41: 0 | L41: 211
A42: 21 | B42: 4936 | C42: 11 | D42: 4943 | E42: 11 | F42: 4947 | K42: 0 | L42: 211
A43: 12 | B43: 5129 | C43: 13 | D43: 5132 | E43: 13 | F43: 5139 | K43: 0 | L43: 111
A44: 21 | B44: 5236 | C44: 11 | D44: 5244 | E44: 11 | F44: 5248 | K44: 0 | L44: 211
A45: 12 | B45: 5412 | C45: 13 | D45: 5420 | E45: 13 | F45: 5432 | K45: 0 | L45: 111
A46: 21 | B46: 5532 | C46: 11 | D46: 5540 | E46: 11 | F46: 5545 | K46: 0 | L46: 211
A47: 21 | B47: 5643 | C47: 11 | D47: 5650 | E47: 11 | F47: 5655 | K47: 0 | L47: 211
A48: 12 | B48: 5865 | C48: 13 | D48: 5872 | E48: 13 | F48: 5878 | K48: 0 | L48: 111
A49: 21 | B49: 5976 | C49: 22 | D49: 5978 | E49: 13 | F49: 5988 | K49: 0 | L49: 221
A50: 12 | B50: 6125 | C50: 13 | D50: 6131 | E50: 13 | F50: 6148 | K50: 0 | L50: 111
A51: 21 | B51: 6240 | C51: 22 | D51: 6252 | E51: 13 | F51: 6262 | K51: 0 | L51: 221
A52: 21 | B52: 6364 | C52: 11 | D52: 6374 | E52: 11 | F52: 6380 | K52: 0 | L52: 211
A53: 21 | B53: 6537 | C53: 11 | D53: 6544 | E53: 11 | F53: 6548 | K53: 0 | L53: 211
A54: 12 | B54: 6698 | C54: 13 | D54: 6703 | E54: 13 | F54: 6717 | K54: 0 | L54: 111
A55: 12 | B55: 6823 | C55: 13 | D55: 6827 | E55: 13 | F55: 6839 | K55: 0 | L55: 111
A56: 21 | B56: 6938 | C56: 11 | D56: 6946 | E56: 11 | F56: 6950 | K56: 0 | L56: 211
A57: 12 | B57: 7058 | C57: 13 | D57: 7063 | E57: 13 | F57: 7072 | K57: 0 | L57: 111
A58: 21 | B58: 7173 | C58: 11 | D58: 7181 | E58: 11 | F58: 7187 | K58: 0 | L58: 211
A59: 21 | B59: 7302 | C59: 11 | D59: 7309 | E59: 11 | F59: 7314 | K59: 0 | L59: 211
A60: 12 | B60: 7543 | C60: 13 | D60: 7554 | E60: 24 | F60: 7570 | K60: 0 | L60: 112
A61: 21 | B61: 7666 | C61: 11 | D61: 7674 | E61: 11 | F61: 7680 | K61: 0 | L61: 211
A62: 21 | B62: 7804 | C62: 11 | D62: 7813 | E62: 11 | F62: 7815 | K62: 0 | L62: 211
A63: 12 | B63: 7989 | C63: 13 | D63: 7995 | E63: 13 | F63: 8008 | K63: 0 | L63: 111
A64: 21 | B64: 8103 | C64: 11 | D64: 8113 | E64: 11 | F64: 8117 | K64: 0 | L64: 211
A65: 12 | B65: 8273 | C65: 13 | D65: 8277 | E65: 24 | F65: 8292 | K65: 0 | L65: 112
A66: 12 | B66: 8406 | C66: 13 | D66: 8410 | E66: 13 | F66: 8420 | K66: 0 | L66: 111
A67: 21 | B67: 8520 | C67: 11 | D67: 8528 | E67: 11 | F67: 8535 | K67: 0 | L67: 211
A68: 21 | B68: 8659 | C68: 11 | D68: 8666 | E68: 11 | F68: 8671 | K68: 0 | L68: 211
A69: 12 | B69: 8863 | C69: 13 | D69: 8869 | E69: 13 | F69: 8891 | K69: 0 | L69: 111
A70: 21 | B70: 8995 | C70: 11 | D70: 9004 | E70: 11 | F70: 9010 | K70: 0 | L70: 211
A71: 21 | B71: 9147 | C71: 11 | D71: 9155 | E71: 11 | F71: 9165 | K71: 0 | L71: 211
A72: 21 | B72: 9302 | C72: 11 | D72: 9310 | E72: 11 | F72: 9316 | K72: 0 | L72: 211
A73: 21 | B73: 9559 | C73: 11 | D73: 9567 | E73: 11 | F73: 9572 | K73: 1 | L73: 211

Sheet !MA01A5D.ust
A1: Report for:!MA01A5D.ust
A2: Date: | B2: <date>
A3: Hen: | B3: <hen> | F3: Correct Sequence | G3: =Start!J2 -> 211 | P3: Total Sequences in Data | Q3: =4994-COUNTBLANK(L7:L5000) -> 69 | V3: Total Sequences in Block Data | W3: =COUNTA(L7:L18) -> 12 | AA3: Total Sequences in Block Data | AB3: =COUNTA(L19:L29) -> 11 | AF3: Total Sequences in Block Data | AG3: =COUNTA(L30:L41) -> 12 | AK3: Total Sequences in Block Data | AL3: =COUNTA(L42:L52) -> 11 | AP3: Total Sequences in Block Data | AQ3: =COUNTA(L53:L64) -> 12 | AU3: Total Sequences in Block Data | AV3: =COUNTA(L65:L75) -> 11
P4: Total Sequences in Summary | Q4: =SUM(O7:O14) -> 69 | V4: Total Sequences in Block Summary | W4: =SUM(U7:U14) -> 12 | AA4: Total Sequences in Block Summary | AB4: =SUM(Z7:Z14) -> 11 | AF4: Total Sequences in Block Summary | AG4: =SUM(AE7:AE14) -> 12 | AK4: Total Sequences in Block Summary | AL4: =SUM(AJ7:AJ14) -> 11 | AP4: Total Sequences in Block Summary | AQ4: =SUM(AO7:AO14) -> 12 | AU4: Total Sequences in Block Summary | AV4: =SUM(AT7:AT14) -> 11
T5: Block 1 | Y5: Block 2 | AD5: Block 3 | AI5: Block 4 | AN5: Block 5 | AS5: Block 6
A6: Sequence Component 1 | B6: Time 1 | C6: Sequence Component 2 | D6: Time 2 | E6: Sequence Component 3 | F6: Time 3 | G6: Sequence Component 4 | H6: Time 4 | I6: Sequence Component 5 | J6: Time 5 | K6: Correct? 0=No 1=Yes | L6: Sequence | N6: Frequency | P6: Relative Frequency | Q6: Variability | T6: Frequency | V6: Relative Frequency | W6: Variability | Y6: Frequency | AA6: Relative Frequency | AB6: Variability | AD6: Frequency | AF6: Relative Frequency | AG6: Variability | AI6: Frequency | AK6: Relative Frequency | AL6: Variability | AN6: Frequency | AP6: Relative Frequency | AQ6: Variability | AS6: Frequency | AU6: Relative Frequency | AV6: Variability
A7: 12 | B7: 12 | C7: 13 | D7: 19 | E7: 13 | F7: 26 | K7: 0 | L7: 111 | N7: 111 | O7: =COUNTIF($L$7:$L$500,N7) -> 23 | P7: =O7/$Q$4 -> 0.3333333333 | Q7: =IF(P7=0,0,(P7*((LOG(P7))/LOG(2)))) -> -0.5283208336 | T7: =N7 -> 111 | U7: =COUNTIF(L7:L18,T7) -> 6 | V7: =U7/(W4-U11) -> 1 | W7: =IF(V7=0,0,(V7*((LOG(V7))/LOG(2)))) -> 0 | Y7: =N7 -> 111 | Z7: =COUNTIF(L19:L29,Y7) -> 4 | AA7: =Z7/(AB4-Z11) -> 0.8 | AB7: =IF(AA7=0,0,(AA7*((LOG(AA7))/LOG(2)))) -> -0.2575424759 | AD7: =N7 -> 111 | AE7: =COUNTIF(L30:L41,AD7) -> 3 | AF7: =AE7/(AG4-AE11) -> 0.4285714286 | AG7: =IF(AF7=0,0,(AF7*((LOG(AF7))/LOG(2)))) -> -0.5238824663 | AI7: =N7 -> 111 | AJ7: =COUNTIF(L42:L52,AI7) -> 2 | AK7: =AJ7/(AL4-AJ11) -> 0.5 | AL7: =IF(AK7=0,0,(AK7*((LOG(AK7))/LOG(2)))) -> -0.5 | AN7: =N7 -> 111 | AO7: =COUNTIF(L53:L64,AN7) -> 3 | AP7: =AO7/(AQ4-AO11) -> 1 | AQ7: =IF(AP7=0,0,(AP7*((LOG(AP7))/LOG(2)))) -> 0 | AS7: =N7 -> 111 | AT7: =COUNTIF(L65:L75,AS7) -> 5 | AU7: =AT7/(AV4-AT11) -> 1 | AV7: =IF(AU7=0,0,(AU7*((LOG(AU7))/LOG(2)))) -> 0
A8: 12 | B8: 119 | C8: 13 | D8: 122 | E8: 13 | F8: 127 | K8: 0 | L8: 111 | N8: 112 | O8: =COUNTIF($L$7:$L$500,N8) -> 0 | P8: =O8/$Q$4 -> 0 | Q8: =IF(P8=0,0,(P8*((LOG(P8))/LOG(2)))) -> 0 | T8: =N8 -> 112 | U8: =COUNTIF(L7:L18,T8) -> 0 | V8: =U8/(W4-U11) -> 0 | W8: =IF(V8=0,0,(V8*((LOG(V8))/LOG(2)))) -> 0 | Y8: =N8 -> 112 | Z8: =COUNTIF(L19:L29,Y8) -> 0 | AA8: =Z8/(AB4-Z11) -> 0 | AB8: =IF(AA8=0,0,(AA8*((LOG(AA8))/LOG(2)))) -> 0 | AD8: =N8 -> 112 | AE8: =COUNTIF(L30:L41,AD8) -> 0 | AF8: =AE8/(AG4-AE11) -> 0 | AG8: =IF(AF8=0,0,(AF8*((LOG(AF8))/LOG(2)))) -> 0 | AI8: =N8 -> 112 | AJ8: =COUNTIF(L42:L52,AI8) -> 0 | AK8: =AJ8/(AL4-AJ11) -> 0 | AL8: =IF(AK8=0,0,(AK8*((LOG(AK8))/LOG(2)))) -> 0 | AN8: =N8 -> 112 | AO8: =COUNTIF(L53:L64,AN8) -> 0 | AP8: =AO8/(AQ4-AO11) -> 0 | AQ8: =IF(AP8=0,0,(AP8*((LOG(AP8))/LOG(2)))) -> 0 | AS8: =N8 -> 112 | AT8: =COUNTIF(L65:L75,AS8) -> 0 | AU8: =AT8/(AV4-AT11) -> 0 | AV8: =IF(AU8=0,0,(AU8*((LOG(AU8))/LOG(2)))) -> 0
A9: 21 | B9: 221 | C9: 11 | D9: 229 | E9: 11 | F9: 233 | K9: 0 | L9: 211 | N9: 121 | O9: =COUNTIF($L$7:$L$500,N9) -> 0 | P9: =O9/$Q$4 -> 0 | Q9: =IF(P9=0,0,(P9*((LOG(P9))/LOG(2)))) -> 0 | T9: =N9 -> 121 | U9: =COUNTIF(L7:L18,T9) -> 0 | V9: =U9/(W4-U11) -> 0 | W9: =IF(V9=0,0,(V9*((LOG(V9))/LOG(2)))) -> 0 | Y9: =N9 -> 121 | Z9: =COUNTIF(L19:L29,Y9) -> 0 | AA9: =Z9/(AB4-Z11) -> 0 | AB9: =IF(AA9=0,0,(AA9*((LOG(AA9))/LOG(2)))) -> 0 | AD9: =N9 -> 121 | AE9: =COUNTIF(L30:L41,AD9) -> 0 | AF9: =AE9/(AG4-AE11) -> 0 | AG9: =IF(AF9=0,0,(AF9*((LOG(AF9))/LOG(2)))) -> 0 | AI9: =N9 -> 121 | AJ9: =COUNTIF(L42:L52,AI9) -> 0 | AK9: =AJ9/(AL4-AJ11) -> 0 | AL9: =IF(AK9=0,0,(AK9*((LOG(AK9))/LOG(2)))) -> 0 | AN9: =N9 -> 121 | AO9: =COUNTIF(L53:L64,AN9) -> 0 | AP9: =AO9/(AQ4-AO11) -> 0 | AQ9: =IF(AP9=0,0,(AP9*((LOG(AP9))/LOG(2)))) -> 0 | AS9: =N9 -> 121 | AT9: =COUNTIF(L65:L75,AS9) -> 0 | AU9: =AT9/(AV4-AT11) -> 0 | AV9: =IF(AU9=0,0,(AU9*((LOG(AU9))/LOG(2)))) -> 0
A10: 12 | B10: 358 | C10: 13 | D10: 363 | E10: 13 | F10: 377 | K10: 0 | L10: 111 | N10: 122 | O10: =COUNTIF($L$7:$L$500,N10) -> 0 | P10: =O10/$Q$4 -> 0 | Q10: =IF(P10=0,0,(P10*((LOG(P10))/LOG(2)))) -> 0 | T10: =N10 -> 122 | U10: =COUNTIF(L7:L18,T10) -> 0 | V10: =U10/(W4-U11) -> 0 | W10: =IF(V10=0,0,(V10*((LOG(V10))/LOG(2)))) -> 0 | Y10: =N10 -> 122 | Z10: =COUNTIF(L19:L29,Y10) -> 0 | AA10: =Z10/(AB4-Z11) -> 0 | AB10: =IF(AA10=0,0,(AA10*((LOG(AA10))/LOG(2)))) -> 0 | AD10: =N10 -> 122 | AE10: =COUNTIF(L30:L41,AD10) -> 0 | AF10: =AE10/(AG4-AE11) -> 0 | AG10: =IF(AF10=0,0,(AF10*((LOG(AF10))/LOG(2)))) -> 0 | AI10: =N10 -> 122 | AJ10: =COUNTIF(L42:L52,AI10) -> 0 | AK10: =AJ10/(AL4-AJ11) -> 0 | AL10: =IF(AK10=0,0,(AK10*((LOG(AK10))/LOG(2)))) -> 0 | AN10: =N10 -> 122 | AO10: =COUNTIF(L53:L64,AN10) -> 0 | AP10: =AO10/(AQ4-AO11) -> 0 | AQ10: =IF(AP10=0,0,(AP10*((LOG(AP10))/LOG(2)))) -> 0 | AS10: =N10 -> 122 | AT10: =COUNTIF(L65:L75,AS10) -> 0 | AU10: =AT10/(AV4-AT11) -> 0 | AV10: =IF(AU10=0,0,(AU10*((LOG(AU10))/LOG(2)))) -> 0
A11: 21 | B11: 475 | C11: 11 | D11: 484 | E11: 11 | F11: 490 | K11: 0 | L11: 211 | N11: 211 | O11: =COUNTIF($L$7:$L$500,N11) -> 39 | P11: =O11/$Q$4 -> 0.5652173913 | Q11: =IF(P11=0,0,(P11*((LOG(P11))/LOG(2)))) -> -0.465243004 | T11: =N11 -> 211 | U11: =COUNTIF(L7:L18,T11) -> 6 | Y11: =N11 -> 211 | Z11: =COUNTIF(L19:L29,Y11) -> 6 | AD11: =N11 -> 211 | AE11: =COUNTIF(L30:L41,AD11) -> 5 | AI11: =N11 -> 211 | AJ11: =COUNTIF(L42:L52,AI11) -> 7 | AN11: =N11 -> 211 | AO11: =COUNTIF(L53:L64,AN11) -> 9 | AS11: =N11 -> 211 | AT11: =COUNTIF(L65:L75,AS11) -> 6
A12: 12 | B12: 619 | C12: 13 | D12: 625 | E12: 13 | F12: 631 | K12: 0 | L12: 111 | N12: 212 | O12: =COUNTIF($L$7:$L$500,N12) -> 0 | P12: =O12/$Q$4 -> 0 | Q12: =IF(P12=0,0,(P12*((LOG(P12))/LOG(2)))) -> 0 | T12: =N12 -> 212 | U12: =COUNTIF(L7:L18,T12) -> 0 | V12: =U12/(W4-U11) -> 0 | W12: =IF(V12=0,0,(V12*((LOG(V12))/LOG(2)))) -> 0 | Y12: =N12 -> 212 | Z12: =COUNTIF(L19:L29,Y12) -> 0 | AA12: =Z12/(AB4-Z11) -> 0 | AB12: =IF(AA12=0,0,(AA12*((LOG(AA12))/LOG(2)))) -> 0 | AD12: =N12 -> 212 | AE12: =COUNTIF(L30:L41,AD12) -> 0 | AF12: =AE12/(AG4-AE11) -> 0 | AG12: =IF(AF12=0,0,(AF12*((LOG(AF12))/LOG(2)))) -> 0 | AI12: =N12 -> 212 | AJ12: =COUNTIF(L42:L52,AI12) -> 0 | AK12: =AJ12/(AL4-AJ11) -> 0 | AL12: =IF(AK12=0,0,(AK12*((LOG(AK12))/LOG(2)))) -> 0 | AN12: =N12 -> 212 | AO12: =COUNTIF(L53:L64,AN12) -> 0 | AP12: =AO12/(AQ4-AO11) -> 0 | AQ12: =IF(AP12=0,0,(AP12*((LOG(AP12))/LOG(2)))) -> 0 | AS12: =N12 -> 212 | AT12: =COUNTIF(L65:L75,AS12) -> 0 | AU12: =AT12/(AV4-AT11) -> 0 | AV12: =IF(AU12=0,0,(AU12*((LOG(AU12))/LOG(2)))) -> 0
A13: 21 | B13: 735 | C13: 11 | D13: 743 | E13: 11 | F13: 748 | K13: 0 | L13: 211 | N13: 221 | O13: =COUNTIF($L$7:$L$500,N13) -> 7 | P13: =O13/$Q$4 -> 0.1014492754 | Q13: =IF(P13=0,0,(P13*((LOG(P13))/LOG(2)))) -> -0.3349012571 | T13: =N13 -> 221 | U13: =COUNTIF(L7:L18,T13) -> 0 | V13: =U13/(W4-U11) -> 0 | W13: =IF(V13=0,0,(V13*((LOG(V13))/LOG(2)))) -> 0 | Y13: =N13 -> 221 | Z13: =COUNTIF(L19:L29,Y13) -> 1 | AA13: =Z13/(AB4-Z11) -> 0.2 | AB13: =IF(AA13=0,0,(AA13*((LOG(AA13))/LOG(2)))) -> -0.464385619 | AD13: =N13 -> 221 | AE13: =COUNTIF(L30:L41,AD13) -> 4 | AF13: =AE13/(AG4-AE11) -> 0.5714285714 | AG13: =IF(AF13=0,0,(AF13*((LOG(AF13))/LOG(2)))) -> -0.4613456697 | AI13: =N13 -> 221 | AJ13: =COUNTIF(L42:L52,AI13) -> 2 | AK13: =AJ13/(AL4-AJ11) -> 0.5 | AL13: =IF(AK13=0,0,(AK13*((LOG(AK13))/LOG(2)))) -> -0.5 | AN13: =N13 -> 221 | AO13: =COUNTIF(L53:L64,AN13) -> 0 | AP13: =AO13/(AQ4-AO11) -> 0 | AQ13: =IF(AP13=0,0,(AP13*((LOG(AP13))/LOG(2)))) -> 0 | AS13: =N13 -> 221 | AT13: =COUNTIF(L65:L75,AS13) -> 0 | AU13: =AT13/(AV4-AT11) -> 0 | AV13: =IF(AU13=0,0,(AU13*((LOG(AU13))/LOG(2)))) -> 0
A14: 21 | B14: 843 | C14: 11 | D14: 851 | E14: 11 | F14: 859 | K14: 0 | L14: 211 | N14: 222 | O14: =COUNTIF($L$7:$L$500,N14) -> 0 | P14: =O14/$Q$4 -> 0 | Q14: =IF(P14=0,0,(P14*((LOG(P14))/LOG(2)))) -> 0 | T14: =N14 -> 222 | U14: =COUNTIF(L7:L18,T14) -> 0 | V14: =U14/(W4-U11) -> 0 | W14: =IF(V14=0,0,(V14*((LOG(V14))/LOG(2)))) -> 0 | Y14: =N14 -> 222 | Z14: =COUNTIF(L19:L29,Y14) -> 0 | AA14: =Z14/(AB4-Z11) -> 0 | AB14: =IF(AA14=0,0,(AA14*((LOG(AA14))/LOG(2)))) -> 0 | AD14: =N14 -> 222 | AE14: =COUNTIF(L30:L41,AD14) -> 0 | AF14: =AE14/(AG4-AE11) -> 0 | AG14: =IF(AF14=0,0,(AF14*((LOG(AF14))/LOG(2)))) -> 0 | AI14: =N14 -> 222 | AJ14: =COUNTIF(L42:L52,AI14) -> 0 | AK14: =AJ14/(AL4-AJ11) -> 0 | AL14: =IF(AK14=0,0,(AK14*((LOG(AK14))/LOG(2)))) -> 0 | AN14: =N14 -> 222 | AO14: =COUNTIF(L53:L64,AN14) -> 0 | AP14: =AO14/(AQ4-AO11) -> 0 | AQ14: =IF(AP14=0,0,(AP14*((LOG(AP14))/LOG(2)))) -> 0 | AS14: =N14 -> 222 | AT14: =COUNTIF(L65:L75,AS14) -> 0 | AU14: =AT14/(AV4-AT11) -> 0 | AV14: =IF(AU14=0,0,(AU14*((LOG(AU14))/LOG(2)))) -> 0
A15: 12 | B15: 1032 | C15: 13 | D15: 1036 | E15: 13 | F15: 1045 | K15: 0 | L15: 111 | P15: =SUM(P7:P14) -> 1 | Q15: =-SUM(Q7:Q14) -> 1.328465095 | V15: =SUM(V7:V14) -> 1 | W15: =-SUM(W7:W14) -> 0 | AA15: =SUM(AA7:AA14) -> 1 | AB15: =-SUM(AB7:AB14) -> 0.7219280949 | AF15: =SUM(AF7:AF14) -> 1 | AG15: =-SUM(AG7:AG14) -> 0.985228136 | AK15: =SUM(AK7:AK14) -> 1 | AL15: =-SUM(AL7:AL14) -> 1 | AP15: =SUM(AP7:AP14) -> 1 | AQ15: =-SUM(AQ7:AQ14) -> 0 | AU15: =SUM(AU7:AU14) -> 1 | AV15: =-SUM(AV7:AV14) -> 0
A16: 21 | B16: 1137 | C16: 11 | D16: 1151 | E16: 11 | F16: 1162 | K16: 0 | L16: 211 | P16: U= | Q16: =Q15/(LOG(Q4)/LOG(2)) -> 0.2174772491 | V16: U1= | W16: =W15/(LOG(W4)/LOG(2)) -> 0 | AA16: U2= | AB16: =AB15/(LOG(AB4)/LOG(2)) -> 0.2086840194 | AF16: U3= | AG16: =AG15/(LOG(AG4)/LOG(2)) -> 0.2748224384 | AK16: U4= | AL16: =AL15/(LOG(AL4)/LOG(2)) -> 0.2890648263 | AP16: U5= | AQ16: =AQ15/(LOG(AQ4)/LOG(2)) -> 0 | AU16: U6= | AV16: =AV15/(LOG(AV4)/LOG(2)) -> 0
A17: 21 | B17: 1263 | C17: 11 | D17: 1273 | E17: 11 | F17: 1279 | K17: 0 | L17: 211
A18: 12 | B18: 1392 | C18: 13 | D18: 1396 | E18: 13 | F18: 1402 | K18: 0 | L18: 111
A19: 21 | B19: 1503 | C19: 11 | D19: 1512 | E19: 11 | F19: 1517 | K19: 0 | L19: 211 | N19: Total Target Seq
A20: 21 | B20: 1624 | C20: 11 | D20: 1633 | E20: 11 | F20: 1637 | K20: 0 | L20: 211 | N20: =COUNTIF(L7:L75,G3) -> 39 | P20: 12 | Q20: 11 | R20: 12 | S20: 11 | T20: 12 | U20: 11
A21: 12 | B21: 1833 | C21: 13 | D21: 1837 | E21: 13 | F21: 1844 | K21: 0 | L21: 111 | P21: % of reinforcement given in 6 equal intervals based on number of trials
A22: 21 | B22: 1946 | C22: 11 | D22: 1954 | E22: 11 | F22: 1959 | K22: 0 | L22: 211 | P22: %_1 | Q22: %_2 | R22: %_3 | S22: %_4 | T22: %_5 | U22: %_6
A23: 21 | B23: 2054 | C23: 11 | D23: 2062 | E23: 11 | F23: 2064 | K23: 0 | L23: 211 | O23: target sequence | P23: =$G$3 -> 211 | Q23: =$G$3 -> 211 | R23: =$G$3 -> 211 | S23: =$G$3 -> 211 | T23: =$G$3 -> 211 | U23: =$G$3 -> 211
A24: 12 | B24: 2209 | C24: 13 | D24: 2212 | E24: 13 | F24: 2219 | K24: 0 | L24: 111 | O24: total reinforcement | P24: =U11 -> 6 | Q24: =Z11 -> 6 | R24: =AE11 -> 5 | S24: =AJ11 -> 7 | T24: =AO11 -> 9 | U24: =AT11 -> 6
A25: 21 | B25: 2312 | C25: 22 | D25: 2316 | E25: 13 | F25: 2326 | K25: 0 | L25: 221 | O25: % target
A26: 12 | B26: 2430 | C26: 13 | D26: 2435 | E26: 13 | F26: 2442 | K26: 0 | L26: 111 | O26: CCRF
A27: 21 | B27: 2543 | C27: 11 | D27: 2553 | E27: 11 | F27: 2560 | K27: 0 | L27: 211 | O27: % CCRf
A28: 12 | B28: 2686 | C28: 13 | D28: 2689 | E28: 13 | F28: 2696 | K28: 0 | L28: 111 | O28: average response rate | P28: =F18/P20 -> 116.8333333 | Q28: =(F29-F18)/Q20 -> 128.0909091 | R28: =(F41-F29)/R20 -> 126.5 | S28: =(F52-F41)/S20 -> 141.8181818 | T28: =(F64-F52)/T20 -> 156.5833333 | U28: =(F75-F64)/U20 -> 148.9090909
A29: 21 | B29: 2796 | C29: 11 | D29: 2804 | E29: 11 | F29: 2811 | K29: 0 | L29: 211
A30: 12 | B30: 2920 | C30: 13 | D30: 2925 | E30: 13 | F30: 2940 | K30: 0 | L30: 111
A31: 21 | B31: 3036 | C31: 22 | D31: 3041 | E31: 13 | F31: 3049 | K31: 0 | L31: 221
A32: 21 | B32: 3152 | C32: 11 | D32: 3161 | E32: 11 | F32: 3172 | K32: 0 | L32: 211
A33: 12 | B33: 3311 | C33: 13 | D33: 3317 | E33: 13 | F33: 3325 | K33: 0 | L33: 111
A34: 21 | B34: 3424 | C34: 11 | D34: 3433 | E34: 11 | F34: 3457 | K34: 0 | L34: 211
A35: 12 | B35: 3603 | C35: 13 | D35: 3608 | E35: 13 | F35: 3614 | K35: 0 | L35: 111
A36: 21 | B36: 3708 | C36: 22 | D36: 3718 | E36: 13 | F36: 3727 | K36: 0 | L36: 221
A37: 21 | B37: 3825 | C37: 11 | D37: 3834 | E37: 11 | F37: 3841 | K37: 0 | L37: 211
A38: 21 | B38: 3940 | C38: 11 | D38: 3949 | E38: 11 | F38: 3975 | K38: 0 | L38: 211
A39: 21 | B39: 4081 | C39: 22 | D39: 4085 | E39: 13 | F39: 4092 | K39: 0 | L39: 221
A40: 21 | B40: 4191 | C40: 22 | D40: 4203 | E40: 13 | F40: 4211 | K40: 0 | L40: 221
A41: 21 | B41: 4311 | C41: 11 | D41: 4322 | E41: 11 | F41: 4329 | K41: 0 | L41: 211
A42: 21 | B42: 4497 | C42: 22 | D42: 4499 | E42: 13 | F42: 4505 | K42: 0 | L42: 221
A43: 21 | B43: 4601 | C43: 11 | D43: 4610 | E43: 11 | F43: 4616 | K43: 0 | L43: 211
A44: 21 | B44: 4718 | C44: 11 | D44: 4727 | E44: 11 | F44: 4732 | K44: 0 | L44: 211
A45: 21 | B45: 4937 | C45: 11 | D45: 4945 | E45: 11 | F45: 4951 | K45: 0 | L45: 211
A46: 21 | B46: 5078 | C46: 11 | D46: 5087 | E46: 11 | F46: 5102 | K46: 0 | L46: 211
A47: 21 | B47: 5216 | C47: 11 | D47: 5225 | E47: 11 | F47: 5229 | K47: 0 | L47: 211
A48: 21 | B48: 5386 | C48: 11 | D48: 5394 | E48: 11 | F48: 5399 | K48: 0 | L48: 211
A49: 12 | B49: 5514 | C49: 13 | D49: 5518 | E49: 13 | F49: 5526 | K49: 0 | L49: 111
A50: 21 | B50: 5622 | C50: 11 | D50: 5631 | E50: 11 | F50: 5637 | K50: 0 | L50: 211
A51: 12 | B51: 5760 | C51: 13 | D51: 5764 | E51: 13 | F51: 5771 | K51: 0 | L51: 111
A52: 21 | B52: 5868 | C52: 22 | D52: 5881 | E52: 13 | F52: 5889 | K52: 0 | L52: 221
A53: 21 | B53: 5987 | C53: 11 | D53: 5995 | E53: 11 | F53: 6001 | K53: 0 | L53: 211
A54: 12 | B54: 6090 | C54: 13 | D54: 6095 | E54: 13 | F54: 6108 | K54: 0 | L54: 111
A55: 21 | B55: 6207 | C55: 11 | D55: 6214 | E55: 11 | F55: 6220 | K55: 0 | L55: 211
A56: 21 | B56: 6334 | C56: 11 | D56: 6342 | E56: 11 | F56: 6347 | K56: 0 | L56: 211
A57: 21 | B57: 6522 | C57: 11 | D57: 6529 | E57: 11 | F57: 6534 | K57: 0 | L57: 211
A58: 21 | B58: 6663 | C58: 11 | D58: 6673 | E58: 11 | F58: 6676 | K58: 0 | L58: 211
A59: 21 | B59: 6911 | C59: 11 | D59: 6918 | E59: 11 | F59: 6923 | K59: 0 | L59: 211
A60: 21 | B60: 7118 | C60: 11 | D60: 7126 | E60: 11 | F60: 7131 | K60: 0 | L60: 211
A61: 12 | B61: 7360 | C61: 13 | D61: 7365 | E61: 13 | F61: 7373 | K61: 0 | L61: 111
A62: 12 | B62: 7478 | C62: 13 | D62: 7483 | E62: 13 | F62: 7494 | K62: 0 | L62: 111
A63: 21 | B63: 7586 | C63: 11 | D63: 7598 | E63: 11 | F63: 7602 | K63: 0 | L63: 211
A64: 21 | B64: 7749 | C64: 11 | D64: 7756 | E64: 11 | F64: 7768 | K64: 0 | L64: 211
A65: 12 | B65: 7928 | C65: 13 | D65: 7934 | E65: 13 | F65: 7946 | K65: 0 | L65: 111
A66: 21 | B66: 8049 | C66: 11 | D66: 8057 | E66: 11 | F66: 8062 | K66: 0 | L66: 211
A67: 12 | B67: 8221 | C67: 13 | D67: 8226 | E67: 13 | F67: 8239 | K67: 0 | L67: 111
A68: 21 | B68: 8344 | C68: 11 | D68: 8353 | E68: 11 | F68: 8358 | K68: 0 | L68: 211
A69: 12 | B69: 8524 | C69: 13 | D69: 8530 | E69: 13 | F69: 8542 | K69: 0 | L69: 111
A70: 21 | B70: 8639 | C70: 11 | D70: 8651 | E70: 11 | F70: 8657 | K70: 0 | L70: 211
A71: 21 | B71: 8778 | C71: 11 | D71: 8787 | E71: 11 | F71: 8791 | K71: 0 | L71: 211
A72: 21 | B72: 8939 | C72: 11 | D72: 8948 | E72: 11 | F72: 8950 | K72: 0 | L72: 211
A73: 12 | B73: 9143 | C73: 13 | D73: 9149 | E73: 13 | F73: 9157 | K73: 0 | L73: 111
A74: 12 | B74: 9267 | C74: 13 | D74: 9274 | E74: 13 | F74: 9290 | K74: 0 | L74: 111
A75: 21 | B75: 9391 | C75: 11 | D75: 9399 | E75: 11 | F75: 9406 | K75: 1 | L75: 211

Sheet !MA0294D.ust
A1: Report for:!MA0294D.ust
A2: Date: | B2: <date>
A3: Hen: | B3: <hen> | F3: Correct Sequence | G3: =Start!J2 -> 211 | P3: Total Sequences in Data | Q3: =4994-COUNTBLANK(L7:L5000) -> 56 | V3: Total Sequences in Block Data | W3: =COUNTA(L7:L15) -> 9 | AA3: Total Sequences in Block Data | AB3: =COUNTA(L16:L25) -> 10 | AF3: Total Sequences in Block Data | AG3: =COUNTA(L26:L34) -> 9 | AK3: Total Sequences in Block Data | AL3: =COUNTA(L35:L43) -> 9 | AP3: Total Sequences in Block Data | AQ3: =COUNTA(L44:L53) -> 10 | AU3: Total Sequences in Block Data | AV3: =COUNTA(L54:L62) -> 9
P4: Total Sequences in Summary | Q4: =SUM(O7:O14) -> 56 | V4: Total Sequences in Block Summary | W4: =SUM(U7:U14) -> 9 | AA4: Total Sequences in Block Summary | AB4: =SUM(Z7:Z14) -> 10 | AF4: Total Sequences in Block Summary | AG4: =SUM(AE7:AE14) -> 9 | AK4: Total Sequences in Block Summary | AL4: =SUM(AJ7:AJ14) -> 9 | AP4: Total Sequences in Block Summary | AQ4: =SUM(AO7:AO14) -> 10 | AU4: Total Sequences in Block Summary | AV4: =SUM(AT7:AT14) -> 9
T5: Block 1 | Y5: Block 2 | AD5: Block 3 | AI5: Block 4 | AN5: Block 5 | AS5: Block 6
A6: Sequence Component 1 | B6: Time 1 | C6: Sequence Component 2 | D6: Time 2 | E6: Sequence Component 3 | F6: Time 3 | G6: Sequence Component 4 | H6: Time 4 | I6: Sequence Component 5 | J6: Time 5 | K6: Correct? 0=No 1=Yes | L6: Sequence | N6: Frequency | P6: Relative Frequency | Q6: Variability | T6: Frequency | V6: Relative Frequency | W6: Variability | Y6: Frequency | AA6: Relative Frequency | AB6: Variability | AD6: Frequency | AF6: Relative Frequency | AG6: Variability | AI6: Frequency | AK6: Relative Frequency | AL6: Variability | AN6: Frequency | AP6: Relative Frequency | AQ6: Variability | AS6: Frequency | AU6: Relative Frequency | AV6: Variability
A7: 12 | B7: 11 | C7: 13 | D7: 17 | E7: 13 | F7: 28 | K7: 0 | L7: 111 | N7: 111 | O7: =COUNTIF($L$7:$L$500,N7) -> 12 | P7: =O7/$Q$4 -> 0.2142857143 | Q7: =IF(P7=0,0,(P7*((LOG(P7))/LOG(2)))) -> -0.4762269474 | T7: =N7 -> 111 | U7: =COUNTIF(L7:L15,T7) -> 4 | V7: =U7/(W4-U11) -> 1 | W7: =IF(V7=0,0,(V7*((LOG(V7))/LOG(2)))) -> 0 | Y7: =N7 -> 111 | Z7: =COUNTIF(L16:L25,Y7) -> 1 | AA7: =Z7/(AB4-Z11) -> 0.5 | AB7: =IF(AA7=0,0,(AA7*((LOG(AA7))/LOG(2)))) -> -0.5 | AD7: =N7 -> 111 | AE7: =COUNTIF(L26:L34,AD7) -> 0 | AF7: =AE7/(AG4-AE11) ->  | AG7: =IF(AF7=0,0,(AF7*((LOG(AF7))/LOG(2)))) ->  | AI7: =N7 -> 111 | AJ7: =COUNTIF(L35:L43,AI7) -> 4 | AK7: =AJ7/(AL4-AJ11) -> 1 | AL7: =IF(AK7=0,0,(AK7*((LOG(AK7))/LOG(2)))) -> 0 | AN7: =N7 -> 111 | AO7: =COUNTIF(L44:L53,AN7) -> 1 | AP7: =AO7/(AQ4-AO11) -> 0.5 | AQ7: =IF(AP7=0,0,(AP7*((LOG(AP7))/LOG(2)))) -> -0.5 | AS7: =N7 -> 111 | AT7: =COUNTIF(L54:L62,AS7) -> 2 | AU7: =AT7/(AV4-AT11) -> 0.4 | AV7: =IF(AU7=0,0,(AU7*((LOG(AU7))/LOG(2)))) -> -0.528771238
A8: 21 | B8: 121 | C8: 11 | D8: 132 | E8: 11 | F8: 137 | K8: 0 | L8: 211 | N8: 112 | O8: =COUNTIF($L$7:$L$500,N8) -> 2 | P8: =O8/$Q$4 -> 0.03571428571 | Q8: =IF(P8=0,0,(P8*((LOG(P8))/LOG(2)))) -> -0.1716912472 | T8: =N8 -> 112 | U8: =COUNTIF(L7:L15,T8) -> 0 | V8: =U8/(W4-U11) -> 0 | W8: =IF(V8=0,0,(V8*((LOG(V8))/LOG(2)))) -> 0 | Y8: =N8 -> 112 | Z8: =COUNTIF(L16:L25,Y8) -> 1 | AA8: =Z8/(AB4-Z11) -> 0.5 | AB8: =IF(AA8=0,0,(AA8*((LOG(AA8))/LOG(2)))) -> -0.5 | AD8: =N8 -> 112 | AE8: =COUNTIF(L26:L34,AD8) -> 0 | AF8: =AE8/(AG4-AE11) ->  | AG8: =IF(AF8=0,0,(AF8*((LOG(AF8))/LOG(2)))) ->  | AI8: =N8 -> 112 | AJ8: =COUNTIF(L35:L43,AI8) -> 0 | AK8: =AJ8/(AL4-AJ11) -> 0 | AL8: =IF(AK8=0,0,(AK8*((LOG(AK8))/LOG(2)))) -> 0 | AN8: =N8 -> 112 | AO8: =COUNTIF(L44:L53,AN8) -> 0 | AP8: =AO8/(AQ4-AO11) -> 0 | AQ8: =IF(AP8=0,0,(AP8*((LOG(AP8))/LOG(2)))) -> 0 | AS8: =N8 -> 112 | AT8: =COUNTIF(L54:L62,AS8) -> 1 | AU8: =AT8/(AV4-AT11) -> 0.2 | AV8: =IF(AU8=0,0,(AU8*((LOG(AU8))/LOG(2)))) -> -0.464385619
A9: 12 | B9: 359 | C9: 13 | D9: 365 | E9: 13 | F9: 370 | K9: 0 | L9: 111 | N9: 121 | O9: =COUNTIF($L$7:$L$500,N9) -> 0 | P9: =O9/$Q$4 -> 0 | Q9: =IF(P9=0,0,(P9*((LOG(P9))/LOG(2)))) -> 0 | T9: =N9 -> 121 | U9: =COUNTIF(L7:L15,T9) -> 0 | V9: =U9/(W4-U11) -> 0 | W9: =IF(V9=0,0,(V9*((LOG(V9))/LOG(2)))) -> 0 | Y9: =N9 -> 121 | Z9: =COUNTIF(L16:L25,Y9) -> 0 | AA9: =Z9/(AB4-Z11) -> 0 | AB9: =IF(AA9=0,0,(AA9*((LOG(AA9))/LOG(2)))) -> 0 | AD9: =N9 -> 121 | AE9: =COUNTIF(L26:L34,AD9) -> 0 | AF9: =AE9/(AG4-AE11) ->  | AG9: =IF(AF9=0,0,(AF9*((LOG(AF9))/LOG(2)))) ->  | AI9: =N9 -> 121 | AJ9: =COUNTIF(L35:L43,AI9) -> 0 | AK9: =AJ9/(AL4-AJ11) -> 0 | AL9: =IF(AK9=0,0,(AK9*((LOG(AK9))/LOG(2)))) -> 0 | AN9: =N9 -> 121 | AO9: =COUNTIF(L44:L53,AN9) -> 0 | AP9: =AO9/(AQ4-AO11) -> 0 | AQ9: =IF(AP9=0,0,(AP9*((LOG(AP9))/LOG(2)))) -> 0 | AS9: =N9 -> 121 | AT9: =COUNTIF(L54:L62,AS9) -> 0 | AU9: =AT9/(AV4-AT11) -> 0 | AV9: =IF(AU9=0,0,(AU9*((LOG(AU9))/LOG(2)))) -> 0
A10: 21 | B10: 470 | C10: 11 | D10: 479 | E10: 11 | F10: 484 | K10: 0 | L10: 211 | N10: 122 | O10: =COUNTIF($L$7:$L$500,N10) -> 0 | P10: =O10/$Q$4 -> 0 | Q10: =IF(P10=0,0,(P10*((LOG(P10))/LOG(2)))) -> 0 | T10: =N10 -> 122 | U10: =COUNTIF(L7:L15,T10) -> 0 | V10: =U10/(W4-U11) -> 0 | W10: =IF(V10=0,0,(V10*((LOG(V10))/LOG(2)))) -> 0 | Y10: =N10 -> 122 | Z10: =COUNTIF(L16:L25,Y10) -> 0 | AA10: =Z10/(AB4-Z11) -> 0 | AB10: =IF(AA10=0,0,(AA10*((LOG(AA10))/LOG(2)))) -> 0 | AD10: =N10 -> 122 | AE10: =COUNTIF(L26:L34,AD10) -> 0 | AF10: =AE10/(AG4-AE11) ->  | AG10: =IF(AF10=0,0,(AF10*((LOG(AF10))/LOG(2)))) ->  | AI10: =N10 -> 122 | AJ10: =COUNTIF(L35:L43,AI10) -> 0 | AK10: =AJ10/(AL4-AJ11) -> 0 | AL10: =IF(AK10=0,0,(AK10*((LOG(AK10))/LOG(2)))) -> 0 | AN10: =N10 -> 122 | AO10: =COUNTIF(L44:L53,AN10) -> 0 | AP10: =AO10/(AQ4-AO11) -> 0 | AQ10: =IF(AP10=0,0,(AP10*((LOG(AP10))/LOG(2)))) -> 0 | AS10: =N10 -> 122 | AT10: =COUNTIF(L54:L62,AS10) -> 0 | AU10: =AT10/(AV4-AT11) -> 0 | AV10: =IF(AU10=0,0,(AU10*((LOG(AU10))/LOG(2)))) -> 0
A11: 21 | B11: 733 | C11: 11 | D11: 741 | E11: 11 | F11: 746 | K11: 0 | L11: 211 | N11: 211 | O11: =COUNTIF($L$7:$L$500,N11) -> 39 | P11: =O11/$Q$4 -> 0.6964285714 | Q11: =IF(P11=0,0,(P11*((LOG(P11))/LOG(2)))) -> -0.3635027754 | T11: =N11 -> 211 | U11: =COUNTIF(L7:L15,T11) -> 5 | Y11: =N11 -> 211 | Z11: =COUNTIF(L16:L25,Y11) -> 8 | AD11: =N11 -> 211 | AE11: =COUNTIF(L26:L34,AD11) -> 9 | AI11: =N11 -> 211 | AJ11: =COUNTIF(L35:L43,AI11) -> 5 | AN11: =N11 -> 211 | AO11: =COUNTIF(L44:L53,AN11) -> 8 | AS11: =N11 -> 211 | AT11: =COUNTIF(L54:L62,AS11) -> 4
A12: 12 | B12: 921 | C12: 13 | D12: 933 | E12: 13 | F12: 943 | K12: 0 | L12: 111 | N12: 212 | O12: =COUNTIF($L$7:$L$500,N12) -> 0 | P12: =O12/$Q$4 -> 0 | Q12: =IF(P12=0,0,(P12*((LOG(P12))/LOG(2)))) -> 0 | T12: =N12 -> 212 | U12: =COUNTIF(L7:L15,T12) -> 0 | V12: =U12/(W4-U11) -> 0 | W12: =IF(V12=0,0,(V12*((LOG(V12))/LOG(2)))) -> 0 | Y12: =N12 -> 212 | Z12: =COUNTIF(L16:L25,Y12) -> 0 | AA12: =Z12/(AB4-Z11) -> 0 | AB12: =IF(AA12=0,0,(AA12*((LOG(AA12))/LOG(2)))) -> 0 | AD12: =N12 -> 212 | AE12: =COUNTIF(L26:L34,AD12) -> 0 | AF12: =AE12/(AG4-AE11) ->  | AG12: =IF(AF12=0,0,(AF12*((LOG(AF12))/LOG(2)))) ->  | AI12: =N12 -> 212 | AJ12: =COUNTIF(L35:L43,AI12) -> 0 | AK12: =AJ12/(AL4-AJ11) -> 0 | AL12: =IF(AK12=0,0,(AK12*((LOG(AK12))/LOG(2)))) -> 0 | AN12: =N12 -> 212 | AO12: =COUNTIF(L44:L53,AN12) -> 0 | AP12: =AO12/(AQ4-AO11) -> 0 | AQ12: =IF(AP12=0,0,(AP12*((LOG(AP12))/LOG(2)))) -> 0 | AS12: =N12 -> 212 | AT12: =COUNTIF(L54:L62,AS12) -> 0 | AU12: =AT12/(AV4-AT11) -> 0 | AV12: =IF(AU12=0,0,(AU12*((LOG(AU12))/LOG(2)))) -> 0
A13: 21 | B13: 1039 | C13: 11 | D13: 1052 | E13: 11 | F13: 1057 | K13: 0 | L13: 211 | N13: 221 | O13: =COUNTIF($L$7:$L$500,N13) -> 2 | P13: =O13/$Q$4 -> 0.03571428571 | Q13: =IF(P13=0,0,(P13*((LOG(P13))/LOG(2)))) -> -0.1716912472 | T13: =N13 -> 221 | U13: =COUNTIF(L7:L15,T13) -> 0 | V13: =U13/(W4-U11) -> 0 | W13: =IF(V13=0,0,(V13*((LOG(V13))/LOG(2)))) -> 0 | Y13: =N13 -> 221 | Z13: =COUNTIF(L16:L25,Y13) -> 0 | AA13: =Z13/(AB4-Z11) -> 0 | AB13: =IF(AA13=0,0,(AA13*((LOG(AA13))/LOG(2)))) -> 0 | AD13: =N13 -> 221 | AE13: =COUNTIF(L26:L34,AD13) -> 0 | AF13: =AE13/(AG4-AE11) ->  | AG13: =IF(AF13=0,0,(AF13*((LOG(AF13))/LOG(2)))) ->  | AI13: =N13 -> 221 | AJ13: =COUNTIF(L35:L43,AI13) -> 0 | AK13: =AJ13/(AL4-AJ11) -> 0 | AL13: =IF(AK13=0,0,(AK13*((LOG(AK13))/LOG(2)))) -> 0 | AN13: =N13 -> 221 | AO13: =COUNTIF(L44:L53,AN13) -> 0 | AP13: =AO13/(AQ4-AO11) -> 0 | AQ13: =IF(AP13=0,0,(AP13*((LOG(AP13))/LOG(2)))) -> 0 | AS13: =N13 -> 221 | AT13: =COUNTIF(L54:L62,AS13) -> 2 | AU13: =AT13/(AV4-AT11) -> 0.4 | AV13: =IF(AU13=0,0,(AU13*((LOG(AU13))/LOG(2)))) -> -0.528771238
A14: 21 | B14: 1173 | C14: 11 | D14: 1182 | E14: 11 | F14: 1186 | K14: 0 | L14: 211 | N14: 222 | O14: =COUNTIF($L$7:$L$500,N14) -> 1 | P14: =O14/$Q$4 -> 0.01785714286 | Q14: =IF(P14=0,0,(P14*((LOG(P14))/LOG(2)))) -> -0.1037027665 | T14: =N14 -> 222 | U14: =COUNTIF(L7:L15,T14) -> 0 | V14: =U14/(W4-U11) -> 0 | W14: =IF(V14=0,0,(V14*((LOG(V14))/LOG(2)))) -> 0 | Y14: =N14 -> 222 | Z14: =COUNTIF(L16:L25,Y14) -> 0 | AA14: =Z14/(AB4-Z11) -> 0 | AB14: =IF(AA14=0,0,(AA14*((LOG(AA14))/LOG(2)))) -> 0 | AD14: =N14 -> 222 | AE14: =COUNTIF(L26:L34,AD14) -> 0 | AF14: =AE14/(AG4-AE11) ->  | AG14: =IF(AF14=0,0,(AF14*((LOG(AF14))/LOG(2)))) ->  | AI14: =N14 -> 222 | AJ14: =COUNTIF(L35:L43,AI14) -> 0 | AK14: =AJ14/(AL4-AJ11) -> 0 | AL14: =IF(AK14=0,0,(AK14*((LOG(AK14))/LOG(2)))) -> 0 | AN14: =N14 -> 222 | AO14: =COUNTIF(L44:L53,AN14) -> 1 | AP14: =AO14/(AQ4-AO11) -> 0.5 | AQ14: =IF(AP14=0,0,(AP14*((LOG(AP14))/LOG(2)))) -> -0.5 | AS14: =N14 -> 222 | AT14: =COUNTIF(L54:L62,AS14) -> 0 | AU14: =AT14/(AV4-AT11) -> 0 | AV14: =IF(AU14=0,0,(AU14*((LOG(AU14))/LOG(2)))) -> 0
A15: 12 | B15: 1373 | C15: 13 | D15: 1376 | E15: 13 | F15: 1385 | K15: 0 | L15: 111 | P15: =SUM(P7:P14) -> 1 | Q15: =-SUM(Q7:Q14) -> 1.286814984 | V15: =SUM(V7:V14) -> 1 | W15: =-SUM(W7:W14) -> 0 | AA15: =SUM(AA7:AA14) -> 1 | AB15: =-SUM(AB7:AB14) -> 1 | AF15: =SUM(AF7:AF14) ->  | AG15: =-SUM(AG7:AG14) ->  | AK15: =SUM(AK7:AK14) -> 1 | AL15: =-SUM(AL7:AL14) -> 0 | AP15: =SUM(AP7:AP14) -> 1 | AQ15: =-SUM(AQ7:AQ14) -> 1 | AU15: =SUM(AU7:AU14) -> 1 | AV15: =-SUM(AV7:AV14) -> 1.521928095
A16: 21 | B16: 1480 | C16: 11 | D16: 1492 | E16: 11 | F16: 1499 | K16: 0 | L16: 211 | P16: U= | Q16: =Q15/(LOG(Q4)/LOG(2)) -> 0.2215836643 | V16: U1= | W16: =W15/(LOG(W4)/LOG(2)) -> 0 | AA16: U2= | AB16: =AB15/(LOG(AB4)/LOG(2)) -> 0.3010299957 | AF16: U3= | AG16: =AG15/(LOG(AG4)/LOG(2)) ->  | AK16: U4= | AL16: =AL15/(LOG(AL4)/LOG(2)) -> 0 | AP16: U5= | AQ16: =AQ15/(LOG(AQ4)/LOG(2)) -> 0.3010299957 | AU16: U6= | AV16: =AV15/(LOG(AV4)/LOG(2)) -> 0.4801148589
A17: 21 | B17: 1652 | C17: 11 | D17: 1661 | E17: 11 | F17: 1670 | K17: 0 | L17: 211
A18: 21 | B18: 1900 | C18: 11 | D18: 1907 | E18: 11 | F18: 1916 | K18: 0 | L18: 211
A19: 21 | B19: 2069 | C19: 11 | D19: 2078 | E19: 11 | F19: 2082 | K19: 0 | L19: 211 | N19: Total Target Seq
A20: 21 | B20: 2251 | C20: 11 | D20: 2261 | E20: 11 | F20: 2264 | K20: 0 | L20: 211 | N20: =COUNTIF(L7:L62,G3) -> 39 | P20: 9 | Q20: 10 | R20: 9 | S20: 9 | T20: 10 | U20: 9
A21: 12 | B21: 2438 | C21: 13 | D21: 2443 | E21: 13 | F21: 2457 | K21: 0 | L21: 111 | P21: % of reinforcement given in 6 equal intervals based on number of trials
A22: 21 | B22: 2554 | C22: 11 | D22: 2563 | E22: 11 | F22: 2567 | K22: 0 | L22: 211 | P22: %_1 | Q22: %_2 | R22: %_3 | S22: %_4 | T22: %_5 | U22: %_6
A23: 21 | B23: 2784 | C23: 11 | D23: 2792 | E23: 11 | F23: 2797 | K23: 0 | L23: 211 | O23: target sequence | P23: =$G$3 -> 211 | Q23: =$G$3 -> 211 | R23: =$G$3 -> 211 | S23: =$G$3 -> 211 | T23: =$G$3 -> 211 | U23: =$G$3 -> 211
A24: 12 | B24: 3018 | C24: 13 | D24: 3025 | E24: 24 | F24: 3151 | K24: 0 | L24: 112 | O24: total reinforcement | P24: =U11 -> 5 | Q24: =Z11 -> 8 | R24: =AE11 -> 9 | S24: =AJ11 -> 5 | T24: =AO11 -> 8 | U24: =AT11 -> 4
A25: 21 | B25: 3301 | C25: 11 | D25: 3308 | E25: 11 | F25: 3312 | K25: 0 | L25: 211 | O25: % target
A26: 21 | B26: 3466 | C26: 11 | D26: 3475 | E26: 11 | F26: 3491 | K26: 0 | L26: 211 | O26: CCRF
A27: 21 | B27: 3683 | C27: 11 | D27: 3690 | E27: 11 | F27: 3694 | K27: 0 | L27: 211 | O27: % CCRf
A28: 21 | B28: 3828 | C28: 11 | D28: 3836 | E28: 11 | F28: 3840 | K28: 0 | L28: 211 | O28: average response rate | P28: =F15/P20 -> 153.8888889 | Q28: =(F25-F15)/Q20 -> 192.7 | R28: =(F34-F25)/R20 -> 203 | S28: =(F43-F34)/S20 -> 162 | T28: =(F53-F43)/T20 -> 185.4 | U28: =(F62-F53)/U20 -> 147
A29: 21 | B29: 4035 | C29: 11 | D29: 4043 | E29: 11 | F29: 4045 | K29: 0 | L29: 211
A30: 21 | B30: 4211 | C30: 11 | D30: 4223 | E30: 11 | F30: 4237 | K30: 0 | L30: 211
A31: 21 | B31: 4504 | C31: 11 | D31: 4513 | E31: 11 | F31: 4522 | K31: 0 | L31: 211
A32: 21 | B32: 4683 | C32: 11 | D32: 4694 | E32: 11 | F32: 4699 | K32: 0 | L32: 211
A33: 21 | B33: 4923 | C33: 11 | D33: 4931 | E33: 11 | F33: 4937 | K33: 0 | L33: 211
A34: 21 | B34: 5126 | C34: 11 | D34: 5135 | E34: 11 | F34: 5139 | K34: 0 | L34: 211
A35: 12 | B35: 5324 | C35: 13 | D35: 5328 | E35: 13 | F35: 5343 | K35: 0 | L35: 111
A36: 12 | B36: 5454 | C36: 13 | D36: 5459 | E36: 13 | F36: 5473 | K36: 0 | L36: 111
A37: 21 | B37: 5569 | C37: 11 | D37: 5579 | E37: 11 | F37: 5583 | K37: 0 | L37: 211
A38: 21 | B38: 5773 | C38: 11 | D38: 5780 | E38: 11 | F38: 5785 | K38: 0 | L38: 211
A39: 12 | B39: 5953 | C39: 13 | D39: 5962 | E39: 13 | F39: 5971 | K39: 0 | L39: 111
A40: 21 | B40: 6067 | C40: 11 | D40: 6076 | E40: 11 | F40: 6084 | K40: 0 | L40: 211
A41: 21 | B41: 6225 | C41: 11 | D41: 6232 | E41: 11 | F41: 6236 | K41: 0 | L41: 211
A42: 21 | B42: 6389 | C42: 11 | D42: 6399 | E42: 11 | F42: 6409 | K42: 0 | L42: 211
A43: 12 | B43: 6584 | C43: 13 | D43: 6590 | E43: 13 | F43: 6597 | K43: 0 | L43: 111
A44: 21 | B44: 6692 | C44: 11 | D44: 6703 | E44: 11 | F44: 6707 | K44: 0 | L44: 211
A45: 21 | B45: 6870 | C45: 11 | D45: 6879 | E45: 11 | F45: 6885 | K45: 0 | L45: 211
A46: 21 | B46: 7050 | C46: 11 | D46: 7059 | E46: 11 | F46: 7063 | K46: 0 | L46: 211
A47: 21 | B47: 7265 | C47: 11 | D47: 7274 | E47: 11 | F47: 7278 | K47: 0 | L47: 211
A48: 21 | B48: 7545 | C48: 11 | D48: 7554 | E48: 11 | F48: 7560 | K48: 0 | L48: 211
A49: 21 | B49: 7765 | C49: 11 | D49: 7776 | E49: 11 | F49: 7787 | K49: 0 | L49: 211
A50: 21 | B50: 8026 | C50: 11 | D50: 8034 | E50: 11 | F50: 8039 | K50: 0 | L50: 211
A51: 21 | B51: 8195 | C51: 22 | D51: 8201 | E51: 24 | F51: 8211 | K51: 0 | L51: 222
A52: 12 | B52: 8312 | C52: 13 | D52: 8317 | E52: 13 | F52: 8338 | K52: 0 | L52: 111
A53: 21 | B53: 8437 | C53: 11 | D53: 8446 | E53: 11 | F53: 8451 | K53: 0 | L53: 211
A54: 12 | B54: 8622 | C54: 13 | D54: 8626 | E54: 13 | F54: 8635 | K54: 0 | L54: 111
A55: 21 | B55: 8727 | C55: 22 | D55: 8732 | E55: 13 | F55: 8744 | K55: 0 | L55: 221
A56: 21 | B56: 8842 | C56: 11 | D56: 8853 | E56: 11 | F56: 8858 | K56: 0 | L56: 211
A57: 21 | B57: 8987 | C57: 11 | D57: 8996 | E57: 11 | F57: 9000 | K57: 0 | L57: 211
A58: 12 | B58: 9195 | C58: 13 | D58: 9199 | E58: 13 | F58: 9206 | K58: 0 | L58: 111
A59: 21 | B59: 9298 | C59: 22 | D59: 9304 | E59: 13 | F59: 9313 | K59: 0 | L59: 221
A60: 21 | B60: 9432 | C60: 11 | D60: 9443 | E60: 11 | F60: 9460 | K60: 0 | L60: 211
A61: 12 | B61: 9639 | C61: 13 | D61: 9646 | E61: 24 | F61: 9662 | K61: 0 | L61: 112
A62: 21 | B62: 9758 | C62: 11 | D62: 9769 | E62: 11 | F62: 9774 | K62: 1 | L62: 211

Sheet !MA0394D.ust
A1: Report for:!MA0394D.ust
A2: Date: | B2: <date>
A3: Hen: | B3: <hen> | F3: Correct Sequence | G3: =Start!J2 -> 211 | P3: Total Sequences in Data | Q3: =4994-COUNTBLANK(L7:L5000) -> 58 | V3: Total Sequences in Block Data | W3: =COUNTA(L7:L16) -> 10 | AA3: Total Sequences in Block Data | AB3: =COUNTA(L17:L25) -> 9 | AF3: Total Sequences in Block Data | AG3: =COUNTA(L26:L35) -> 10 | AK3: Total Sequences in Block Data | AL3: =COUNTA(L36:L45) -> 10 | AP3: Total Sequences in Block Data | AQ3: =COUNTA(L46:L54) -> 9 | AU3: Total Sequences in Block Data | AV3: =COUNTA(L55:L64) -> 10
P4: Total Sequences in Summary | Q4: =SUM(O7:O14) -> 58 | V4: Total Sequences in Block Summary | W4: =SUM(U7:U14) -> 10 | AA4: Total Sequences in Block Summary | AB4: =SUM(Z7:Z14) -> 9 | AF4: Total Sequences in Block Summary | AG4: =SUM(AE7:AE14) -> 10 | AK4: Total Sequences in Block Summary | AL4: =SUM(AJ7:AJ14) -> 10 | AP4: Total Sequences in Block Summary | AQ4: =SUM(AO7:AO14) -> 9 | AU4: Total Sequences in Block Summary | AV4: =SUM(AT7:AT14) -> 10
T5: Block 1 | Y5: Block 2 | AD5: Block 3 | AI5: Block 4 | AN5: Block 5 | AS5: Block 6
A6: Sequence Component 1 | B6: Time 1 | C6: Sequence Component 2 | D6: Time 2 | E6: Sequence Component 3 | F6: Time 3 | G6: Sequence Component 4 | H6: Time 4 | I6: Sequence Component 5 | J6: Time 5 | K6: Correct? 0=No 1=Yes | L6: Sequence | N6: Frequency | P6: Relative Frequency | Q6: Variability | T6: Frequency | V6: Relative Frequency | W6: Variability | Y6: Frequency | AA6: Relative Frequency | AB6: Variability | AD6: Frequency | AF6: Relative Frequency | AG6: Variability | AI6: Frequency | AK6: Relative Frequency | AL6: Variability | AN6: Frequency | AP6: Relative Frequency | AQ6: Variability | AS6: Frequency | AU6: Relative Frequency | AV6: Variability
A7: 12 | B7: 4 | C7: 13 | D7: 15 | E7: 13 | F7: 22 | K7: 0 | L7: 111 | N7: 111 | O7: =COUNTIF($L$7:$L$500,N7) -> 12 | P7: =O7/$Q$4 -> 0.2068965517 | Q7: =IF(P7=0,0,(P7*((LOG(P7))/LOG(2)))) -> -0.4702796885 | T7: =N7 -> 111 | U7: =COUNTIF(L7:L16,T7) -> 2 | V7: =U7/(W4-U11) -> 1 | W7: =IF(V7=0,0,(V7*((LOG(V7))/LOG(2)))) -> 0 | Y7: =N7 -> 111 | Z7: =COUNTIF(L17:L25,Y7) -> 1 | AA7: =Z7/(AB4-Z11) -> 0.5 | AB7: =IF(AA7=0,0,(AA7*((LOG(AA7))/LOG(2)))) -> -0.5 | AD7: =N7 -> 111 | AE7: =COUNTIF(L26:L35,AD7) -> 3 | AF7: =AE7/(AG4-AE11) -> 1 | AG7: =IF(AF7=0,0,(AF7*((LOG(AF7))/LOG(2)))) -> 0 | AI7: =N7 -> 111 | AJ7: =COUNTIF(L36:L45,AI7) -> 2 | AK7: =AJ7/(AL4-AJ11) -> 0.5 | AL7: =IF(AK7=0,0,(AK7*((LOG(AK7))/LOG(2)))) -> -0.5 | AN7: =N7 -> 111 | AO7: =COUNTIF(L46:L54,AN7) -> 2 | AP7: =AO7/(AQ4-AO11) -> 0.6666666667 | AQ7: =IF(AP7=0,0,(AP7*((LOG(AP7))/LOG(2)))) -> -0.3899750005 | AS7: =N7 -> 111 | AT7: =COUNTIF(L55:L64,AS7) -> 2 | AU7: =AT7/(AV4-AT11) -> 0.4 | AV7: =IF(AU7=0,0,(AU7*((LOG(AU7))/LOG(2)))) -> -0.528771238
A8: 21 | B8: 121 | C8: 11 | D8: 130 | E8: 11 | F8: 136 | K8: 0 | L8: 211 | N8: 112 | O8: =COUNTIF($L$7:$L$500,N8) -> 4 | P8: =O8/$Q$4 -> 0.06896551724 | Q8: =IF(P8=0,0,(P8*((LOG(P8))/LOG(2)))) -> -0.2660676548 | T8: =N8 -> 112 | U8: =COUNTIF(L7:L16,T8) -> 0 | V8: =U8/(W4-U11) -> 0 | W8: =IF(V8=0,0,(V8*((LOG(V8))/LOG(2)))) -> 0 | Y8: =N8 -> 112 | Z8: =COUNTIF(L17:L25,Y8) -> 0 | AA8: =Z8/(AB4-Z11) -> 0 | AB8: =IF(AA8=0,0,(AA8*((LOG(AA8))/LOG(2)))) -> 0 | AD8: =N8 -> 112 | AE8: =COUNTIF(L26:L35,AD8) -> 0 | AF8: =AE8/(AG4-AE11) -> 0 | AG8: =IF(AF8=0,0,(AF8*((LOG(AF8))/LOG(2)))) -> 0 | AI8: =N8 -> 112 | AJ8: =COUNTIF(L36:L45,AI8) -> 1 | AK8: =AJ8/(AL4-AJ11) -> 0.25 | AL8: =IF(AK8=0,0,(AK8*((LOG(AK8))/LOG(2)))) -> -0.5 | AN8: =N8 -> 112 | AO8: =COUNTIF(L46:L54,AN8) -> 1 | AP8: =AO8/(AQ4-AO11) -> 0.3333333333 | AQ8: =IF(AP8=0,0,(AP8*((LOG(AP8))/LOG(2)))) -> -0.5283208336 | AS8: =N8 -> 112 | AT8: =COUNTIF(L55:L64,AS8) -> 2 | AU8: =AT8/(AV4-AT11) -> 0.4 | AV8: =IF(AU8=0,0,(AU8*((LOG(AU8))/LOG(2)))) -> -0.528771238
A9: 12 | B9: 340 | C9: 13 | D9: 344 | E9: 13 | F9: 354 | K9: 0 | L9: 111 | N9: 121 | O9: =COUNTIF($L$7:$L$500,N9) -> 0 | P9: =O9/$Q$4 -> 0 | Q9: =IF(P9=0,0,(P9*((LOG(P9))/LOG(2)))) -> 0 | T9: =N9 -> 121 | U9: =COUNTIF(L7:L16,T9) -> 0 | V9: =U9/(W4-U11) -> 0 | W9: =IF(V9=0,0,(V9*((LOG(V9))/LOG(2)))) -> 0 | Y9: =N9 -> 121 | Z9: =COUNTIF(L17:L25,Y9) -> 0 | AA9: =Z9/(AB4-Z11) -> 0 | AB9: =IF(AA9=0,0,(AA9*((LOG(AA9))/LOG(2)))) -> 0 | AD9: =N9 -> 121 | AE9: =COUNTIF(L26:L35,AD9) -> 0 | AF9: =AE9/(AG4-AE11) -> 0 | AG9: =IF(AF9=0,0,(AF9*((LOG(AF9))/LOG(2)))) -> 0 | AI9: =N9 -> 121 | AJ9: =COUNTIF(L36:L45,AI9) -> 0 | AK9: =AJ9/(AL4-AJ11) -> 0 | AL9: =IF(AK9=0,0,(AK9*((LOG(AK9))/LOG(2)))) -> 0 | AN9: =N9 -> 121 | AO9: =COUNTIF(L46:L54,AN9) -> 0 | AP9: =AO9/(AQ4-AO11) -> 0 | AQ9: =IF(AP9=0,0,(AP9*((LOG(AP9))/LOG(2)))) -> 0 | AS9: =N9 -> 121 | AT9: =COUNTIF(L55:L64,AS9) -> 0 | AU9: =AT9/(AV4-AT11) -> 0 | AV9: =IF(AU9=0,0,(AU9*((LOG(AU9))/LOG(2)))) -> 0
A10: 21 | B10: 454 | C10: 11 | D10: 465 | E10: 11 | F10: 471 | K10: 0 | L10: 211 | N10: 122 | O10: =COUNTIF($L$7:$L$500,N10) -> 0 | P10: =O10/$Q$4 -> 0 | Q10: =IF(P10=0,0,(P10*((LOG(P10))/LOG(2)))) -> 0 | T10: =N10 -> 122 | U10: =COUNTIF(L7:L16,T10) -> 0 | V10: =U10/(W4-U11) -> 0 | W10: =IF(V10=0,0,(V10*((LOG(V10))/LOG(2)))) -> 0 | Y10: =N10 -> 122 | Z10: =COUNTIF(L17:L25,Y10) -> 0 | AA10: =Z10/(AB4-Z11) -> 0 | AB10: =IF(AA10=0,0,(AA10*((LOG(AA10))/LOG(2)))) -> 0 | AD10: =N10 -> 122 | AE10: =COUNTIF(L26:L35,AD10) -> 0 | AF10: =AE10/(AG4-AE11) -> 0 | AG10: =IF(AF10=0,0,(AF10*((LOG(AF10))/LOG(2)))) -> 0 | AI10: =N10 -> 122 | AJ10: =COUNTIF(L36:L45,AI10) -> 0 | AK10: =AJ10/(AL4-AJ11) -> 0 | AL10: =IF(AK10=0,0,(AK10*((LOG(AK10))/LOG(2)))) -> 0 | AN10: =N10 -> 122 | AO10: =COUNTIF(L46:L54,AN10) -> 0 | AP10: =AO10/(AQ4-AO11) -> 0 | AQ10: =IF(AP10=0,0,(AP10*((LOG(AP10))/LOG(2)))) -> 0 | AS10: =N10 -> 122 | AT10: =COUNTIF(L55:L64,AS10) -> 0 | AU10: =AT10/(AV4-AT11) -> 0 | AV10: =IF(AU10=0,0,(AU10*((LOG(AU10))/LOG(2)))) -> 0
A11: 21 | B11: 598 | C11: 11 | D11: 606 | E11: 11 | F11: 611 | K11: 0 | L11: 211 | N11: 211 | O11: =COUNTIF($L$7:$L$500,N11) -> 39 | P11: =O11/$Q$4 -> 0.6724137931 | Q11: =IF(P11=0,0,(P11*((LOG(P11))/LOG(2)))) -> -0.3850098668 | T11: =N11 -> 211 | U11: =COUNTIF(L7:L16,T11) -> 8 | Y11: =N11 -> 211 | Z11: =COUNTIF(L17:L25,Y11) -> 7 | AD11: =N11 -> 211 | AE11: =COUNTIF(L26:L35,AD11) -> 7 | AI11: =N11 -> 211 | AJ11: =COUNTIF(L36:L45,AI11) -> 6 | AN11: =N11 -> 211 | AO11: =COUNTIF(L46:L54,AN11) -> 6 | AS11: =N11 -> 211 | AT11: =COUNTIF(L55:L64,AS11) -> 5
A12: 21 | B12: 836 | C12: 11 | D12: 846 | E12: 11 | F12: 849 | K12: 0 | L12: 211 | N12: 212 | O12: =COUNTIF($L$7:$L$500,N12) -> 0 | P12: =O12/$Q$4 -> 0 | Q12: =IF(P12=0,0,(P12*((LOG(P12))/LOG(2)))) -> 0 | T12: =N12 -> 212 | U12: =COUNTIF(L7:L16,T12) -> 0 | V12: =U12/(W4-U11) -> 0 | W12: =IF(V12=0,0,(V12*((LOG(V12))/LOG(2)))) -> 0 | Y12: =N12 -> 212 | Z12: =COUNTIF(L17:L25,Y12) -> 0 | AA12: =Z12/(AB4-Z11) -> 0 | AB12: =IF(AA12=0,0,(AA12*((LOG(AA12))/LOG(2)))) -> 0 | AD12: =N12 -> 212 | AE12: =COUNTIF(L26:L35,AD12) -> 0 | AF12: =AE12/(AG4-AE11) -> 0 | AG12: =IF(AF12=0,0,(AF12*((LOG(AF12))/LOG(2)))) -> 0 | AI12: =N12 -> 212 | AJ12: =COUNTIF(L36:L45,AI12) -> 0 | AK12: =AJ12/(AL4-AJ11) -> 0 | AL12: =IF(AK12=0,0,(AK12*((LOG(AK12))/LOG(2)))) -> 0 | AN12: =N12 -> 212 | AO12: =COUNTIF(L46:L54,AN12) -> 0 | AP12: =AO12/(AQ4-AO11) -> 0 | AQ12: =IF(AP12=0,0,(AP12*((LOG(AP12))/LOG(2)))) -> 0 | AS12: =N12 -> 212 | AT12: =COUNTIF(L55:L64,AS12) -> 0 | AU12: =AT12/(AV4-AT11) -> 0 | AV12: =IF(AU12=0,0,(AU12*((LOG(AU12))/LOG(2)))) -> 0
A13: 21 | B13: 1007 | C13: 11 | D13: 1016 | E13: 11 | F13: 1020 | K13: 0 | L13: 211 | N13: 221 | O13: =COUNTIF($L$7:$L$500,N13) -> 3 | P13: =O13/$Q$4 -> 0.05172413793 | Q13: =IF(P13=0,0,(P13*((LOG(P13))/LOG(2)))) -> -0.221018198 | T13: =N13 -> 221 | U13: =COUNTIF(L7:L16,T13) -> 0 | V13: =U13/(W4-U11) -> 0 | W13: =IF(V13=0,0,(V13*((LOG(V13))/LOG(2)))) -> 0 | Y13: =N13 -> 221 | Z13: =COUNTIF(L17:L25,Y13) -> 1 | AA13: =Z13/(AB4-Z11) -> 0.5 | AB13: =IF(AA13=0,0,(AA13*((LOG(AA13))/LOG(2)))) -> -0.5 | AD13: =N13 -> 221 | AE13: =COUNTIF(L26:L35,AD13) -> 0 | AF13: =AE13/(AG4-AE11) -> 0 | AG13: =IF(AF13=0,0,(AF13*((LOG(AF13))/LOG(2)))) -> 0 | AI13: =N13 -> 221 | AJ13: =COUNTIF(L36:L45,AI13) -> 1 | AK13: =AJ13/(AL4-AJ11) -> 0.25 | AL13: =IF(AK13=0,0,(AK13*((LOG(AK13))/LOG(2)))) -> -0.5 | AN13: =N13 -> 221 | AO13: =COUNTIF(L46:L54,AN13) -> 0 | AP13: =AO13/(AQ4-AO11) -> 0 | AQ13: =IF(AP13=0,0,(AP13*((LOG(AP13))/LOG(2)))) -> 0 | AS13: =N13 -> 221 | AT13: =COUNTIF(L55:L64,AS13) -> 1 | AU13: =AT13/(AV4-AT11) -> 0.2 | AV13: =IF(AU13=0,0,(AU13*((LOG(AU13))/LOG(2)))) -> -0.464385619
A14: 21 | B14: 1190 | C14: 11 | D14: 1198 | E14: 11 | F14: 1203 | K14: 0 | L14: 211 | N14: 222 | O14: =COUNTIF($L$7:$L$500,N14) -> 0 | P14: =O14/$Q$4 -> 0 | Q14: =IF(P14=0,0,(P14*((LOG(P14))/LOG(2)))) -> 0 | T14: =N14 -> 222 | U14: =COUNTIF(L7:L16,T14) -> 0 | V14: =U14/(W4-U11) -> 0 | W14: =IF(V14=0,0,(V14*((LOG(V14))/LOG(2)))) -> 0 | Y14: =N14 -> 222 | Z14: =COUNTIF(L17:L25,Y14) -> 0 | AA14: =Z14/(AB4-Z11) -> 0 | AB14: =IF(AA14=0,0,(AA14*((LOG(AA14))/LOG(2)))) -> 0 | AD14: =N14 -> 222 | AE14: =COUNTIF(L26:L35,AD14) -> 0 | AF14: =AE14/(AG4-AE11) -> 0 | AG14: =IF(AF14=0,0,(AF14*((LOG(AF14))/LOG(2)))) -> 0 | AI14: =N14 -> 222 | AJ14: =COUNTIF(L36:L45,AI14) -> 0 | AK14: =AJ14/(AL4-AJ11) -> 0 | AL14: =IF(AK14=0,0,(AK14*((LOG(AK14))/LOG(2)))) -> 0 | AN14: =N14 -> 222 | AO14: =COUNTIF(L46:L54,AN14) -> 0 | AP14: =AO14/(AQ4-AO11) -> 0 | AQ14: =IF(AP14=0,0,(AP14*((LOG(AP14))/LOG(2)))) -> 0 | AS14: =N14 -> 222 | AT14: =COUNTIF(L55:L64,AS14) -> 0 | AU14: =AT14/(AV4-AT11) -> 0 | AV14: =IF(AU14=0,0,(AU14*((LOG(AU14))/LOG(2)))) -> 0
A15: 21 | B15: 1364 | C15: 11 | D15: 1377 | E15: 11 | F15: 1384 | K15: 0 | L15: 211 | P15: =SUM(P7:P14) -> 1 | Q15: =-SUM(Q7:Q14) -> 1.342375408 | V15: =SUM(V7:V14) -> 1 | W15: =-SUM(W7:W14) -> 0 | AA15: =SUM(AA7:AA14) -> 1 | AB15: =-SUM(AB7:AB14) -> 1 | AF15: =SUM(AF7:AF14) -> 1 | AG15: =-SUM(AG7:AG14) -> 0 | AK15: =SUM(AK7:AK14) -> 1 | AL15: =-SUM(AL7:AL14) -> 1.5 | AP15: =SUM(AP7:AP14) -> 1 | AQ15: =-SUM(AQ7:AQ14) -> 0.9182958341 | AU15: =SUM(AU7:AU14) -> 1 | AV15: =-SUM(AV7:AV14) -> 1.521928095
A16: 21 | B16: 1569 | C16: 11 | D16: 1578 | E16: 11 | F16: 1582 | K16: 0 | L16: 211 | P16: U= | Q16: =Q15/(LOG(Q4)/LOG(2)) -> 0.2291532542 | V16: U1= | W16: =W15/(LOG(W4)/LOG(2)) -> 0 | AA16: U2= | AB16: =AB15/(LOG(AB4)/LOG(2)) -> 0.3154648768 | AF16: U3= | AG16: =AG15/(LOG(AG4)/LOG(2)) -> 0 | AK16: U4= | AL16: =AL15/(LOG(AL4)/LOG(2)) -> 0.4515449935 | AP16: U5= | AQ16: =AQ15/(LOG(AQ4)/LOG(2)) -> 0.2896900821 | AU16: U6= | AV16: =AV15/(LOG(AV4)/LOG(2)) -> 0.4581460078
A17: 12 | B17: 1796 | C17: 13 | D17: 1800 | E17: 13 | F17: 1811 | K17: 0 | L17: 111
A18: 21 | B18: 1907 | C18: 22 | D18: 1914 | E18: 13 | F18: 1923 | K18: 0 | L18: 221
A19: 21 | B19: 2050 | C19: 11 | D19: 2058 | E19: 11 | F19: 2065 | K19: 0 | L19: 211 | N19: Total Target Seq
A20: 21 | B20: 2233 | C20: 11 | D20: 2242 | E20: 11 | F20: 2246 | K20: 0 | L20: 211 | N20: =COUNTIF(L7:L64,G3) -> 39 | P20: 10 | Q20: 9 | R20: 10 | S20: 10 | T20: 9 | U20: 10
A21: 21 | B21: 2465 | C21: 11 | D21: 2474 | E21: 11 | F21: 2481 | K21: 0 | L21: 211 | P21: % of reinforcement given in 6 equal intervals based on number of trials
A22: 21 | B22: 2607 | C22: 11 | D22: 2615 | E22: 11 | F22: 2624 | K22: 0 | L22: 211 | P22: %_1 | Q22: %_2 | R22: %_3 | S22: %_4 | T22: %_5 | U22: %_6
A23: 21 | B23: 2829 | C23: 11 | D23: 2838 | E23: 11 | F23: 2842 | K23: 0 | L23: 211 | O23: target sequence | P23: =$G$3 -> 211 | Q23: =$G$3 -> 211 | R23: =$G$3 -> 211 | S23: =$G$3 -> 211 | T23: =$G$3 -> 211 | U23: =$G$3 -> 211
A24: 21 | B24: 2983 | C24: 11 | D24: 2994 | E24: 11 | F24: 2999 | K24: 0 | L24: 211 | O24: total reinforcement | P24: =U11 -> 8 | Q24: =Z11 -> 7 | R24: =AE11 -> 7 | S24: =AJ11 -> 6 | T24: =AO11 -> 6 | U24: =AT11 -> 5
A25: 21 | B25: 3243 | C25: 11 | D25: 3251 | E25: 11 | F25: 3260 | K25: 0 | L25: 211 | O25: % target
A26: 21 | B26: 3398 | C26: 11 | D26: 3407 | E26: 11 | F26: 3410 | K26: 0 | L26: 211 | O26: CCRF
A27: 12 | B27: 3578 | C27: 13 | D27: 3582 | E27: 13 | F27: 3591 | K27: 0 | L27: 111 | O27: % CCRf
A28: 21 | B28: 3713 | C28: 11 | D28: 3725 | E28: 11 | F28: 3737 | K28: 0 | L28: 211 | O28: average response rate | P28: =F16/P20 -> 158.2 | Q28: =(F25-F16)/Q20 -> 186.4444444 | R28: =(F35-F25)/R20 -> 157.5 | S28: =(F45-F35)/S20 -> 166.7 | T28: =(F54-F45)/T20 -> 175 | U28: =(F64-F54)/U20 -> 156.7
A29: 21 | B29: 3871 | C29: 11 | D29: 3878 | E29: 11 | F29: 3883 | K29: 0 | L29: 211
A30: 12 | B30: 4050 | C30: 13 | D30: 4058 | E30: 13 | F30: 4069 | K30: 0 | L30: 111
A31: 21 | B31: 4164 | C31: 11 | D31: 4176 | E31: 11 | F31: 4181 | K31: 0 | L31: 211
A32: 21 | B32: 4341 | C32: 11 | D32: 4350 | E32: 11 | F32: 4354 | K32: 0 | L32: 211
A33: 21 | B33: 4514 | C33: 11 | D33: 4522 | E33: 11 | F33: 4526 | K33: 0 | L33: 211
A34: 12 | B34: 4696 | C34: 13 | D34: 4708 | E34: 13 | F34: 4717 | K34: 0 | L34: 111
A35: 21 | B35: 4812 | C35: 11 | D35: 4822 | E35: 11 | F35: 4835 | K35: 0 | L35: 211
A36: 21 | B36: 5029 | C36: 11 | D36: 5037 | E36: 11 | F36: 5042 | K36: 0 | L36: 211
A37: 21 | B37: 5232 | C37: 11 | D37: 5240 | E37: 11 | F37: 5245 | K37: 0 | L37: 211
A38: 21 | B38: 5425 | C38: 11 | D38: 5433 | E38: 11 | F38: 5439 | K38: 0 | L38: 211
A39: 12 | B39: 5649 | C39: 13 | D39: 5654 | E39: 13 | F39: 5666 | K39: 0 | L39: 111
A40: 21 | B40: 5761 | C40: 22 | D40: 5765 | E40: 13 | F40: 5773 | K40: 0 | L40: 221
A41: 12 | B41: 5882 | C41: 13 | D41: 5887 | E41: 13 | F41: 5900 | K41: 0 | L41: 111
A42: 21 | B42: 6000 | C42: 11 | D42: 6010 | E42: 11 | F42: 6016 | K42: 0 | L42: 211
A43: 12 | B43: 6184 | C43: 13 | D43: 6190 | E43: 24 | F43: 6200 | K43: 0 | L43: 112
A44: 21 | B44: 6295 | C44: 11 | D44: 6304 | E44: 11 | F44: 6315 | K44: 0 | L44: 211
A45: 21 | B45: 6491 | C45: 11 | D45: 6499 | E45: 11 | F45: 6502 | K45: 0 | L45: 211
A46: 21 | B46: 6638 | C46: 11 | D46: 6645 | E46: 11 | F46: 6651 | K46: 0 | L46: 211
A47: 12 | B47: 6848 | C47: 13 | D47: 6858 | E47: 24 | F47: 6963 | K47: 0 | L47: 112
A48: 21 | B48: 7060 | C48: 11 | D48: 7069 | E48: 11 | F48: 7078 | K48: 0 | L48: 211
A49: 21 | B49: 7251 | C49: 11 | D49: 7261 | E49: 11 | F49: 7266 | K49: 0 | L49: 211
A50: 12 | B50: 7451 | C50: 13 | D50: 7455 | E50: 13 | F50: 7461 | K50: 0 | L50: 111
A51: 21 | B51: 7560 | C51: 11 | D51: 7569 | E51: 11 | F51: 7584 | K51: 0 | L51: 211
A52: 21 | B52: 7724 | C52: 11 | D52: 7732 | E52: 11 | F52: 7736 | K52: 0 | L52: 211
A53: 12 | B53: 7940 | C53: 13 | D53: 7948 | E53: 13 | F53: 7964 | K53: 0 | L53: 111
A54: 21 | B54: 8060 | C54: 11 | D54: 8072 | E54: 11 | F54: 8077 | K54: 0 | L54: 211
A55: 21 | B55: 8257 | C55: 11 | D55: 8265 | E55: 11 | F55: 8271 | K55: 0 | L55: 211
A56: 12 | B56: 8458 | C56: 13 | D56: 8463 | E56: 13 | F56: 8475 | K56: 0 | L56: 111
A57: 21 | B57: 8568 | C57: 22 | D57: 8577 | E57: 13 | F57: 8586 | K57: 0 | L57: 221
A58: 21 | B58: 8681 | C58: 11 | D58: 8690 | E58: 11 | F58: 8696 | K58: 0 | L58: 211
A59: 12 | B59: 8859 | C59: 13 | D59: 8864 | E59: 24 | F59: 8877 | K59: 0 | L59: 112
A60: 21 | B60: 8972 | C60: 11 | D60: 8986 | E60: 11 | F60: 8994 | K60: 0 | L60: 211
A61: 12 | B61: 9181 | C61: 13 | D61: 9189 | E61: 24 | F61: 9202 | K61: 0 | L61: 112
A62: 21 | B62: 9299 | C62: 11 | D62: 9308 | E62: 11 | F62: 9313 | K62: 0 | L62: 211
A63: 12 | B63: 9517 | C63: 13 | D63: 9521 | E63: 13 | F63: 9527 | K63: 0 | L63: 111
A64: 21 | B64: 9628 | C64: 11 | D64: 9638 | E64: 11 | F64: 9644 | K64: 1 | L64: 211

Sheet !MA04A5D.ust
A1: Report for:!MA04A5D.ust
A2: Date: | B2: <date>
A3: Hen: | B3: <hen> | F3: Correct Sequence | G3: =Start!J2 -> 211 | P3: Total Sequences in Data | Q3: =4994-COUNTBLANK(L7:L5000) -> 60 | V3: Total Sequences in Block Data | W3: =COUNTA(L7:L16) -> 10 | AA3: Total Sequences in Block Data | AB3: =COUNTA(L17:L26) -> 10 | AF3: Total Sequences in Block Data | AG3: =COUNTA(L27:L36) -> 10 | AK3: Total Sequences in Block Data | AL3: =COUNTA(L37:L46) -> 10 | AP3: Total Sequences in Block Data | AQ3: =COUNTA(L47:L56) -> 10 | AU3: Total Sequences in Block Data | AV3: =COUNTA(L57:L66) -> 10
P4: Total Sequences in Summary | Q4: =SUM(O7:O14) -> 60 | V4: Total Sequences in Block Summary | W4: =SUM(U7:U14) -> 10 | AA4: Total Sequences in Block Summary | AB4: =SUM(Z7:Z14) -> 10 | AF4: Total Sequences in Block Summary | AG4: =SUM(AE7:AE14) -> 10 | AK4: Total Sequences in Block Summary | AL4: =SUM(AJ7:AJ14) -> 10 | AP4: Total Sequences in Block Summary | AQ4: =SUM(AO7:AO14) -> 10 | AU4: Total Sequences in Block Summary | AV4: =SUM(AT7:AT14) -> 10
T5: Block 1 | Y5: Block 2 | AD5: Block 3 | AI5: Block 4 | AN5: Block 5 | AS5: Block 6
A6: Sequence Component 1 | B6: Time 1 | C6: Sequence Component 2 | D6: Time 2 | E6: Sequence Component 3 | F6: Time 3 | G6: Sequence Component 4 | H6: Time 4 | I6: Sequence Component 5 | J6: Time 5 | K6: Correct? 0=No 1=Yes | L6: Sequence | N6: Frequency | P6: Relative Frequency | Q6: Variability | T6: Frequency | V6: Relative Frequency | W6: Variability | Y6: Frequency | AA6: Relative Frequency | AB6: Variability | AD6: Frequency | AF6: Relative Frequency | AG6: Variability | AI6: Frequency | AK6: Relative Frequency | AL6: Variability | AN6: Frequency | AP6: Relative Frequency | AQ6: Variability | AS6: Frequency | AU6: Relative Frequency | AV6: Variability
A7: 12 | B7: 10 | C7: 13 | D7: 15 | E7: 13 | F7: 23 | K7: 0 | L7: 111 | N7: 111 | O7: =COUNTIF($L$7:$L$500,N7) -> 11 | P7: =O7/$Q$4 -> 0.1833333333 | Q7: =IF(P7=0,0,(P7*((LOG(P7))/LOG(2)))) -> -0.4487008124 | T7: =N7 -> 111 | U7: =COUNTIF(L7:L16,T7) -> 4 | V7: =U7/(W4-U11) -> 1 | W7: =IF(V7=0,0,(V7*((LOG(V7))/LOG(2)))) -> 0 | Y7: =N7 -> 111 | Z7: =COUNTIF(L17:L26,Y7) -> 4 | AA7: =Z7/(AB4-Z11) -> 1 | AB7: =IF(AA7=0,0,(AA7*((LOG(AA7))/LOG(2)))) -> 0 | AD7: =N7 -> 111 | AE7: =COUNTIF(L27:L36,AD7) -> 0 | AF7: =AE7/(AG4-AE11) -> 0 | AG7: =IF(AF7=0,0,(AF7*((LOG(AF7))/LOG(2)))) -> 0 | AI7: =N7 -> 111 | AJ7: =COUNTIF(L37:L46,AI7) -> 0 | AK7: =AJ7/(AL4-AJ11) -> 0 | AL7: =IF(AK7=0,0,(AK7*((LOG(AK7))/LOG(2)))) -> 0 | AN7: =N7 -> 111 | AO7: =COUNTIF(L47:L56,AN7) -> 0 | AP7: =AO7/(AQ4-AO11) -> 0 | AQ7: =IF(AP7=0,0,(AP7*((LOG(AP7))/LOG(2)))) -> 0 | AS7: =N7 -> 111 | AT7: =COUNTIF(L57:L66,AS7) -> 3 | AU7: =AT7/(AV4-AT11) -> 1 | AV7: =IF(AU7=0,0,(AU7*((LOG(AU7))/LOG(2)))) -> 0
A8: 12 | B8: 120 | C8: 13 | D8: 124 | E8: 13 | F8: 143 | K8: 0 | L8: 111 | N8: 112 | O8: =COUNTIF($L$7:$L$500,N8) -> 9 | P8: =O8/$Q$4 -> 0.15 | Q8: =IF(P8=0,0,(P8*((LOG(P8))/LOG(2)))) -> -0.4105448391 | T8: =N8 -> 112 | U8: =COUNTIF(L7:L16,T8) -> 0 | V8: =U8/(W4-U11) -> 0 | W8: =IF(V8=0,0,(V8*((LOG(V8))/LOG(2)))) -> 0 | Y8: =N8 -> 112 | Z8: =COUNTIF(L17:L26,Y8) -> 0 | AA8: =Z8/(AB4-Z11) -> 0 | AB8: =IF(AA8=0,0,(AA8*((LOG(AA8))/LOG(2)))) -> 0 | AD8: =N8 -> 112 | AE8: =COUNTIF(L27:L36,AD8) -> 3 | AF8: =AE8/(AG4-AE11) -> 1 | AG8: =IF(AF8=0,0,(AF8*((LOG(AF8))/LOG(2)))) -> 0 | AI8: =N8 -> 112 | AJ8: =COUNTIF(L37:L46,AI8) -> 4 | AK8: =AJ8/(AL4-AJ11) -> 1 | AL8: =IF(AK8=0,0,(AK8*((LOG(AK8))/LOG(2)))) -> 0 | AN8: =N8 -> 112 | AO8: =COUNTIF(L47:L56,AN8) -> 2 | AP8: =AO8/(AQ4-AO11) -> 0.6666666667 | AQ8: =IF(AP8=0,0,(AP8*((LOG(AP8))/LOG(2)))) -> -0.3899750005 | AS8: =N8 -> 112 | AT8: =COUNTIF(L57:L66,AS8) -> 0 | AU8: =AT8/(AV4-AT11) -> 0 | AV8: =IF(AU8=0,0,(AU8*((LOG(AU8))/LOG(2)))) -> 0
A9: 21 | B9: 244 | C9: 11 | D9: 252 | E9: 11 | F9: 257 | K9: 0 | L9: 211 | N9: 121 | O9: =COUNTIF($L$7:$L$500,N9) -> 0 | P9: =O9/$Q$4 -> 0 | Q9: =IF(P9=0,0,(P9*((LOG(P9))/LOG(2)))) -> 0 | T9: =N9 -> 121 | U9: =COUNTIF(L7:L16,T9) -> 0 | V9: =U9/(W4-U11) -> 0 | W9: =IF(V9=0,0,(V9*((LOG(V9))/LOG(2)))) -> 0 | Y9: =N9 -> 121 | Z9: =COUNTIF(L17:L26,Y9) -> 0 | AA9: =Z9/(AB4-Z11) -> 0 | AB9: =IF(AA9=0,0,(AA9*((LOG(AA9))/LOG(2)))) -> 0 | AD9: =N9 -> 121 | AE9: =COUNTIF(L27:L36,AD9) -> 0 | AF9: =AE9/(AG4-AE11) -> 0 | AG9: =IF(AF9=0,0,(AF9*((LOG(AF9))/LOG(2)))) -> 0 | AI9: =N9 -> 121 | AJ9: =COUNTIF(L37:L46,AI9) -> 0 | AK9: =AJ9/(AL4-AJ11) -> 0 | AL9: =IF(AK9=0,0,(AK9*((LOG(AK9))/LOG(2)))) -> 0 | AN9: =N9 -> 121 | AO9: =COUNTIF(L47:L56,AN9) -> 0 | AP9: =AO9/(AQ4-AO11) -> 0 | AQ9: =IF(AP9=0,0,(AP9*((LOG(AP9))/LOG(2)))) -> 0 | AS9: =N9 -> 121 | AT9: =COUNTIF(L57:L66,AS9) -> 0 | AU9: =AT9/(AV4-AT11) -> 0 | AV9: =IF(AU9=0,0,(AU9*((LOG(AU9))/LOG(2)))) -> 0
A10: 12 | B10: 441 | C10: 13 | D10: 445 | E10: 13 | F10: 453 | K10: 0 | L10: 111 | N10: 122 | O10: =COUNTIF($L$7:$L$500,N10) -> 0 | P10: =O10/$Q$4 -> 0 | Q10: =IF(P10=0,0,(P10*((LOG(P10))/LOG(2)))) -> 0 | T10: =N10 -> 122 | U10: =COUNTIF(L7:L16,T10) -> 0 | V10: =U10/(W4-U11) -> 0 | W10: =IF(V10=0,0,(V10*((LOG(V10))/LOG(2)))) -> 0 | Y10: =N10 -> 122 | Z10: =COUNTIF(L17:L26,Y10) -> 0 | AA10: =Z10/(AB4-Z11) -> 0 | AB10: =IF(AA10=0,0,(AA10*((LOG(AA10))/LOG(2)))) -> 0 | AD10: =N10 -> 122 | AE10: =COUNTIF(L27:L36,AD10) -> 0 | AF10: =AE10/(AG4-AE11) -> 0 | AG10: =IF(AF10=0,0,(AF10*((LOG(AF10))/LOG(2)))) -> 0 | AI10: =N10 -> 122 | AJ10: =COUNTIF(L37:L46,AI10) -> 0 | AK10: =AJ10/(AL4-AJ11) -> 0 | AL10: =IF(AK10=0,0,(AK10*((LOG(AK10))/LOG(2)))) -> 0 | AN10: =N10 -> 122 | AO10: =COUNTIF(L47:L56,AN10) -> 0 | AP10: =AO10/(AQ4-AO11) -> 0 | AQ10: =IF(AP10=0,0,(AP10*((LOG(AP10))/LOG(2)))) -> 0 | AS10: =N10 -> 122 | AT10: =COUNTIF(L57:L66,AS10) -> 0 | AU10: =AT10/(AV4-AT11) -> 0 | AV10: =IF(AU10=0,0,(AU10*((LOG(AU10))/LOG(2)))) -> 0
A11: 21 | B11: 555 | C11: 11 | D11: 565 | E11: 11 | F11: 569 | K11: 0 | L11: 211 | N11: 211 | O11: =COUNTIF($L$7:$L$500,N11) -> 39 | P11: =O11/$Q$4 -> 0.65 | Q11: =IF(P11=0,0,(P11*((LOG(P11))/LOG(2)))) -> -0.4039674449 | T11: =N11 -> 211 | U11: =COUNTIF(L7:L16,T11) -> 6 | Y11: =N11 -> 211 | Z11: =COUNTIF(L17:L26,Y11) -> 6 | AD11: =N11 -> 211 | AE11: =COUNTIF(L27:L36,AD11) -> 7 | AI11: =N11 -> 211 | AJ11: =COUNTIF(L37:L46,AI11) -> 6 | AN11: =N11 -> 211 | AO11: =COUNTIF(L47:L56,AN11) -> 7 | AS11: =N11 -> 211 | AT11: =COUNTIF(L57:L66,AS11) -> 7
A12: 21 | B12: 796 | C12: 11 | D12: 803 | E12: 11 | F12: 807 | K12: 0 | L12: 211 | N12: 212 | O12: =COUNTIF($L$7:$L$500,N12) -> 0 | P12: =O12/$Q$4 -> 0 | Q12: =IF(P12=0,0,(P12*((LOG(P12))/LOG(2)))) -> 0 | T12: =N12 -> 212 | U12: =COUNTIF(L7:L16,T12) -> 0 | V12: =U12/(W4-U11) -> 0 | W12: =IF(V12=0,0,(V12*((LOG(V12))/LOG(2)))) -> 0 | Y12: =N12 -> 212 | Z12: =COUNTIF(L17:L26,Y12) -> 0 | AA12: =Z12/(AB4-Z11) -> 0 | AB12: =IF(AA12=0,0,(AA12*((LOG(AA12))/LOG(2)))) -> 0 | AD12: =N12 -> 212 | AE12: =COUNTIF(L27:L36,AD12) -> 0 | AF12: =AE12/(AG4-AE11) -> 0 | AG12: =IF(AF12=0,0,(AF12*((LOG(AF12))/LOG(2)))) -> 0 | AI12: =N12 -> 212 | AJ12: =COUNTIF(L37:L46,AI12) -> 0 | AK12: =AJ12/(AL4-AJ11) -> 0 | AL12: =IF(AK12=0,0,(AK12*((LOG(AK12))/LOG(2)))) -> 0 | AN12: =N12 -> 212 | AO12: =COUNTIF(L47:L56,AN12) -> 0 | AP12: =AO12/(AQ4-AO11) -> 0 | AQ12: =IF(AP12=0,0,(AP12*((LOG(AP12))/LOG(2)))) -> 0 | AS12: =N12 -> 212 | AT12: =COUNTIF(L57:L66,AS12) -> 0 | AU12: =AT12/(AV4-AT11) -> 0 | AV12: =IF(AU12=0,0,(AU12*((LOG(AU12))/LOG(2)))) -> 0
A13: 21 | B13: 1005 | C13: 11 | D13: 1018 | E13: 11 | F13: 1024 | K13: 0 | L13: 211 | N13: 221 | O13: =COUNTIF($L$7:$L$500,N13) -> 1 | P13: =O13/$Q$4 -> 0.01666666667 | Q13: =IF(P13=0,0,(P13*((LOG(P13))/LOG(2)))) -> -0.09844817659 | T13: =N13 -> 221 | U13: =COUNTIF(L7:L16,T13) -> 0 | V13: =U13/(W4-U11) -> 0 | W13: =IF(V13=0,0,(V13*((LOG(V13))/LOG(2)))) -> 0 | Y13: =N13 -> 221 | Z13: =COUNTIF(L17:L26,Y13) -> 0 | AA13: =Z13/(AB4-Z11) -> 0 | AB13: =IF(AA13=0,0,(AA13*((LOG(AA13))/LOG(2)))) -> 0 | AD13: =N13 -> 221 | AE13: =COUNTIF(L27:L36,AD13) -> 0 | AF13: =AE13/(AG4-AE11) -> 0 | AG13: =IF(AF13=0,0,(AF13*((LOG(AF13))/LOG(2)))) -> 0 | AI13: =N13 -> 221 | AJ13: =COUNTIF(L37:L46,AI13) -> 0 | AK13: =AJ13/(AL4-AJ11) -> 0 | AL13: =IF(AK13=0,0,(AK13*((LOG(AK13))/LOG(2)))) -> 0 | AN13: =N13 -> 221 | AO13: =COUNTIF(L47:L56,AN13) -> 1 | AP13: =AO13/(AQ4-AO11) -> 0.3333333333 | AQ13: =IF(AP13=0,0,(AP13*((LOG(AP13))/LOG(2)))) -> -0.5283208336 | AS13: =N13 -> 221 | AT13: =COUNTIF(L57:L66,AS13) -> 0 | AU13: =AT13/(AV4-AT11) -> 0 | AV13: =IF(AU13=0,0,(AU13*((LOG(AU13))/LOG(2)))) -> 0
A14: 21 | B14: 1251 | C14: 11 | D14: 1258 | E14: 11 | F14: 1274 | K14: 0 | L14: 211 | N14: 222 | O14: =COUNTIF($L$7:$L$500,N14) -> 0 | P14: =O14/$Q$4 -> 0 | Q14: =IF(P14=0,0,(P14*((LOG(P14))/LOG(2)))) -> 0 | T14: =N14 -> 222 | U14: =COUNTIF(L7:L16,T14) -> 0 | V14: =U14/(W4-U11) -> 0 | W14: =IF(V14=0,0,(V14*((LOG(V14))/LOG(2)))) -> 0 | Y14: =N14 -> 222 | Z14: =COUNTIF(L17:L26,Y14) -> 0 | AA14: =Z14/(AB4-Z11) -> 0 | AB14: =IF(AA14=0,0,(AA14*((LOG(AA14))/LOG(2)))) -> 0 | AD14: =N14 -> 222 | AE14: =COUNTIF(L27:L36,AD14) -> 0 | AF14: =AE14/(AG4-AE11) -> 0 | AG14: =IF(AF14=0,0,(AF14*((LOG(AF14))/LOG(2)))) -> 0 | AI14: =N14 -> 222 | AJ14: =COUNTIF(L37:L46,AI14) -> 0 | AK14: =AJ14/(AL4-AJ11) -> 0 | AL14: =IF(AK14=0,0,(AK14*((LOG(AK14))/LOG(2)))) -> 0 | AN14: =N14 -> 222 | AO14: =COUNTIF(L47:L56,AN14) -> 0 | AP14: =AO14/(AQ4-AO11) -> 0 | AQ14: =IF(AP14=0,0,(AP14*((LOG(AP14))/LOG(2)))) -> 0 | AS14: =N14 -> 222 | AT14: =COUNTIF(L57:L66,AS14) -> 0 | AU14: =AT14/(AV4-AT11) -> 0 | AV14: =IF(AU14=0,0,(AU14*((LOG(AU14))/LOG(2)))) -> 0
A15: 12 | B15: 1531 | C15: 13 | D15: 1537 | E15: 13 | F15: 1563 | K15: 0 | L15: 111 | P15: =SUM(P7:P14) -> 1 | Q15: =-SUM(Q7:Q14) -> 1.361661273 | V15: =SUM(V7:V14) -> 1 | W15: =-SUM(W7:W14) -> 0 | AA15: =SUM(AA7:AA14) -> 1 | AB15: =-SUM(AB7:AB14) -> 0 | AF15: =SUM(AF7:AF14) -> 1 | AG15: =-SUM(AG7:AG14) -> 0 | AK15: =SUM(AK7:AK14) -> 1 | AL15: =-SUM(AL7:AL14) -> 0 | AP15: =SUM(AP7:AP14) -> 1 | AQ15: =-SUM(AQ7:AQ14) -> 0.9182958341 | AU15: =SUM(AU7:AU14) -> 1 | AV15: =-SUM(AV7:AV14) -> 0
A16: 21 | B16: 1661 | C16: 11 | D16: 1669 | E16: 11 | F16: 1678 | K16: 0 | L16: 211 | P16: U= | Q16: =Q15/(LOG(Q4)/LOG(2)) -> 0.2305208216 | V16: U1= | W16: =W15/(LOG(W4)/LOG(2)) -> 0 | AA16: U2= | AB16: =AB15/(LOG(AB4)/LOG(2)) -> 0 | AF16: U3= | AG16: =AG15/(LOG(AG4)/LOG(2)) -> 0 | AK16: U4= | AL16: =AL15/(LOG(AL4)/LOG(2)) -> 0 | AP16: U5= | AQ16: =AQ15/(LOG(AQ4)/LOG(2)) -> 0.2764345909 | AU16: U6= | AV16: =AV15/(LOG(AV4)/LOG(2)) -> 0
A17: 12 | B17: 2007 | C17: 13 | D17: 2016 | E17: 13 | F17: 2035 | K17: 0 | L17: 111
A18: 21 | B18: 2133 | C18: 11 | D18: 2141 | E18: 11 | F18: 2150 | K18: 0 | L18: 211
A19: 12 | B19: 2791 | C19: 13 | D19: 2794 | E19: 13 | F19: 2800 | K19: 0 | L19: 111 | N19: Total Target Seq
A20: 21 | B20: 2897 | C20: 11 | D20: 2907 | E20: 11 | F20: 2918 | K20: 0 | L20: 211 | N20: =COUNTIF(L7:L66,G3) -> 39 | P20: 10 | Q20: 10 | R20: 10 | S20: 10 | T20: 10 | U20: 10
A21: 12 | B21: 3030 | C21: 13 | D21: 3034 | E21: 13 | F21: 3040 | K21: 0 | L21: 111 | P21: % of reinforcement given in 6 equal intervals based on number of trials
A22: 21 | B22: 3139 | C22: 11 | D22: 3148 | E22: 11 | F22: 3152 | K22: 0 | L22: 211 | P22: %_1 | Q22: %_2 | R22: %_3 | S22: %_4 | T22: %_5 | U22: %_6
A23: 21 | B23: 3349 | C23: 11 | D23: 3356 | E23: 11 | F23: 3361 | K23: 0 | L23: 211 | O23: target sequence | P23: =$G$3 -> 211 | Q23: =$G$3 -> 211 | R23: =$G$3 -> 211 | S23: =$G$3 -> 211 | T23: =$G$3 -> 211 | U23: =$G$3 -> 211
A24: 12 | B24: 3529 | C24: 13 | D24: 3535 | E24: 13 | F24: 3544 | K24: 0 | L24: 111 | O24: total reinforcement | P24: =U11 -> 6 | Q24: =Z11 -> 6 | R24: =AE11 -> 7 | S24: =AJ11 -> 6 | T24: =AO11 -> 7 | U24: =AT11 -> 7
A25: 21 | B25: 3646 | C25: 11 | D25: 3655 | E25: 11 | F25: 3669 | K25: 0 | L25: 211 | O25: % target
A26: 21 | B26: 3814 | C26: 11 | D26: 3823 | E26: 11 | F26: 3828 | K26: 0 | L26: 211 | O26: CCRF
A27: 12 | B27: 4005 | C27: 13 | D27: 4009 | E27: 24 | F27: 4025 | K27: 0 | L27: 112 | O27: % CCRf
A28: 12 | B28: 4193 | C28: 13 | D28: 4200 | E28: 24 | F28: 4291 | K28: 0 | L28: 112 | O28: average response rate | P28: =F16/P20 -> 167.8 | Q28: =(F26-F16)/Q20 -> 215 | R28: =(F36-F26)/R20 -> 193.4 | S28: =(F46-F36)/S20 -> 160.4 | T28: =(F56-F46)/T20 -> 154.7 | U28: =(F66-F56)/U20 -> 190.8
A29: 21 | B29: 4390 | C29: 11 | D29: 4397 | E29: 11 | F29: 4409 | K29: 0 | L29: 211
A30: 21 | B30: 4536 | C30: 11 | D30: 4545 | E30: 11 | F30: 4554 | K30: 0 | L30: 211
A31: 21 | B31: 4745 | C31: 11 | D31: 4754 | E31: 11 | F31: 4758 | K31: 0 | L31: 211
A32: 21 | B32: 5002 | C32: 11 | D32: 5012 | E32: 11 | F32: 5017 | K32: 0 | L32: 211
A33: 21 | B33: 5215 | C33: 11 | D33: 5223 | E33: 11 | F33: 5228 | K33: 0 | L33: 211
A34: 21 | B34: 5422 | C34: 11 | D34: 5430 | E34: 11 | F34: 5436 | K34: 0 | L34: 211
A35: 12 | B35: 5624 | C35: 13 | D35: 5629 | E35: 24 | F35: 5643 | K35: 0 | L35: 112
A36: 21 | B36: 5745 | C36: 11 | D36: 5753 | E36: 11 | F36: 5762 | K36: 0 | L36: 211
A37: 12 | B37: 5970 | C37: 13 | D37: 5974 | E37: 24 | F37: 5989 | K37: 0 | L37: 112
A38: 21 | B38: 6091 | C38: 11 | D38: 6100 | E38: 11 | F38: 6104 | K38: 0 | L38: 211
A39: 21 | B39: 6244 | C39: 11 | D39: 6252 | E39: 11 | F39: 6256 | K39: 0 | L39: 211
A40: 12 | B40: 6432 | C40: 13 | D40: 6437 | E40: 24 | F40: 6451 | K40: 0 | L40: 112
A41: 21 | B41: 6555 | C41: 11 | D41: 6563 | E41: 11 | F41: 6568 | K41: 0 | L41: 211
A42: 12 | B42: 6713 | C42: 13 | D42: 6718 | E42: 24 | F42: 6821 | K42: 0 | L42: 112
A43: 21 | B43: 6921 | C43: 11 | D43: 6931 | E43: 11 | F43: 6936 | K43: 0 | L43: 211
A44: 12 | B44: 7082 | C44: 13 | D44: 7085 | E44: 24 | F44: 7096 | K44: 0 | L44: 112
A45: 21 | B45: 7194 | C45: 11 | D45: 7204 | E45: 11 | F45: 7209 | K45: 0 | L45: 211
A46: 21 | B46: 7354 | C46: 11 | D46: 7363 | E46: 11 | F46: 7366 | K46: 0 | L46: 211
A47: 21 | B47: 7500 | C47: 11 | D47: 7509 | E47: 11 | F47: 7513 | K47: 0 | L47: 211
A48: 21 | B48: 7674 | C48: 11 | D48: 7686 | E48: 11 | F48: 7693 | K48: 0 | L48: 211
A49: 21 | B49: 7870 | C49: 11 | D49: 7878 | E49: 11 | F49: 7884 | K49: 0 | L49: 211
A50: 12 | B50: 8032 | C50: 13 | D50: 8041 | E50: 24 | F50: 8054 | K50: 0 | L50: 112
A51: 21 | B51: 8150 | C51: 11 | D51: 8161 | E51: 11 | F51: 8164 | K51: 0 | L51: 211
A52: 21 | B52: 8310 | C52: 11 | D52: 8319 | E52: 11 | F52: 8324 | K52: 0 | L52: 211
A53: 12 | B53: 8522 | C53: 13 | D53: 8531 | E53: 24 | F53: 8551 | K53: 0 | L53: 112
A54: 21 | B54: 8647 | C54: 11 | D54: 8656 | E54: 11 | F54: 8661 | K54: 0 | L54: 211
A55: 21 | B55: 8792 | C55: 22 | D55: 8796 | E55: 13 | F55: 8804 | K55: 0 | L55: 221
A56: 21 | B56: 8897 | C56: 11 | D56: 8907 | E56: 11 | F56: 8913 | K56: 0 | L56: 211
A57: 21 | B57: 9119 | C57: 11 | D57: 9127 | E57: 11 | F57: 9135 | K57: 0 | L57: 211
A58: 12 | B58: 9358 | C58: 13 | D58: 9361 | E58: 13 | F58: 9367 | K58: 0 | L58: 111
A59: 21 | B59: 9469 | C59: 11 | D59: 9478 | E59: 11 | F59: 9483 | K59: 0 | L59: 211
A60: 21 | B60: 9658 | C60: 11 | D60: 9667 | E60: 11 | F60: 9675 | K60: 0 | L60: 211
A61: 21 | B61: 9885 | C61: 11 | D61: 9892 | E61: 11 | F61: 9902 | K61: 0 | L61: 211
A62: 12 | B62: 10106 | C62: 13 | D62: 10111 | E62: 13 | F62: 10123 | K62: 0 | L62: 111
A63: 21 | B63: 10221 | C63: 11 | D63: 10231 | E63: 11 | F63: 10236 | K63: 0 | L63: 211
A64: 12 | B64: 10436 | C64: 13 | D64: 10440 | E64: 13 | F64: 10445 | K64: 0 | L64: 111
A65: 21 | B65: 10551 | C65: 11 | D65: 10560 | E65: 11 | F65: 10569 | K65: 0 | L65: 211
A66: 21 | B66: 10794 | C66: 11 | D66: 10802 | E66: 11 | F66: 10821 | K66: 1 | L66: 211

Sheet !MA05A0D.ust
A1: Report for:!MA05A0D.ust
A2: Date: | B2: <date>
A3: Hen: | B3: <hen> | F3: Correct Sequence | G3: =Start!J2 -> 211 | P3: Total Sequences in Data | Q3: =4994-COUNTBLANK(L7:L5000) -> 51 | V3: Total Sequences in Block Data | W3: =COUNTA(L7:L15) -> 9 | AA3: Total Sequences in Block Data | AB3: =COUNTA(L16:L23) -> 8 | AF3: Total Sequences in Block Data | AG3: =COUNTA(L24:L32) -> 9 | AK3: Total Sequences in Block Data | AL3: =COUNTA(L33:L40) -> 8 | AP3: Total Sequences in Block Data | AQ3: =COUNTA(L41:L49) -> 9 | AU3: Total Sequences in Block Data | AV3: =COUNTA(L50:L57) -> 8
P4: Total Sequences in Summary | Q4: =SUM(O7:O14) -> 51 | V4: Total Sequences in Block Summary | W4: =SUM(U7:U14) -> 9 | AA4: Total Sequences in Block Summary | AB4: =SUM(Z7:Z14) -> 8 | AF4: Total Sequences in Block Summary | AG4: =SUM(AE7:AE14) -> 9 | AK4: Total Sequences in Block Summary | AL4: =SUM(AJ7:AJ14) -> 8 | AP4: Total Sequences in Block Summary | AQ4: =SUM(AO7:AO14) -> 9 | AU4: Total Sequences in Block Summary | AV4: =SUM(AT7:AT14) -> 8
T5: Block 1 | Y5: Block 2 | AD5: Block 3 | AI5: Block 4 | AN5: Block 5 | AS5: Block 6
A6: Sequence Component 1 | B6: Time 1 | C6: Sequence Component 2 | D6: Time 2 | E6: Sequence Component 3 | F6: Time 3 | G6: Sequence Component 4 | H6: Time 4 | I6: Sequence Component 5 | J6: Time 5 | K6: Correct? 0=No 1=Yes | L6: Sequence | N6: Frequency | P6: Relative Frequency | Q6: Variability | T6: Frequency | V6: Relative Frequency | W6: Variability | Y6: Frequency | AA6: Relative Frequency | AB6: Variability | AD6: Frequency | AF6: Relative Frequency | AG6: Variability | AI6: Frequency | AK6: Relative Frequency | AL6: Variability | AN6: Frequency | AP6: Relative Frequency | AQ6: Variability | AS6: Frequency | AU6: Relative Frequency | AV6: Variability
A7: 21 | B7: 8 | C7: 11 | D7: 19 | E7: 11 | F7: 24 | K7: 0 | L7: 211 | N7: 111 | O7: =COUNTIF($L$7:$L$500,N7) -> 10 | P7: =O7/$Q$4 -> 0.1960784314 | Q7: =IF(P7=0,0,(P7*((LOG(P7))/LOG(2)))) -> -0.4608818132 | T7: =N7 -> 111 | U7: =COUNTIF(L7:L15,T7) -> 1 | V7: =U7/(W4-U11) -> 1 | W7: =IF(V7=0,0,(V7*((LOG(V7))/LOG(2)))) -> 0 | Y7: =N7 -> 111 | Z7: =COUNTIF(L16:L23,Y7) -> 4 | AA7: =Z7/(AB4-Z11) -> 1 | AB7: =IF(AA7=0,0,(AA7*((LOG(AA7))/LOG(2)))) -> 0 | AD7: =N7 -> 111 | AE7: =COUNTIF(L24:L32,AD7) -> 1 | AF7: =AE7/(AG4-AE11) -> 0.5 | AG7: =IF(AF7=0,0,(AF7*((LOG(AF7))/LOG(2)))) -> -0.5 | AI7: =N7 -> 111 | AJ7: =COUNTIF(L33:L40,AI7) -> 0 | AK7: =AJ7/(AL4-AJ11) ->  | AL7: =IF(AK7=0,0,(AK7*((LOG(AK7))/LOG(2)))) ->  | AN7: =N7 -> 111 | AO7: =COUNTIF(L41:L49,AN7) -> 3 | AP7: =AO7/(AQ4-AO11) -> 1 | AQ7: =IF(AP7=0,0,(AP7*((LOG(AP7))/LOG(2)))) -> 0 | AS7: =N7 -> 111 | AT7: =COUNTIF(L50:L57,AS7) -> 1 | AU7: =AT7/(AV4-AT11) -> 0.3333333333 | AV7: =IF(AU7=0,0,(AU7*((LOG(AU7))/LOG(2)))) -> -0.5283208336
A8: 21 | B8: 214 | C8: 11 | D8: 222 | E8: 11 | F8: 225 | K8: 0 | L8: 211 | N8: 112 | O8: =COUNTIF($L$7:$L$500,N8) -> 1 | P8: =O8/$Q$4 -> 0.01960784314 | Q8: =IF(P8=0,0,(P8*((LOG(P8))/LOG(2)))) -> -0.1112240263 | T8: =N8 -> 112 | U8: =COUNTIF(L7:L15,T8) -> 0 | V8: =U8/(W4-U11) -> 0 | W8: =IF(V8=0,0,(V8*((LOG(V8))/LOG(2)))) -> 0 | Y8: =N8 -> 112 | Z8: =COUNTIF(L16:L23,Y8) -> 0 | AA8: =Z8/(AB4-Z11) -> 0 | AB8: =IF(AA8=0,0,(AA8*((LOG(AA8))/LOG(2)))) -> 0 | AD8: =N8 -> 112 | AE8: =COUNTIF(L24:L32,AD8) -> 0 | AF8: =AE8/(AG4-AE11) -> 0 | AG8: =IF(AF8=0,0,(AF8*((LOG(AF8))/LOG(2)))) -> 0 | AI8: =N8 -> 112 | AJ8: =COUNTIF(L33:L40,AI8) -> 0 | AK8: =AJ8/(AL4-AJ11) ->  | AL8: =IF(AK8=0,0,(AK8*((LOG(AK8))/LOG(2)))) ->  | AN8: =N8 -> 112 | AO8: =COUNTIF(L41:L49,AN8) -> 0 | AP8: =AO8/(AQ4-AO11) -> 0 | AQ8: =IF(AP8=0,0,(AP8*((LOG(AP8))/LOG(2)))) -> 0 | AS8: =N8 -> 112 | AT8: =COUNTIF(L50:L57,AS8) -> 1 | AU8: =AT8/(AV4-AT11) -> 0.3333333333 | AV8: =IF(AU8=0,0,(AU8*((LOG(AU8))/LOG(2)))) -> -0.5283208336
A9: 21 | B9: 355 | C9: 11 | D9: 364 | E9: 11 | F9: 373 | K9: 0 | L9: 211 | N9: 121 | O9: =COUNTIF($L$7:$L$500,N9) -> 0 | P9: =O9/$Q$4 -> 0 | Q9: =IF(P9=0,0,(P9*((LOG(P9))/LOG(2)))) -> 0 | T9: =N9 -> 121 | U9: =COUNTIF(L7:L15,T9) -> 0 | V9: =U9/(W4-U11) -> 0 | W9: =IF(V9=0,0,(V9*((LOG(V9))/LOG(2)))) -> 0 | Y9: =N9 -> 121 | Z9: =COUNTIF(L16:L23,Y9) -> 0 | AA9: =Z9/(AB4-Z11) -> 0 | AB9: =IF(AA9=0,0,(AA9*((LOG(AA9))/LOG(2)))) -> 0 | AD9: =N9 -> 121 | AE9: =COUNTIF(L24:L32,AD9) -> 0 | AF9: =AE9/(AG4-AE11) -> 0 | AG9: =IF(AF9=0,0,(AF9*((LOG(AF9))/LOG(2)))) -> 0 | AI9: =N9 -> 121 | AJ9: =COUNTIF(L33:L40,AI9) -> 0 | AK9: =AJ9/(AL4-AJ11) ->  | AL9: =IF(AK9=0,0,(AK9*((LOG(AK9))/LOG(2)))) ->  | AN9: =N9 -> 121 | AO9: =COUNTIF(L41:L49,AN9) -> 0 | AP9: =AO9/(AQ4-AO11) -> 0 | AQ9: =IF(AP9=0,0,(AP9*((LOG(AP9))/LOG(2)))) -> 0 | AS9: =N9 -> 121 | AT9: =COUNTIF(L50:L57,AS9) -> 0 | AU9: =AT9/(AV4-AT11) -> 0 | AV9: =IF(AU9=0,0,(AU9*((LOG(AU9))/LOG(2)))) -> 0
A10: 12 | B10: 526 | C10: 13 | D10: 532 | E10: 13 | F10: 550 | K10: 0 | L10: 111 | N10: 122 | O10: =COUNTIF($L$7:$L$500,N10) -> 0 | P10: =O10/$Q$4 -> 0 | Q10: =IF(P10=0,0,(P10*((LOG(P10))/LOG(2)))) -> 0 | T10: =N10 -> 122 | U10: =COUNTIF(L7:L15,T10) -> 0 | V10: =U10/(W4-U11) -> 0 | W10: =IF(V10=0,0,(V10*((LOG(V10))/LOG(2)))) -> 0 | Y10: =N10 -> 122 | Z10: =COUNTIF(L16:L23,Y10) -> 0 | AA10: =Z10/(AB4-Z11) -> 0 | AB10: =IF(AA10=0,0,(AA10*((LOG(AA10))/LOG(2)))) -> 0 | AD10: =N10 -> 122 | AE10: =COUNTIF(L24:L32,AD10) -> 0 | AF10: =AE10/(AG4-AE11) -> 0 | AG10: =IF(AF10=0,0,(AF10*((LOG(AF10))/LOG(2)))) -> 0 | AI10: =N10 -> 122 | AJ10: =COUNTIF(L33:L40,AI10) -> 0 | AK10: =AJ10/(AL4-AJ11) ->  | AL10: =IF(AK10=0,0,(AK10*((LOG(AK10))/LOG(2)))) ->  | AN10: =N10 -> 122 | AO10: =COUNTIF(L41:L49,AN10) -> 0 | AP10: =AO10/(AQ4-AO11) -> 0 | AQ10: =IF(AP10=0,0,(AP10*((LOG(AP10))/LOG(2)))) -> 0 | AS10: =N10 -> 122 | AT10: =COUNTIF(L50:L57,AS10) -> 0 | AU10: =AT10/(AV4-AT11) -> 0 | AV10: =IF(AU10=0,0,(AU10*((LOG(AU10))/LOG(2)))) -> 0
A11: 21 | B11: 676 | C11: 11 | D11: 684 | E11: 11 | F11: 686 | K11: 0 | L11: 211 | N11: 211 | O11: =COUNTIF($L$7:$L$500,N11) -> 38 | P11: =O11/$Q$4 -> 0.7450980392 | Q11: =IF(P11=0,0,(P11*((LOG(P11))/LOG(2)))) -> -0.3162924997 | T11: =N11 -> 211 | U11: =COUNTIF(L7:L15,T11) -> 8 | Y11: =N11 -> 211 | Z11: =COUNTIF(L16:L23,Y11) -> 4 | AD11: =N11 -> 211 | AE11: =COUNTIF(L24:L32,AD11) -> 7 | AI11: =N11 -> 211 | AJ11: =COUNTIF(L33:L40,AI11) -> 8 | AN11: =N11 -> 211 | AO11: =COUNTIF(L41:L49,AN11) -> 6 | AS11: =N11 -> 211 | AT11: =COUNTIF(L50:L57,AS11) -> 5
A12: 21 | B12: 803 | C12: 11 | D12: 811 | E12: 11 | F12: 816 | K12: 0 | L12: 211 | N12: 212 | O12: =COUNTIF($L$7:$L$500,N12) -> 0 | P12: =O12/$Q$4 -> 0 | Q12: =IF(P12=0,0,(P12*((LOG(P12))/LOG(2)))) -> 0 | T12: =N12 -> 212 | U12: =COUNTIF(L7:L15,T12) -> 0 | V12: =U12/(W4-U11) -> 0 | W12: =IF(V12=0,0,(V12*((LOG(V12))/LOG(2)))) -> 0 | Y12: =N12 -> 212 | Z12: =COUNTIF(L16:L23,Y12) -> 0 | AA12: =Z12/(AB4-Z11) -> 0 | AB12: =IF(AA12=0,0,(AA12*((LOG(AA12))/LOG(2)))) -> 0 | AD12: =N12 -> 212 | AE12: =COUNTIF(L24:L32,AD12) -> 0 | AF12: =AE12/(AG4-AE11) -> 0 | AG12: =IF(AF12=0,0,(AF12*((LOG(AF12))/LOG(2)))) -> 0 | AI12: =N12 -> 212 | AJ12: =COUNTIF(L33:L40,AI12) -> 0 | AK12: =AJ12/(AL4-AJ11) ->  | AL12: =IF(AK12=0,0,(AK12*((LOG(AK12))/LOG(2)))) ->  | AN12: =N12 -> 212 | AO12: =COUNTIF(L41:L49,AN12) -> 0 | AP12: =AO12/(AQ4-AO11) -> 0 | AQ12: =IF(AP12=0,0,(AP12*((LOG(AP12))/LOG(2)))) -> 0 | AS12: =N12 -> 212 | AT12: =COUNTIF(L50:L57,AS12) -> 0 | AU12: =AT12/(AV4-AT11) -> 0 | AV12: =IF(AU12=0,0,(AU12*((LOG(AU12))/LOG(2)))) -> 0
A13: 21 | B13: 951 | C13: 11 | D13: 960 | E13: 11 | F13: 962 | K13: 0 | L13: 211 | N13: 221 | O13: =COUNTIF($L$7:$L$500,N13) -> 2 | P13: =O13/$Q$4 -> 0.03921568627 | Q13: =IF(P13=0,0,(P13*((LOG(P13))/LOG(2)))) -> -0.1832323664 | T13: =N13 -> 221 | U13: =COUNTIF(L7:L15,T13) -> 0 | V13: =U13/(W4-U11) -> 0 | W13: =IF(V13=0,0,(V13*((LOG(V13))/LOG(2)))) -> 0 | Y13: =N13 -> 221 | Z13: =COUNTIF(L16:L23,Y13) -> 0 | AA13: =Z13/(AB4-Z11) -> 0 | AB13: =IF(AA13=0,0,(AA13*((LOG(AA13))/LOG(2)))) -> 0 | AD13: =N13 -> 221 | AE13: =COUNTIF(L24:L32,AD13) -> 1 | AF13: =AE13/(AG4-AE11) -> 0.5 | AG13: =IF(AF13=0,0,(AF13*((LOG(AF13))/LOG(2)))) -> -0.5 | AI13: =N13 -> 221 | AJ13: =COUNTIF(L33:L40,AI13) -> 0 | AK13: =AJ13/(AL4-AJ11) ->  | AL13: =IF(AK13=0,0,(AK13*((LOG(AK13))/LOG(2)))) ->  | AN13: =N13 -> 221 | AO13: =COUNTIF(L41:L49,AN13) -> 0 | AP13: =AO13/(AQ4-AO11) -> 0 | AQ13: =IF(AP13=0,0,(AP13*((LOG(AP13))/LOG(2)))) -> 0 | AS13: =N13 -> 221 | AT13: =COUNTIF(L50:L57,AS13) -> 1 | AU13: =AT13/(AV4-AT11) -> 0.3333333333 | AV13: =IF(AU13=0,0,(AU13*((LOG(AU13))/LOG(2)))) -> -0.5283208336
A14: 21 | B14: 1084 | C14: 11 | D14: 1096 | E14: 11 | F14: 1109 | K14: 0 | L14: 211 | N14: 222 | O14: =COUNTIF($L$7:$L$500,N14) -> 0 | P14: =O14/$Q$4 -> 0 | Q14: =IF(P14=0,0,(P14*((LOG(P14))/LOG(2)))) -> 0 | T14: =N14 -> 222 | U14: =COUNTIF(L7:L15,T14) -> 0 | V14: =U14/(W4-U11) -> 0 | W14: =IF(V14=0,0,(V14*((LOG(V14))/LOG(2)))) -> 0 | Y14: =N14 -> 222 | Z14: =COUNTIF(L16:L23,Y14) -> 0 | AA14: =Z14/(AB4-Z11) -> 0 | AB14: =IF(AA14=0,0,(AA14*((LOG(AA14))/LOG(2)))) -> 0 | AD14: =N14 -> 222 | AE14: =COUNTIF(L24:L32,AD14) -> 0 | AF14: =AE14/(AG4-AE11) -> 0 | AG14: =IF(AF14=0,0,(AF14*((LOG(AF14))/LOG(2)))) -> 0 | AI14: =N14 -> 222 | AJ14: =COUNTIF(L33:L40,AI14) -> 0 | AK14: =AJ14/(AL4-AJ11) ->  | AL14: =IF(AK14=0,0,(AK14*((LOG(AK14))/LOG(2)))) ->  | AN14: =N14 -> 222 | AO14: =COUNTIF(L41:L49,AN14) -> 0 | AP14: =AO14/(AQ4-AO11) -> 0 | AQ14: =IF(AP14=0,0,(AP14*((LOG(AP14))/LOG(2)))) -> 0 | AS14: =N14 -> 222 | AT14: =COUNTIF(L50:L57,AS14) -> 0 | AU14: =AT14/(AV4-AT11) -> 0 | AV14: =IF(AU14=0,0,(AU14*((LOG(AU14))/LOG(2)))) -> 0
A15: 21 | B15: 1306 | C15: 11 | D15: 1314 | E15: 11 | F15: 1317 | K15: 0 | L15: 211 | P15: =SUM(P7:P14) -> 1 | Q15: =-SUM(Q7:Q14) -> 1.071630706 | V15: =SUM(V7:V14) -> 1 | W15: =-SUM(W7:W14) -> 0 | AA15: =SUM(AA7:AA14) -> 1 | AB15: =-SUM(AB7:AB14) -> 0 | AF15: =SUM(AF7:AF14) -> 1 | AG15: =-SUM(AG7:AG14) -> 1 | AK15: =SUM(AK7:AK14) ->  | AL15: =-SUM(AL7:AL14) ->  | AP15: =SUM(AP7:AP14) -> 1 | AQ15: =-SUM(AQ7:AQ14) -> 0 | AU15: =SUM(AU7:AU14) -> 1 | AV15: =-SUM(AV7:AV14) -> 1.584962501
A16: 12 | B16: 1477 | C16: 13 | D16: 1489 | E16: 13 | F16: 1505 | K16: 0 | L16: 111 | P16: U= | Q16: =Q15/(LOG(Q4)/LOG(2)) -> 0.1889193142 | V16: U1= | W16: =W15/(LOG(W4)/LOG(2)) -> 0 | AA16: U2= | AB16: =AB15/(LOG(AB4)/LOG(2)) -> 0 | AF16: U3= | AG16: =AG15/(LOG(AG4)/LOG(2)) -> 0.3154648768 | AK16: U4= | AL16: =AL15/(LOG(AL4)/LOG(2)) ->  | AP16: U5= | AQ16: =AQ15/(LOG(AQ4)/LOG(2)) -> 0 | AU16: U6= | AV16: =AV15/(LOG(AV4)/LOG(2)) -> 0.5283208336
A17: 21 | B17: 1600 | C17: 11 | D17: 1613 | E17: 11 | F17: 1620 | K17: 0 | L17: 211
A18: 12 | B18: 1727 | C18: 13 | D18: 1731 | E18: 13 | F18: 1747 | K18: 0 | L18: 111
A19: 21 | B19: 1844 | C19: 11 | D19: 1853 | E19: 11 | F19: 1862 | K19: 0 | L19: 211 | N19: Total Target Seq
A20: 12 | B20: 1970 | C20: 13 | D20: 1973 | E20: 13 | F20: 1989 | K20: 0 | L20: 111 | N20: =COUNTIF(L7:L57,G3) -> 38 | P20: 9 | Q20: 8 | R20: 9 | S20: 8 | T20: 9 | U20: 8
A21: 21 | B21: 2094 | C21: 11 | D21: 2103 | E21: 11 | F21: 2107 | K21: 0 | L21: 211 | P21: % of reinforcement given in 6 equal intervals based on number of trials
A22: 21 | B22: 2237 | C22: 11 | D22: 2245 | E22: 11 | F22: 2248 | K22: 0 | L22: 211 | P22: %_1 | Q22: %_2 | R22: %_3 | S22: %_4 | T22: %_5 | U22: %_6
A23: 12 | B23: 2544 | C23: 13 | D23: 2548 | E23: 13 | F23: 2554 | K23: 0 | L23: 111 | O23: target sequence | P23: =$G$3 -> 211 | Q23: =$G$3 -> 211 | R23: =$G$3 -> 211 | S23: =$G$3 -> 211 | T23: =$G$3 -> 211 | U23: =$G$3 -> 211
A24: 21 | B24: 2651 | C24: 11 | D24: 2659 | E24: 11 | F24: 2667 | K24: 0 | L24: 211 | O24: total reinforcement | P24: =U11 -> 8 | Q24: =Z11 -> 4 | R24: =AE11 -> 7 | S24: =AJ11 -> 8 | T24: =AO11 -> 6 | U24: =AT11 -> 5
A25: 21 | B25: 2774 | C25: 22 | D25: 2776 | E25: 13 | F25: 2782 | K25: 0 | L25: 221 | O25: % target
A26: 21 | B26: 2888 | C26: 11 | D26: 2896 | E26: 11 | F26: 2900 | K26: 0 | L26: 211 | O26: CCRF
A27: 21 | B27: 3016 | C27: 11 | D27: 3025 | E27: 11 | F27: 3029 | K27: 0 | L27: 211 | O27: % CCRf
A28: 21 | B28: 3197 | C28: 11 | D28: 3205 | E28: 11 | F28: 3213 | K28: 0 | L28: 211 | O28: average response rate | P28: =F15/P20 -> 146.3333333 | Q28: =(F23-F15)/Q20 -> 154.625 | R28: =(F32-F23)/R20 -> 145.8888889 | S28: =(F40-F32)/S20 -> 173.875 | T28: =(F49-F40)/T20 -> 155.7777778 | U28: =(F57-F49)/U20 -> 172.625
A29: 21 | B29: 3386 | C29: 11 | D29: 3394 | E29: 11 | F29: 3421 | K29: 0 | L29: 211
A30: 21 | B30: 3589 | C30: 11 | D30: 3596 | E30: 11 | F30: 3601 | K30: 0 | L30: 211
A31: 12 | B31: 3736 | C31: 13 | D31: 3740 | E31: 13 | F31: 3755 | K31: 0 | L31: 111
A32: 21 | B32: 3854 | C32: 11 | D32: 3863 | E32: 11 | F32: 3867 | K32: 0 | L32: 211
A33: 21 | B33: 3981 | C33: 11 | D33: 3989 | E33: 11 | F33: 3995 | K33: 0 | L33: 211
A34: 21 | B34: 4118 | C34: 11 | D34: 4128 | E34: 11 | F34: 4131 | K34: 0 | L34: 211
A35: 21 | B35: 4347 | C35: 11 | D35: 4356 | E35: 11 | F35: 4361 | K35: 0 | L35: 211
A36: 21 | B36: 4514 | C36: 11 | D36: 4522 | E36: 11 | F36: 4527 | K36: 0 | L36: 211
A37: 21 | B37: 4709 | C37: 11 | D37: 4718 | E37: 11 | F37: 4726 | K37: 0 | L37: 211
A38: 21 | B38: 4863 | C38: 11 | D38: 4872 | E38: 11 | F38: 4875 | K38: 0 | L38: 211
A39: 21 | B39: 5031 | C39: 11 | D39: 5042 | E39: 11 | F39: 5045 | K39: 0 | L39: 211
A40: 21 | B40: 5245 | C40: 11 | D40: 5254 | E40: 11 | F40: 5258 | K40: 0 | L40: 211
A41: 21 | B41: 5426 | C41: 11 | D41: 5434 | E41: 11 | F41: 5439 | K41: 0 | L41: 211
A42: 21 | B42: 5560 | C42: 11 | D42: 5569 | E42: 11 | F42: 5578 | K42: 0 | L42: 211
A43: 21 | B43: 5742 | C43: 11 | D43: 5752 | E43: 11 | F43: 5770 | K43: 0 | L43: 211
A44: 12 | B44: 5934 | C44: 13 | D44: 5943 | E44: 13 | F44: 5962 | K44: 0 | L44: 111
A45: 21 | B45: 6065 | C45: 11 | D45: 6075 | E45: 11 | F45: 6080 | K45: 0 | L45: 211
A46: 12 | B46: 6247 | C46: 13 | D46: 6251 | E46: 13 | F46: 6265 | K46: 0 | L46: 111
A47: 21 | B47: 6364 | C47: 11 | D47: 6371 | E47: 11 | F47: 6375 | K47: 0 | L47: 211
A48: 21 | B48: 6505 | C48: 11 | D48: 6513 | E48: 11 | F48: 6517 | K48: 0 | L48: 211
A49: 12 | B49: 6641 | C49: 13 | D49: 6645 | E49: 13 | F49: 6660 | K49: 0 | L49: 111
A50: 21 | B50: 6754 | C50: 11 | D50: 6765 | E50: 11 | F50: 6769 | K50: 0 | L50: 211
A51: 12 | B51: 6938 | C51: 13 | D51: 6949 | E51: 24 | F51: 6963 | K51: 0 | L51: 112
A52: 21 | B52: 7119 | C52: 11 | D52: 7127 | E52: 11 | F52: 7132 | K52: 0 | L52: 211
A53: 21 | B53: 7407 | C53: 11 | D53: 7414 | E53: 11 | F53: 7423 | K53: 0 | L53: 211
A54: 21 | B54: 7593 | C54: 11 | D54: 7601 | E54: 11 | F54: 7610 | K54: 0 | L54: 211
A55: 12 | B55: 7800 | C55: 13 | D55: 7802 | E55: 13 | F55: 7806 | K55: 0 | L55: 111
A56: 21 | B56: 7917 | C56: 22 | D56: 7920 | E56: 13 | F56: 7929 | K56: 0 | L56: 221
A57: 21 | B57: 8026 | C57: 11 | D57: 8035 | E57: 11 | F57: 8041 | K57: 1 | L57: 211

Sheet !MA0685D.ust
A1: Report for:!MA0685D.ust
A2: Date: | B2: <date>
A3: Hen: | B3: <hen> | F3: Correct Sequence | G3: =Start!J2 -> 211 | P3: Total Sequences in Data | Q3: =4994-COUNTBLANK(L7:L5000) -> 57 | V3: Total Sequences in Block Data | W3: =COUNTA(L7:L16) -> 10 | AA3: Total Sequences in Block Data | AB3: =COUNTA(L17:L25) -> 9 | AF3: Total Sequences in Block Data | AG3: =COUNTA(L26:L35) -> 10 | AK3: Total Sequences in Block Data | AL3: =COUNTA(L36:L44) -> 9 | AP3: Total Sequences in Block Data | AQ3: =COUNTA(L45:L54) -> 10 | AU3: Total Sequences in Block Data | AV3: =COUNTA(L55:L63) -> 9
P4: Total Sequences in Summary | Q4: =SUM(O7:O14) -> 57 | V4: Total Sequences in Block Summary | W4: =SUM(U7:U14) -> 10 | AA4: Total Sequences in Block Summary | AB4: =SUM(Z7:Z14) -> 9 | AF4: Total Sequences in Block Summary | AG4: =SUM(AE7:AE14) -> 10 | AK4: Total Sequences in Block Summary | AL4: =SUM(AJ7:AJ14) -> 9 | AP4: Total Sequences in Block Summary | AQ4: =SUM(AO7:AO14) -> 10 | AU4: Total Sequences in Block Summary | AV4: =SUM(AT7:AT14) -> 9
T5: Block 1 | Y5: Block 2 | AD5: Block 3 | AI5: Block 4 | AN5: Block 5 | AS5: Block 6
A6: Sequence Component 1 | B6: Time 1 | C6: Sequence Component 2 | D6: Time 2 | E6: Sequence Component 3 | F6: Time 3 | G6: Sequence Component 4 | H6: Time 4 | I6: Sequence Component 5 | J6: Time 5 | K6: Correct? 0=No 1=Yes | L6: Sequence | N6: Frequency | P6: Relative Frequency | Q6: Variability | T6: Frequency | V6: Relative Frequency | W6: Variability | Y6: Frequency | AA6: Relative Frequency | AB6: Variability | AD6: Frequency | AF6: Relative Frequency | AG6: Variability | AI6: Frequency | AK6: Relative Frequency | AL6: Variability | AN6: Frequency | AP6: Relative Frequency | AQ6: Variability | AS6: Frequency | AU6: Relative Frequency | AV6: Variability
A7: 12 | B7: 5 | C7: 13 | D7: 9 | E7: 13 | F7: 15 | K7: 0 | L7: 111 | N7: 111 | O7: =COUNTIF($L$7:$L$500,N7) -> 10 | P7: =O7/$Q$4 -> 0.1754385965 | Q7: =IF(P7=0,0,(P7*((LOG(P7))/LOG(2)))) -> -0.440519635 | T7: =N7 -> 111 | U7: =COUNTIF(L7:L16,T7) -> 2 | V7: =U7/(W4-U11) -> 0.6666666667 | W7: =IF(V7=0,0,(V7*((LOG(V7))/LOG(2)))) -> -0.3899750005 | Y7: =N7 -> 111 | Z7: =COUNTIF(L17:L25,Y7) -> 2 | AA7: =Z7/(AB4-Z11) -> 0.6666666667 | AB7: =IF(AA7=0,0,(AA7*((LOG(AA7))/LOG(2)))) -> -0.3899750005 | AD7: =N7 -> 111 | AE7: =COUNTIF(L26:L35,AD7) -> 1 | AF7: =AE7/(AG4-AE11) -> 0.5 | AG7: =IF(AF7=0,0,(AF7*((LOG(AF7))/LOG(2)))) -> -0.5 | AI7: =N7 -> 111 | AJ7: =COUNTIF(L36:L44,AI7) -> 3 | AK7: =AJ7/(AL4-AJ11) -> 1 | AL7: =IF(AK7=0,0,(AK7*((LOG(AK7))/LOG(2)))) -> 0 | AN7: =N7 -> 111 | AO7: =COUNTIF(L45:L54,AN7) -> 2 | AP7: =AO7/(AQ4-AO11) -> 0.5 | AQ7: =IF(AP7=0,0,(AP7*((LOG(AP7))/LOG(2)))) -> -0.5 | AS7: =N7 -> 111 | AT7: =COUNTIF(L55:L63,AS7) -> 0 | AU7: =AT7/(AV4-AT11) -> 0 | AV7: =IF(AU7=0,0,(AU7*((LOG(AU7))/LOG(2)))) -> 0
A8: 21 | B8: 112 | C8: 11 | D8: 120 | E8: 11 | F8: 124 | K8: 0 | L8: 211 | N8: 112 | O8: =COUNTIF($L$7:$L$500,N8) -> 4 | P8: =O8/$Q$4 -> 0.0701754386 | Q8: =IF(P8=0,0,(P8*((LOG(P8))/LOG(2)))) -> -0.2689747378 | T8: =N8 -> 112 | U8: =COUNTIF(L7:L16,T8) -> 1 | V8: =U8/(W4-U11) -> 0.3333333333 | W8: =IF(V8=0,0,(V8*((LOG(V8))/LOG(2)))) -> -0.5283208336 | Y8: =N8 -> 112 | Z8: =COUNTIF(L17:L25,Y8) -> 0 | AA8: =Z8/(AB4-Z11) -> 0 | AB8: =IF(AA8=0,0,(AA8*((LOG(AA8))/LOG(2)))) -> 0 | AD8: =N8 -> 112 | AE8: =COUNTIF(L26:L35,AD8) -> 1 | AF8: =AE8/(AG4-AE11) -> 0.5 | AG8: =IF(AF8=0,0,(AF8*((LOG(AF8))/LOG(2)))) -> -0.5 | AI8: =N8 -> 112 | AJ8: =COUNTIF(L36:L44,AI8) -> 0 | AK8: =AJ8/(AL4-AJ11) -> 0 | AL8: =IF(AK8=0,0,(AK8*((LOG(AK8))/LOG(2)))) -> 0 | AN8: =N8 -> 112 | AO8: =COUNTIF(L45:L54,AN8) -> 0 | AP8: =AO8/(AQ4-AO11) -> 0 | AQ8: =IF(AP8=0,0,(AP8*((LOG(AP8))/LOG(2)))) -> 0 | AS8: =N8 -> 112 | AT8: =COUNTIF(L55:L63,AS8) -> 2 | AU8: =AT8/(AV4-AT11) -> 0.6666666667 | AV8: =IF(AU8=0,0,(AU8*((LOG(AU8))/LOG(2)))) -> -0.3899750005
A9: 21 | B9: 247 | C9: 11 | D9: 254 | E9: 11 | F9: 264 | K9: 0 | L9: 211 | N9: 121 | O9: =COUNTIF($L$7:$L$500,N9) -> 0 | P9: =O9/$Q$4 -> 0 | Q9: =IF(P9=0,0,(P9*((LOG(P9))/LOG(2)))) -> 0 | T9: =N9 -> 121 | U9: =COUNTIF(L7:L16,T9) -> 0 | V9: =U9/(W4-U11) -> 0 | W9: =IF(V9=0,0,(V9*((LOG(V9))/LOG(2)))) -> 0 | Y9: =N9 -> 121 | Z9: =COUNTIF(L17:L25,Y9) -> 0 | AA9: =Z9/(AB4-Z11) -> 0 | AB9: =IF(AA9=0,0,(AA9*((LOG(AA9))/LOG(2)))) -> 0 | AD9: =N9 -> 121 | AE9: =COUNTIF(L26:L35,AD9) -> 0 | AF9: =AE9/(AG4-AE11) -> 0 | AG9: =IF(AF9=0,0,(AF9*((LOG(AF9))/LOG(2)))) -> 0 | AI9: =N9 -> 121 | AJ9: =COUNTIF(L36:L44,AI9) -> 0 | AK9: =AJ9/(AL4-AJ11) -> 0 | AL9: =IF(AK9=0,0,(AK9*((LOG(AK9))/LOG(2)))) -> 0 | AN9: =N9 -> 121 | AO9: =COUNTIF(L45:L54,AN9) -> 0 | AP9: =AO9/(AQ4-AO11) -> 0 | AQ9: =IF(AP9=0,0,(AP9*((LOG(AP9))/LOG(2)))) -> 0 | AS9: =N9 -> 121 | AT9: =COUNTIF(L55:L63,AS9) -> 0 | AU9: =AT9/(AV4-AT11) -> 0 | AV9: =IF(AU9=0,0,(AU9*((LOG(AU9))/LOG(2)))) -> 0
A10: 21 | B10: 409 | C10: 11 | D10: 419 | E10: 11 | F10: 429 | K10: 0 | L10: 211 | N10: 122 | O10: =COUNTIF($L$7:$L$500,N10) -> 0 | P10: =O10/$Q$4 -> 0 | Q10: =IF(P10=0,0,(P10*((LOG(P10))/LOG(2)))) -> 0 | T10: =N10 -> 122 | U10: =COUNTIF(L7:L16,T10) -> 0 | V10: =U10/(W4-U11) -> 0 | W10: =IF(V10=0,0,(V10*((LOG(V10))/LOG(2)))) -> 0 | Y10: =N10 -> 122 | Z10: =COUNTIF(L17:L25,Y10) -> 0 | AA10: =Z10/(AB4-Z11) -> 0 | AB10: =IF(AA10=0,0,(AA10*((LOG(AA10))/LOG(2)))) -> 0 | AD10: =N10 -> 122 | AE10: =COUNTIF(L26:L35,AD10) -> 0 | AF10: =AE10/(AG4-AE11) -> 0 | AG10: =IF(AF10=0,0,(AF10*((LOG(AF10))/LOG(2)))) -> 0 | AI10: =N10 -> 122 | AJ10: =COUNTIF(L36:L44,AI10) -> 0 | AK10: =AJ10/(AL4-AJ11) -> 0 | AL10: =IF(AK10=0,0,(AK10*((LOG(AK10))/LOG(2)))) -> 0 | AN10: =N10 -> 122 | AO10: =COUNTIF(L45:L54,AN10) -> 0 | AP10: =AO10/(AQ4-AO11) -> 0 | AQ10: =IF(AP10=0,0,(AP10*((LOG(AP10))/LOG(2)))) -> 0 | AS10: =N10 -> 122 | AT10: =COUNTIF(L55:L63,AS10) -> 0 | AU10: =AT10/(AV4-AT11) -> 0 | AV10: =IF(AU10=0,0,(AU10*((LOG(AU10))/LOG(2)))) -> 0
A11: 21 | B11: 589 | C11: 11 | D11: 598 | E11: 11 | F11: 601 | K11: 0 | L11: 211 | N11: 211 | O11: =COUNTIF($L$7:$L$500,N11) -> 39 | P11: =O11/$Q$4 -> 0.6842105263 | Q11: =IF(P11=0,0,(P11*((LOG(P11))/LOG(2)))) -> -0.3745969126 | T11: =N11 -> 211 | U11: =COUNTIF(L7:L16,T11) -> 7 | Y11: =N11 -> 211 | Z11: =COUNTIF(L17:L25,Y11) -> 6 | AD11: =N11 -> 211 | AE11: =COUNTIF(L26:L35,AD11) -> 8 | AI11: =N11 -> 211 | AJ11: =COUNTIF(L36:L44,AI11) -> 6 | AN11: =N11 -> 211 | AO11: =COUNTIF(L45:L54,AN11) -> 6 | AS11: =N11 -> 211 | AT11: =COUNTIF(L55:L63,AS11) -> 6
A12: 12 | B12: 760 | C12: 13 | D12: 765 | E12: 24 | F12: 790 | K12: 0 | L12: 112 | N12: 212 | O12: =COUNTIF($L$7:$L$500,N12) -> 0 | P12: =O12/$Q$4 -> 0 | Q12: =IF(P12=0,0,(P12*((LOG(P12))/LOG(2)))) -> 0 | T12: =N12 -> 212 | U12: =COUNTIF(L7:L16,T12) -> 0 | V12: =U12/(W4-U11) -> 0 | W12: =IF(V12=0,0,(V12*((LOG(V12))/LOG(2)))) -> 0 | Y12: =N12 -> 212 | Z12: =COUNTIF(L17:L25,Y12) -> 0 | AA12: =Z12/(AB4-Z11) -> 0 | AB12: =IF(AA12=0,0,(AA12*((LOG(AA12))/LOG(2)))) -> 0 | AD12: =N12 -> 212 | AE12: =COUNTIF(L26:L35,AD12) -> 0 | AF12: =AE12/(AG4-AE11) -> 0 | AG12: =IF(AF12=0,0,(AF12*((LOG(AF12))/LOG(2)))) -> 0 | AI12: =N12 -> 212 | AJ12: =COUNTIF(L36:L44,AI12) -> 0 | AK12: =AJ12/(AL4-AJ11) -> 0 | AL12: =IF(AK12=0,0,(AK12*((LOG(AK12))/LOG(2)))) -> 0 | AN12: =N12 -> 212 | AO12: =COUNTIF(L45:L54,AN12) -> 0 | AP12: =AO12/(AQ4-AO11) -> 0 | AQ12: =IF(AP12=0,0,(AP12*((LOG(AP12))/LOG(2)))) -> 0 | AS12: =N12 -> 212 | AT12: =COUNTIF(L55:L63,AS12) -> 0 | AU12: =AT12/(AV4-AT11) -> 0 | AV12: =IF(AU12=0,0,(AU12*((LOG(AU12))/LOG(2)))) -> 0
A13: 21 | B13: 892 | C13: 11 | D13: 902 | E13: 11 | F13: 906 | K13: 0 | L13: 211 | N13: 221 | O13: =COUNTIF($L$7:$L$500,N13) -> 4 | P13: =O13/$Q$4 -> 0.0701754386 | Q13: =IF(P13=0,0,(P13*((LOG(P13))/LOG(2)))) -> -0.2689747378 | T13: =N13 -> 221 | U13: =COUNTIF(L7:L16,T13) -> 0 | V13: =U13/(W4-U11) -> 0 | W13: =IF(V13=0,0,(V13*((LOG(V13))/LOG(2)))) -> 0 | Y13: =N13 -> 221 | Z13: =COUNTIF(L17:L25,Y13) -> 1 | AA13: =Z13/(AB4-Z11) -> 0.3333333333 | AB13: =IF(AA13=0,0,(AA13*((LOG(AA13))/LOG(2)))) -> -0.5283208336 | AD13: =N13 -> 221 | AE13: =COUNTIF(L26:L35,AD13) -> 0 | AF13: =AE13/(AG4-AE11) -> 0 | AG13: =IF(AF13=0,0,(AF13*((LOG(AF13))/LOG(2)))) -> 0 | AI13: =N13 -> 221 | AJ13: =COUNTIF(L36:L44,AI13) -> 0 | AK13: =AJ13/(AL4-AJ11) -> 0 | AL13: =IF(AK13=0,0,(AK13*((LOG(AK13))/LOG(2)))) -> 0 | AN13: =N13 -> 221 | AO13: =COUNTIF(L45:L54,AN13) -> 2 | AP13: =AO13/(AQ4-AO11) -> 0.5 | AQ13: =IF(AP13=0,0,(AP13*((LOG(AP13))/LOG(2)))) -> -0.5 | AS13: =N13 -> 221 | AT13: =COUNTIF(L55:L63,AS13) -> 1 | AU13: =AT13/(AV4-AT11) -> 0.3333333333 | AV13: =IF(AU13=0,0,(AU13*((LOG(AU13))/LOG(2)))) -> -0.5283208336
A14: 21 | B14: 1009 | C14: 11 | D14: 1017 | E14: 11 | F14: 1021 | K14: 0 | L14: 211 | N14: 222 | O14: =COUNTIF($L$7:$L$500,N14) -> 0 | P14: =O14/$Q$4 -> 0 | Q14: =IF(P14=0,0,(P14*((LOG(P14))/LOG(2)))) -> 0 | T14: =N14 -> 222 | U14: =COUNTIF(L7:L16,T14) -> 0 | V14: =U14/(W4-U11) -> 0 | W14: =IF(V14=0,0,(V14*((LOG(V14))/LOG(2)))) -> 0 | Y14: =N14 -> 222 | Z14: =COUNTIF(L17:L25,Y14) -> 0 | AA14: =Z14/(AB4-Z11) -> 0 | AB14: =IF(AA14=0,0,(AA14*((LOG(AA14))/LOG(2)))) -> 0 | AD14: =N14 -> 222 | AE14: =COUNTIF(L26:L35,AD14) -> 0 | AF14: =AE14/(AG4-AE11) -> 0 | AG14: =IF(AF14=0,0,(AF14*((LOG(AF14))/LOG(2)))) -> 0 | AI14: =N14 -> 222 | AJ14: =COUNTIF(L36:L44,AI14) -> 0 | AK14: =AJ14/(AL4-AJ11) -> 0 | AL14: =IF(AK14=0,0,(AK14*((LOG(AK14))/LOG(2)))) -> 0 | AN14: =N14 -> 222 | AO14: =COUNTIF(L45:L54,AN14) -> 0 | AP14: =AO14/(AQ4-AO11) -> 0 | AQ14: =IF(AP14=0,0,(AP14*((LOG(AP14))/LOG(2)))) -> 0 | AS14: =N14 -> 222 | AT14: =COUNTIF(L55:L63,AS14) -> 0 | AU14: =AT14/(AV4-AT11) -> 0 | AV14: =IF(AU14=0,0,(AU14*((LOG(AU14))/LOG(2)))) -> 0
A15: 21 | B15: 1210 | C15: 11 | D15: 1220 | E15: 11 | F15: 1224 | K15: 0 | L15: 211 | P15: =SUM(P7:P14) -> 1 | Q15: =-SUM(Q7:Q14) -> 1.353066023 | V15: =SUM(V7:V14) -> 1 | W15: =-SUM(W7:W14) -> 0.9182958341 | AA15: =SUM(AA7:AA14) -> 1 | AB15: =-SUM(AB7:AB14) -> 0.9182958341 | AF15: =SUM(AF7:AF14) -> 1 | AG15: =-SUM(AG7:AG14) -> 1 | AK15: =SUM(AK7:AK14) -> 1 | AL15: =-SUM(AL7:AL14) -> 0 | AP15: =SUM(AP7:AP14) -> 1 | AQ15: =-SUM(AQ7:AQ14) -> 1 | AU15: =SUM(AU7:AU14) -> 1 | AV15: =-SUM(AV7:AV14) -> 0.9182958341
A16: 12 | B16: 1367 | C16: 13 | D16: 1372 | E16: 13 | F16: 1381 | K16: 0 | L16: 111 | P16: U= | Q16: =Q15/(LOG(Q4)/LOG(2)) -> 0.2319718047 | V16: U1= | W16: =W15/(LOG(W4)/LOG(2)) -> 0.2764345909 | AA16: U2= | AB16: =AB15/(LOG(AB4)/LOG(2)) -> 0.2896900821 | AF16: U3= | AG16: =AG15/(LOG(AG4)/LOG(2)) -> 0.3010299957 | AK16: U4= | AL16: =AL15/(LOG(AL4)/LOG(2)) -> 0 | AP16: U5= | AQ16: =AQ15/(LOG(AQ4)/LOG(2)) -> 0.3010299957 | AU16: U6= | AV16: =AV15/(LOG(AV4)/LOG(2)) -> 0.2896900821
A17: 21 | B17: 1480 | C17: 11 | D17: 1489 | E17: 11 | F17: 1495 | K17: 0 | L17: 211
A18: 12 | B18: 1655 | C18: 13 | D18: 1658 | E18: 13 | F18: 1665 | K18: 0 | L18: 111
A19: 21 | B19: 1759 | C19: 11 | D19: 1768 | E19: 11 | F19: 1772 | K19: 0 | L19: 211 | N19: Total Target Seq
A20: 21 | B20: 1913 | C20: 11 | D20: 1922 | E20: 11 | F20: 1927 | K20: 0 | L20: 211 | N20: =COUNTIF(L7:L63,G3) -> 39 | P20: 10 | Q20: 9 | R20: 10 | S20: 9 | T20: 10 | U20: 9
A21: 12 | B21: 2088 | C21: 13 | D21: 2095 | E21: 13 | F21: 2113 | K21: 0 | L21: 111 | P21: % of reinforcement given in 6 equal intervals based on number of trials
A22: 21 | B22: 2210 | C22: 22 | D22: 2214 | E22: 13 | F22: 2224 | K22: 0 | L22: 221 | P22: %_1 | Q22: %_2 | R22: %_3 | S22: %_4 | T22: %_5 | U22: %_6
A23: 21 | B23: 2356 | C23: 11 | D23: 2363 | E23: 11 | F23: 2368 | K23: 0 | L23: 211 | O23: target sequence | P23: =$G$3 -> 211 | Q23: =$G$3 -> 211 | R23: =$G$3 -> 211 | S23: =$G$3 -> 211 | T23: =$G$3 -> 211 | U23: =$G$3 -> 211
A24: 21 | B24: 2492 | C24: 11 | D24: 2501 | E24: 11 | F24: 2507 | K24: 0 | L24: 211 | O24: total reinforcement | P24: =U11 -> 7 | Q24: =Z11 -> 6 | R24: =AE11 -> 8 | S24: =AJ11 -> 6 | T24: =AO11 -> 6 | U24: =AT11 -> 6
A25: 21 | B25: 2662 | C25: 11 | D25: 2671 | E25: 11 | F25: 2675 | K25: 0 | L25: 211 | O25: % target
A26: 21 | B26: 2863 | C26: 11 | D26: 2873 | E26: 11 | F26: 2876 | K26: 0 | L26: 211 | O26: CCRF
A27: 21 | B27: 3088 | C27: 11 | D27: 3097 | E27: 11 | F27: 3100 | K27: 0 | L27: 211 | O27: % CCRf
A28: 21 | B28: 3251 | C28: 11 | D28: 3259 | E28: 11 | F28: 3275 | K28: 0 | L28: 211 | O28: average response rate | P28: =F16/P20 -> 138.1 | Q28: =(F25-F16)/Q20 -> 143.7777778 | R28: =(F35-F25)/R20 -> 169.5 | S28: =(F44-F35)/S20 -> 161.1111111 | T28: =(F54-F44)/T20 -> 147.9 | U28: =(F63-F54)/U20 -> 165.6666667
A29: 21 | B29: 3399 | C29: 11 | D29: 3407 | E29: 11 | F29: 3411 | K29: 0 | L29: 211
A30: 21 | B30: 3610 | C30: 11 | D30: 3618 | E30: 11 | F30: 3623 | K30: 0 | L30: 211
A31: 21 | B31: 3795 | C31: 11 | D31: 3803 | E31: 11 | F31: 3805 | K31: 0 | L31: 211
A32: 12 | B32: 3941 | C32: 13 | D32: 3951 | E32: 13 | F32: 3963 | K32: 0 | L32: 111
A33: 12 | B33: 4070 | C33: 13 | D33: 4079 | E33: 24 | F33: 4092 | K33: 0 | L33: 112
A34: 21 | B34: 4192 | C34: 11 | D34: 4201 | E34: 11 | F34: 4204 | K34: 0 | L34: 211
A35: 21 | B35: 4350 | C35: 11 | D35: 4359 | E35: 11 | F35: 4370 | K35: 0 | L35: 211
A36: 12 | B36: 4507 | C36: 13 | D36: 4519 | E36: 13 | F36: 4541 | K36: 0 | L36: 111
A37: 21 | B37: 4646 | C37: 11 | D37: 4653 | E37: 11 | F37: 4657 | K37: 0 | L37: 211
A38: 21 | B38: 4761 | C38: 11 | D38: 4770 | E38: 11 | F38: 4774 | K38: 0 | L38: 211
A39: 21 | B39: 4898 | C39: 11 | D39: 4909 | E39: 11 | F39: 4919 | K39: 0 | L39: 211
A40: 21 | B40: 5122 | C40: 11 | D40: 5129 | E40: 11 | F40: 5138 | K40: 0 | L40: 211
A41: 12 | B41: 5359 | C41: 13 | D41: 5362 | E41: 13 | F41: 5368 | K41: 0 | L41: 111
A42: 21 | B42: 5468 | C42: 11 | D42: 5476 | E42: 11 | F42: 5485 | K42: 0 | L42: 211
A43: 12 | B43: 5675 | C43: 13 | D43: 5679 | E43: 13 | F43: 5703 | K43: 0 | L43: 111
A44: 21 | B44: 5801 | C44: 11 | D44: 5809 | E44: 11 | F44: 5820 | K44: 0 | L44: 211
A45: 12 | B45: 5926 | C45: 13 | D45: 5931 | E45: 13 | F45: 5937 | K45: 0 | L45: 111
A46: 21 | B46: 6033 | C46: 22 | D46: 6040 | E46: 13 | F46: 6047 | K46: 0 | L46: 221
A47: 21 | B47: 6143 | C47: 22 | D47: 6148 | E47: 13 | F47: 6156 | K47: 0 | L47: 221
A48: 21 | B48: 6258 | C48: 11 | D48: 6269 | E48: 11 | F48: 6273 | K48: 0 | L48: 211
A49: 21 | B49: 6379 | C49: 11 | D49: 6389 | E49: 11 | F49: 6393 | K49: 0 | L49: 211
A50: 21 | B50: 6614 | C50: 11 | D50: 6621 | E50: 11 | F50: 6625 | K50: 0 | L50: 211
A51: 12 | B51: 6794 | C51: 13 | D51: 6805 | E51: 13 | F51: 6818 | K51: 0 | L51: 111
A52: 21 | B52: 6915 | C52: 11 | D52: 6924 | E52: 11 | F52: 6930 | K52: 0 | L52: 211
A53: 21 | B53: 7091 | C53: 11 | D53: 7098 | E53: 11 | F53: 7102 | K53: 0 | L53: 211
A54: 21 | B54: 7269 | C54: 11 | D54: 7277 | E54: 11 | F54: 7299 | K54: 0 | L54: 211
A55: 12 | B55: 7516 | C55: 13 | D55: 7519 | E55: 24 | F55: 7534 | K55: 0 | L55: 112
A56: 21 | B56: 7626 | C56: 22 | D56: 7633 | E56: 13 | F56: 7642 | K56: 0 | L56: 221
A57: 21 | B57: 7743 | C57: 11 | D57: 7753 | E57: 11 | F57: 7764 | K57: 0 | L57: 211
A58: 21 | B58: 7885 | C58: 11 | D58: 7893 | E58: 11 | F58: 7897 | K58: 0 | L58: 211
A59: 21 | B59: 8038 | C59: 11 | D59: 8047 | E59: 11 | F59: 8050 | K59: 0 | L59: 211
A60: 12 | B60: 8279 | C60: 13 | D60: 8289 | E60: 24 | F60: 8299 | K60: 0 | L60: 112
A61: 21 | B61: 8397 | C61: 11 | D61: 8406 | E61: 11 | F61: 8412 | K61: 0 | L61: 211
A62: 21 | B62: 8558 | C62: 11 | D62: 8568 | E62: 11 | F62: 8573 | K62: 0 | L62: 211
A63: 21 | B63: 8778 | C63: 11 | D63: 8786 | E63: 11 | F63: 8790 | K63: 1 | L63: 211

Sheet !MA0791D.ust
A1: Report for:!MA0791D.ust
A2: Date: | B2: <date>
A3: Hen: | B3: <hen> | F3: Correct Sequence | G3: =Start!J2 -> 211 | P3: Total Sequences in Data | Q3: =4994-COUNTBLANK(L7:L5000) -> 52 | V3: Total Sequences in Block Data | W3: =COUNTA(L7:L15) -> 9 | AA3: Total Sequences in Block Data | AB3: =COUNTA(L16:L23) -> 8 | AF3: Total Sequences in Block Data | AG3: =COUNTA(L24:L32) -> 9 | AK3: Total Sequences in Block Data | AL3: =COUNTA(L33:L41) -> 9 | AP3: Total Sequences in Block Data | AQ3: =COUNTA(L42:L49) -> 8 | AU3: Total Sequences in Block Data | AV3: =COUNTA(L50:L58) -> 9
P4: Total Sequences in Summary | Q4: =SUM(O7:O14) -> 52 | V4: Total Sequences in Block Summary | W4: =SUM(U7:U14) -> 9 | AA4: Total Sequences in Block Summary | AB4: =SUM(Z7:Z14) -> 8 | AF4: Total Sequences in Block Summary | AG4: =SUM(AE7:AE14) -> 9 | AK4: Total Sequences in Block Summary | AL4: =SUM(AJ7:AJ14) -> 9 | AP4: Total Sequences in Block Summary | AQ4: =SUM(AO7:AO14) -> 8 | AU4: Total Sequences in Block Summary | AV4: =SUM(AT7:AT14) -> 9
T5: Block 1 | Y5: Block 2 | AD5: Block 3 | AI5: Block 4 | AN5: Block 5 | AS5: Block 6
A6: Sequence Component 1 | B6: Time 1 | C6: Sequence Component 2 | D6: Time 2 | E6: Sequence Component 3 | F6: Time 3 | G6: Sequence Component 4 | H6: Time 4 | I6: Sequence Component 5 | J6: Time 5 | K6: Correct? 0=No 1=Yes | L6: Sequence | N6: Frequency | P6: Relative Frequency | Q6: Variability | T6: Frequency | V6: Relative Frequency | W6: Variability | Y6: Frequency | AA6: Relative Frequency | AB6: Variability | AD6: Frequency | AF6: Relative Frequency | AG6: Variability | AI6: Frequency | AK6: Relative Frequency | AL6: Variability | AN6: Frequency | AP6: Relative Frequency | AQ6: Variability | AS6: Frequency | AU6: Relative Frequency | AV6: Variability
A7: 21 | B7: 5 | C7: 11 | D7: 19 | E7: 11 | F7: 24 | K7: 0 | L7: 211 | N7: 111 | O7: =COUNTIF($L$7:$L$500,N7) -> 10 | P7: =O7/$Q$4 -> 0.1923076923 | Q7: =IF(P7=0,0,(P7*((LOG(P7))/LOG(2)))) -> -0.4574060814 | T7: =N7 -> 111 | U7: =COUNTIF(L7:L15,T7) -> 2 | V7: =U7/(W4-U11) -> 1 | W7: =IF(V7=0,0,(V7*((LOG(V7))/LOG(2)))) -> 0 | Y7: =N7 -> 111 | Z7: =COUNTIF(L16:L23,Y7) -> 0 | AA7: =Z7/(AB4-Z11) ->  | AB7: =IF(AA7=0,0,(AA7*((LOG(AA7))/LOG(2)))) ->  | AD7: =N7 -> 111 | AE7: =COUNTIF(L24:L32,AD7) -> 1 | AF7: =AE7/(AG4-AE11) -> 0.3333333333 | AG7: =IF(AF7=0,0,(AF7*((LOG(AF7))/LOG(2)))) -> -0.5283208336 | AI7: =N7 -> 111 | AJ7: =COUNTIF(L33:L41,AI7) -> 1 | AK7: =AJ7/(AL4-AJ11) -> 0.5 | AL7: =IF(AK7=0,0,(AK7*((LOG(AK7))/LOG(2)))) -> -0.5 | AN7: =N7 -> 111 | AO7: =COUNTIF(L42:L49,AN7) -> 3 | AP7: =AO7/(AQ4-AO11) -> 1 | AQ7: =IF(AP7=0,0,(AP7*((LOG(AP7))/LOG(2)))) -> 0 | AS7: =N7 -> 111 | AT7: =COUNTIF(L50:L58,AS7) -> 3 | AU7: =AT7/(AV4-AT11) -> 1 | AV7: =IF(AU7=0,0,(AU7*((LOG(AU7))/LOG(2)))) -> 0
A8: 12 | B8: 212 | C8: 13 | D8: 220 | E8: 13 | F8: 233 | K8: 0 | L8: 111 | N8: 112 | O8: =COUNTIF($L$7:$L$500,N8) -> 2 | P8: =O8/$Q$4 -> 0.03846153846 | Q8: =IF(P8=0,0,(P8*((LOG(P8))/LOG(2)))) -> -0.180786143 | T8: =N8 -> 112 | U8: =COUNTIF(L7:L15,T8) -> 0 | V8: =U8/(W4-U11) -> 0 | W8: =IF(V8=0,0,(V8*((LOG(V8))/LOG(2)))) -> 0 | Y8: =N8 -> 112 | Z8: =COUNTIF(L16:L23,Y8) -> 0 | AA8: =Z8/(AB4-Z11) ->  | AB8: =IF(AA8=0,0,(AA8*((LOG(AA8))/LOG(2)))) ->  | AD8: =N8 -> 112 | AE8: =COUNTIF(L24:L32,AD8) -> 1 | AF8: =AE8/(AG4-AE11) -> 0.3333333333 | AG8: =IF(AF8=0,0,(AF8*((LOG(AF8))/LOG(2)))) -> -0.5283208336 | AI8: =N8 -> 112 | AJ8: =COUNTIF(L33:L41,AI8) -> 1 | AK8: =AJ8/(AL4-AJ11) -> 0.5 | AL8: =IF(AK8=0,0,(AK8*((LOG(AK8))/LOG(2)))) -> -0.5 | AN8: =N8 -> 112 | AO8: =COUNTIF(L42:L49,AN8) -> 0 | AP8: =AO8/(AQ4-AO11) -> 0 | AQ8: =IF(AP8=0,0,(AP8*((LOG(AP8))/LOG(2)))) -> 0 | AS8: =N8 -> 112 | AT8: =COUNTIF(L50:L58,AS8) -> 0 | AU8: =AT8/(AV4-AT11) -> 0 | AV8: =IF(AU8=0,0,(AU8*((LOG(AU8))/LOG(2)))) -> 0
A9: 21 | B9: 333 | C9: 11 | D9: 345 | E9: 11 | F9: 350 | K9: 0 | L9: 211 | N9: 121 | O9: =COUNTIF($L$7:$L$500,N9) -> 0 | P9: =O9/$Q$4 -> 0 | Q9: =IF(P9=0,0,(P9*((LOG(P9))/LOG(2)))) -> 0 | T9: =N9 -> 121 | U9: =COUNTIF(L7:L15,T9) -> 0 | V9: =U9/(W4-U11) -> 0 | W9: =IF(V9=0,0,(V9*((LOG(V9))/LOG(2)))) -> 0 | Y9: =N9 -> 121 | Z9: =COUNTIF(L16:L23,Y9) -> 0 | AA9: =Z9/(AB4-Z11) ->  | AB9: =IF(AA9=0,0,(AA9*((LOG(AA9))/LOG(2)))) ->  | AD9: =N9 -> 121 | AE9: =COUNTIF(L24:L32,AD9) -> 0 | AF9: =AE9/(AG4-AE11) -> 0 | AG9: =IF(AF9=0,0,(AF9*((LOG(AF9))/LOG(2)))) -> 0 | AI9: =N9 -> 121 | AJ9: =COUNTIF(L33:L41,AI9) -> 0 | AK9: =AJ9/(AL4-AJ11) -> 0 | AL9: =IF(AK9=0,0,(AK9*((LOG(AK9))/LOG(2)))) -> 0 | AN9: =N9 -> 121 | AO9: =COUNTIF(L42:L49,AN9) -> 0 | AP9: =AO9/(AQ4-AO11) -> 0 | AQ9: =IF(AP9=0,0,(AP9*((LOG(AP9))/LOG(2)))) -> 0 | AS9: =N9 -> 121 | AT9: =COUNTIF(L50:L58,AS9) -> 0 | AU9: =AT9/(AV4-AT11) -> 0 | AV9: =IF(AU9=0,0,(AU9*((LOG(AU9))/LOG(2)))) -> 0
A10: 21 | B10: 470 | C10: 11 | D10: 479 | E10: 11 | F10: 483 | K10: 0 | L10: 211 | N10: 122 | O10: =COUNTIF($L$7:$L$500,N10) -> 0 | P10: =O10/$Q$4 -> 0 | Q10: =IF(P10=0,0,(P10*((LOG(P10))/LOG(2)))) -> 0 | T10: =N10 -> 122 | U10: =COUNTIF(L7:L15,T10) -> 0 | V10: =U10/(W4-U11) -> 0 | W10: =IF(V10=0,0,(V10*((LOG(V10))/LOG(2)))) -> 0 | Y10: =N10 -> 122 | Z10: =COUNTIF(L16:L23,Y10) -> 0 | AA10: =Z10/(AB4-Z11) ->  | AB10: =IF(AA10=0,0,(AA10*((LOG(AA10))/LOG(2)))) ->  | AD10: =N10 -> 122 | AE10: =COUNTIF(L24:L32,AD10) -> 0 | AF10: =AE10/(AG4-AE11) -> 0 | AG10: =IF(AF10=0,0,(AF10*((LOG(AF10))/LOG(2)))) -> 0 | AI10: =N10 -> 122 | AJ10: =COUNTIF(L33:L41,AI10) -> 0 | AK10: =AJ10/(AL4-AJ11) -> 0 | AL10: =IF(AK10=0,0,(AK10*((LOG(AK10))/LOG(2)))) -> 0 | AN10: =N10 -> 122 | AO10: =COUNTIF(L42:L49,AN10) -> 0 | AP10: =AO10/(AQ4-AO11) -> 0 | AQ10: =IF(AP10=0,0,(AP10*((LOG(AP10))/LOG(2)))) -> 0 | AS10: =N10 -> 122 | AT10: =COUNTIF(L50:L58,AS10) -> 0 | AU10: =AT10/(AV4-AT11) -> 0 | AV10: =IF(AU10=0,0,(AU10*((LOG(AU10))/LOG(2)))) -> 0
A11: 21 | B11: 603 | C11: 11 | D11: 613 | E11: 11 | F11: 617 | K11: 0 | L11: 211 | N11: 211 | O11: =COUNTIF($L$7:$L$500,N11) -> 39 | P11: =O11/$Q$4 -> 0.75 | Q11: =IF(P11=0,0,(P11*((LOG(P11))/LOG(2)))) -> -0.3112781245 | T11: =N11 -> 211 | U11: =COUNTIF(L7:L15,T11) -> 7 | Y11: =N11 -> 211 | Z11: =COUNTIF(L16:L23,Y11) -> 8 | AD11: =N11 -> 211 | AE11: =COUNTIF(L24:L32,AD11) -> 6 | AI11: =N11 -> 211 | AJ11: =COUNTIF(L33:L41,AI11) -> 7 | AN11: =N11 -> 211 | AO11: =COUNTIF(L42:L49,AN11) -> 5 | AS11: =N11 -> 211 | AT11: =COUNTIF(L50:L58,AS11) -> 6
A12: 21 | B12: 742 | C12: 11 | D12: 753 | E12: 11 | F12: 759 | K12: 0 | L12: 211 | N12: 212 | O12: =COUNTIF($L$7:$L$500,N12) -> 0 | P12: =O12/$Q$4 -> 0 | Q12: =IF(P12=0,0,(P12*((LOG(P12))/LOG(2)))) -> 0 | T12: =N12 -> 212 | U12: =COUNTIF(L7:L15,T12) -> 0 | V12: =U12/(W4-U11) -> 0 | W12: =IF(V12=0,0,(V12*((LOG(V12))/LOG(2)))) -> 0 | Y12: =N12 -> 212 | Z12: =COUNTIF(L16:L23,Y12) -> 0 | AA12: =Z12/(AB4-Z11) ->  | AB12: =IF(AA12=0,0,(AA12*((LOG(AA12))/LOG(2)))) ->  | AD12: =N12 -> 212 | AE12: =COUNTIF(L24:L32,AD12) -> 0 | AF12: =AE12/(AG4-AE11) -> 0 | AG12: =IF(AF12=0,0,(AF12*((LOG(AF12))/LOG(2)))) -> 0 | AI12: =N12 -> 212 | AJ12: =COUNTIF(L33:L41,AI12) -> 0 | AK12: =AJ12/(AL4-AJ11) -> 0 | AL12: =IF(AK12=0,0,(AK12*((LOG(AK12))/LOG(2)))) -> 0 | AN12: =N12 -> 212 | AO12: =COUNTIF(L42:L49,AN12) -> 0 | AP12: =AO12/(AQ4-AO11) -> 0 | AQ12: =IF(AP12=0,0,(AP12*((LOG(AP12))/LOG(2)))) -> 0 | AS12: =N12 -> 212 | AT12: =COUNTIF(L50:L58,AS12) -> 0 | AU12: =AT12/(AV4-AT11) -> 0 | AV12: =IF(AU12=0,0,(AU12*((LOG(AU12))/LOG(2)))) -> 0
A13: 12 | B13: 910 | C13: 13 | D13: 917 | E13: 13 | F13: 924 | K13: 0 | L13: 111 | N13: 221 | O13: =COUNTIF($L$7:$L$500,N13) -> 1 | P13: =O13/$Q$4 -> 0.01923076923 | Q13: =IF(P13=0,0,(P13*((LOG(P13))/LOG(2)))) -> -0.1096238407 | T13: =N13 -> 221 | U13: =COUNTIF(L7:L15,T13) -> 0 | V13: =U13/(W4-U11) -> 0 | W13: =IF(V13=0,0,(V13*((LOG(V13))/LOG(2)))) -> 0 | Y13: =N13 -> 221 | Z13: =COUNTIF(L16:L23,Y13) -> 0 | AA13: =Z13/(AB4-Z11) ->  | AB13: =IF(AA13=0,0,(AA13*((LOG(AA13))/LOG(2)))) ->  | AD13: =N13 -> 221 | AE13: =COUNTIF(L24:L32,AD13) -> 1 | AF13: =AE13/(AG4-AE11) -> 0.3333333333 | AG13: =IF(AF13=0,0,(AF13*((LOG(AF13))/LOG(2)))) -> -0.5283208336 | AI13: =N13 -> 221 | AJ13: =COUNTIF(L33:L41,AI13) -> 0 | AK13: =AJ13/(AL4-AJ11) -> 0 | AL13: =IF(AK13=0,0,(AK13*((LOG(AK13))/LOG(2)))) -> 0 | AN13: =N13 -> 221 | AO13: =COUNTIF(L42:L49,AN13) -> 0 | AP13: =AO13/(AQ4-AO11) -> 0 | AQ13: =IF(AP13=0,0,(AP13*((LOG(AP13))/LOG(2)))) -> 0 | AS13: =N13 -> 221 | AT13: =COUNTIF(L50:L58,AS13) -> 0 | AU13: =AT13/(AV4-AT11) -> 0 | AV13: =IF(AU13=0,0,(AU13*((LOG(AU13))/LOG(2)))) -> 0
A14: 21 | B14: 1020 | C14: 11 | D14: 1031 | E14: 11 | F14: 1037 | K14: 0 | L14: 211 | N14: 222 | O14: =COUNTIF($L$7:$L$500,N14) -> 0 | P14: =O14/$Q$4 -> 0 | Q14: =IF(P14=0,0,(P14*((LOG(P14))/LOG(2)))) -> 0 | T14: =N14 -> 222 | U14: =COUNTIF(L7:L15,T14) -> 0 | V14: =U14/(W4-U11) -> 0 | W14: =IF(V14=0,0,(V14*((LOG(V14))/LOG(2)))) -> 0 | Y14: =N14 -> 222 | Z14: =COUNTIF(L16:L23,Y14) -> 0 | AA14: =Z14/(AB4-Z11) ->  | AB14: =IF(AA14=0,0,(AA14*((LOG(AA14))/LOG(2)))) ->  | AD14: =N14 -> 222 | AE14: =COUNTIF(L24:L32,AD14) -> 0 | AF14: =AE14/(AG4-AE11) -> 0 | AG14: =IF(AF14=0,0,(AF14*((LOG(AF14))/LOG(2)))) -> 0 | AI14: =N14 -> 222 | AJ14: =COUNTIF(L33:L41,AI14) -> 0 | AK14: =AJ14/(AL4-AJ11) -> 0 | AL14: =IF(AK14=0,0,(AK14*((LOG(AK14))/LOG(2)))) -> 0 | AN14: =N14 -> 222 | AO14: =COUNTIF(L42:L49,AN14) -> 0 | AP14: =AO14/(AQ4-AO11) -> 0 | AQ14: =IF(AP14=0,0,(AP14*((LOG(AP14))/LOG(2)))) -> 0 | AS14: =N14 -> 222 | AT14: =COUNTIF(L50:L58,AS14) -> 0 | AU14: =AT14/(AV4-AT11) -> 0 | AV14: =IF(AU14=0,0,(AU14*((LOG(AU14))/LOG(2)))) -> 0
A15: 21 | B15: 1166 | C15: 11 | D15: 1176 | E15: 11 | F15: 1185 | K15: 0 | L15: 211 | P15: =SUM(P7:P14) -> 1 | Q15: =-SUM(Q7:Q14) -> 1.05909419 | V15: =SUM(V7:V14) -> 1 | W15: =-SUM(W7:W14) -> 0 | AA15: =SUM(AA7:AA14) ->  | AB15: =-SUM(AB7:AB14) ->  | AF15: =SUM(AF7:AF14) -> 1 | AG15: =-SUM(AG7:AG14) -> 1.584962501 | AK15: =SUM(AK7:AK14) -> 1 | AL15: =-SUM(AL7:AL14) -> 1 | AP15: =SUM(AP7:AP14) -> 1 | AQ15: =-SUM(AQ7:AQ14) -> 0 | AU15: =SUM(AU7:AU14) -> 1 | AV15: =-SUM(AV7:AV14) -> 0
A16: 21 | B16: 1293 | C16: 11 | D16: 1305 | E16: 11 | F16: 1310 | K16: 0 | L16: 211 | P16: U= | Q16: =Q15/(LOG(Q4)/LOG(2)) -> 0.1857916655 | V16: U1= | W16: =W15/(LOG(W4)/LOG(2)) -> 0 | AA16: U2= | AB16: =AB15/(LOG(AB4)/LOG(2)) ->  | AF16: U3= | AG16: =AG15/(LOG(AG4)/LOG(2)) -> 0.5 | AK16: U4= | AL16: =AL15/(LOG(AL4)/LOG(2)) -> 0.3154648768 | AP16: U5= | AQ16: =AQ15/(LOG(AQ4)/LOG(2)) -> 0 | AU16: U6= | AV16: =AV15/(LOG(AV4)/LOG(2)) -> 0
A17: 21 | B17: 1445 | C17: 11 | D17: 1455 | E17: 11 | F17: 1462 | K17: 0 | L17: 211
A18: 21 | B18: 1588 | C18: 11 | D18: 1598 | E18: 11 | F18: 1602 | K18: 0 | L18: 211
A19: 21 | B19: 1741 | C19: 11 | D19: 1749 | E19: 11 | F19: 1754 | K19: 0 | L19: 211 | N19: Total Target Seq
A20: 21 | B20: 1892 | C20: 11 | D20: 1901 | E20: 11 | F20: 1906 | K20: 0 | L20: 211 | N20: =COUNTIF(L7:L58,G3) -> 39 | P20: 9 | Q20: 8 | R20: 9 | S20: 9 | T20: 8 | U20: 9
A21: 21 | B21: 2021 | C21: 11 | D21: 2031 | E21: 11 | F21: 2040 | K21: 0 | L21: 211 | P21: % of reinforcement given in 6 equal intervals based on number of trials
A22: 21 | B22: 2176 | C22: 11 | D22: 2185 | E22: 11 | F22: 2190 | K22: 0 | L22: 211 | P22: %_1 | Q22: %_2 | R22: %_3 | S22: %_4 | T22: %_5 | U22: %_6
A23: 21 | B23: 2327 | C23: 11 | D23: 2337 | E23: 11 | F23: 2343 | K23: 0 | L23: 211 | O23: target sequence | P23: =$G$3 -> 211 | Q23: =$G$3 -> 211 | R23: =$G$3 -> 211 | S23: =$G$3 -> 211 | T23: =$G$3 -> 211 | U23: =$G$3 -> 211
A24: 21 | B24: 2471 | C24: 11 | D24: 2482 | E24: 11 | F24: 2494 | K24: 0 | L24: 211 | O24: total reinforcement | P24: =U11 -> 7 | Q24: =Z11 -> 8 | R24: =AE11 -> 6 | S24: =AJ11 -> 7 | T24: =AO11 -> 5 | U24: =AT11 -> 6
A25: 12 | B25: 2639 | C25: 13 | D25: 2643 | E25: 13 | F25: 2650 | K25: 0 | L25: 111 | O25: % target
A26: 21 | B26: 2747 | C26: 22 | D26: 2756 | E26: 13 | F26: 2767 | K26: 0 | L26: 221 | O26: CCRF
A27: 21 | B27: 2910 | C27: 11 | D27: 2918 | E27: 11 | F27: 2922 | K27: 0 | L27: 211 | O27: % CCRf
A28: 12 | B28: 3095 | C28: 13 | D28: 3105 | E28: 24 | F28: 3130 | K28: 0 | L28: 112 | O28: average response rate | P28: =F15/P20 -> 131.6666667 | Q28: =(F23-F15)/Q20 -> 144.75 | R28: =(F32-F23)/R20 -> 159.1111111 | S28: =(F41-F32)/S20 -> 142.8888889 | T28: =(F49-F41)/T20 -> 130.125 | U28: =(F58-F49)/U20 -> 144.5555556
A29: 21 | B29: 3228 | C29: 11 | D29: 3238 | E29: 11 | F29: 3249 | K29: 0 | L29: 211
A30: 21 | B30: 3441 | C30: 11 | D30: 3451 | E30: 11 | F30: 3455 | K30: 0 | L30: 211
A31: 21 | B31: 3584 | C31: 11 | D31: 3592 | E31: 11 | F31: 3596 | K31: 0 | L31: 211
A32: 21 | B32: 3762 | C32: 11 | D32: 3772 | E32: 11 | F32: 3775 | K32: 0 | L32: 211
A33: 21 | B33: 3899 | C33: 11 | D33: 3913 | E33: 11 | F33: 3920 | K33: 0 | L33: 211
A34: 12 | B34: 4053 | C34: 13 | D34: 4057 | E34: 13 | F34: 4065 | K34: 0 | L34: 111
A35: 21 | B35: 4161 | C35: 11 | D35: 4170 | E35: 11 | F35: 4175 | K35: 0 | L35: 211
A36: 21 | B36: 4296 | C36: 11 | D36: 4306 | E36: 11 | F36: 4311 | K36: 0 | L36: 211
A37: 21 | B37: 4451 | C37: 11 | D37: 4460 | E37: 11 | F37: 4464 | K37: 0 | L37: 211
A38: 12 | B38: 4611 | C38: 13 | D38: 4616 | E38: 24 | F38: 4627 | K38: 0 | L38: 112
A39: 21 | B39: 4724 | C39: 11 | D39: 4732 | E39: 11 | F39: 4736 | K39: 0 | L39: 211
A40: 21 | B40: 4885 | C40: 11 | D40: 4892 | E40: 11 | F40: 4896 | K40: 0 | L40: 211
A41: 21 | B41: 5041 | C41: 11 | D41: 5050 | E41: 11 | F41: 5061 | K41: 0 | L41: 211
A42: 12 | B42: 5222 | C42: 13 | D42: 5227 | E42: 13 | F42: 5241 | K42: 0 | L42: 111
A43: 12 | B43: 5349 | C43: 13 | D43: 5354 | E43: 13 | F43: 5371 | K43: 0 | L43: 111
A44: 21 | B44: 5471 | C44: 11 | D44: 5478 | E44: 11 | F44: 5487 | K44: 0 | L44: 211
A45: 21 | B45: 5589 | C45: 11 | D45: 5595 | E45: 11 | F45: 5599 | K45: 0 | L45: 211
A46: 21 | B46: 5695 | C46: 11 | D46: 5704 | E46: 11 | F46: 5709 | K46: 0 | L46: 211
A47: 12 | B47: 5845 | C47: 13 | D47: 5850 | E47: 13 | F47: 5863 | K47: 0 | L47: 111
A48: 21 | B48: 5966 | C48: 11 | D48: 5974 | E48: 11 | F48: 5979 | K48: 0 | L48: 211
A49: 21 | B49: 6089 | C49: 11 | D49: 6097 | E49: 11 | F49: 6102 | K49: 0 | L49: 211
A50: 21 | B50: 6225 | C50: 11 | D50: 6232 | E50: 11 | F50: 6236 | K50: 0 | L50: 211
A51: 21 | B51: 6371 | C51: 11 | D51: 6378 | E51: 11 | F51: 6384 | K51: 0 | L51: 211
A52: 12 | B52: 6613 | C52: 13 | D52: 6617 | E52: 13 | F52: 6625 | K52: 0 | L52: 111
A53: 21 | B53: 6729 | C53: 11 | D53: 6738 | E53: 11 | F53: 6743 | K53: 0 | L53: 211
A54: 21 | B54: 6870 | C54: 11 | D54: 6879 | E54: 11 | F54: 6886 | K54: 0 | L54: 211
A55: 12 | B55: 7024 | C55: 13 | D55: 7031 | E55: 13 | F55: 7037 | K55: 0 | L55: 111
A56: 21 | B56: 7135 | C56: 11 | D56: 7143 | E56: 11 | F56: 7158 | K56: 0 | L56: 211
A57: 12 | B57: 7280 | C57: 13 | D57: 7285 | E57: 13 | F57: 7290 | K57: 0 | L57: 111
A58: 21 | B58: 7390 | C58: 11 | D58: 7399 | E58: 11 | F58: 7403 | K58: 1 | L58: 211

Sheet !MA08A5D.ust
A1: Report for:!MA08A5D.ust
A2: Date: | B2: <date>
A3: Hen: | B3: <hen> | F3: Correct Sequence | G3: =Start!J2 -> 211 | P3: Total Sequences in Data | Q3: =4994-COUNTBLANK(L7:L5000) -> 51 | V3: Total Sequences in Block Data | W3: =COUNTA(L7:L15) -> 9 | AA3: Total Sequences in Block Data | AB3: =COUNTA(L16:L23) -> 8 | AF3: Total Sequences in Block Data | AG3: =COUNTA(L24:L32) -> 9 | AK3: Total Sequences in Block Data | AL3: =COUNTA(L33:L40) -> 8 | AP3: Total Sequences in Block Data | AQ3: =COUNTA(L41:L49) -> 9 | AU3: Total Sequences in Block Data | AV3: =COUNTA(L50:L57) -> 8
P4: Total Sequences in Summary | Q4: =SUM(O7:O14) -> 51 | V4: Total Sequences in Block Summary | W4: =SUM(U7:U14) -> 9 | AA4: Total Sequences in Block Summary | AB4: =SUM(Z7:Z14) -> 8 | AF4: Total Sequences in Block Summary | AG4: =SUM(AE7:AE14) -> 9 | AK4: Total Sequences in Block Summary | AL4: =SUM(AJ7:AJ14) -> 8 | AP4: Total Sequences in Block Summary | AQ4: =SUM(AO7:AO14) -> 9 | AU4: Total Sequences in Block Summary | AV4: =SUM(AT7:AT14) -> 8
T5: Block 1 | Y5: Block 2 | AD5: Block 3 | AI5: Block 4 | AN5: Block 5 | AS5: Block 6
A6: Sequence Component 1 | B6: Time 1 | C6: Sequence Component 2 | D6: Time 2 | E6: Sequence Component 3 | F6: Time 3 | G6: Sequence Component 4 | H6: Time 4 | I6: Sequence Component 5 | J6: Time 5 | K6: Correct? 0=No 1=Yes | L6: Sequence | N6: Frequency | P6: Relative Frequency | Q6: Variability | T6: Frequency | V6: Relative Frequency | W6: Variability | Y6: Frequency | AA6: Relative Frequency | AB6: Variability | AD6: Frequency | AF6: Relative Frequency | AG6: Variability | AI6: Frequency | AK6: Relative Frequency | AL6: Variability | AN6: Frequency | AP6: Relative Frequency | AQ6: Variability | AS6: Frequency | AU6: Relative Frequency | AV6: Variability
A7: 21 | B7: 12 | C7: 11 | D7: 21 | E7: 11 | F7: 26 | K7: 0 | L7: 211 | N7: 111 | O7: =COUNTIF($L$7:$L$500,N7) -> 7 | P7: =O7/$Q$4 -> 0.137254902 | Q7: =IF(P7=0,0,(P7*((LOG(P7))/LOG(2)))) -> -0.3932449596 | T7: =N7 -> 111 | U7: =COUNTIF(L7:L15,T7) -> 0 | V7: =U7/(W4-U11) ->  | W7: =IF(V7=0,0,(V7*((LOG(V7))/LOG(2)))) ->  | Y7: =N7 -> 111 | Z7: =COUNTIF(L16:L23,Y7) -> 1 | AA7: =Z7/(AB4-Z11) -> 1 | AB7: =IF(AA7=0,0,(AA7*((LOG(AA7))/LOG(2)))) -> 0 | AD7: =N7 -> 111 | AE7: =COUNTIF(L24:L32,AD7) -> 1 | AF7: =AE7/(AG4-AE11) -> 1 | AG7: =IF(AF7=0,0,(AF7*((LOG(AF7))/LOG(2)))) -> 0 | AI7: =N7 -> 111 | AJ7: =COUNTIF(L33:L40,AI7) -> 3 | AK7: =AJ7/(AL4-AJ11) -> 1 | AL7: =IF(AK7=0,0,(AK7*((LOG(AK7))/LOG(2)))) -> 0 | AN7: =N7 -> 111 | AO7: =COUNTIF(L41:L49,AN7) -> 1 | AP7: =AO7/(AQ4-AO11) -> 0.2 | AQ7: =IF(AP7=0,0,(AP7*((LOG(AP7))/LOG(2)))) -> -0.464385619 | AS7: =N7 -> 111 | AT7: =COUNTIF(L50:L57,AS7) -> 1 | AU7: =AT7/(AV4-AT11) -> 0.5 | AV7: =IF(AU7=0,0,(AU7*((LOG(AU7))/LOG(2)))) -> -0.5
A8: 21 | B8: 245 | C8: 11 | D8: 254 | E8: 11 | F8: 259 | K8: 0 | L8: 211 | N8: 112 | O8: =COUNTIF($L$7:$L$500,N8) -> 1 | P8: =O8/$Q$4 -> 0.01960784314 | Q8: =IF(P8=0,0,(P8*((LOG(P8))/LOG(2)))) -> -0.1112240263 | T8: =N8 -> 112 | U8: =COUNTIF(L7:L15,T8) -> 0 | V8: =U8/(W4-U11) ->  | W8: =IF(V8=0,0,(V8*((LOG(V8))/LOG(2)))) ->  | Y8: =N8 -> 112 | Z8: =COUNTIF(L16:L23,Y8) -> 0 | AA8: =Z8/(AB4-Z11) -> 0 | AB8: =IF(AA8=0,0,(AA8*((LOG(AA8))/LOG(2)))) -> 0 | AD8: =N8 -> 112 | AE8: =COUNTIF(L24:L32,AD8) -> 0 | AF8: =AE8/(AG4-AE11) -> 0 | AG8: =IF(AF8=0,0,(AF8*((LOG(AF8))/LOG(2)))) -> 0 | AI8: =N8 -> 112 | AJ8: =COUNTIF(L33:L40,AI8) -> 0 | AK8: =AJ8/(AL4-AJ11) -> 0 | AL8: =IF(AK8=0,0,(AK8*((LOG(AK8))/LOG(2)))) -> 0 | AN8: =N8 -> 112 | AO8: =COUNTIF(L41:L49,AN8) -> 0 | AP8: =AO8/(AQ4-AO11) -> 0 | AQ8: =IF(AP8=0,0,(AP8*((LOG(AP8))/LOG(2)))) -> 0 | AS8: =N8 -> 112 | AT8: =COUNTIF(L50:L57,AS8) -> 1 | AU8: =AT8/(AV4-AT11) -> 0.5 | AV8: =IF(AU8=0,0,(AU8*((LOG(AU8))/LOG(2)))) -> -0.5
A9: 21 | B9: 395 | C9: 11 | D9: 402 | E9: 11 | F9: 408 | K9: 0 | L9: 211 | N9: 121 | O9: =COUNTIF($L$7:$L$500,N9) -> 0 | P9: =O9/$Q$4 -> 0 | Q9: =IF(P9=0,0,(P9*((LOG(P9))/LOG(2)))) -> 0 | T9: =N9 -> 121 | U9: =COUNTIF(L7:L15,T9) -> 0 | V9: =U9/(W4-U11) ->  | W9: =IF(V9=0,0,(V9*((LOG(V9))/LOG(2)))) ->  | Y9: =N9 -> 121 | Z9: =COUNTIF(L16:L23,Y9) -> 0 | AA9: =Z9/(AB4-Z11) -> 0 | AB9: =IF(AA9=0,0,(AA9*((LOG(AA9))/LOG(2)))) -> 0 | AD9: =N9 -> 121 | AE9: =COUNTIF(L24:L32,AD9) -> 0 | AF9: =AE9/(AG4-AE11) -> 0 | AG9: =IF(AF9=0,0,(AF9*((LOG(AF9))/LOG(2)))) -> 0 | AI9: =N9 -> 121 | AJ9: =COUNTIF(L33:L40,AI9) -> 0 | AK9: =AJ9/(AL4-AJ11) -> 0 | AL9: =IF(AK9=0,0,(AK9*((LOG(AK9))/LOG(2)))) -> 0 | AN9: =N9 -> 121 | AO9: =COUNTIF(L41:L49,AN9) -> 0 | AP9: =AO9/(AQ4-AO11) -> 0 | AQ9: =IF(AP9=0,0,(AP9*((LOG(AP9))/LOG(2)))) -> 0 | AS9: =N9 -> 121 | AT9: =COUNTIF(L50:L57,AS9) -> 0 | AU9: =AT9/(AV4-AT11) -> 0 | AV9: =IF(AU9=0,0,(AU9*((LOG(AU9))/LOG(2)))) -> 0
A10: 21 | B10: 607 | C10: 11 | D10: 617 | E10: 11 | F10: 620 | K10: 0 | L10: 211 | N10: 122 | O10: =COUNTIF($L$7:$L$500,N10) -> 0 | P10: =O10/$Q$4 -> 0 | Q10: =IF(P10=0,0,(P10*((LOG(P10))/LOG(2)))) -> 0 | T10: =N10 -> 122 | U10: =COUNTIF(L7:L15,T10) -> 0 | V10: =U10/(W4-U11) ->  | W10: =IF(V10=0,0,(V10*((LOG(V10))/LOG(2)))) ->  | Y10: =N10 -> 122 | Z10: =COUNTIF(L16:L23,Y10) -> 0 | AA10: =Z10/(AB4-Z11) -> 0 | AB10: =IF(AA10=0,0,(AA10*((LOG(AA10))/LOG(2)))) -> 0 | AD10: =N10 -> 122 | AE10: =COUNTIF(L24:L32,AD10) -> 0 | AF10: =AE10/(AG4-AE11) -> 0 | AG10: =IF(AF10=0,0,(AF10*((LOG(AF10))/LOG(2)))) -> 0 | AI10: =N10 -> 122 | AJ10: =COUNTIF(L33:L40,AI10) -> 0 | AK10: =AJ10/(AL4-AJ11) -> 0 | AL10: =IF(AK10=0,0,(AK10*((LOG(AK10))/LOG(2)))) -> 0 | AN10: =N10 -> 122 | AO10: =COUNTIF(L41:L49,AN10) -> 0 | AP10: =AO10/(AQ4-AO11) -> 0 | AQ10: =IF(AP10=0,0,(AP10*((LOG(AP10))/LOG(2)))) -> 0 | AS10: =N10 -> 122 | AT10: =COUNTIF(L50:L57,AS10) -> 0 | AU10: =AT10/(AV4-AT11) -> 0 | AV10: =IF(AU10=0,0,(AU10*((LOG(AU10))/LOG(2)))) -> 0
A11: 21 | B11: 755 | C11: 11 | D11: 767 | E11: 11 | F11: 778 | K11: 0 | L11: 211 | N11: 211 | O11: =COUNTIF($L$7:$L$500,N11) -> 39 | P11: =O11/$Q$4 -> 0.7647058824 | Q11: =IF(P11=0,0,(P11*((LOG(P11))/LOG(2)))) -> -0.2959588588 | T11: =N11 -> 211 | U11: =COUNTIF(L7:L15,T11) -> 9 | Y11: =N11 -> 211 | Z11: =COUNTIF(L16:L23,Y11) -> 7 | AD11: =N11 -> 211 | AE11: =COUNTIF(L24:L32,AD11) -> 8 | AI11: =N11 -> 211 | AJ11: =COUNTIF(L33:L40,AI11) -> 5 | AN11: =N11 -> 211 | AO11: =COUNTIF(L41:L49,AN11) -> 4 | AS11: =N11 -> 211 | AT11: =COUNTIF(L50:L57,AS11) -> 6
A12: 21 | B12: 910 | C12: 11 | D12: 920 | E12: 11 | F12: 926 | K12: 0 | L12: 211 | N12: 212 | O12: =COUNTIF($L$7:$L$500,N12) -> 0 | P12: =O12/$Q$4 -> 0 | Q12: =IF(P12=0,0,(P12*((LOG(P12))/LOG(2)))) -> 0 | T12: =N12 -> 212 | U12: =COUNTIF(L7:L15,T12) -> 0 | V12: =U12/(W4-U11) ->  | W12: =IF(V12=0,0,(V12*((LOG(V12))/LOG(2)))) ->  | Y12: =N12 -> 212 | Z12: =COUNTIF(L16:L23,Y12) -> 0 | AA12: =Z12/(AB4-Z11) -> 0 | AB12: =IF(AA12=0,0,(AA12*((LOG(AA12))/LOG(2)))) -> 0 | AD12: =N12 -> 212 | AE12: =COUNTIF(L24:L32,AD12) -> 0 | AF12: =AE12/(AG4-AE11) -> 0 | AG12: =IF(AF12=0,0,(AF12*((LOG(AF12))/LOG(2)))) -> 0 | AI12: =N12 -> 212 | AJ12: =COUNTIF(L33:L40,AI12) -> 0 | AK12: =AJ12/(AL4-AJ11) -> 0 | AL12: =IF(AK12=0,0,(AK12*((LOG(AK12))/LOG(2)))) -> 0 | AN12: =N12 -> 212 | AO12: =COUNTIF(L41:L49,AN12) -> 0 | AP12: =AO12/(AQ4-AO11) -> 0 | AQ12: =IF(AP12=0,0,(AP12*((LOG(AP12))/LOG(2)))) -> 0 | AS12: =N12 -> 212 | AT12: =COUNTIF(L50:L57,AS12) -> 0 | AU12: =AT12/(AV4-AT11) -> 0 | AV12: =IF(AU12=0,0,(AU12*((LOG(AU12))/LOG(2)))) -> 0
A13: 21 | B13: 1054 | C13: 11 | D13: 1064 | E13: 11 | F13: 1068 | K13: 0 | L13: 211 | N13: 221 | O13: =COUNTIF($L$7:$L$500,N13) -> 3 | P13: =O13/$Q$4 -> 0.05882352941 | Q13: =IF(P13=0,0,(P13*((LOG(P13))/LOG(2)))) -> -0.2404389907 | T13: =N13 -> 221 | U13: =COUNTIF(L7:L15,T13) -> 0 | V13: =U13/(W4-U11) ->  | W13: =IF(V13=0,0,(V13*((LOG(V13))/LOG(2)))) ->  | Y13: =N13 -> 221 | Z13: =COUNTIF(L16:L23,Y13) -> 0 | AA13: =Z13/(AB4-Z11) -> 0 | AB13: =IF(AA13=0,0,(AA13*((LOG(AA13))/LOG(2)))) -> 0 | AD13: =N13 -> 221 | AE13: =COUNTIF(L24:L32,AD13) -> 0 | AF13: =AE13/(AG4-AE11) -> 0 | AG13: =IF(AF13=0,0,(AF13*((LOG(AF13))/LOG(2)))) -> 0 | AI13: =N13 -> 221 | AJ13: =COUNTIF(L33:L40,AI13) -> 0 | AK13: =AJ13/(AL4-AJ11) -> 0 | AL13: =IF(AK13=0,0,(AK13*((LOG(AK13))/LOG(2)))) -> 0 | AN13: =N13 -> 221 | AO13: =COUNTIF(L41:L49,AN13) -> 3 | AP13: =AO13/(AQ4-AO11) -> 0.6 | AQ13: =IF(AP13=0,0,(AP13*((LOG(AP13))/LOG(2)))) -> -0.4421793565 | AS13: =N13 -> 221 | AT13: =COUNTIF(L50:L57,AS13) -> 0 | AU13: =AT13/(AV4-AT11) -> 0 | AV13: =IF(AU13=0,0,(AU13*((LOG(AU13))/LOG(2)))) -> 0
A14: 21 | B14: 1201 | C14: 11 | D14: 1211 | E14: 11 | F14: 1220 | K14: 0 | L14: 211 | N14: 222 | O14: =COUNTIF($L$7:$L$500,N14) -> 1 | P14: =O14/$Q$4 -> 0.01960784314 | Q14: =IF(P14=0,0,(P14*((LOG(P14))/LOG(2)))) -> -0.1112240263 | T14: =N14 -> 222 | U14: =COUNTIF(L7:L15,T14) -> 0 | V14: =U14/(W4-U11) ->  | W14: =IF(V14=0,0,(V14*((LOG(V14))/LOG(2)))) ->  | Y14: =N14 -> 222 | Z14: =COUNTIF(L16:L23,Y14) -> 0 | AA14: =Z14/(AB4-Z11) -> 0 | AB14: =IF(AA14=0,0,(AA14*((LOG(AA14))/LOG(2)))) -> 0 | AD14: =N14 -> 222 | AE14: =COUNTIF(L24:L32,AD14) -> 0 | AF14: =AE14/(AG4-AE11) -> 0 | AG14: =IF(AF14=0,0,(AF14*((LOG(AF14))/LOG(2)))) -> 0 | AI14: =N14 -> 222 | AJ14: =COUNTIF(L33:L40,AI14) -> 0 | AK14: =AJ14/(AL4-AJ11) -> 0 | AL14: =IF(AK14=0,0,(AK14*((LOG(AK14))/LOG(2)))) -> 0 | AN14: =N14 -> 222 | AO14: =COUNTIF(L41:L49,AN14) -> 1 | AP14: =AO14/(AQ4-AO11) -> 0.2 | AQ14: =IF(AP14=0,0,(AP14*((LOG(AP14))/LOG(2)))) -> -0.464385619 | AS14: =N14 -> 222 | AT14: =COUNTIF(L50:L57,AS14) -> 0 | AU14: =AT14/(AV4-AT11) -> 0 | AV14: =IF(AU14=0,0,(AU14*((LOG(AU14))/LOG(2)))) -> 0
A15: 21 | B15: 1376 | C15: 11 | D15: 1387 | E15: 11 | F15: 1403 | K15: 0 | L15: 211 | P15: =SUM(P7:P14) -> 1 | Q15: =-SUM(Q7:Q14) -> 1.152090862 | V15: =SUM(V7:V14) ->  | W15: =-SUM(W7:W14) ->  | AA15: =SUM(AA7:AA14) -> 1 | AB15: =-SUM(AB7:AB14) -> 0 | AF15: =SUM(AF7:AF14) -> 1 | AG15: =-SUM(AG7:AG14) -> 0 | AK15: =SUM(AK7:AK14) -> 1 | AL15: =-SUM(AL7:AL14) -> 0 | AP15: =SUM(AP7:AP14) -> 1 | AQ15: =-SUM(AQ7:AQ14) -> 1.370950594 | AU15: =SUM(AU7:AU14) -> 1 | AV15: =-SUM(AV7:AV14) -> 1
A16: 21 | B16: 1550 | C16: 11 | D16: 1562 | E16: 11 | F16: 1567 | K16: 0 | L16: 211 | P16: U= | Q16: =Q15/(LOG(Q4)/LOG(2)) -> 0.2031037506 | V16: U1= | W16: =W15/(LOG(W4)/LOG(2)) ->  | AA16: U2= | AB16: =AB15/(LOG(AB4)/LOG(2)) -> 0 | AF16: U3= | AG16: =AG15/(LOG(AG4)/LOG(2)) -> 0 | AK16: U4= | AL16: =AL15/(LOG(AL4)/LOG(2)) -> 0 | AP16: U5= | AQ16: =AQ15/(LOG(AQ4)/LOG(2)) -> 0.4324867604 | AU16: U6= | AV16: =AV15/(LOG(AV4)/LOG(2)) -> 0.3333333333
A17: 21 | B17: 1724 | C17: 11 | D17: 1734 | E17: 11 | F17: 1737 | K17: 0 | L17: 211
A18: 21 | B18: 1858 | C18: 11 | D18: 1867 | E18: 11 | F18: 1871 | K18: 0 | L18: 211
A19: 12 | B19: 2028 | C19: 13 | D19: 2032 | E19: 13 | F19: 2041 | K19: 0 | L19: 111 | N19: Total Target Seq
A20: 21 | B20: 2160 | C20: 11 | D20: 2171 | E20: 11 | F20: 2176 | K20: 0 | L20: 211 | N20: =COUNTIF(L7:L57,G3) -> 39 | P20: 9 | Q20: 8 | R20: 9 | S20: 8 | T20: 9 | U20: 8
A21: 21 | B21: 2312 | C21: 11 | D21: 2322 | E21: 11 | F21: 2327 | K21: 0 | L21: 211 | P21: % of reinforcement given in 6 equal intervals based on number of trials
A22: 21 | B22: 2544 | C22: 11 | D22: 2553 | E22: 11 | F22: 2555 | K22: 0 | L22: 211 | P22: %_1 | Q22: %_2 | R22: %_3 | S22: %_4 | T22: %_5 | U22: %_6
A23: 21 | B23: 2712 | C23: 11 | D23: 2721 | E23: 11 | F23: 2725 | K23: 0 | L23: 211 | O23: target sequence | P23: =$G$3 -> 211 | Q23: =$G$3 -> 211 | R23: =$G$3 -> 211 | S23: =$G$3 -> 211 | T23: =$G$3 -> 211 | U23: =$G$3 -> 211
A24: 21 | B24: 2858 | C24: 11 | D24: 2867 | E24: 11 | F24: 2870 | K24: 0 | L24: 211 | O24: total reinforcement | P24: =U11 -> 9 | Q24: =Z11 -> 7 | R24: =AE11 -> 8 | S24: =AJ11 -> 5 | T24: =AO11 -> 4 | U24: =AT11 -> 6
A25: 21 | B25: 3021 | C25: 11 | D25: 3031 | E25: 11 | F25: 3036 | K25: 0 | L25: 211 | O25: % target
A26: 21 | B26: 3234 | C26: 11 | D26: 3241 | E26: 11 | F26: 3245 | K26: 0 | L26: 211 | O26: CCRF
A27: 21 | B27: 3396 | C27: 11 | D27: 3405 | E27: 11 | F27: 3410 | K27: 0 | L27: 211 | O27: % CCRf
A28: 21 | B28: 3539 | C28: 11 | D28: 3548 | E28: 11 | F28: 3558 | K28: 0 | L28: 211 | O28: average response rate | P28: =F15/P20 -> 155.8888889 | Q28: =(F23-F15)/Q20 -> 165.25 | R28: =(F32-F23)/R20 -> 164.6666667 | S28: =(F40-F32)/S20 -> 160.625 | T28: =(F49-F40)/T20 -> 134.6666667 | U28: =(F57-F49)/U20 -> 160.875
A29: 12 | B29: 3757 | C29: 13 | D29: 3761 | E29: 13 | F29: 3766 | K29: 0 | L29: 111
A30: 21 | B30: 3864 | C30: 11 | D30: 3873 | E30: 11 | F30: 3880 | K30: 0 | L30: 211
A31: 21 | B31: 3997 | C31: 11 | D31: 4005 | E31: 11 | F31: 4014 | K31: 0 | L31: 211
A32: 21 | B32: 4195 | C32: 11 | D32: 4204 | E32: 11 | F32: 4207 | K32: 0 | L32: 211
A33: 21 | B33: 4343 | C33: 11 | D33: 4352 | E33: 11 | F33: 4357 | K33: 0 | L33: 211
A34: 12 | B34: 4559 | C34: 13 | D34: 4563 | E34: 13 | F34: 4569 | K34: 0 | L34: 111
A35: 21 | B35: 4671 | C35: 11 | D35: 4679 | E35: 11 | F35: 4685 | K35: 0 | L35: 211
A36: 12 | B36: 4783 | C36: 13 | D36: 4789 | E36: 13 | F36: 4795 | K36: 0 | L36: 111
A37: 21 | B37: 4893 | C37: 11 | D37: 4900 | E37: 11 | F37: 4905 | K37: 0 | L37: 211
A38: 21 | B38: 5054 | C38: 11 | D38: 5062 | E38: 11 | F38: 5066 | K38: 0 | L38: 211
A39: 21 | B39: 5230 | C39: 11 | D39: 5238 | E39: 11 | F39: 5243 | K39: 0 | L39: 211
A40: 12 | B40: 5463 | C40: 13 | D40: 5467 | E40: 13 | F40: 5492 | K40: 0 | L40: 111
A41: 21 | B41: 5589 | C41: 22 | D41: 5594 | E41: 13 | F41: 5600 | K41: 0 | L41: 221
A42: 21 | B42: 5695 | C42: 22 | D42: 5698 | E42: 24 | F42: 5701 | K42: 0 | L42: 222
A43: 21 | B43: 5802 | C43: 11 | D43: 5810 | E43: 11 | F43: 5819 | K43: 0 | L43: 211
A44: 12 | B44: 5969 | C44: 13 | D44: 5973 | E44: 13 | F44: 5983 | K44: 0 | L44: 111
A45: 21 | B45: 6083 | C45: 22 | D45: 6091 | E45: 13 | F45: 6101 | K45: 0 | L45: 221
A46: 21 | B46: 6198 | C46: 22 | D46: 6205 | E46: 13 | F46: 6214 | K46: 0 | L46: 221
A47: 21 | B47: 6312 | C47: 11 | D47: 6323 | E47: 11 | F47: 6330 | K47: 0 | L47: 211
A48: 21 | B48: 6520 | C48: 11 | D48: 6527 | E48: 11 | F48: 6532 | K48: 0 | L48: 211
A49: 21 | B49: 6693 | C49: 11 | D49: 6700 | E49: 11 | F49: 6704 | K49: 0 | L49: 211
A50: 21 | B50: 6858 | C50: 11 | D50: 6866 | E50: 11 | F50: 6876 | K50: 0 | L50: 211
A51: 21 | B51: 7038 | C51: 11 | D51: 7046 | E51: 11 | F51: 7050 | K51: 0 | L51: 211
A52: 12 | B52: 7263 | C52: 13 | D52: 7275 | E52: 24 | F52: 7298 | K52: 0 | L52: 112
A53: 21 | B53: 7400 | C53: 11 | D53: 7408 | E53: 11 | F53: 7414 | K53: 0 | L53: 211
A54: 21 | B54: 7535 | C54: 11 | D54: 7542 | E54: 11 | F54: 7546 | K54: 0 | L54: 211
A55: 12 | B55: 7713 | C55: 13 | D55: 7724 | E55: 13 | F55: 7747 | K55: 0 | L55: 111
A56: 21 | B56: 7850 | C56: 11 | D56: 7861 | E56: 11 | F56: 7868 | K56: 0 | L56: 211
A57: 21 | B57: 7979 | C57: 11 | D57: 7987 | E57: 11 | F57: 7991 | K57: 1 | L57: 211

Sheet !MA0992D.ust
A1: Report for:!MA0992D.ust
A2: Date: | B2: <date>
A3: Hen: | B3: <hen> | F3: Correct Sequence | G3: =Start!J2 -> 211 | P3: Total Sequences in Data | Q3: =4994-COUNTBLANK(L7:L5000) -> 51 | V3: Total Sequences in Block Data | W3: =COUNTA(L7:L15) -> 9 | AA3: Total Sequences in Block Data | AB3: =COUNTA(L16:L23) -> 8 | AF3: Total Sequences in Block Data | AG3: =COUNTA(L24:L32) -> 9 | AK3: Total Sequences in Block Data | AL3: =COUNTA(L33:L40) -> 8 | AP3: Total Sequences in Block Data | AQ3: =COUNTA(L41:L49) -> 9 | AU3: Total Sequences in Block Data | AV3: =COUNTA(L50:L57) -> 8
P4: Total Sequences in Summary | Q4: =SUM(O7:O14) -> 51 | V4: Total Sequences in Block Summary | W4: =SUM(U7:U14) -> 9 | AA4: Total Sequences in Block Summary | AB4: =SUM(Z7:Z14) -> 8 | AF4: Total Sequences in Block Summary | AG4: =SUM(AE7:AE14) -> 9 | AK4: Total Sequences in Block Summary | AL4: =SUM(AJ7:AJ14) -> 8 | AP4: Total Sequences in Block Summary | AQ4: =SUM(AO7:AO14) -> 9 | AU4: Total Sequences in Block Summary | AV4: =SUM(AT7:AT14) -> 8
T5: Block 1 | Y5: Block 2 | AD5: Block 3 | AI5: Block 4 | AN5: Block 5 | AS5: Block 6
A6: Sequence Component 1 | B6: Time 1 | C6: Sequence Component 2 | D6: Time 2 | E6: Sequence Component 3 | F6: Time 3 | G6: Sequence Component 4 | H6: Time 4 | I6: Sequence Component 5 | J6: Time 5 | K6: Correct? 0=No 1=Yes | L6: Sequence | N6: Frequency | P6: Relative Frequency | Q6: Variability | T6: Frequency | V6: Relative Frequency | W6: Variability | Y6: Frequency | AA6: Relative Frequency | AB6: Variability | AD6: Frequency | AF6: Relative Frequency | AG6: Variability | AI6: Frequency | AK6: Relative Frequency | AL6: Variability | AN6: Frequency | AP6: Relative Frequency | AQ6: Variability | AS6: Frequency | AU6: Relative Frequency | AV6: Variability
A7: 21 | B7: 4 | C7: 11 | D7: 17 | E7: 11 | F7: 22 | K7: 0 | L7: 211 | N7: 111 | O7: =COUNTIF($L$7:$L$500,N7) -> 9 | P7: =O7/$Q$4 -> 0.1764705882 | Q7: =IF(P7=0,0,(P7*((LOG(P7))/LOG(2)))) -> -0.4416177072 | T7: =N7 -> 111 | U7: =COUNTIF(L7:L15,T7) -> 2 | V7: =U7/(W4-U11) -> 1 | W7: =IF(V7=0,0,(V7*((LOG(V7))/LOG(2)))) -> 0 | Y7: =N7 -> 111 | Z7: =COUNTIF(L16:L23,Y7) -> 3 | AA7: =Z7/(AB4-Z11) -> 1 | AB7: =IF(AA7=0,0,(AA7*((LOG(AA7))/LOG(2)))) -> 0 | AD7: =N7 -> 111 | AE7: =COUNTIF(L24:L32,AD7) -> 0 | AF7: =AE7/(AG4-AE11) -> 0 | AG7: =IF(AF7=0,0,(AF7*((LOG(AF7))/LOG(2)))) -> 0 | AI7: =N7 -> 111 | AJ7: =COUNTIF(L33:L40,AI7) -> 2 | AK7: =AJ7/(AL4-AJ11) -> 1 | AL7: =IF(AK7=0,0,(AK7*((LOG(AK7))/LOG(2)))) -> 0 | AN7: =N7 -> 111 | AO7: =COUNTIF(L41:L49,AN7) -> 1 | AP7: =AO7/(AQ4-AO11) -> 1 | AQ7: =IF(AP7=0,0,(AP7*((LOG(AP7))/LOG(2)))) -> 0 | AS7: =N7 -> 111 | AT7: =COUNTIF(L50:L57,AS7) -> 1 | AU7: =AT7/(AV4-AT11) -> 0.5 | AV7: =IF(AU7=0,0,(AU7*((LOG(AU7))/LOG(2)))) -> -0.5
A8: 21 | B8: 143 | C8: 11 | D8: 151 | E8: 11 | F8: 164 | K8: 0 | L8: 211 | N8: 112 | O8: =COUNTIF($L$7:$L$500,N8) -> 3 | P8: =O8/$Q$4 -> 0.05882352941 | Q8: =IF(P8=0,0,(P8*((LOG(P8))/LOG(2)))) -> -0.2404389907 | T8: =N8 -> 112 | U8: =COUNTIF(L7:L15,T8) -> 0 | V8: =U8/(W4-U11) -> 0 | W8: =IF(V8=0,0,(V8*((LOG(V8))/LOG(2)))) -> 0 | Y8: =N8 -> 112 | Z8: =COUNTIF(L16:L23,Y8) -> 0 | AA8: =Z8/(AB4-Z11) -> 0 | AB8: =IF(AA8=0,0,(AA8*((LOG(AA8))/LOG(2)))) -> 0 | AD8: =N8 -> 112 | AE8: =COUNTIF(L24:L32,AD8) -> 2 | AF8: =AE8/(AG4-AE11) -> 1 | AG8: =IF(AF8=0,0,(AF8*((LOG(AF8))/LOG(2)))) -> 0 | AI8: =N8 -> 112 | AJ8: =COUNTIF(L33:L40,AI8) -> 0 | AK8: =AJ8/(AL4-AJ11) -> 0 | AL8: =IF(AK8=0,0,(AK8*((LOG(AK8))/LOG(2)))) -> 0 | AN8: =N8 -> 112 | AO8: =COUNTIF(L41:L49,AN8) -> 0 | AP8: =AO8/(AQ4-AO11) -> 0 | AQ8: =IF(AP8=0,0,(AP8*((LOG(AP8))/LOG(2)))) -> 0 | AS8: =N8 -> 112 | AT8: =COUNTIF(L50:L57,AS8) -> 1 | AU8: =AT8/(AV4-AT11) -> 0.5 | AV8: =IF(AU8=0,0,(AU8*((LOG(AU8))/LOG(2)))) -> -0.5
A9: 21 | B9: 311 | C9: 11 | D9: 320 | E9: 11 | F9: 325 | K9: 0 | L9: 211 | N9: 121 | O9: =COUNTIF($L$7:$L$500,N9) -> 0 | P9: =O9/$Q$4 -> 0 | Q9: =IF(P9=0,0,(P9*((LOG(P9))/LOG(2)))) -> 0 | T9: =N9 -> 121 | U9: =COUNTIF(L7:L15,T9) -> 0 | V9: =U9/(W4-U11) -> 0 | W9: =IF(V9=0,0,(V9*((LOG(V9))/LOG(2)))) -> 0 | Y9: =N9 -> 121 | Z9: =COUNTIF(L16:L23,Y9) -> 0 | AA9: =Z9/(AB4-Z11) -> 0 | AB9: =IF(AA9=0,0,(AA9*((LOG(AA9))/LOG(2)))) -> 0 | AD9: =N9 -> 121 | AE9: =COUNTIF(L24:L32,AD9) -> 0 | AF9: =AE9/(AG4-AE11) -> 0 | AG9: =IF(AF9=0,0,(AF9*((LOG(AF9))/LOG(2)))) -> 0 | AI9: =N9 -> 121 | AJ9: =COUNTIF(L33:L40,AI9) -> 0 | AK9: =AJ9/(AL4-AJ11) -> 0 | AL9: =IF(AK9=0,0,(AK9*((LOG(AK9))/LOG(2)))) -> 0 | AN9: =N9 -> 121 | AO9: =COUNTIF(L41:L49,AN9) -> 0 | AP9: =AO9/(AQ4-AO11) -> 0 | AQ9: =IF(AP9=0,0,(AP9*((LOG(AP9))/LOG(2)))) -> 0 | AS9: =N9 -> 121 | AT9: =COUNTIF(L50:L57,AS9) -> 0 | AU9: =AT9/(AV4-AT11) -> 0 | AV9: =IF(AU9=0,0,(AU9*((LOG(AU9))/LOG(2)))) -> 0
A10: 21 | B10: 452 | C10: 11 | D10: 462 | E10: 11 | F10: 465 | K10: 0 | L10: 211 | N10: 122 | O10: =COUNTIF($L$7:$L$500,N10) -> 0 | P10: =O10/$Q$4 -> 0 | Q10: =IF(P10=0,0,(P10*((LOG(P10))/LOG(2)))) -> 0 | T10: =N10 -> 122 | U10: =COUNTIF(L7:L15,T10) -> 0 | V10: =U10/(W4-U11) -> 0 | W10: =IF(V10=0,0,(V10*((LOG(V10))/LOG(2)))) -> 0 | Y10: =N10 -> 122 | Z10: =COUNTIF(L16:L23,Y10) -> 0 | AA10: =Z10/(AB4-Z11) -> 0 | AB10: =IF(AA10=0,0,(AA10*((LOG(AA10))/LOG(2)))) -> 0 | AD10: =N10 -> 122 | AE10: =COUNTIF(L24:L32,AD10) -> 0 | AF10: =AE10/(AG4-AE11) -> 0 | AG10: =IF(AF10=0,0,(AF10*((LOG(AF10))/LOG(2)))) -> 0 | AI10: =N10 -> 122 | AJ10: =COUNTIF(L33:L40,AI10) -> 0 | AK10: =AJ10/(AL4-AJ11) -> 0 | AL10: =IF(AK10=0,0,(AK10*((LOG(AK10))/LOG(2)))) -> 0 | AN10: =N10 -> 122 | AO10: =COUNTIF(L41:L49,AN10) -> 0 | AP10: =AO10/(AQ4-AO11) -> 0 | AQ10: =IF(AP10=0,0,(AP10*((LOG(AP10))/LOG(2)))) -> 0 | AS10: =N10 -> 122 | AT10: =COUNTIF(L50:L57,AS10) -> 0 | AU10: =AT10/(AV4-AT11) -> 0 | AV10: =IF(AU10=0,0,(AU10*((LOG(AU10))/LOG(2)))) -> 0
A11: 12 | B11: 664 | C11: 13 | D11: 683 | E11: 13 | F11: 714 | K11: 0 | L11: 111 | N11: 211 | O11: =COUNTIF($L$7:$L$500,N11) -> 39 | P11: =O11/$Q$4 -> 0.7647058824 | Q11: =IF(P11=0,0,(P11*((LOG(P11))/LOG(2)))) -> -0.2959588588 | T11: =N11 -> 211 | U11: =COUNTIF(L7:L15,T11) -> 7 | Y11: =N11 -> 211 | Z11: =COUNTIF(L16:L23,Y11) -> 5 | AD11: =N11 -> 211 | AE11: =COUNTIF(L24:L32,AD11) -> 7 | AI11: =N11 -> 211 | AJ11: =COUNTIF(L33:L40,AI11) -> 6 | AN11: =N11 -> 211 | AO11: =COUNTIF(L41:L49,AN11) -> 8 | AS11: =N11 -> 211 | AT11: =COUNTIF(L50:L57,AS11) -> 6
A12: 21 | B12: 818 | C12: 11 | D12: 827 | E12: 11 | F12: 838 | K12: 0 | L12: 211 | N12: 212 | O12: =COUNTIF($L$7:$L$500,N12) -> 0 | P12: =O12/$Q$4 -> 0 | Q12: =IF(P12=0,0,(P12*((LOG(P12))/LOG(2)))) -> 0 | T12: =N12 -> 212 | U12: =COUNTIF(L7:L15,T12) -> 0 | V12: =U12/(W4-U11) -> 0 | W12: =IF(V12=0,0,(V12*((LOG(V12))/LOG(2)))) -> 0 | Y12: =N12 -> 212 | Z12: =COUNTIF(L16:L23,Y12) -> 0 | AA12: =Z12/(AB4-Z11) -> 0 | AB12: =IF(AA12=0,0,(AA12*((LOG(AA12))/LOG(2)))) -> 0 | AD12: =N12 -> 212 | AE12: =COUNTIF(L24:L32,AD12) -> 0 | AF12: =AE12/(AG4-AE11) -> 0 | AG12: =IF(AF12=0,0,(AF12*((LOG(AF12))/LOG(2)))) -> 0 | AI12: =N12 -> 212 | AJ12: =COUNTIF(L33:L40,AI12) -> 0 | AK12: =AJ12/(AL4-AJ11) -> 0 | AL12: =IF(AK12=0,0,(AK12*((LOG(AK12))/LOG(2)))) -> 0 | AN12: =N12 -> 212 | AO12: =COUNTIF(L41:L49,AN12) -> 0 | AP12: =AO12/(AQ4-AO11) -> 0 | AQ12: =IF(AP12=0,0,(AP12*((LOG(AP12))/LOG(2)))) -> 0 | AS12: =N12 -> 212 | AT12: =COUNTIF(L50:L57,AS12) -> 0 | AU12: =AT12/(AV4-AT11) -> 0 | AV12: =IF(AU12=0,0,(AU12*((LOG(AU12))/LOG(2)))) -> 0
A13: 12 | B13: 934 | C13: 13 | D13: 938 | E13: 13 | F13: 943 | K13: 0 | L13: 111 | N13: 221 | O13: =COUNTIF($L$7:$L$500,N13) -> 0 | P13: =O13/$Q$4 -> 0 | Q13: =IF(P13=0,0,(P13*((LOG(P13))/LOG(2)))) -> 0 | T13: =N13 -> 221 | U13: =COUNTIF(L7:L15,T13) -> 0 | V13: =U13/(W4-U11) -> 0 | W13: =IF(V13=0,0,(V13*((LOG(V13))/LOG(2)))) -> 0 | Y13: =N13 -> 221 | Z13: =COUNTIF(L16:L23,Y13) -> 0 | AA13: =Z13/(AB4-Z11) -> 0 | AB13: =IF(AA13=0,0,(AA13*((LOG(AA13))/LOG(2)))) -> 0 | AD13: =N13 -> 221 | AE13: =COUNTIF(L24:L32,AD13) -> 0 | AF13: =AE13/(AG4-AE11) -> 0 | AG13: =IF(AF13=0,0,(AF13*((LOG(AF13))/LOG(2)))) -> 0 | AI13: =N13 -> 221 | AJ13: =COUNTIF(L33:L40,AI13) -> 0 | AK13: =AJ13/(AL4-AJ11) -> 0 | AL13: =IF(AK13=0,0,(AK13*((LOG(AK13))/LOG(2)))) -> 0 | AN13: =N13 -> 221 | AO13: =COUNTIF(L41:L49,AN13) -> 0 | AP13: =AO13/(AQ4-AO11) -> 0 | AQ13: =IF(AP13=0,0,(AP13*((LOG(AP13))/LOG(2)))) -> 0 | AS13: =N13 -> 221 | AT13: =COUNTIF(L50:L57,AS13) -> 0 | AU13: =AT13/(AV4-AT11) -> 0 | AV13: =IF(AU13=0,0,(AU13*((LOG(AU13))/LOG(2)))) -> 0
A14: 21 | B14: 1043 | C14: 11 | D14: 1054 | E14: 11 | F14: 1057 | K14: 0 | L14: 211 | N14: 222 | O14: =COUNTIF($L$7:$L$500,N14) -> 0 | P14: =O14/$Q$4 -> 0 | Q14: =IF(P14=0,0,(P14*((LOG(P14))/LOG(2)))) -> 0 | T14: =N14 -> 222 | U14: =COUNTIF(L7:L15,T14) -> 0 | V14: =U14/(W4-U11) -> 0 | W14: =IF(V14=0,0,(V14*((LOG(V14))/LOG(2)))) -> 0 | Y14: =N14 -> 222 | Z14: =COUNTIF(L16:L23,Y14) -> 0 | AA14: =Z14/(AB4-Z11) -> 0 | AB14: =IF(AA14=0,0,(AA14*((LOG(AA14))/LOG(2)))) -> 0 | AD14: =N14 -> 222 | AE14: =COUNTIF(L24:L32,AD14) -> 0 | AF14: =AE14/(AG4-AE11) -> 0 | AG14: =IF(AF14=0,0,(AF14*((LOG(AF14))/LOG(2)))) -> 0 | AI14: =N14 -> 222 | AJ14: =COUNTIF(L33:L40,AI14) -> 0 | AK14: =AJ14/(AL4-AJ11) -> 0 | AL14: =IF(AK14=0,0,(AK14*((LOG(AK14))/LOG(2)))) -> 0 | AN14: =N14 -> 222 | AO14: =COUNTIF(L41:L49,AN14) -> 0 | AP14: =AO14/(AQ4-AO11) -> 0 | AQ14: =IF(AP14=0,0,(AP14*((LOG(AP14))/LOG(2)))) -> 0 | AS14: =N14 -> 222 | AT14: =COUNTIF(L50:L57,AS14) -> 0 | AU14: =AT14/(AV4-AT11) -> 0 | AV14: =IF(AU14=0,0,(AU14*((LOG(AU14))/LOG(2)))) -> 0
A15: 21 | B15: 1152 | C15: 11 | D15: 1162 | E15: 11 | F15: 1166 | K15: 0 | L15: 211 | P15: =SUM(P7:P14) -> 1 | Q15: =-SUM(Q7:Q14) -> 0.9780155567 | V15: =SUM(V7:V14) -> 1 | W15: =-SUM(W7:W14) -> 0 | AA15: =SUM(AA7:AA14) -> 1 | AB15: =-SUM(AB7:AB14) -> 0 | AF15: =SUM(AF7:AF14) -> 1 | AG15: =-SUM(AG7:AG14) -> 0 | AK15: =SUM(AK7:AK14) -> 1 | AL15: =-SUM(AL7:AL14) -> 0 | AP15: =SUM(AP7:AP14) -> 1 | AQ15: =-SUM(AQ7:AQ14) -> 0 | AU15: =SUM(AU7:AU14) -> 1 | AV15: =-SUM(AV7:AV14) -> 1
A16: 12 | B16: 1340 | C16: 13 | D16: 1344 | E16: 13 | F16: 1351 | K16: 0 | L16: 111 | P16: U= | Q16: =Q15/(LOG(Q4)/LOG(2)) -> 0.1724157653 | V16: U1= | W16: =W15/(LOG(W4)/LOG(2)) -> 0 | AA16: U2= | AB16: =AB15/(LOG(AB4)/LOG(2)) -> 0 | AF16: U3= | AG16: =AG15/(LOG(AG4)/LOG(2)) -> 0 | AK16: U4= | AL16: =AL15/(LOG(AL4)/LOG(2)) -> 0 | AP16: U5= | AQ16: =AQ15/(LOG(AQ4)/LOG(2)) -> 0 | AU16: U6= | AV16: =AV15/(LOG(AV4)/LOG(2)) -> 0.3333333333
A17: 21 | B17: 1454 | C17: 11 | D17: 1463 | E17: 11 | F17: 1478 | K17: 0 | L17: 211
A18: 12 | B18: 1664 | C18: 13 | D18: 1669 | E18: 13 | F18: 1681 | K18: 0 | L18: 111
A19: 21 | B19: 1780 | C19: 11 | D19: 1789 | E19: 11 | F19: 1793 | K19: 0 | L19: 211 | N19: Total Target Seq
A20: 21 | B20: 1920 | C20: 11 | D20: 1930 | E20: 11 | F20: 1935 | K20: 0 | L20: 211 | N20: =COUNTIF(L7:L57,G3) -> 39 | P20: 9 | Q20: 8 | R20: 9 | S20: 8 | T20: 9 | U20: 8
A21: 21 | B21: 2061 | C21: 11 | D21: 2071 | E21: 11 | F21: 2075 | K21: 0 | L21: 211 | P21: % of reinforcement given in 6 equal intervals based on number of trials
A22: 12 | B22: 2219 | C22: 13 | D22: 2223 | E22: 13 | F22: 2243 | K22: 0 | L22: 111 | P22: %_1 | Q22: %_2 | R22: %_3 | S22: %_4 | T22: %_5 | U22: %_6
A23: 21 | B23: 2341 | C23: 11 | D23: 2350 | E23: 11 | F23: 2359 | K23: 0 | L23: 211 | O23: target sequence | P23: =$G$3 -> 211 | Q23: =$G$3 -> 211 | R23: =$G$3 -> 211 | S23: =$G$3 -> 211 | T23: =$G$3 -> 211 | U23: =$G$3 -> 211
A24: 12 | B24: 2507 | C24: 13 | D24: 2512 | E24: 24 | F24: 2523 | K24: 0 | L24: 112 | O24: total reinforcement | P24: =U11 -> 7 | Q24: =Z11 -> 5 | R24: =AE11 -> 7 | S24: =AJ11 -> 6 | T24: =AO11 -> 8 | U24: =AT11 -> 6
A25: 12 | B25: 2659 | C25: 13 | D25: 2664 | E25: 24 | F25: 2679 | K25: 0 | L25: 112 | O25: % target
A26: 21 | B26: 2774 | C26: 11 | D26: 2787 | E26: 11 | F26: 2792 | K26: 0 | L26: 211 | O26: CCRF
A27: 21 | B27: 2915 | C27: 11 | D27: 2923 | E27: 11 | F27: 2928 | K27: 0 | L27: 211 | O27: % CCRf
A28: 21 | B28: 3059 | C28: 11 | D28: 3070 | E28: 11 | F28: 3076 | K28: 0 | L28: 211 | O28: average response rate | P28: =F15/P20 -> 129.5555556 | Q28: =(F23-F15)/Q20 -> 149.125 | R28: =(F32-F23)/R20 -> 149.3333333 | S28: =(F40-F32)/S20 -> 169.25 | T28: =(F49-F40)/T20 -> 169.7777778 | U28: =(F57-F49)/U20 -> 189.5
A29: 21 | B29: 3200 | C29: 11 | D29: 3210 | E29: 11 | F29: 3213 | K29: 0 | L29: 211
A30: 21 | B30: 3397 | C30: 11 | D30: 3406 | E30: 11 | F30: 3412 | K30: 0 | L30: 211
A31: 21 | B31: 3529 | C31: 11 | D31: 3539 | E31: 11 | F31: 3550 | K31: 0 | L31: 211
A32: 21 | B32: 3691 | C32: 11 | D32: 3700 | E32: 11 | F32: 3703 | K32: 0 | L32: 211
A33: 21 | B33: 3876 | C33: 11 | D33: 3886 | E33: 11 | F33: 3902 | K33: 0 | L33: 211
A34: 21 | B34: 4089 | C34: 11 | D34: 4098 | E34: 11 | F34: 4102 | K34: 0 | L34: 211
A35: 21 | B35: 4264 | C35: 11 | D35: 4273 | E35: 11 | F35: 4277 | K35: 0 | L35: 211
A36: 12 | B36: 4476 | C36: 13 | D36: 4478 | E36: 13 | F36: 4484 | K36: 0 | L36: 111
A37: 21 | B37: 4586 | C37: 11 | D37: 4595 | E37: 11 | F37: 4607 | K37: 0 | L37: 211
A38: 12 | B38: 4783 | C38: 13 | D38: 4787 | E38: 13 | F38: 4802 | K38: 0 | L38: 111
A39: 21 | B39: 4901 | C39: 11 | D39: 4909 | E39: 11 | F39: 4928 | K39: 0 | L39: 211
A40: 21 | B40: 5044 | C40: 11 | D40: 5053 | E40: 11 | F40: 5057 | K40: 0 | L40: 211
A41: 21 | B41: 5234 | C41: 11 | D41: 5242 | E41: 11 | F41: 5246 | K41: 0 | L41: 211
A42: 12 | B42: 5431 | C42: 13 | D42: 5435 | E42: 13 | F42: 5441 | K42: 0 | L42: 111
A43: 21 | B43: 5539 | C43: 11 | D43: 5548 | E43: 11 | F43: 5553 | K43: 0 | L43: 211
A44: 21 | B44: 5666 | C44: 11 | D44: 5677 | E44: 11 | F44: 5681 | K44: 0 | L44: 211
A45: 21 | B45: 5834 | C45: 11 | D45: 5841 | E45: 11 | F45: 5843 | K45: 0 | L45: 211
A46: 21 | B46: 6003 | C46: 11 | D46: 6013 | E46: 11 | F46: 6029 | K46: 0 | L46: 211
A47: 21 | B47: 6178 | C47: 11 | D47: 6190 | E47: 11 | F47: 6193 | K47: 0 | L47: 211
A48: 21 | B48: 6362 | C48: 11 | D48: 6372 | E48: 11 | F48: 6381 | K48: 0 | L48: 211
A49: 21 | B49: 6575 | C49: 11 | D49: 6582 | E49: 11 | F49: 6585 | K49: 0 | L49: 211
A50: 21 | B50: 6765 | C50: 11 | D50: 6774 | E50: 11 | F50: 6780 | K50: 0 | L50: 211
A51: 12 | B51: 6980 | C51: 13 | D51: 6984 | E51: 13 | F51: 6996 | K51: 0 | L51: 111
A52: 21 | B52: 7094 | C52: 11 | D52: 7105 | E52: 11 | F52: 7110 | K52: 0 | L52: 211
A53: 12 | B53: 7331 | C53: 13 | D53: 7342 | E53: 24 | F53: 7353 | K53: 0 | L53: 112
A54: 21 | B54: 7455 | C54: 11 | D54: 7464 | E54: 11 | F54: 7468 | K54: 0 | L54: 211
